Workbook

Sheet Intro
A38: ='Release Notes'!$A$4 -> Risk Tool V1.105
A39: =MID('Release Notes'!A2,81,LEN('Release Notes'!A2)-4) -> (Procedure Version 8.1 & Package N, September 1, 2017 )

Sheet Emissions
C1: ENTER OPERATIONAL PARAMETERS IN THE HIGHLIGHTED YELLOW CELLS
C3: =IF(ScreeningMode="YES","TIER 3 SCREENING RISK ASSESSMENT DATA INPUT","TIER 1/TIER 2 SCREENING RISK ASSESSMENT DATA INPUT") -> TIER 1/TIER 2 SCREENING RISK ASSESSMENT DATA INPUT
C4: =Intro!A39 & " - " &Intro!A38 -> (Procedure Version 8.1 & Package N, September 1, 2017 ) - Risk Tool V1.105 | Y4: Meteorological Stations (new list as of Sep 1, 2017)
D6: Application Deemed Complete Date | E6: 2020-07-14 | Y6: Station Code | Z6: Location | AA6: Area #
D7: A/N | E7: 622795 (96, 97) | Y7: AZUS | Z7: Azusa | AA7: 8,9,10
D8: Facility Name | E8: Spear's Manufacturing Co. | Y8: BNAP | Z8: Banning | AA8: 28,29
Y9: CELA | Z9: Central L.A. | AA9: 1
Y10: ELSI | Z10: Lake Elsinore | AA10: 25,26,27
C11: 1. Stack Data | E11: Input | F11: Units | Y11: FONT | Z11: Fontana | AA11: 34
C12: Hours/Day | E12: 24 | F12: =IF(OR(E12>24,E12<=0),"Enter value between 0.5 and 24","hrs/day") -> hrs/day | Y12: MSVJ | Z12: Mission Viejo | AA12: 19,20,21
C13: Days/Week | E13: 7 | F13: =IF(OR(E13>7,E13<=0),"Enter value between 1 and 7","days/wk") -> days/wk | Y13: PERI | Z13: Perris | AA13: 24,27,28
C14: Weeks/Year | E14: 52 | F14: =IF(OR(E14>52,E14<=0),"Enter value between 1 and 52","wks/yr") -> wks/yr | Y14: PICO | Z14: Pico Rivera | AA14: 5,10,11
C15: Control Efficiency | E15: 0 | Y15: RDLD | Z15: Redlands | AA15: 35,38
C16: Does source have T-BACT? | E16: NO | Y16: UPLA | Z16: Upland | AA16: 32,36
C17: =IF(E25="c - crematory","Source","Source type (Point or Volume)") -> Source type (Point or Volume) | E17: P | F17: =IF(AND(E17<>"P",E17<>"V"),"Needs Source",IF(E25="C - Crematory","Source","P or V")) -> P or V | G17: =IF(E17="V",IF(SourceType<>"O","Volume Source is only applicable where Source Type = Other. Select Point Source for Boiler, Crematory, ICEs types"),"") ->  | Y17: KBUR | Z17: Burbank Airport | AA17: 7,8,15
C18: Stack Height or Building Height | E18: 32 | F18: feet | H18: Conversion Units (select units From & To) | Y18: KCNO | Z18: Chino Airport. | AA18: 22,33
C19: Building Area | E19: 5000 | F19: ft2 | H19: From | Y19: KCQT | Z19: USC/Downtown L.A. | AA19: 1,12
C20: Distance-Residential | E20: 157 | F20: meters | H20: 1 | I20: feet | Y20: KFUL | Z20: Fullerton Airport | AA20: 16,17
C21: Distance-Commercial | E21: 265 | F21: meters | H21: To | Y21: KHHR | Z21: Hawthorne Airport | AA21: 3,12
C22: Meteorological Station | E22: Van Nuys Airport | H22: =conv_fr*VLOOKUP(I20&" to "&I22,unitconversion,2,FALSE) -> 0.3048 | I22: meter | Y22: KLAX | Z22: Los Angeles Int'l Airport | AA22: 3
C23: Project Duration (Short term options: 2, 5, or 9 years; Else 30 years) | E23: 30 | F23: years | Y23: KLGB | Z23: Long Beach Airport | AA23: 4,18
Y24: KONT | Z24: Ontario Airport | AA24: 33
C25: Source Type | E25: Other | Y25: KPSP | Z25: Palm Springs Airport | AA25: 30,31
C26: Screening Mode (NO = Tier 1 or Tier 2; YES = Tier 3) | E26: NO | Y26: KRAL | Z26: Riverside Airport | AA26: 22,23
Y27: KSMO | Z27: Santa Monica Airport | AA27: 2
Y28: KSNA | Z28: John Wayne Int'l Airport | AA28: 17,18,20
C29: FOR SOURCE TYPE OTHER THAN BOILER, CREMATORY, ICE, PRESSURE WASHER, OR SPRAY BOOTH, FILL IN THE USER DEFINED TABLE BELOW | K29: EQUIPMENT EMISSION SUMMARY | Y29: KTRM | Z29: Desert Hot Springs Airport | AA29: 27,30,31
C30: Fac Name: | D30: =" "& E8 -> Spear's Manufacturing Co. | E30: A/N: | F30: =E7 -> 622795 (96, 97) | Y30: KVNY | Z30: Van Nuys Airport | AA30: 6,13,15
K31: =SourceType -> Other
C32: TAC Code | D32: Compound | E32: Emission Rate (lbs/hr) | F32: Molecular Weight | G32: R1 - Uncontrolled (lbs/hr) | H32: Efficiency Factor (Fraction range 0-1) | I32: R2-Controlled (lbs/hr) | K32: Code | L32: Compound | M32: R1 - Uncontrolled (lbs/hr) | N32: R2 - Controlled (lbs/hr)
C33: V4 | D33: =IF(C33<>"",VLOOKUP(C33,TAClist,2,FALSE),"") -> Vinyl Chloride (Chloroethylene) | E33: 3.33e-08 | F33: =IF($C33="","",VLOOKUP(C33,TAClist,13,FALSE)) -> 62.5 | G33: =IF(E33="","",E33) -> 3.33e-08 | H33: =IF(C33<>"",CombControlEfficiency,"") -> 0 | I33: =IF(E33="","",IF(CombControlEfficiency="",G33*(1-H33),G33*(1-CombControlEfficiency))) -> 3.33e-08 | K33: =IF(C33="","",C33) -> V4 | L33: =IF(K33="","",VLOOKUP(K33,TAClist,2,FALSE)) -> Vinyl Chloride (Chloroethylene) | M33: =IF(C33="","",G33) -> 3.33e-08 | N33: =IF(C33="","",I33) -> 3.33e-08
C34: S6 | D34: =IF($C34="","",VLOOKUP(C34,TAClist,2,FALSE)) -> Styrene | E34: 1.65e-08 | F34: 104.16 | G34: =IF(E34="","",E34) -> 1.65e-08 | H34: 0 | I34: =IF(E34="","",IF(CombControlEfficiency="",G34*(1-H34),G34*(1-CombControlEfficiency))) -> 1.65e-08 | K34: =IF(C34="","",C34) -> S6 | L34: =IF(K34="","",VLOOKUP(K34,TAClist,2,FALSE)) -> Styrene | M34: =IF(C34="","",G34) -> 1.65e-08 | N34: =IF(C34="","",I34) -> 1.65e-08
C35: B12 | D35: 1,3-Butadiene | E35: 9.44e-09 | F35: 54.09 | G35: 9.44e-09 | H35: 0 | I35: 9.44e-09 | K35: B12 | L35: 1,3-Butadiene | M35: 9.44e-09 | N35: 9.44e-09

Sheet Tier 1 Report
C3: PRIMARY INPUT PARAMETERS MUST BE ENTERED ON THE EMISSIONS SHEET OR ON ONE OF THE EQUIPMENT SPECIFIC SHEETS
C5: TIER 1 SCREENING RISK ASSESSMENT REPORT | G5: Application deemed complete date: | I5: =DeemCompleteDate -> 2020-07-14
C6: =Intro!A39 -> (Procedure Version 8.1 & Package N, September 1, 2017 )
C8: ="A/N "&Emissions!$E$7&", "&Emissions!$E$8 -> A/N 622795 (96, 97), Spear's Manufacturing Co. | H8: Tier 1 Results
C9: Equipment Type | D9: =SourceType -> Other | F9: =IF(Emissions!$E$16= "NO","No T-BACT","With T-BACT") -> No T-BACT | H9: Cancer/Chronic ASI | I9: Acute ASI
C10: Nearest Receptor Distance (actual) | D10: =MIN(Emissions!DistanceResidential,Emissions!DistanceCommercial) -> 157 | E10: meters | F10: =VLOOKUP(SourceType,LookupEquipDesc,2,FALSE) -> 0 | H10: =H53 -> 0.0002876015271 | I10: =I53 -> 1.106547901e-08
C11: Receptor Distance (Table 1 Emission look up) | D11: =IF(D10>=100,100,IF(D10>=50,50,25)) -> 100 | E11: meters | F11: =VLOOKUP(SourceType,LookupEquipDesc,4,FALSE) -> 0 | H11: =IF(H10>1,"FAILED","PASSED") -> PASSED | I11: =IF(I10>1,"FAILED","PASSED") -> PASSED | P11: column name | Q11: column no.
F12: =VLOOKUP(SourceType,LookupEquipDesc,6,FALSE) -> 0 | O12: cancer column name | P12: =IF(D11=100,"cancer100",IF(D11=50,"cancer50","cancer25")) -> cancer100 | Q12: =MATCH(P12,'Table 1'!A1:M1,0) -> 10
O13: acute column name | P13: =IF(D11=100,"acute100",IF(D11=50,"acute50","acute25")) -> acute100 | Q13: =MATCH(P13,'Table 1'!A1:M1,0) -> 13
C15: APPLICATION SCREENING INDEX CALCULATION
B16: Code | C16: Compound | D16: Average Annual Emission Rate (lbs/yr) | E16: Max Hourly Emission Rate (lbs/hr) | F16: Cancer/Chronic Pollutant Screening Level (lbs/yr) from Table 1 | G16: Acute Pollutant Screening Level (lbs/hr) from Table 1 | H16: Cancer/Chronic Pollutant Screening Index (PSI) | I16: Acute Pollutant Screening Index (PSI)
B17: ='Tier 2 Report'!B36 -> V4 | C17: ='Tier 2 Report'!C36:D36 -> Vinyl Chloride (Chloroethylene) | D17: ='Tier 2 Report'!I76 -> 0.0002909088 | E17: ='Tier 2 Report'!F76 -> 3.33e-08 | F17: =IF(OR($B17=0,$B17=""),0,VLOOKUP($B17,Table1,$Q$12,FALSE)) -> 1.65 | G17: =IF(OR($B17=0,$B17=""),0,VLOOKUP($B17,Table1,$Q$13,FALSE)) -> 248 | H17: =IF(OR(F17="N/A",F17="",F17=0),"",D17/F17) -> 0.0001763083636 | I17: =IF(OR(G17="N/A",G17="",G17=0,E17=""),"",E17/G17) -> 1.342741935e-10
B18: ='Tier 2 Report'!B37 -> S6 | C18: ='Tier 2 Report'!C37:D37 -> Styrene | D18: ='Tier 2 Report'!I77 -> 0.000144144 | E18: ='Tier 2 Report'!F77 -> 1.65e-08 | F18: =IF(OR($B18=0,$B18=""),0,VLOOKUP($B18,Table1,$Q$12,FALSE)) -> 271000 | G18: =IF(OR($B18=0,$B18=""),0,VLOOKUP($B18,Table1,$Q$13,FALSE)) -> 29 | H18: =IF(OR(F18="N/A",F18="",F18=0),"",D18/F18) -> 5.31896679e-10 | I18: 5.689655172e-10
B19: ='Tier 2 Report'!B38 -> B12 | C19: ='Tier 2 Report'!C38:D38 -> 1,3-Butadiene | D19: ='Tier 2 Report'!I78 -> 8.246784e-05 | E19: ='Tier 2 Report'!F78 -> 9.44e-09 | F19: 0.741 | G19: 0.911 | H19: =IF(OR(F19="N/A",F19="",F19=0),"",D19/F19) -> 0.0001112926316 | I19: 1.03622393e-08
B20: ='Tier 2 Report'!B39 ->  | C20: ='Tier 2 Report'!C39:D39 ->  | D20: ='Tier 2 Report'!I79 -> 0 | E20: ='Tier 2 Report'!F79 ->  | F20: 0 | G20: 0
B21: ='Tier 2 Report'!B40 ->  | C21: ='Tier 2 Report'!C40:D40 ->  | D21: ='Tier 2 Report'!I80 -> 0 | E21: ='Tier 2 Report'!F80 ->  | F21: 0 | G21: 0
B22: ='Tier 2 Report'!B41 ->  | C22: ='Tier 2 Report'!C41:D41 ->  | D22: ='Tier 2 Report'!I81 -> 0 | E22: ='Tier 2 Report'!F81 ->  | F22: 0 | G22: 0
B23: ='Tier 2 Report'!B42 ->  | C23: ='Tier 2 Report'!C42:D42 ->  | D23: ='Tier 2 Report'!I82 -> 0 | E23: ='Tier 2 Report'!F82 ->  | F23: 0 | G23: 0
B24: ='Tier 2 Report'!B43 ->  | C24: ='Tier 2 Report'!C43:D43 ->  | D24: ='Tier 2 Report'!I83 -> 0 | E24: ='Tier 2 Report'!F83 ->  | F24: 0 | G24: 0
B25: ='Tier 2 Report'!B44 ->  | C25: ='Tier 2 Report'!C44:D44 ->  | D25: ='Tier 2 Report'!I84 -> 0 | E25: ='Tier 2 Report'!F84 ->  | F25: 0 | G25: 0
B26: ='Tier 2 Report'!B45 ->  | C26: ='Tier 2 Report'!C45:D45 ->  | D26: ='Tier 2 Report'!I85 -> 0 | E26: ='Tier 2 Report'!F85 ->  | F26: 0 | G26: 0
B27: ='Tier 2 Report'!B46 ->  | C27: ='Tier 2 Report'!C46:D46 ->  | D27: ='Tier 2 Report'!I86 -> 0 | E27: ='Tier 2 Report'!F86 ->  | F27: 0 | G27: 0
B28: ='Tier 2 Report'!B47 ->  | C28: ='Tier 2 Report'!C47:D47 ->  | D28: ='Tier 2 Report'!I87 -> 0 | E28: ='Tier 2 Report'!F87 ->  | F28: 0 | G28: 0
B29: ='Tier 2 Report'!B48 ->  | C29: ='Tier 2 Report'!C48:D48 ->  | D29: ='Tier 2 Report'!I88 -> 0 | E29: ='Tier 2 Report'!F88 ->  | F29: 0 | G29: 0
B30: ='Tier 2 Report'!B49 ->  | C30: ='Tier 2 Report'!C49:D49 ->  | D30: ='Tier 2 Report'!I89 -> 0 | E30: ='Tier 2 Report'!F89 ->  | F30: 0 | G30: 0
B31: ='Tier 2 Report'!B50 ->  | C31: ='Tier 2 Report'!C50:D50 ->  | D31: ='Tier 2 Report'!I90 -> 0 | E31: ='Tier 2 Report'!F90 ->  | F31: 0 | G31: 0
B32: ='Tier 2 Report'!B51 ->  | C32: ='Tier 2 Report'!C51:D51 ->  | D32: ='Tier 2 Report'!I91 -> 0 | E32: ='Tier 2 Report'!F91 ->  | F32: 0 | G32: 0
B33: ='Tier 2 Report'!B52 ->  | C33: ='Tier 2 Report'!C52:D52 ->  | D33: ='Tier 2 Report'!I92 -> 0 | E33: ='Tier 2 Report'!F92 ->  | F33: 0 | G33: 0
B34: ='Tier 2 Report'!B53 ->  | C34: ='Tier 2 Report'!C53:D53 ->  | D34: ='Tier 2 Report'!I93 -> 0 | E34: ='Tier 2 Report'!F93 ->  | F34: 0 | G34: 0
B35: ='Tier 2 Report'!B54 ->  | C35: ='Tier 2 Report'!C54:D54 ->  | D35: ='Tier 2 Report'!I94 -> 0 | E35: ='Tier 2 Report'!F94 ->  | F35: 0 | G35: 0
B36: ='Tier 2 Report'!B55 ->  | C36: ='Tier 2 Report'!C55:D55 ->  | D36: ='Tier 2 Report'!I95 -> 0 | E36: ='Tier 2 Report'!F95 ->  | F36: 0 | G36: 0
B37: ='Tier 2 Report'!B56 ->  | C37: ='Tier 2 Report'!C56:D56 ->  | D37: ='Tier 2 Report'!I96 -> 0 | E37: ='Tier 2 Report'!F96 ->  | F37: 0 | G37: 0
B38: ='Tier 2 Report'!B57 ->  | C38: ='Tier 2 Report'!C57:D57 ->  | D38: ='Tier 2 Report'!I97 -> 0 | E38: ='Tier 2 Report'!F97 ->  | F38: 0 | G38: 0
B39: ='Tier 2 Report'!B58 ->  | C39: ='Tier 2 Report'!C58:D58 ->  | D39: ='Tier 2 Report'!I98 -> 0 | E39: ='Tier 2 Report'!F98 ->  | F39: 0 | G39: 0
B40: ='Tier 2 Report'!B59 ->  | C40: ='Tier 2 Report'!C59:D59 ->  | D40: ='Tier 2 Report'!I99 -> 0 | E40: ='Tier 2 Report'!F99 ->  | F40: 0 | G40: 0
B41: ='Tier 2 Report'!B60 ->  | C41: ='Tier 2 Report'!C60:D60 ->  | D41: ='Tier 2 Report'!I100 -> 0 | E41: ='Tier 2 Report'!F100 ->  | F41: 0 | G41: 0 | I41: =IF(OR(G41="N/A",G41="",G41=0,E41=""),"",E41/G41) -> 
B42: ='Tier 2 Report'!B61 ->  | C42: ='Tier 2 Report'!C61:D61 ->  | D42: ='Tier 2 Report'!I101 -> 0 | E42: ='Tier 2 Report'!F101 ->  | F42: 0 | G42: 0 | I42: =IF(OR(G42="N/A",G42="",G42=0,E42=""),"",E42/G42) -> 
B43: ='Tier 2 Report'!B62 ->  | C43: ='Tier 2 Report'!C62:D62 ->  | D43: ='Tier 2 Report'!I102 -> 0 | E43: ='Tier 2 Report'!F102 ->  | F43: 0 | G43: 0
B44: ='Tier 2 Report'!B63 ->  | C44: ='Tier 2 Report'!C63:D63 ->  | D44: ='Tier 2 Report'!I103 -> 0 | E44: ='Tier 2 Report'!F103 ->  | F44: 0 | G44: 0
B45: ='Tier 2 Report'!B64 ->  | C45: ='Tier 2 Report'!C64:D64 ->  | D45: ='Tier 2 Report'!I104 -> 0 | E45: ='Tier 2 Report'!F104 ->  | F45: 0 | G45: 0
B46: ='Tier 2 Report'!B65 ->  | C46: ='Tier 2 Report'!C65:D65 ->  | D46: ='Tier 2 Report'!I105 -> 0 | E46: ='Tier 2 Report'!F105 ->  | F46: 0 | G46: 0
B47: ='Tier 2 Report'!B66 ->  | C47: ='Tier 2 Report'!C66:D66 ->  | D47: ='Tier 2 Report'!I106 -> 0 | E47: ='Tier 2 Report'!F106 ->  | F47: 0 | G47: 0
B48: ='Tier 2 Report'!B67 ->  | C48: ='Tier 2 Report'!C67:D67 ->  | D48: ='Tier 2 Report'!I107 -> 0 | E48: ='Tier 2 Report'!F107 ->  | F48: 0 | G48: 0
B49: ='Tier 2 Report'!B68 ->  | C49: ='Tier 2 Report'!C68:D68 ->  | D49: ='Tier 2 Report'!I108 -> 0 | E49: ='Tier 2 Report'!F108 ->  | F49: 0 | G49: 0
B50: ='Tier 2 Report'!B69 ->  | C50: ='Tier 2 Report'!C69:D69 ->  | D50: ='Tier 2 Report'!I109 -> 0 | E50: ='Tier 2 Report'!F109 ->  | F50: 0 | G50: 0
B51: ='Tier 2 Report'!B70 ->  | C51: ='Tier 2 Report'!C70:D70 ->  | D51: ='Tier 2 Report'!I110 -> 0 | E51: ='Tier 2 Report'!F110 ->  | F51: 0 | G51: 0
B52: ='Tier 2 Report'!B71 ->  | C52: ='Tier 2 Report'!C71:D71 ->  | D52: ='Tier 2 Report'!I111 -> 0 | E52: ='Tier 2 Report'!F111 ->  | F52: 0 | G52: 0
C53: TOTAL (APPLICATION SCREENING INDEX) | H53: =SUM(H17:H52) -> 0.0002876015271 | I53: =SUM(I17:I52) -> 1.106547901e-08

Sheet Tier 3 Screen Input (hidden)
B3: TIER 3 SCREEN INPUT & CANCER BURDEN CALCULATION | H3: A/N: | I3: =Emissions!E7 -> 622795 (96, 97) | J3: Fac: | K3: =Emissions!E8 -> Spear's Manufacturing Co.
B4: =Intro!A39 & " - " & Intro!A38 -> (Procedure Version 8.1 & Package N, September 1, 2017 ) - Risk Tool V1.105
B6: Screening program used | D6: AERSCREEN | H6: =IF(C35="NO","",IF('Tier 2 Report'!E156>'Tier 2 Report'!F156,"Attention! Residential MICR exceeds threshold==> Cancer Burden Calculation is Triggered ","Attention! Commercial MICR exceeds threshold==> Cancer Burden Calculation is Triggered")) -> 
B7: Convert 1-hr to Annual Conc. Factor | D7: =VLOOKUP(D6,O38:P39,2,FALSE) -> 0.1
B9: Instructions: Run a screening program at 1 lb/hr rate to get the max 1-hr concentrations at residential & commercial receptors. Enter values into the yellow highlighted cells in the table below. Review scaled up risk result in Tier 3 Report. | H9: Cancer Burden Calculation
H10: Pursuant to the Risk Assessment Procedure, to calculate cancer burden, the distance at which MICR falls below one in a million needs to be calculated. The New 1-Hr X/Q for risk at 1.0E-06 is calculated and populated in the table below. To calculate the distance for the new 1-hr X/Q, enter lower and higher concentration data point near the new X/Q and their respective distances in the table below (using AERSCREEN output file). The interpolated cancer burden result will be displayed on cell L18 in the table below and cell N153 on the Tier 3 Report.
B12: Modeling emissions rate | D12: 0.126 | E12: g/sec
B13: Modeling emissions rate | D13: =D12/453.592*3600 -> 1.000017637 | E13: lbs/hr
B14: Modeling emissions rate | D14: =D13*8760/2000 -> 4.38007725 | E14: tons/yr
B15: Max Hours per day | D15: =HoursPerDay -> 24 | E15: hr/day | H15: User input from AERSCREEN output file
B16: Days per week | D16: =DaysPerWeek -> 7 | E16: dy/wk | H16: Data Set: | K16: =IF(C35="NO",""," @ Low Conc") ->  | L16: =IF(C35="NO",""," @ New X/Q") ->  | N16: =IF(C35="NO",""," @ High Conc") -> 
B17: Weeks per year | D17: =WeeksPerYear -> 52 | E17: wk/yr | H17: Max 1-Hr Concentration: | J17: (µg/m³) | K17: 94.3 | L17: =IF(C35<>"YES","",'Tier 2 Report'!N152*D14/D7) ->  | N17: 84.35
B18: MODELING RESULTS - MAX ONE HOUR | H18: Corresponding Distance: | J18: (meters) | K18: 300 | L18: =IF(AND(N17<>"",N18<>"",K17<>"",K18<>""),(L17-K17)*(K18-N18)/(K17-N17)+K18, "Distance to be Interpolated") ->  | N18: 325
B19: Distance residential | D19: =Emissions!DistanceResidential -> 157 | E19: meters
B20: Max. 1-hr Conc. at Residential receptor | E20: µg/m³ | I20: *** Conversion table is for conversion purposes only. *** Numbers have no input value in Risk Calculation.
B21: Annualized Conc. Residential | D21: =D20*$D$7 -> 0 | E21: µg/m³
B22: Distance Commerical | D22: =Emissions!DistanceCommercial -> 265 | E22: meters | I22: SCREEN INPUT DATA - BRITISH UNITS
B23: Max. 1-hr Conc. at Comm. receptor | E23: µg/m³ | I23: Temperature | K23: 100 | L23: °F
B24: Annualized Conc. Commercial | D24: =D23*$D$7 -> 0 | E24: µg/m³ | I24: Stack diameter | K24: 12 | L24: in
I25: Stack height | K25: 10 | L25: ft
I26: Actual exhaust rate | K26: 100 | L26: acfm
B27: Annualized X/Q | I27: Modeling emissions rate | K27: 0.04 | L27: lb/hr
B28: X/Q Residential | D28: =$D$21/$D$14 -> 0 | E28: (µg/m³)/(tons/yr)
B29: X/Q Commercial | D29: =$D$24/$D$14 -> 0 | E29: (µg/m³)/(tons/yr) | I29: SCREEN INPUT DATA - METRIC UNITS
I30: Temperature | K30: =((K23-32)/1.8)+273 -> 310.7777778 | L30: K
B31: Hourly X/Q (X/Q Max) | I31: Stack diameter | K31: =(K24/12)/3.2808 -> 0.3048037064 | L31: meters
B32: X/Q Residential | D32: =$D$20/$D$13 -> 0 | E32: (µg/m³)/(lbs/hr) | I32: Stack area | K32: =3.14*(K31^2)/4 -> 0.07293066006 | L32: m2
B33: X/Q Commercial | D33: =$D$23/$D$13 -> 0 | E33: (µg/m³)/(lbs/hr) | I33: Stack height | K33: =K25/3.2808 -> 3.048037064 | L33: meters
I34: Stack velocity | K34: =(K26/2118.8)/K32 -> 0.6471424541 | L34: m/s
B35: Cancer Burden Triggered? | C35: ='Tier 2 Report'!CBTrigger -> NO | I35: Modeling emissions rate | K35: =K27*454/3600 -> 0.005044444444 | L35: g/s
O37: Screen program used | P37: Convert fr 1hr to Annual Conc. Factor
O38: SCREEN3 | P38: 0.08
O39: AERSCREEN | P39: 0.1

Sheet Tier 2 Report
C2: EMISSIONS ARE ENTERED ON THE EMISSIONS WORKSHEET OR ON ONE OF EQUIPMENT WORKSHEETS
C3: INPUT PARAMETERS ENTERED ON THE EMISSIONS SHEET ARE USED FOR TIERS 1 AND TIER 2 ANALYSES
D5: =IF(ScreeningMode="YES","TIER 3 SCREENING RISK ASSESSMENT REPORT","TIER 2 SCREENING RISK ASSESSMENT REPORT") -> TIER 2 SCREENING RISK ASSESSMENT REPORT
D6: =Intro!A39 & " - " &Intro!A38 -> (Procedure Version 8.1 & Package N, September 1, 2017 ) - Risk Tool V1.105
C8: A/N: | D8: =Emissions!E7 -> 622795 (96, 97) | G8: Fac: | H8: =Emissions!E8 -> Spear's Manufacturing Co. | M8: Application deemed complete date: | N8: =DeemCompleteDate -> 2020-07-14
C11: 1. Stack Data | J11: =IF(ScreeningMode = "yes","2. Tier 3 Data","2. Tier 2 Data") -> 2. Tier 2 Data
J12: Dispersion Factors tables | M12: =IF(PointVolumeSource="P","Point Source","Volume Source") -> Point Source
C13: Equipment Type | D13: =SourceType -> Other | F13: =VLOOKUP(SourceType,LookupEquipDesc,2,FALSE) -> 0 | J13: For Chronic X/Q | M13: =IF(PointVolumeSource ="P",VLOOKUP(SourceType,TableIndex!$H$5:$L$13,2,0),VLOOKUP(SourceType,TableIndex!$H$5:$L$13,4,0)) -> Table 6
F14: =VLOOKUP(SourceType,LookupEquipDesc,4,FALSE) -> 0 | J14: For Acute X/Q max | M14: =IF(PointVolumeSource ="P",VLOOKUP(SourceType,TableIndex!$H$5:$L$13,3,0),VLOOKUP(SourceType,TableIndex!$H$5:$L$13,5,0)) -> Table 6.4
F15: =VLOOKUP(SourceType,LookupEquipDesc,6,FALSE) -> 0
C16: Combustion Eff | D16: =IF(CombControlEfficiency=0,"0.0",CombControlEfficiency) -> 0.0 | F16: =VLOOKUP(SourceType,LookupEquipDesc,8,FALSE) -> 0 | J16: Dilution Factors
D17: =IF(Emissions!E16= "No","No T-BACT","With T-BACT") -> No T-BACT | J17: Receptor | M17: Χ/Q (µg/m³)/(tons/yr) | N17: X/Qmax (µg/m³)/(lbs/hr)
J18: Residential | M18: =TableIndex!AC3 -> 1.7869 | N18: =TableIndex!AD3 -> 71.687
J19: Commercial - Worker | M19: =TableIndex!AC4 -> 0.649 | N19: =TableIndex!AD4 -> 28.651
C20: Operation Schedule | D20: =HoursPerDay -> 24 | E20: hrs/day
D21: =DaysPerWeek -> 7 | E21: days/week | J21: Intake and Adjustment Factors
D22: =WeeksPerYear -> 52 | E22: weeks/year | M22: Residential | N22: Worker
J23: Year of Exposure | M23: =YrExposure -> 30
C24: =IF(SourceType="Crematory","","Stack Height") -> Stack Height | D24: =IF(SourceType="Crematory","",StackHeight) -> 32 | E24: =IF(SourceType="Crematory","","ft") -> ft | J24: ="Combined Exposure Factor (CEF) - " & TableIndex!A8 -> Combined Exposure Factor (CEF) - Table 4 | M24: =VLOOKUP(M23,'Table 4'!$G$6:$H$11,2,FALSE) -> 677.4023314 | N24: =IF(YrExposure<=30,VLOOKUP(M23,'Table 4'!$F$21:$G$24,2,FALSE),'Table 4'!$G$24) -> 55.85714286
C25: =IF(OR(PointVolumeSource="V",SourceType="Crematory"),"Building Area","") ->  | D25: =IF(OR(PointVolumeSource="V",SourceType="Crematory"),Emissions!E19,"") ->  | E25: =IF(OR(PointVolumeSource="V",SourceType="Crematory"),"ft²","") ->  | J25: ="Worker Adjustment Factor (WAF) - "& TableIndex!A9 -> Worker Adjustment Factor (WAF) - Table 5 | M25: 1 | N25: =afann(DaysPerWeek,HoursPerDay) -> 1
C26: Distance to Residential | D26: =Emissions!E20 -> 157 | E26: m
C27: Distance to Commercial | D27: =Emissions!E21 -> 265 | E27: m
C28: Meteorological Station | D28: =Emissions!E22 -> Van Nuys Airport
I33: A/N: | J33: =$D$8 -> 622795 (96, 97) | N33: Application deemed complete date: | O33: =$N$8 -> 2020-07-14
C34: 3. Rule 1401 Compound Data | Y34: Table 1 look up adopted date | AC34: Based on Deemed complete date, determine to include the risk factor or not (1 = yes, 0 = no)
B35: Code | C35: Compound | E35: R1 - Uncontrolled (lbs/hr) | F35: R2 - Controlled (lbs/hr) | G35: CP (mg/kg-day)-1 | H35: MP MICR Resident | I35: MP MICR Worker | J35: MP Chronic Resident | K35: MP Chronic Worker | L35: REL Chronic (µg/m³) | M35: REL 8-hr Chronic (µg/m³) | N35: REL Acute (µg/m³) | O35: MWAF | Y35: Date cancer | Z35: Date chronic | AA35: Date 8-hr Chronic | AB35: Date acute | AC35: Include cancer | AD35: Include chronic | AE35: Include 8-hr chronic | AF35: Include acute
B36: =Emissions!K33 -> V4 | C36: =IF(B36="","",VLOOKUP(B36,TAClist,2,FALSE)) -> Vinyl Chloride (Chloroethylene) | E36: =Emissions!M33 -> 3.33e-08 | F36: =Emissions!N33 -> 3.33e-08 | G36: =IF(B36="","",VLOOKUP($B36,TAClist,4,FALSE)*$AC36) -> 0.27 | H36: =IF($B36="","",VLOOKUP($B36,TAClist,VLOOKUP(YrExposure,lu_YrExpose_MPcol,2,TRUE),FALSE)) -> 1 | I36: =IF(B36="","",VLOOKUP($B36,TAClist,VLOOKUP(YrExposure,lu_YrExpose_MPcol,3,TRUE),FALSE)) -> 1 | J36: =IF(B36="","",VLOOKUP($B36,TAClist,9,FALSE)) -> 1 | K36: =IF(B36="","",VLOOKUP($B36,TAClist,10,FALSE)) -> 1 | L36: =IF(B36="","",VLOOKUP($B36,TAClist,8,FALSE)*$AD36) -> 0 | M36: =IF(B36="","",VLOOKUP($B36,TAClist,11,FALSE)*$AE36) -> 0 | N36: =IF(B36="","",VLOOKUP($B36,TAClist,12,FALSE)*$AF36) -> 180000 | O36: =IF(B36="","",VLOOKUP($B36,TAClist,7,FALSE)) -> 1 | Y36: =IF($B36="","",VLOOKUP($B36,Table1,2,FALSE)) -> 1990-12-07 | Z36: =IF($B36="","",VLOOKUP($B36,Table1,3,FALSE)) -> 00:00:00 | AA36: =IF($B36="","",VLOOKUP($B36,Table1,4,FALSE)) -> 00:00:00 | AB36: =IF($B36="","",VLOOKUP($B36,Table1,5,FALSE)) -> 1999-08-13 | AC36: =IF(DeemCompleteDate>=Y36,1,0) -> 1 | AD36: =IF(DeemCompleteDate>=Z36,1,0) -> 1 | AE36: =IF(DeemCompleteDate>=AA36,1,0) -> 1 | AF36: =IF(DeemCompleteDate>=AB36,1,0) -> 1
B37: =Emissions!K34 -> S6 | C37: =IF(B37="","",VLOOKUP(B37,TAClist,2,FALSE)) -> Styrene | E37: =Emissions!M34 -> 1.65e-08 | F37: =Emissions!N34 -> 1.65e-08 | G37: 0 | H37: 1 | I37: 1 | J37: 1 | K37: 1 | L37: 900 | M37: 0 | N37: =IF(B37="","",VLOOKUP($B37,TAClist,12,FALSE)*$AF37) -> 21000 | O37: 1 | Y37: =IF($B37="","",VLOOKUP($B37,Table1,2,FALSE)) -> 00:00:00 | Z37: =IF($B37="","",VLOOKUP($B37,Table1,3,FALSE)) -> 2000-08-18 | AA37: 2015-07-05 | AB37: 1999-08-13 | AC37: 1 | AD37: 1 | AE37: 1 | AF37: 1
B38: =Emissions!K35 -> B12 | C38: 1,3-Butadiene | E38: =Emissions!M35 -> 9.44e-09 | F38: =Emissions!N35 -> 9.44e-09 | G38: 0.6 | H38: 1 | I38: 1 | J38: 1 | K38: 1 | L38: 2 | M38: 9 | N38: 660 | O38: 1 | Y38: 1990-12-07 | Z38: 2001-06-15 | AA38: 2015-07-05 | AB38: 2017-09-01 | AC38: 1 | AD38: 1 | AE38: 1 | AF38: 1
B39: =Emissions!K36 ->  | E39: =Emissions!M36 ->  | F39: =Emissions!N36 ->  | AC39: 1 | AD39: 1 | AE39: 1 | AF39: 1
B40: =Emissions!K37 ->  | E40: =Emissions!M37 ->  | F40: =Emissions!N37 ->  | AC40: 1 | AD40: 1 | AE40: 1 | AF40: 1
B41: =Emissions!K38 ->  | E41: =Emissions!M38 ->  | F41: =Emissions!N38 ->  | AC41: 1 | AD41: 1 | AE41: 1 | AF41: 1
B42: =Emissions!K39 ->  | E42: =Emissions!M39 ->  | F42: =Emissions!N39 ->  | AC42: 1 | AD42: 1 | AE42: 1 | AF42: 1
B43: =Emissions!K40 ->  | E43: =Emissions!M40 ->  | F43: =Emissions!N40 ->  | AC43: 1 | AD43: 1 | AE43: 1 | AF43: 1
B44: =Emissions!K41 ->  | E44: =Emissions!M41 ->  | F44: =Emissions!N41 ->  | AC44: 1 | AD44: 1 | AE44: 1 | AF44: 1
B45: =Emissions!K42 ->  | E45: =Emissions!M42 ->  | F45: =Emissions!N42 ->  | AC45: 1 | AD45: 1 | AE45: 1 | AF45: 1
B46: =Emissions!K43 ->  | E46: =Emissions!M43 ->  | F46: =Emissions!N43 ->  | AC46: 1 | AD46: 1 | AE46: 1 | AF46: 1
B47: =Emissions!K44 ->  | E47: =Emissions!M44 ->  | F47: =Emissions!N44 ->  | AC47: 1 | AD47: 1 | AE47: 1 | AF47: 1
B48: =Emissions!K45 ->  | E48: =Emissions!M45 ->  | F48: =Emissions!N45 ->  | AC48: 1 | AD48: 1 | AE48: 1 | AF48: 1
B49: =Emissions!K46 ->  | C49: =IF(B49="","",VLOOKUP(B49,TAClist,2,FALSE)) ->  | E49: =Emissions!M46 ->  | F49: =Emissions!N46 ->  | I49: =IF(B49="","",VLOOKUP($B49,TAClist,VLOOKUP(YrExposure,lu_YrExpose_MPcol,3,TRUE),FALSE)) ->  | J49: =IF(B49="","",VLOOKUP($B49,TAClist,9,FALSE)) ->  | K49: =IF(B49="","",VLOOKUP($B49,TAClist,10,FALSE)) ->  | L49: =IF(B49="","",VLOOKUP($B49,TAClist,8,FALSE)*$AD49) ->  | N49: =IF(B49="","",VLOOKUP($B49,TAClist,12,FALSE)*$AF49) ->  | O49: =IF(B49="","",VLOOKUP($B49,TAClist,7,FALSE)) ->  | AC49: 1 | AD49: 1 | AE49: 1 | AF49: 1
B50: =Emissions!K47 ->  | E50: =Emissions!M47 ->  | F50: =Emissions!N47 ->  | AC50: 1 | AD50: 1 | AE50: 1 | AF50: 1
B51: =Emissions!K48 ->  | E51: =Emissions!M48 ->  | F51: =Emissions!N48 ->  | AC51: 1 | AD51: 1 | AE51: 1 | AF51: 1
B52: =Emissions!K49 ->  | E52: =Emissions!M49 ->  | F52: =Emissions!N49 ->  | AC52: 1 | AD52: 1 | AE52: 1 | AF52: 1
B53: =Emissions!K50 ->  | E53: =Emissions!M50 ->  | F53: =Emissions!N50 ->  | AC53: 1 | AD53: 1 | AE53: 1 | AF53: 1
B54: =Emissions!K51 ->  | E54: =Emissions!M51 ->  | F54: =Emissions!N51 ->  | AC54: 1 | AD54: 1 | AE54: 1 | AF54: 1
B55: =Emissions!K52 ->  | E55: =Emissions!M52 ->  | F55: =Emissions!N52 ->  | AC55: 1 | AD55: 1 | AE55: 1 | AF55: 1
B56: =Emissions!K53 ->  | E56: =Emissions!M53 ->  | F56: =Emissions!N53 ->  | AC56: 1 | AD56: 1 | AE56: 1 | AF56: 1
B57: =Emissions!K54 ->  | E57: =Emissions!M54 ->  | F57: =Emissions!N54 ->  | AC57: 1 | AD57: 1 | AE57: 1 | AF57: 1
B58: =Emissions!K55 ->  | E58: =Emissions!M55 ->  | F58: =Emissions!N55 ->  | AC58: 1 | AD58: 1 | AE58: 1 | AF58: 1
B59: =Emissions!K56 ->  | E59: =Emissions!M56 ->  | F59: =Emissions!N56 ->  | AC59: 1 | AD59: 1 | AE59: 1 | AF59: 1
B60: =Emissions!K57 ->  | E60: =Emissions!M57 ->  | F60: =Emissions!N57 ->  | AC60: 1 | AD60: 1 | AE60: 1 | AF60: 1
B61: =Emissions!K58 ->  | E61: =Emissions!M58 ->  | F61: =Emissions!N58 ->  | AC61: 1 | AD61: 1 | AE61: 1 | AF61: 1
B62: =Emissions!K59 ->  | E62: =Emissions!M59 ->  | F62: =Emissions!N59 ->  | AC62: 1 | AD62: 1 | AE62: 1 | AF62: 1
B63: =Emissions!K60 ->  | E63: =Emissions!M60 ->  | F63: =Emissions!N60 ->  | AC63: 1 | AD63: 1 | AE63: 1 | AF63: 1
B64: =Emissions!K61 ->  | E64: =Emissions!M61 ->  | F64: =Emissions!N61 ->  | AC64: 1 | AD64: 1 | AE64: 1 | AF64: 1
B65: =Emissions!K62 ->  | E65: =Emissions!M62 ->  | F65: =Emissions!N62 ->  | AC65: 1 | AD65: 1 | AE65: 1 | AF65: 1
B66: =Emissions!K63 ->  | E66: =Emissions!M63 ->  | F66: =Emissions!N63 ->  | AC66: 1 | AD66: 1 | AE66: 1 | AF66: 1
B67: =Emissions!K64 ->  | E67: =Emissions!M64 ->  | F67: =Emissions!N64 ->  | AC67: 1 | AD67: 1 | AE67: 1 | AF67: 1
B68: =Emissions!K65 ->  | E68: =Emissions!M65 ->  | F68: =Emissions!N65 ->  | AC68: 1 | AD68: 1 | AE68: 1 | AF68: 1
B69: =Emissions!K66 ->  | E69: =Emissions!M66 ->  | F69: =Emissions!N66 ->  | AC69: 1 | AD69: 1 | AE69: 1 | AF69: 1
B70: =Emissions!K67 ->  | E70: =Emissions!M67 ->  | F70: =Emissions!N67 ->  | AC70: 1 | AD70: 1 | AE70: 1 | AF70: 1
B71: =Emissions!K68 ->  | E71: =Emissions!M68 ->  | F71: =Emissions!N68 ->  | AC71: 1 | AD71: 1 | AE71: 1 | AF71: 1
I73: A/N: | J73: =$D$8 -> 622795 (96, 97) | N73: Application deemed complete date: | O73: =$N$8 -> 2020-07-14
C74: 4. Emission Calculations
C75: Compound | E75: R1 (lbs/hr) | F75: R2 (lbs/hr) | G75: R1 (lbs/day) | H75: R2 (lbs/day) | I75: R2 (lbs/yr) | J75: R2 (tons/yr)
C76: =C36 -> Vinyl Chloride (Chloroethylene) | E76: =Emissions!M33 -> 3.33e-08 | F76: =Emissions!N33 -> 3.33e-08 | G76: =E76*HoursPerDay -> 7.992e-07 | H76: =F76*HoursPerDay -> 7.992e-07 | I76: =(F76*HoursPerDay*DaysPerWeek*WeeksPerYear) -> 0.0002909088 | J76: =I76/2000 -> 1.454544e-07
C77: Styrene | E77: =Emissions!M34 -> 1.65e-08 | F77: =Emissions!N34 -> 1.65e-08 | G77: 3.96e-07 | H77: 3.96e-07 | I77: 0.000144144 | J77: =I77/2000 -> 7.2072e-08
C78: 1,3-Butadiene | E78: =Emissions!M35 -> 9.44e-09 | F78: =Emissions!N35 -> 9.44e-09 | G78: 2.2656e-07 | H78: 2.2656e-07 | I78: 8.246784e-05 | J78: =I78/2000 -> 4.123392e-08
E79: =Emissions!M36 ->  | F79: =Emissions!N36 ->  | G79: 0 | H79: 0 | I79: 0 | J79: 0
E80: =Emissions!M37 ->  | F80: =Emissions!N37 ->  | G80: 0 | H80: 0 | I80: 0 | J80: 0
E81: =Emissions!M38 ->  | F81: =Emissions!N38 ->  | G81: 0 | H81: 0 | I81: 0 | J81: 0
E82: =Emissions!M39 ->  | F82: =Emissions!N39 ->  | G82: 0 | H82: 0 | I82: 0 | J82: 0
E83: =Emissions!M40 ->  | F83: =Emissions!N40 ->  | G83: 0 | H83: 0 | I83: 0 | J83: 0
E84: =Emissions!M41 ->  | F84: =Emissions!N41 ->  | G84: 0 | H84: 0 | I84: 0 | J84: 0
E85: =Emissions!M42 ->  | F85: =Emissions!N42 ->  | G85: 0 | H85: 0 | I85: 0 | J85: 0
E86: =Emissions!M43 ->  | F86: =Emissions!N43 ->  | G86: 0 | H86: 0 | I86: 0 | J86: 0
E87: =Emissions!M44 ->  | F87: =Emissions!N44 ->  | G87: 0 | H87: 0 | I87: 0 | J87: 0
E88: =Emissions!M45 ->  | F88: =Emissions!N45 ->  | G88: 0 | H88: 0 | I88: 0 | J88: 0
E89: =Emissions!M46 ->  | F89: =Emissions!N46 ->  | G89: 0 | H89: 0 | I89: 0 | J89: 0
E90: =Emissions!M47 ->  | F90: =Emissions!N47 ->  | G90: 0 | H90: 0 | I90: 0 | J90: 0
E91: =Emissions!M48 ->  | F91: =Emissions!N48 ->  | G91: 0 | H91: 0 | I91: 0 | J91: 0
E92: =Emissions!M49 ->  | F92: =Emissions!N49 ->  | G92: 0 | H92: 0 | I92: 0 | J92: 0
E93: =Emissions!M50 ->  | F93: =Emissions!N50 ->  | G93: 0 | H93: 0 | I93: 0 | J93: 0
E94: =Emissions!M51 ->  | F94: =Emissions!N51 ->  | G94: 0 | H94: 0 | I94: 0 | J94: 0
E95: =Emissions!M52 ->  | F95: =Emissions!N52 ->  | G95: 0 | H95: 0 | I95: =IF(SourceType = "Spray Booth",F95*24*7*52,(F95*HoursPerDay*DaysPerWeek*WeeksPerYear)) -> 0 | J95: 0
E96: =Emissions!M53 ->  | F96: =Emissions!N53 ->  | G96: 0 | H96: 0 | I96: =IF(SourceType = "Spray Booth",F96*24*7*52,(F96*HoursPerDay*DaysPerWeek*WeeksPerYear)) -> 0 | J96: 0
E97: =Emissions!M54 ->  | F97: =Emissions!N54 ->  | G97: =IF(SourceType="Spray Booth",E97*24,E97*HoursPerDay) -> 0 | H97: =IF(SourceType="Spray Booth",F97*24,F97*HoursPerDay) -> 0 | I97: =IF(SourceType = "Spray Booth",F97*24*7*52,(F97*HoursPerDay*DaysPerWeek*WeeksPerYear)) -> 0 | J97: 0
E98: =Emissions!M55 ->  | F98: =Emissions!N55 ->  | G98: 0 | H98: 0 | I98: =IF(SourceType = "Spray Booth",F98*24*7*52,(F98*HoursPerDay*DaysPerWeek*WeeksPerYear)) -> 0 | J98: 0
E99: =Emissions!M56 ->  | F99: =Emissions!N56 ->  | G99: 0 | H99: 0 | I99: =IF(SourceType = "Spray Booth",F99*24*7*52,(F99*HoursPerDay*DaysPerWeek*WeeksPerYear)) -> 0 | J99: 0
E100: =Emissions!M57 ->  | F100: =Emissions!N57 ->  | G100: 0 | H100: 0 | I100: =(F100*HoursPerDay*DaysPerWeek*WeeksPerYear) -> 0 | J100: 0
E101: =Emissions!M58 ->  | F101: =Emissions!N58 ->  | G101: 0 | H101: 0 | I101: 0 | J101: 0
E102: =Emissions!M59 ->  | F102: =Emissions!N59 ->  | G102: 0 | H102: 0 | I102: 0 | J102: 0
E103: =Emissions!M60 ->  | F103: =Emissions!N60 ->  | G103: 0 | H103: 0 | I103: 0 | J103: 0
E104: =Emissions!M61 ->  | F104: =Emissions!N61 ->  | G104: 0 | H104: 0 | I104: 0 | J104: 0
E105: =Emissions!M62 ->  | F105: =Emissions!N62 ->  | G105: 0 | H105: 0 | I105: 0 | J105: 0
E106: =Emissions!M63 ->  | F106: =Emissions!N63 ->  | G106: 0 | H106: 0 | I106: 0 | J106: 0
E107: =Emissions!M64 ->  | F107: =Emissions!N64 ->  | G107: 0 | H107: 0 | I107: 0 | J107: 0
E108: =Emissions!M65 ->  | F108: =Emissions!N65 ->  | G108: =E108*HoursPerDay -> 0 | H108: 0 | I108: 0 | J108: 0
E109: =Emissions!M66 ->  | F109: =Emissions!N66 ->  | G109: 0 | H109: 0 | I109: 0 | J109: 0
E110: =Emissions!M67 ->  | F110: =Emissions!N67 ->  | G110: 0 | H110: 0 | I110: 0 | J110: 0
E111: =Emissions!M68 ->  | F111: =Emissions!N68 ->  | G111: 0 | H111: 0 | I111: 0 | J111: 0
C112: Total | E112: =SUM(E76:E111) -> 5.924e-08 | F112: =SUM(F76:F111) -> 5.924e-08 | G112: =SUM(G76:G111) -> 1.42176e-06 | H112: 1.42176e-06 | I112: =SUM(I76:I111) -> 0.00051752064 | J112: =SUM(J76:J111) -> 2.5876032e-07
C114: =IF([0]!ScreeningMode="NO","TIER 2 RESULTS","TIER 3 RESULTS") -> TIER 2 RESULTS | I114: A/N: | J114: =$D$8 -> 622795 (96, 97) | N114: Application deemed complete date: | O114: =$N$8 -> 2020-07-14
C116: 5a. MICR
C117: MICR Resident = CP (mg/(kg-day))^-1 * Q (ton/yr) * (X/Q) Resident * CEF Resident * MP Resident * 1e-6 * MWAF
C118: MICR Worker = CP (mg/(kg-day))^-1 * Q (ton/yr) * (X/Q) Worker * CEF Worker* MP Worker* WAF Worker* 1e-6 * MWAF
C119: Compound | E119: Residential | F119: Commercial
C120: =C36 -> Vinyl Chloride (Chloroethylene) | E120: =$G36*$J76*$M$18*$M$24*$H36*10^-6*$O36 -> 4.753763407e-11 | F120: =$G36*$J76*$M$19*$N$24*$N$25*$I36*10^-6*$O36 -> 1.423685433e-12
C121: Styrene | E121: =$G37*$J77*$M$18*$M$24*$H37*10^-6*$O37 -> 0 | F121: 0
C122: 1,3-Butadiene | E122: 2.994696467e-11 | F122: 8.96869569e-13
E123: 0 | F123: 0
E124: 0 | F124: 0
E125: 0 | F125: 0
E126: 0 | F126: 0
E127: 0 | F127: 0
E128: 0 | F128: 0
E129: 0 | F129: 0
E130: 0 | F130: 0
E131: 0 | F131: 0
E132: 0 | F132: 0
E133: 0 | F133: 0
E134: 0 | F134: 0
E135: 0 | F135: 0
E136: 0 | F136: 0
E137: 0 | F137: 0
E138: 0 | F138: 0
E139: 0 | F139: 0
E140: 0 | F140: 0
E141: 0 | F141: 0
E142: 0 | F142: 0 | U142: Cancer Burden lookup table for cases
E143: 0 | F143: 0 | U143: Model used: | Y143: =SourceType & " - " & PointVolumeSource -> Other - P
E144: 0 | F144: 0 | U144: Interpolated Distance (meter) | Y144: =IF(ScreeningMode="YES",Y147,MAX(Y147:Y156)) -> 0
E145: 0 | F145: 0
E146: 0 | F146: 0 | X146: New Distance (m)
E147: 0 | F147: 0 | U147: Screening | Y147: =IF(ScreeningMode="YES",'Tier 3 Screen Input'!L18,"No input") -> No input
E148: 0 | F148: 0 | U148: Boiler | Y148: =IF(SourceType="Boiler",'Boiler Calc'!M7,"Not Applicable") -> Not Applicable
E149: 0 | F149: 0 | U149: Crematory | Y149: =IF(SourceType = "Crematory",'Crematory Calc'!M7,"Not Applicable") -> Not Applicable
E150: 0 | F150: 0 | I150: 5b. Is Cancer Burden Calculation Needed (MICR >1E-6)? | N150: =IF(OR($E$156>=1*10^-6,$F$156>=1*10^-6),"YES","NO") -> NO | U150: Diesel ICE | Y150: =IF(SourceType = "Diesel ICE",'Diesel Engine Calc'!M7,"Not Applicable") -> Not Applicable
E151: 0 | F151: 0 | U151: Gas Station | Y151: Not Applicable
E152: 0 | F152: 0 | I152: New X/Q at which MICR70yr is one-in-a-million [(µg/m³)/(tons/yr)]: | N152: =IF($N$150="YES",IF($E$156>=$F$156,$M$18/'Tier 2 Report 70yr'!$E$159/1000000,$M$19/'Tier 2 Report 70yr'!$F$159/1000000),0) -> 0 | U152: Diesel Pressure Washer | Y152: =IF(SourceType = "Pressure Washer",'Diesel Engine Calc'!M7, "Not Applicable") -> Not Applicable
E153: 0 | F153: 0 | I153: New Distance, interpolated from X/Q table using New X/Q (meter): | N153: =IF($N$150="NO","",IF($Y$144>0,$Y$144,"")) ->  | U153: Lean Burn ICE | Y153: =IF(SourceType = "Lean Burn ICE",'Engine Calc'!M7, "Not Applicable") -> Not Applicable
C154: =IF(SourceType="Spray Booth","Total MICR from Coating",C70) ->  | E154: =IF(SourceType="Spray Booth",SUM(E120:E140,$G70*$J110*$M$18*$M$24*$H70*10^-6*$O70)) -> FALSE | F154: =IF(SourceType = "Spray Booth",SUM(F120:F140),$G70*$J110*$M$19*$N$24*$N$25*$I70*10^-6*$O70) -> 0 | I154: Zone Impact Area (km²): | N154: =PI()*(N153/1000)^2 -> 0 | U154: Rich Burn ICE | Y154: =IF(SourceType = "Rich Burn ICE",'Engine Calc'!M7, "Not Applicable") -> Not Applicable
C155: =IF(SourceType="Spray Booth","Total MICR from Combustion",C71) ->  | E155: =IF(SourceType = "Spray Booth",SUM(E141:E151),$G71*$J111*$M$18*$M$24*$H71*10^-6*$O71) -> 0 | F155: =IF(SourceType="Spray Booth",SUM(F141:F151),$G71*$J111*$M$19*$N$24*$N$25*$I71*10^-6*$O71) -> 0 | I155: Zone of Impact Population (7000 person/km²): | N155: =N154*7000 -> 0 | U155: Spray Booth | Y155: =IF(SourceType = "Spray Booth",'Spray Booth Calc'!M7,"Not Applicable") -> Not Applicable
C156: Total | E156: =IF(SourceType = "Spray Booth",SUM(E154:E155),SUM($E$120:$E$155)) -> 7.748459874e-11 | F156: =IF(SourceType = "Spray Booth",SUM(F154:F155),SUM($F$120:$F$155)*1) -> 2.320555002e-12 | I156: Cancer Burden: | N156: =N155*MAX('Tier 2 Report 70yr'!$E$159:$F$159) -> 0 | U156: Other | Y156: =IF(AND(SourceType="Other",PointVolumeSource="P"),'PSE Calc'!M7,IF(AND(SourceType="Other",PointVolumeSource="V"),'VSE Calc'!M7,"No input")) -> 0
E157: =IF($E$156=0,"No Cancer Risk",IF(Emissions!TBact="YES",IF($E$156<=0.00001,"PASS","FAIL"),IF($E$156<=0.000001,"PASS","FAIL"))) -> PASS | F157: =IF(F156=0,"No Cancer Risk",IF(Emissions!TBact="YES",IF(F156<=0.00001,"PASS","FAIL"),IF(F156<=0.000001,"PASS","FAIL"))) -> PASS | I157: =IF(N156=0,"",IF(N156<=0.5,"Cancer Burden is less than or equal to 0.5","Cancer Burden is more than 0.5")) ->  | N157: =IF(N156=0,"",IF(N156<=0.5,"PASS","FAIL")) -> 
C158: 6. Hazard Index Summary | I158: A/N: | J158: =$D$8 -> 622795 (96, 97) | N158: Application deemed complete date: | O158: =$N$8 -> 2020-07-14
C159: HIA = [Q(lb/hr) * (X/Q)max * MWAF ]/ Acute REL
C160: HIC = [Q(ton/yr) * (X/Q) * MP * MWAF] / Chronic REL
C161: HIC 8-hr= [Q(ton/yr) * (X/Q) * WAF * MWAF] / 8-hr Chronic REL
C162: Target Organs | F162: Acute | G162: Chronic | H162: 8-hr Chronic | I162: Acute Pass/Fail | J162: Chronic Pass/Fail | K162: 8-hr Chronic Pass/Fail
C163: Alimentary system (liver) - AL | F163: =MAX(E$220,E$262) -> 0 | G163: =MAX(E$305,E$349) -> 0 | H163: =IF(AND(HoursPerDay>=8,DaysPerWeek>=5),MAX(E$392,E$435),"N/A") -> 0 | I163: =IF(OR(F163<=1,F163=""),"Pass","Fail") -> Pass | J163: =IF(OR(G163<=1,G163=""),"Pass","Fail") -> Pass | K163: =IF(OR(H163<=1,H163=""),"Pass","Fail") -> Pass
C164: Bones and teeth - BN | G164: =MAX(F$305,F$349) -> 0 | H164: =IF(AND(HoursPerDay>=8,DaysPerWeek>=5),MAX(F$392,F$435),"N/A") -> 0 | I164: Pass | J164: Pass | K164: Pass
C165: Cardiovascular system - CV | F165: =MAX(F$220,F$262) -> 0 | G165: =MAX(G$305,G$349) -> 0 | H165: =IF(AND(HoursPerDay>=8,DaysPerWeek>=5),MAX(G$392,G$435),"N/A") -> 0 | I165: Pass | J165: Pass | K165: Pass
C166: Developmental - DEV | F166: =MAX(G$220,G$262) -> 1.081666833e-09 | G166: =MAX(H$305,H$349) -> 3.684044582e-08 | H166: =IF(AND(HoursPerDay>=8,DaysPerWeek>=5),MAX(H$392,H$435),"N/A") -> 8.186765739e-09 | I166: Pass | J166: Pass | K166: Pass
C167: Endocrine system - END | G167: =MAX(I$305,I$349) -> 0 | H167: =IF(AND(HoursPerDay>=8,DaysPerWeek>=5),MAX(I$392,I$435),"N/A") -> 0 | I167: Pass | J167: Pass | K167: Pass
C168: Eye | F168: =MAX(H$220,H$262) -> 6.9587595e-11 | G168: =MAX(J$305,J$349) -> 0 | H168: =IF(AND(HoursPerDay>=8,DaysPerWeek>=5),MAX(J$392,J$435),"N/A") -> 0 | I168: Pass | J168: Pass | K168: Pass
C169: Hematopoietic system - HEM | F169: =MAX(I$220,I$262) -> 0 | G169: =MAX(K$305,K$349) -> 0 | H169: =IF(AND(HoursPerDay>=8,DaysPerWeek>=5),MAX(K$392,K$435),"N/A") -> 0 | I169: Pass | J169: Pass | K169: Pass
C170: Immune system - IMM | F170: =MAX(J$220,J$262) -> 0 | G170: =MAX(L$305,L$349) -> 0 | H170: =IF(AND(HoursPerDay>=8,DaysPerWeek>=5),MAX(L$392,L$435),"N/A") -> 0 | I170: Pass | J170: Pass | K170: Pass
C171: Kidney - KID | G171: =MAX(M$305,M$349) -> 0 | H171: =IF(AND(HoursPerDay>=8,DaysPerWeek>=5),MAX(M$392,M$435),"N/A") -> 0 | I171: Pass | J171: Pass | K171: Pass
C172: Nervous system - NS | F172: =MAX(K$220,K$262) -> 1.3262095e-11 | G172: =MAX(N$305,N$349) -> 1.43094952e-10 | H172: =IF(AND(HoursPerDay>=8,DaysPerWeek>=5),MAX(N$392,N$435),"N/A") -> 0 | I172: Pass | J172: Pass | K172: Pass
C173: Reproductive system - REP | F173: =MAX(L$220,L$262) -> 1.081666833e-09 | G173: =MAX(O$305,O$349) -> 3.684044582e-08 | H173: =IF(AND(HoursPerDay>=8,DaysPerWeek>=5),MAX(O$392,O$435),"N/A") -> 0 | I173: Pass | J173: Pass | K173: Pass
C174: Respiratory system - RESP | F174: =MAX(M$220,M$262) -> 6.9587595e-11 | G174: =MAX(P$305,P$349) -> 0 | H174: =IF(AND(HoursPerDay>=8,DaysPerWeek>=5),MAX(P$392,P$435),"N/A") -> 0 | I174: Pass | J174: Pass | K174: Pass
C175: Skin | F175: =MAX(N$220,N$262) -> 0 | G175: =MAX(Q$305,Q$349) -> 0 | H175: =IF(AND(HoursPerDay>=8,DaysPerWeek>=5),MAX(Q$392,Q$435),"N/A") -> 0 | I175: Pass | J175: Pass | K175: Pass
J179: A/N: | K179: =$D$8 -> 622795 (96, 97) | N179: Application deemed complete date: | O179: =$N$8 -> 2020-07-14
C180: 6a. Hazard Index Acute - Resident
C181: HIA = [Q(lb/hr) * (X/Q)max resident * MWAF] / Acute REL
H182: HIA - Residential | U182: Lookup table Acute Target Organ Toxicity
C183: Compound | E183: AL | F183: CV | G183: DEV | H183: EYE | I183: HEM | J183: IMM | K183: NS | L183: REP | M183: RESP | N183: SKIN | U183: AL | V183: CV | W183: DEV | X183: EYE | Y183: HEM | Z183: IMM | AA183: NS | AB183: REP | AC183: RESP | AD183: SKIN
C184: =C36 -> Vinyl Chloride (Chloroethylene) | E184: =IF(ISERR(U184),"", IF($N36=0,"",IF($T184="","",IF(OR(U184<>"x",U184=""),"",($F76*$N$18*$O36)/$N36)))) ->  | F184: =IF(ISERR(V184),"", IF($N36=0,"",IF($T184="","",IF(OR(V184<>"x",V184=""),"",($F76*$N$18*$O36)/$N36)))) ->  | G184: =IF(ISERR(W184),"", IF($N36=0,"",IF($T184="","",IF(OR(W184<>"x",W184=""),"",($F76*$N$18*$O36)/$N36)))) ->  | H184: =IF(ISERR(X184),"", IF($N36=0,"",IF($T184="","",IF(OR(X184<>"x",X184=""),"",($F76*$N$18*$O36)/$N36)))) -> 1.3262095e-11 | I184: =IF(ISERR(Y184),"", IF($N36=0,"",IF($T184="","",IF(OR(Y184<>"x",Y184=""),"",($F76*$N$18*$O36)/$N36)))) ->  | J184: =IF(ISERR(Z184),"", IF($N36=0,"",IF($T184="","",IF(OR(Z184<>"x",Z184=""),"",($F76*$N$18*$O36)/$N36)))) ->  | K184: =IF(ISERR(AA184),"", IF($N36=0,"",IF($T184="","",IF(OR(AA184<>"x",AA184=""),"",($F76*$N$18*$O36)/$N36)))) -> 1.3262095e-11 | L184: =IF(ISERR(AB184),"", IF($N36=0,"",IF($T184="","",IF(OR(AB184<>"x",AB184=""),"",($F76*$N$18*$O36)/$N36)))) ->  | M184: =IF(ISERR(AC184),"", IF($N36=0,"",IF($T184="","",IF(OR(AC184<>"x",AC184=""),"",($F76*$N$18*$O36)/$N36)))) -> 1.3262095e-11 | N184: =IF(ISERR(AD184),"", IF($N36=0,"",IF($T184="","",IF(OR(AD184<>"x",AD184=""),"",($F76*$N$18*$O36)/$N36)))) ->  | T184: =IF($B36="","",$B36) -> V4 | U184: =IFERROR(IF($T184="","",VLOOKUP($T184,TOAcute_data,4,FALSE)),"") -> 0 | V184: =IFERROR(IF($T184="","",VLOOKUP($T184,TOAcute_data,5,FALSE)),"") -> 0 | W184: =IFERROR(IF($T184="","",VLOOKUP($T184,TOAcute_data,6,FALSE)),"") -> 0 | X184: =IFERROR(IF($T184="","",VLOOKUP($T184,TOAcute_data,7,FALSE)),"") -> X | Y184: =IFERROR(IF($T184="","",VLOOKUP($T184,TOAcute_data,8,FALSE)),"") -> 0 | Z184: =IFERROR(IF($T184="","",VLOOKUP($T184,TOAcute_data,9,FALSE)),"") -> 0 | AA184: =IFERROR(IF($T184="","",VLOOKUP($T184,TOAcute_data,10,FALSE)),"") -> X | AB184: =IFERROR(IF($T184="","",VLOOKUP($T184,TOAcute_data,11,FALSE)),"") -> 0 | AC184: =IFERROR(IF($T184="","",VLOOKUP($T184,TOAcute_data,12,FALSE)),"") -> X | AD184: =IFERROR(IF($T184="","",VLOOKUP($T184,TOAcute_data,13,FALSE)),"") -> 0
C185: Styrene | G185: 5.63255e-11 | H185: =IF(ISERR(X185),"", IF($N37=0,"",IF($T185="","",IF(OR(X185<>"x",X185=""),"",($F77*$N$18*$O37)/$N37)))) -> 5.63255e-11 | L185: 5.63255e-11 | M185: 5.63255e-11 | T185: S6 | U185: 0 | V185: 0 | W185: X | X185: X | Y185: 0 | Z185: 0 | AA185: 0 | AB185: X | AC185: X | AD185: 0
C186: 1,3-Butadiene | G186: 1.025341333e-09 | L186: 1.025341333e-09 | T186: B12 | U186: 0 | V186: 0 | W186: X | X186: 0 | Y186: 0 | Z186: 0 | AA186: 0 | AB186: X | AC186: 0 | AD186: 0
C220: Total | E220: =SUM(E184:E219) -> 0 | F220: =SUM(F184:F219) -> 0 | G220: 1.081666833e-09 | H220: 6.9587595e-11 | I220: 0 | J220: 0 | K220: 1.3262095e-11 | L220: 1.081666833e-09 | M220: 6.9587595e-11 | N220: 0
C222: 6a. Hazard Index Acute - Worker | I222: A/N: | J222: =$D$8 -> 622795 (96, 97) | N222: Application deemed complete date: | O222: =$N$8 -> 2020-07-14
C223: HIA = [Q(lb/hr) * (X/Q)max Worker * MWAF] / Acute REL
H224: HIA - Commercial | U224: Lookup table Acute Target Organ Toxicity (Same as table above)
C225: Compound | E225: AL | F225: CV | G225: DEV | H225: EYE | I225: HEM | J225: IMM | K225: NS | L225: REP | M225: RESP | N225: SKIN | U225: AL | V225: CV | W225: DEV | X225: EYE | Y225: HEM | Z225: IMM | AA225: NS | AB225: REP | AC225: RESP | AD225: SKIN
C226: =C36 -> Vinyl Chloride (Chloroethylene) | E226: =IF(ISERR(U226),"",IF($N36=0,"",IF($T226="","",IF(OR(U226<>"x",U226=""),"",($F76*$N$19 *$O36)/$N36)))) ->  | F226: =IF(ISERR(V226),"",IF($N36=0,"",IF($T226="","",IF(OR(V226<>"x",V226=""),"",($F76*$N$19 *$O36)/$N36)))) ->  | G226: =IF(ISERR(W226),"",IF($N36=0,"",IF($T226="","",IF(OR(W226<>"x",W226=""),"",($F76*$N$19 *$O36)/$N36)))) ->  | H226: =IF(ISERR(X226),"",IF($N36=0,"",IF($T226="","",IF(OR(X226<>"x",X226=""),"",($F76*$N$19 *$O36)/$N36)))) -> 5.300435e-12 | I226: =IF(ISERR(Y226),"",IF($N36=0,"",IF($T226="","",IF(OR(Y226<>"x",Y226=""),"",($F76*$N$19 *$O36)/$N36)))) ->  | J226: =IF(ISERR(Z226),"",IF($N36=0,"",IF($T226="","",IF(OR(Z226<>"x",Z226=""),"",($F76*$N$19 *$O36)/$N36)))) ->  | K226: =IF(ISERR(AA226),"",IF($N36=0,"",IF($T226="","",IF(OR(AA226<>"x",AA226=""),"",($F76*$N$19 *$O36)/$N36)))) -> 5.300435e-12 | L226: =IF(ISERR(AB226),"",IF($N36=0,"",IF($T226="","",IF(OR(AB226<>"x",AB226=""),"",($F76*$N$19 *$O36)/$N36)))) ->  | M226: =IF(ISERR(AC226),"",IF($N36=0,"",IF($T226="","",IF(OR(AC226<>"x",AC226=""),"",($F76*$N$19 *$O36)/$N36)))) -> 5.300435e-12 | N226: =IF(ISERR(AD226),"",IF($N36=0,"",IF($T226="","",IF(OR(AD226<>"x",AD226=""),"",($F76*$N$19 *$O36)/$N36)))) ->  | T226: =T184 -> V4 | U226: =U184 -> 0 | V226: =V184 -> 0 | W226: 0 | X226: X | Y226: 0 | Z226: 0 | AA226: X | AB226: 0 | AC226: X | AD226: 0
C227: Styrene | G227: 2.25115e-11 | H227: 2.25115e-11 | L227: 2.25115e-11 | M227: 2.25115e-11 | T227: =T185 -> S6 | U227: 0 | V227: 0 | W227: X | X227: X | Y227: 0 | Z227: 0 | AA227: 0 | AB227: X | AC227: X | AD227: 0
C228: 1,3-Butadiene | G228: 4.097961212e-10 | L228: 4.097961212e-10 | T228: B12 | U228: 0 | V228: 0 | W228: X | X228: 0 | Y228: 0 | Z228: 0 | AA228: 0 | AB228: X | AC228: 0 | AD228: 0
T243: =T201 -> 
E249: =IF(ISERR(U249),"",IF($N59=0,"",IF($T249="","",IF(OR(U249<>"x",U249=""),"",($F99*$N$19 *$O59)/$N59)))) ->  | F249: =IF(ISERR(V249),"",IF($N59=0,"",IF($T249="","",IF(OR(V249<>"x",V249=""),"",($F99*$N$19 *$O59)/$N59)))) ->  | G249: =IF(ISERR(W249),"",IF($N59=0,"",IF($T249="","",IF(OR(W249<>"x",W249=""),"",($F99*$N$19 *$O59)/$N59)))) ->  | I249: =IF(ISERR(Y249),"",IF($N59=0,"",IF($T249="","",IF(OR(Y249<>"x",Y249=""),"",($F99*$N$19 *$O59)/$N59)))) ->  | J249: =IF(ISERR(Z249),"",IF($N59=0,"",IF($T249="","",IF(OR(Z249<>"x",Z249=""),"",($F99*$N$19 *$O59)/$N59)))) ->  | K249: =IF(ISERR(AA249),"",IF($N59=0,"",IF($T249="","",IF(OR(AA249<>"x",AA249=""),"",($F99*$N$19 *$O59)/$N59)))) ->  | L249: =IF(ISERR(AB249),"",IF($N59=0,"",IF($T249="","",IF(OR(AB249<>"x",AB249=""),"",($F99*$N$19 *$O59)/$N59)))) ->  | M249: =IF(ISERR(AC249),"",IF($N59=0,"",IF($T249="","",IF(OR(AC249<>"x",AC249=""),"",($F99*$N$19 *$O59)/$N59)))) ->  | N249: =IF(ISERR(AD249),"",IF($N59=0,"",IF($T249="","",IF(OR(AD249<>"x",AD249=""),"",($F99*$N$19 *$O59)/$N59)))) -> 
H250: =IF(ISERR(X250),"",IF($N60=0,"",IF($T250="","",IF(OR(X250<>"x",X250=""),"",($F100*$N$19 *$O60)/$N60)))) -> 
T259: =T217 -> 
C262: Total | E262: =SUM(E226:E261) -> 0 | F262: =SUM(F226:F261) -> 0 | G262: 4.323076212e-10 | H262: 2.7811935e-11 | I262: 0 | J262: 0 | K262: 5.300435e-12 | L262: 4.323076212e-10 | M262: 2.7811935e-11 | N262: 0
I264: A/N: | J264: =$D$8 -> 622795 (96, 97) | N264: Application deemed complete date: | O264: =$N$8 -> 2020-07-14
C265: 6b. Hazard Index Chronic - Resident
C266: HIC = [Q(ton/yr) * (X/Q) Resident * MP Chronic Resident * MWAF] / Chronic REL
I267: HIC - Residential | U267: Look up table Chronic Target Organ
C268: Compound | E268: AL | F268: BN | G268: CV | H268: DEV | I268: END | J268: EYE | K268: HEM | L268: IMM | M268: KID | N268: NS | O268: REP | P268: RESP | Q268: SKIN | U268: AL | V268: BN | W268: CV | X268: DEV | Y268: END | Z268: EYE | AA268: HEM | AB268: IMM | AC268: KID | AD268: NS | AE268: REP | AF268: RESP | AG268: SKIN
C269: =C36 -> Vinyl Chloride (Chloroethylene) | E269: =IF(ISERR(U269),"",IF($L36=0,"",IF($T269="","",IF(OR(U269<>"x",U269=""),"",($J76*$M$18*$J36*$O36)/$L36)))) ->  | F269: =IF(ISERR(V269),"",IF($L36=0,"",IF($T269="","",IF(OR(V269<>"x",V269=""),"",($J76*$M$18*$J36*$O36)/$L36)))) ->  | G269: =IF(ISERR(W269),"",IF($L36=0,"",IF($T269="","",IF(OR(W269<>"x",W269=""),"",($J76*$M$18*$J36*$O36)/$L36)))) ->  | H269: =IF(ISERR(X269),"",IF($L36=0,"",IF($T269="","",IF(OR(X269<>"x",X269=""),"",($J76*$M$18*$J36*$O36)/$L36)))) ->  | I269: =IF(ISERR(Y269),"",IF($L36=0,"",IF($T269="","",IF(OR(Y269<>"x",Y269=""),"",($J76*$M$18*$J36*$O36)/$L36)))) ->  | J269: =IF(ISERR(Z269),"",IF($L36=0,"",IF($T269="","",IF(OR(Z269<>"x",Z269=""),"",($J76*$M$18*$J36*$O36)/$L36)))) ->  | K269: =IF(ISERR(AA269),"",IF($L36=0,"",IF($T269="","",IF(OR(AA269<>"x",AA269=""),"",($J76*$M$18*$J36*$O36)/$L36)))) ->  | L269: =IF(ISERR(AB269),"",IF($L36=0,"",IF($T269="","",IF(OR(AB269<>"x",AB269=""),"",($J76*$M$18*$J36*$O36)/$L36)))) ->  | M269: =IF(ISERR(AC269),"",IF($L36=0,"",IF($T269="","",IF(OR(AC269<>"x",AC269=""),"",($J76*$M$18*$J36*$O36)/$L36)))) ->  | N269: =IF(ISERR(AD269),"",IF($L36=0,"",IF($T269="","",IF(OR(AD269<>"x",AD269=""),"",($J76*$M$18*$J36*$O36)/$L36)))) ->  | O269: =IF(ISERR(AE269),"",IF($L36=0,"",IF($T269="","",IF(OR(AE269<>"x",AE269=""),"",($J76*$M$18*$J36*$O36)/$L36)))) ->  | P269: =IF(ISERR(AF269),"",IF($L36=0,"",IF($T269="","",IF(OR(AF269<>"x",AF269=""),"",($J76*$M$18*$J36*$O36)/$L36)))) ->  | Q269: =IF(ISERR(AG269),"",IF($L36=0,"",IF($T269="","",IF(OR(AG269<>"x",AG269=""),"",($J76*$M$18*$J36*$O36)/$L36)))) ->  | T269: =IF($B36="","",$B36) -> V4 | U269: =IFERROR(IF($T269="","",VLOOKUP($T269,TOChronic_data,4,FALSE)),"") ->  | V269: =IFERROR(IF($T269="","",VLOOKUP($T269,TOChronic_data,5,FALSE)),"") ->  | W269: =IFERROR(IF($T269="","",VLOOKUP($T269,TOChronic_data,6,FALSE)),"") ->  | X269: =IFERROR(IF($T269="","",VLOOKUP($T269,TOChronic_data,7,FALSE)),"") ->  | Y269: =IFERROR(IF($T269="","",VLOOKUP($T269,TOChronic_data,8,FALSE)),"") ->  | Z269: =IFERROR(IF($T269="","",VLOOKUP($T269,TOChronic_data,9,FALSE)),"") ->  | AA269: =IFERROR(IF($T269="","",VLOOKUP($T269,TOChronic_data,10,FALSE)),"") ->  | AB269: =IFERROR(IF($T269="","",VLOOKUP($T269,TOChronic_data,11,FALSE)),"") ->  | AC269: =IFERROR(IF($T269="","",VLOOKUP($T269,TOChronic_data,12,FALSE)),"") ->  | AD269: =IFERROR(IF($T269="","",VLOOKUP($T269,TOChronic_data,13,FALSE)),"") ->  | AE269: =IFERROR(IF($T269="","",VLOOKUP($T269,TOChronic_data,14,FALSE)),"") ->  | AF269: =IFERROR(IF($T269="","",VLOOKUP($T269,TOChronic_data,15,FALSE)),"") ->  | AG269: =IFERROR(IF($T269="","",VLOOKUP($T269,TOChronic_data,16,FALSE)),"") -> 
C270: Styrene | N270: 1.43094952e-10 | T270: S6 | U270: 0 | V270: 0 | W270: 0 | X270: 0 | Y270: 0 | Z270: 0 | AA270: 0 | AB270: 0 | AC270: 0 | AD270: X | AE270: 0 | AF270: 0 | AG270: 0
C271: 1,3-Butadiene | H271: 3.684044582e-08 | O271: 3.684044582e-08 | T271: B12 | U271: 0 | V271: 0 | W271: 0 | X271: X | Y271: 0 | Z271: 0 | AA271: 0 | AB271: 0 | AC271: 0 | AD271: 0 | AE271: X | AF271: 0 | AG271: 0
C305: Total | E305: =SUM(E269:E304) -> 0 | F305: =SUM(F269:F304) -> 0 | G305: 0 | H305: 3.684044582e-08 | I305: 0 | J305: 0 | K305: 0 | L305: 0 | M305: 0 | N305: 1.43094952e-10 | O305: 3.684044582e-08 | P305: 0 | Q305: 0
U306: =IF($T306="","",VLOOKUP($T306,table10A,MATCH(E$268,head10A,0),FALSE)) ->  | V306: =IF($T306="","",VLOOKUP($T306,table10A,MATCH(F$268,head10A,0),FALSE)) ->  | W306: =IF($T306="","",VLOOKUP($T306,table10A,MATCH(G$268,head10A,0),FALSE)) ->  | X306: =IF($T306="","",VLOOKUP($T306,table10A,MATCH(H$268,head10A,0),FALSE)) ->  | Y306: =IF($T306="","",VLOOKUP($T306,table10A,MATCH(I$268,head10A,0),FALSE)) ->  | Z306: =IF($T306="","",VLOOKUP($T306,table10A,MATCH(J$268,head10A,0),FALSE)) ->  | AA306: =IF($T306="","",VLOOKUP($T306,table10A,MATCH(K$268,head10A,0),FALSE)) ->  | AB306: =IF($T306="","",VLOOKUP($T306,table10A,MATCH(L$268,head10A,0),FALSE)) ->  | AC306: =IF($T306="","",VLOOKUP($T306,table10A,MATCH(M$268,head10A,0),FALSE)) ->  | AD306: =IF($T306="","",VLOOKUP($T306,table10A,MATCH(R$268,head10A,0),FALSE)) -> 
I308: A/N: | J308: =$D$8 -> 622795 (96, 97) | N308: Application deemed complete date: | O308: =$N$8 -> 2020-07-14
C309: 6b. Hazard Index Chronic - Worker
C310: HIC = [Q(ton/yr) * (X/Q) * MP Chronic Worker * MWAF] / Chronic REL
I311: HIC - Commercial | U311: Look up table Chronic Target Organ
C312: Compound | E312: AL | F312: BN | G312: CV | H312: DEV | I312: END | J312: EYE | K312: HEM | L312: IMM | M312: KID | N312: NS | O312: REP | P312: RESP | Q312: SKIN | U312: AL | V312: BN | W312: CV | X312: DEV | Y312: END | Z312: EYE | AA312: HEM | AB312: IMM | AC312: KID | AD312: NS | AE312: REP | AF312: RESP | AG312: SKIN
C313: =C36 -> Vinyl Chloride (Chloroethylene) | E313: =IF(ISERR(U313),"",IF($L36=0,"",IF($T313="","",IF(OR(U313<>"x",U313=""),"",($J76*$M$19*$K36*$O36)/$L36)))) ->  | F313: =IF(ISERR(V313),"",IF($L36=0,"",IF($T313="","",IF(OR(V313<>"x",V313=""),"",($J76*$M$19*$K36*$O36)/$L36)))) ->  | G313: =IF(ISERR(W313),"",IF($L36=0,"",IF($T313="","",IF(OR(W313<>"x",W313=""),"",($J76*$M$19*$K36*$O36)/$L36)))) ->  | H313: =IF(ISERR(X313),"",IF($L36=0,"",IF($T313="","",IF(OR(X313<>"x",X313=""),"",($J76*$M$19*$K36*$O36)/$L36)))) ->  | I313: =IF(ISERR(Y313),"",IF($L36=0,"",IF($T313="","",IF(OR(Y313<>"x",Y313=""),"",($J76*$M$19*$K36*$O36)/$L36)))) ->  | J313: =IF(ISERR(Z313),"",IF($L36=0,"",IF($T313="","",IF(OR(Z313<>"x",Z313=""),"",($J76*$M$19*$K36*$O36)/$L36)))) ->  | K313: =IF(ISERR(AA313),"",IF($L36=0,"",IF($T313="","",IF(OR(AA313<>"x",AA313=""),"",($J76*$M$19*$K36*$O36)/$L36)))) ->  | L313: =IF(ISERR(AB313),"",IF($L36=0,"",IF($T313="","",IF(OR(AB313<>"x",AB313=""),"",($J76*$M$19*$K36*$O36)/$L36)))) ->  | M313: =IF(ISERR(AC313),"",IF($L36=0,"",IF($T313="","",IF(OR(AC313<>"x",AC313=""),"",($J76*$M$19*$K36*$O36)/$L36)))) ->  | N313: =IF(ISERR(AD313),"",IF($L36=0,"",IF($T313="","",IF(OR(AD313<>"x",AD313=""),"",($J76*$M$19*$K36*$O36)/$L36)))) ->  | O313: =IF(ISERR(AE313),"",IF($L36=0,"",IF($T313="","",IF(OR(AE313<>"x",AE313=""),"",($J76*$M$19*$K36*$O36)/$L36)))) ->  | P313: =IF(ISERR(AF313),"",IF($L36=0,"",IF($T313="","",IF(OR(AF313<>"x",AF313=""),"",($J76*$M$19*$K36*$O36)/$L36)))) ->  | Q313: =IF(ISERR(AG313),"",IF($L36=0,"",IF($T313="","",IF(OR(AG313<>"x",AG313=""),"",($J76*$M$19*$K36*$O36)/$L36)))) ->  | T313: =T269 -> V4
... 26 more rows

Sheet CEQA (hidden)
B2: CEQA CHRONIC & CANCER PRESCREENING
B4: Application Number | D4: =Emissions!E7 -> 622795 (96, 97)
B5: Distance to receptor | E5: meter
J6: Table 1A
B7: Compound (a) | D7: Pollutant Screening Level (lb/yr) | F7: Maximum Annual Emission (lb/yr) | G7: Pollutant Chronic Screening Index | H7: Pollutant Cancer Screening Index | J7: 25 meter | K7: 50 meter | L7: 100 meter | M7: slope 25-50 | N7: slope 50-100
D8: Chronic | E8: Cancer | J8: (lbs/yr) | K8: (lbs/yr) | L8: (lbs/yr)
B9: Bromine * | D9: =IF($D$5>=100,$L9,IF($D$5<=25,$J9,IF(OR($D$5<=50,$D$5>25),$K9-$M9*($K$7-$D$5),IF(OR($D$5>50,$D$5<100),$N9*($D$5-$K$7)+K9)))) -> 56.21 | G9: =IF(F9="","",IF(D9<>0,F9/D9,1)) ->  | J9: 56.21 | K9: 147.38 | L9: 439.28 | M9: =(K9-J9)/($K$7-$J$7) ->  | N9: =(L9-K9)/($K$7-$J$7) -> 
B10: Bromine pentafluoride* | D10: =IF($D$5>=100,$L10,IF($D$5<=25,$J10,IF(OR($D$5<50,$D$5>25),$K10-$M10*($K$7-$D$5),IF(OR($D$5>50,$D$5<100),$N10*($D$5-$K$7)+K10)))) -> 56.21 | J10: 56.21 | K10: 147.38 | L10: 439.28 | M10: =(K10-J10)/($K$7-$J$7) -> 
B11: Dichlorodifluoromethane (CFC-12)* | D11: 23144.32 | J11: 23144.32 | K11: 60684.87 | L11: 180878.55
B12: Trichlorofluoromethane (CFC-11)* | D12: 23144.32 | J12: 23144.32 | K12: 60684.87 | L12: 180878.55
B13: Trichlorotrifluoroethane (CFC-113)* | D13: 23144.32 | J13: 23144.32 | K13: 60684.87 | L13: 180878.55
B14: Chloroprene* | D14: 33.06 | J14: 33.06 | K14: 86.69 | L14: 258.4
B15: Dimethylamine * | D15: 66.13 | J15: 66.13 | K15: 173.39 | L15: 516.8
B16: Ethyl acrylate* | D16: 1587.04 | J16: 1587.04 | K16: 4161.25 | L16: 12403.1
B17: Hexachlorocyclopentadiene* | D17: 7.94 | J17: 7.94 | K17: 20.81 | L17: 62.02
B18: Hydrogen bromide* | D18: 793.52 | J18: 793.52 | K18: 2080.62 | L18: 6201.55
B19: Methyl methacrylate* | D19: 32402.05 | J19: 32402.05 | K19: 84958.82 | L19: 253229.97
B20: Mineral fibers(other than man-made)* | D20: 793.52 | J20: 793.52 | K20: 2080.62 | L20: 6201.55
B21: Nitrobenzene* | D21: 56.21 | J21: 56.21 | K21: 147.38 | L21: 439.28
B22: Nitropropane, 2-* | D22: 661.27 | J22: 661.27 | K22: 1733.85 | L22: 5167.96
B23: Phosphorus and phosphorus compounds* | D23: 2.31 | J23: 2.31 | K23: 6.07 | L23: 18.09
B24: Tetrachlorophenols * | D24: 2909.57 | J24: 2909.57 | K24: 7628.96 | L24: 22739.02
B25: Vinylidene chloride*(1,1,-Dichloroethylene) | D25: 2314.432138 | J25: 2314.432138 | K25: 6068.487213 | L25: 18087.8553
B26: Zinc and zinc compounds* | D26: 1157.22 | J26: 1157.22 | K26: 3034.24 | L26: 9043.93
B27: Zinc oxide* | D27: 1157.22 | J27: 1157.22 | K27: 3034.24 | L27: 9043.93
B28: Allyl chloride* | E28: =IF($D$5>=100,$L28,IF($D$5<=25,$J28,IF(OR($D$5<50,$D$5>25),$K28-$M28*($K$7-$D$5),IF(OR($D$5>50,$D$5<100),$N28*($D$5-$K$7)+L28)))) -> 5.436820485 | H28: =IF($F28="","",IF($F28<>0,$F28/$E28,1)) ->  | J28: 5.436820485 | K28: 14.25545172 | L28: 42.49008671
B29: Aniline | E29: =IF($D$5>=100,$L29,IF($D$5<=25,$J29,IF(OR($D$5<50,$D$5>25),$K29-$M29*($K$7-$D$5),IF(OR($D$5>50,$D$5<100),$N29*($D$5-$K$7)+L29)))) -> 20.03039126 | H29: =IF($F29="","",IF($F29<>0,$F29/$E29,1)) ->  | J29: 20.03039126 | K29: 52.52008528 | L29: 156.5424247
B30: Ethylene thiourea | E30: =IF($D$5>=100,$L30,IF($D$5<=25,$J30,IF(OR($D$5<50,$D$5>25),$K30-$M30*($K$7-$D$5),IF(OR($D$5>50,$D$5<100),$N30*($D$5-$K$7)+L30)))) -> 2.537182893 | H30: =IF($F30="","",IF($F30<>0,$F30/$E30,1)) ->  | J30: 2.537182893 | K30: 6.652544136 | L30: 19.82870713
B31: Fluorides and fluoride compounds* | D31: =IF($D$5>=100,$L31,IF($D$5<=25,$J31,IF(OR($D$5<50,$D$5>25),$K31-$M31*($K$7-$D$5),IF(OR($D$5>50,$D$5<100),$N31*($D$5-$K$7)+K31)))) -> 430 | G31: =IF(F31="","",IF(D31<>0,F31/D31,1)) ->  | J31: 430 | K31: 1130 | L31: 3360
B32: Nitrosodiphenylamine, n- | E32: =IF($D$5>=100,$L32,IF($D$5<=25,$J32,IF(OR($D$5<50,$D$5>25),$K32-$M32*($K$7-$D$5),IF(OR($D$5>50,$D$5<100),$N32*($D$5-$K$7)+L32)))) -> 12.68591447 | H32: =IF($F32="","",IF($F32<>0,$F32/$E32,1)) ->  | J32: 12.68591447 | K32: 33.26272068 | L32: 99.14353566
B33: Trichloroethane, 1,1,2- | E33: =IF($D$5>=100,$L33,IF($D$5<=25,$J33,IF(OR($D$5<50,$D$5>25),$K33-$M33*($K$7-$D$5),IF(OR($D$5>50,$D$5<100),$N33*($D$5-$K$7)+L33)))) -> 2.003039126 | H33: =IF($F33="","",IF($F33<>0,$F33/$E33,1)) ->  | J33: 2.003039126 | K33: 5.252008528 | L33: 15.65424247
C34: TOTAL | G34: =SUM(G9:G33) -> 0 | H34: =SUM(H9:H33) -> 0
F35: CEQA Threshold | G35: 1 | H35: 10
C36: CEQA Chronic screening result | G36: =IF(G34=0,"",IF(G34>1,"FAIL - NOTIFY CEQA GROUP","PASS ")) ->  | H36: =IF(H34=0,"",IF(H34>1,"FAIL - NOTIFY CEQA GROUP","PASS ")) -> 
B37: (a)The pollutant list and their screening values at 25m, 50m, and 100m are provided by CEQA group in Mar 26, 2013.

Sheet Tier 2 Report 70yr (hidden)
C2: EMISSIONS ARE ENTERED ON THE EMISSIONS WORKSHEET OR ON ONE OF THE FIVE COMBUSTION SOURCE WORKSHEETS
C3: INPUT PARAMETERS ENTERED ON THE EMISSIONS SHEET ARE ALSO USED FOR TIERS 1 AND TIER 2 ANALYSES
D5: =IF(ScreeningMode="YES","TIER 3 SCREENING RISK ASSESSMENT REPORT","TIER 2 SCREENING RISK ASSESSMENT REPORT") -> TIER 2 SCREENING RISK ASSESSMENT REPORT
D6: =Intro!A39 -> (Procedure Version 8.1 & Package N, September 1, 2017 )
C8: A/N: | D8: =Emissions!E7 -> 622795 (96, 97) | M8: Application deemed complete date: | N8: =DeemCompleteDate -> 2020-07-14
C9: Fac: | D9: =Emissions!E8 -> Spear's Manufacturing Co.
C12: 1. Stack Data | J12: =IF(ScreeningMode = "yes","2. Tier 3 Data","2. Tier 2 Data") -> 2. Tier 2 Data
J13: Dispersion Factors tables | M13: =IF(PointVolumeSource="P","Point Source","Volume Source") -> Point Source
C14: Equipment Type | D14: =SourceType -> Other | F14: =VLOOKUP(SourceType,LookupEquipDesc,2,FALSE) -> 0 | J14: For Chronic X/Q | M14: =IF(PointVolumeSource ="P",VLOOKUP(SourceType,TableIndex!$H$5:$L$13,2,0),VLOOKUP(SourceType,TableIndex!$H$5:$L$13,4,0)) -> Table 6
F15: =VLOOKUP(SourceType,LookupEquipDesc,4,FALSE) -> 0 | J15: For Acute X/Q max | M15: =IF(PointVolumeSource ="P",VLOOKUP(SourceType,TableIndex!$H$5:$L$13,3,0),VLOOKUP(SourceType,TableIndex!$H$5:$L$13,5,0)) -> Table 6.4
F16: =VLOOKUP(SourceType,LookupEquipDesc,6,FALSE) -> 0
C17: Combustion Control Eff | D17: =IF(CombControlEfficiency=0,"0.0",CombControlEfficiency) -> 0.0 | F17: =VLOOKUP(SourceType,LookupEquipDesc,8,FALSE) -> 0 | J17: Dilution Factors
D18: =IF(Emissions!E17= "No","No T-BACT","With T-BACT") -> With T-BACT | J18: Receptor | M18: Χ/Q (µg/m³)/(tons/yr) | N18: X/Qmax (µg/m³)/(lbs/hr)
J19: Residential | M19: =TableIndex!AC3 -> 1.7869 | N19: =TableIndex!AD3 -> 71.687
J20: Commercial - Worker | M20: =TableIndex!AC4 -> 0.649 | N20: =TableIndex!AD4 -> 28.651
C21: Operation Schedule | D21: =HoursPerDay -> 24 | E21: hrs/day;
D22: =DaysPerWeek -> 7 | E22: days/week; | J22: Intake and Adjustment Factors
D23: =WeeksPerYear -> 52 | E23: weeks/year | M23: Residential | N23: Worker
C24: =IF(SourceType="Crematory","","Stack Height") -> Stack Height | D24: =IF(SourceType="Crematory","",StackHeight) -> 32 | E24: =IF(SourceType="Crematory","","ft") -> ft | J24: Year of Exposure | M24: 70
C25: =IF(OR(PointVolumeSource="V",SourceType="Crematory"),"Building Area","") ->  | D25: =IF(OR(PointVolumeSource="V",SourceType="Crematory"),Emissions!E19,"") ->  | E25: =IF(OR(PointVolumeSource="V",SourceType="Crematory"),"ft²","") ->  | J25: ="Combined Exposure Factor (CEF) - " & TableIndex!A9 -> Combined Exposure Factor (CEF) - Table 5 | M25: =VLOOKUP(M24,'Table 4'!$G$6:$H$11,2,FALSE) -> 766.7843657 | N25: =IF(M24<=30,VLOOKUP(M24,'Table 4'!$F$21:$G$24,2,FALSE),'Table 4'!$G$24) -> 55.85714286
C26: Distance - Residential | D26: =Emissions!E20 -> 157 | E26: m | J26: ="Worker Adjustment Factor (WAF) - "& TableIndex!A10 -> Worker Adjustment Factor (WAF) - Table 6 | M26: 1 | N26: =afann(DaysPerWeek,HoursPerDay) -> 1
C27: Distance - Commercial | D27: =Emissions!E21 -> 265 | E27: m
C28: Meteorological Station | D28: =Emissions!E22 -> Van Nuys Airport
K33: A/N: | L33: =$D$8 -> 622795 (96, 97) | M33: Application deemed complete date: | Q33: =$N$8 -> 2020-07-14
C34: 3. Rule 1401 Compound Data | Y34: Look up adopted date in table 1 | AC34: Based on Deem complete date, determine to include the risk factor or not (1 = yes, 0 = no)
B35: Code | C35: Compound | E35: R1 - Uncontrolled (lbs/hr) | F35: R2 - Controlled (lbs/hr) | G35: CP (mg/kg-day)¯¹ | H35: MP MICR Resident | I35: MP MICR Worker | J35: MP Chronic Res. | K35: MP Chronic Worker | L35: REL Chronic (µg/m³) | M35: REL 8-hr Chronic (µg/m³) | N35: REL Acute (µg/m³) | O35: MWAF | Y35: date cancer | Z35: date chronic | AA35: date 8-hr Chronic | AB35: date acute | AC35: include cancer | AD35: include chronic | AE35: include 8-hr chronic | AF35: include acute
B36: =Emissions!K33 -> V4 | C36: =IF(B36="","",VLOOKUP(B36,TAClist,2,FALSE)) -> Vinyl Chloride (Chloroethylene) | E36: =Emissions!M33 -> 3.33e-08 | F36: =Emissions!N33 -> 3.33e-08 | G36: =IF(B36="","",VLOOKUP($B36,TAClist,4,FALSE)*$AC36) -> 0.27 | H36: =IF($B36="","",VLOOKUP($B36,TAClist,VLOOKUP(YrExposure,lu_YrExpose_MPcol,2,TRUE),FALSE)) -> 1 | I36: =IF(B36="","",VLOOKUP($B36,TAClist,VLOOKUP(YrExposure,lu_YrExpose_MPcol,3,TRUE),FALSE)) -> 1 | J36: =IF(B36="","",VLOOKUP($B36,TAClist,9,FALSE)) -> 1 | K36: =IF(B36="","",VLOOKUP($B36,TAClist,10,FALSE)) -> 1 | L36: =IF(B36="","",VLOOKUP($B36,TAClist,8,FALSE)*$AD36) -> 0 | M36: =IF(B36="","",VLOOKUP($B36,TAClist,11,FALSE)*$AE36) -> 0 | N36: =IF(B36="","",VLOOKUP($B36,TAClist,12,FALSE)*$AF36) -> 180000 | O36: =IF(B36="","",VLOOKUP($B36,TAClist,7,FALSE)) -> 1 | Y36: =IF($B36="","",VLOOKUP($B36,Table1,2,FALSE)) -> 1990-12-07 | Z36: =IF($B36="","",VLOOKUP($B36,Table1,3,FALSE)) -> 00:00:00 | AA36: =IF($B36="","",VLOOKUP($B36,Table1,4,FALSE)) -> 00:00:00 | AB36: =IF($B36="","",VLOOKUP($B36,Table1,5,FALSE)) -> 1999-08-13 | AC36: =IF(Y36="","",IF($N$8>=Y36,1,0)) -> 1 | AD36: =IF(Z36="","",IF($N$8>=Z36,1,0)) ->  | AE36: =IF(AA36="","",IF($N$8>=AA36,1,0)) ->  | AF36: =IF(AB36="","",IF($N$8>=AB36,1,0)) -> 1
B37: =Emissions!K34 -> S6 | C37: Styrene | E37: =Emissions!M34 -> 1.65e-08 | F37: =Emissions!N34 -> 1.65e-08 | G37: 0 | H37: 1 | I37: =IF(B37="","",VLOOKUP($B37,TAClist,VLOOKUP(YrExposure,lu_YrExpose_MPcol,3,TRUE),FALSE)) -> 1 | J37: =IF(B37="","",VLOOKUP($B37,TAClist,9,FALSE)) -> 1 | K37: =IF(B37="","",VLOOKUP($B37,TAClist,10,FALSE)) -> 1 | L37: =IF(B37="","",VLOOKUP($B37,TAClist,8,FALSE)*$AD37) -> 900 | M37: 0 | N37: =IF(B37="","",VLOOKUP($B37,TAClist,12,FALSE)*$AF37) -> 21000 | O37: =IF(B37="","",VLOOKUP($B37,TAClist,7,FALSE)) -> 1 | Y37: =IF($B37="","",VLOOKUP($B37,Table1,2,FALSE)) -> 00:00:00 | Z37: 2000-08-18 | AA37: 2015-07-05 | AB37: 1999-08-13 | AD37: 1 | AE37: 1 | AF37: 1
B38: =Emissions!K35 -> B12 | C38: 1,3-Butadiene | E38: =Emissions!M35 -> 9.44e-09 | F38: =Emissions!N35 -> 9.44e-09 | G38: 0.6 | H38: 1 | I38: 1 | J38: 1 | K38: 1 | L38: 2 | M38: 9 | N38: 660 | O38: 1 | Y38: 1990-12-07 | Z38: 2001-06-15 | AA38: 2015-07-05 | AB38: 2017-09-01 | AC38: 1 | AD38: 1 | AE38: 1 | AF38: 1
B39: =Emissions!K36 ->  | E39: =Emissions!M36 ->  | F39: =Emissions!N36 -> 
B40: =Emissions!K37 ->  | E40: =Emissions!M37 ->  | F40: =Emissions!N37 -> 
B41: =Emissions!K38 ->  | E41: =Emissions!M38 ->  | F41: =Emissions!N38 -> 
B42: =Emissions!K39 ->  | E42: =Emissions!M39 ->  | F42: =Emissions!N39 -> 
B43: =Emissions!K40 ->  | E43: =Emissions!M40 ->  | F43: =Emissions!N40 -> 
B44: =Emissions!K41 ->  | E44: =Emissions!M41 ->  | F44: =Emissions!N41 -> 
B45: =Emissions!K42 ->  | E45: =Emissions!M42 ->  | F45: =Emissions!N42 -> 
B46: =Emissions!K43 ->  | E46: =Emissions!M43 ->  | F46: =Emissions!N43 -> 
B47: =Emissions!K44 ->  | E47: =Emissions!M44 ->  | F47: =Emissions!N44 -> 
B48: =Emissions!K45 ->  | E48: =Emissions!M45 ->  | F48: =Emissions!N45 -> 
B49: =Emissions!K46 ->  | E49: =Emissions!M46 ->  | F49: =Emissions!N46 -> 
B50: =Emissions!K47 ->  | E50: =Emissions!M47 ->  | F50: =Emissions!N47 -> 
B51: =Emissions!K48 ->  | E51: =Emissions!M48 ->  | F51: =Emissions!N48 -> 
B52: =Emissions!K49 ->  | E52: =Emissions!M49 ->  | F52: =Emissions!N49 -> 
B53: =Emissions!K50 ->  | E53: =Emissions!M50 ->  | F53: =Emissions!N50 -> 
B54: =Emissions!K51 ->  | E54: =Emissions!M51 ->  | F54: =Emissions!N51 -> 
B55: =Emissions!K52 ->  | E55: =Emissions!M52 ->  | F55: =Emissions!N52 -> 
B56: =Emissions!K53 ->  | E56: =Emissions!M53 ->  | F56: =Emissions!N53 -> 
B57: =Emissions!K54 ->  | E57: =Emissions!M54 ->  | F57: =Emissions!N54 -> 
B58: =Emissions!K55 ->  | E58: =Emissions!M55 ->  | F58: =Emissions!N55 -> 
B59: =Emissions!K56 ->  | E59: =Emissions!M56 ->  | F59: =Emissions!N56 -> 
B60: =Emissions!K57 ->  | E60: =Emissions!M57 ->  | F60: =Emissions!N57 -> 
B61: =Emissions!K58 ->  | E61: =Emissions!M58 ->  | F61: =Emissions!N58 -> 
B62: =Emissions!K59 ->  | E62: =Emissions!M59 ->  | F62: =Emissions!N59 -> 
B63: =Emissions!K60 ->  | E63: =Emissions!M60 ->  | F63: =Emissions!N60 -> 
B64: =Emissions!K61 ->  | E64: =Emissions!M61 ->  | F64: =Emissions!N61 -> 
B65: =Emissions!K62 ->  | E65: =Emissions!M62 ->  | F65: =Emissions!N62 -> 
B66: =Emissions!K63 ->  | E66: =Emissions!M63 ->  | F66: =Emissions!N63 -> 
B67: =Emissions!K64 ->  | E67: =Emissions!M64 ->  | F67: =Emissions!N64 -> 
B68: =Emissions!K65 ->  | E68: =Emissions!M65 ->  | F68: =Emissions!N65 -> 
B69: =Emissions!K66 ->  | E69: =Emissions!M66 ->  | F69: =Emissions!N66 -> 
B70: =Emissions!K67 ->  | E70: =Emissions!M67 ->  | F70: =Emissions!N67 -> 
B71: =Emissions!K68 ->  | E71: =Emissions!M68 ->  | F71: =Emissions!N68 -> 
K73: A/N: | L73: =$D$8 -> 622795 (96, 97) | M73: Application deemed complete date: | Q73: =$N$8 -> 2020-07-14
C74: 4. Emission Calculations
C75: Compound | E75: R1 (lbs/hr) | F75: R2 (lbs/hr) | G75: R2 (lbs/yr) | H75: R2 (tons/yr)
C76: =C36 -> Vinyl Chloride (Chloroethylene) | E76: =E36 -> 3.33e-08 | F76: 3.33e-08 | G76: =(F76*HoursPerDay*DaysPerWeek*WeeksPerYear) -> 0.0002909088 | H76: =G76/2000 -> 1.454544e-07
C77: Styrene | E77: 1.65e-08 | F77: 1.65e-08 | G77: =(F77*HoursPerDay*DaysPerWeek*WeeksPerYear) -> 0.000144144 | H77: =G77/2000 -> 7.2072e-08
C78: 1,3-Butadiene | E78: 9.44e-09 | F78: 9.44e-09 | G78: 8.246784e-05 | H78: 4.123392e-08
G79: 0 | H79: 0
G80: 0 | H80: 0
G81: 0 | H81: 0
G82: 0 | H82: 0
E83: =E43 ->  | G83: =(F83*HoursPerDay*DaysPerWeek*WeeksPerYear) -> 0 | H83: =G83/2000 -> 0
E84: =E44 ->  | G84: 0 | H84: 0
E85: =E45 ->  | G85: 0 | H85: 0
E86: =E46 ->  | G86: 0 | H86: 0
E87: =E47 ->  | G87: 0 | H87: 0
E88: =E48 ->  | G88: 0 | H88: 0
E89: =E49 ->  | G89: 0 | H89: 0
E90: =E50 ->  | G90: 0 | H90: 0
E91: =E51 ->  | G91: 0 | H91: 0
E92: =E52 ->  | G92: 0 | H92: 0
E93: =E53 ->  | G93: 0 | H93: 0
E94: =E54 ->  | G94: 0 | H94: 0
E95: =E55 ->  | G95: 0 | H95: 0
E96: =E56 ->  | G96: 0 | H96: 0
E97: =E57 ->  | G97: =IF(SourceType = "Spray Booth",F97*24*7*52,(F97*HoursPerDay*DaysPerWeek*WeeksPerYear)) -> 0 | H97: 0
G98: 0 | H98: 0
G99: 0 | H99: 0
G100: 0 | H100: 0
G101: 0 | H101: 0
G102: 0 | H102: 0
G103: 0 | H103: 0
G104: 0 | H104: 0
G105: 0 | H105: 0
G106: 0 | H106: 0
G107: 0 | H107: 0
E108: =E68 ->  | G108: 0 | H108: 0
G109: 0 | H109: 0
G110: 0 | H110: 0
G111: 0 | H111: 0
C112: Total | E112: =SUM(E76:E111) -> 5.924e-08 | F112: =SUM(F76:F111) -> 5.924e-08 | G112: =SUM(G76:G111) -> 0.00051752064 | H112: =SUM(H76:H111) -> 2.5876032e-07
K116: A/N: | L116: =$D$8 -> 622795 (96, 97) | M116: Application deemed complete date: | Q116: =$N$8 -> 2020-07-14
C117: =IF([0]!ScreeningMode="NO","TIER 2 RESULTS","TIER 3 RESULTS") -> TIER 2 RESULTS
C119: 5a. MICR
C120: MICR Resident = CP (mg/(kg-day))^-1 * Q (ton/yr) * (X/Q) Resident * CEF Resident * MP Resident * 1e-6 * MWAF
C121: MICR Worker = CP (mg/(kg-day))^-1 * Q (ton/yr) * (X/Q) Worker * CEF Worker* MP Worker* WAF Worker* 1e-6 * MWAF
C122: Compound | E122: Residential | F122: Commercial
C123: =C36 -> Vinyl Chloride (Chloroethylene) | E123: =$G36*$H76*$M$19*$M$25*$H36*10^-6*$O36 -> 5.381014043e-11 | F123: =$G36*$H76*$M$20*$N$25*$N$26*$I36*10^-6*$O36 -> 1.423685433e-12
C124: Styrene | E124: =$G37*$H77*$M$19*$M$25*$H37*10^-6*$O37 -> 0 | F124: =$G37*$H77*$M$20*$N$25*$N$26*$I37*10^-6*$O37 -> 0
C125: 1,3-Butadiene | E125: 3.389841346e-11 | F125: 8.96869569e-13
E126: 0 | F126: 0
E127: 0 | F127: 0
E128: 0 | F128: 0
E129: 0 | F129: 0
E130: 0 | F130: 0
E131: 0 | F131: 0
E132: 0 | F132: 0
E133: 0 | F133: 0
E134: 0 | F134: 0
E135: 0 | F135: 0
E136: 0 | F136: 0
E137: 0 | F137: 0
E138: 0 | F138: 0
E139: 0 | F139: 0
E140: 0 | F140: 0
E141: 0 | F141: 0
E142: 0 | F142: 0
E143: 0 | F143: 0
E144: 0 | F144: 0
E145: 0 | F145: 0 | S145: Model used: | W145: =SourceType & " - " & PointVolumeSource -> Other - P
E146: 0 | F146: 0 | S146: Distance_interpolated (meter) | W146: =IF(ScreeningMode="YES",W149,MAX(W149:W158)) -> 0
E147: 0 | F147: 0
E148: 0 | F148: 0 | V148: New Distance (m)
E149: 0 | F149: 0 | S149: Screening | W149: =IF(ScreeningMode="YES",'Tier 3 Screen Input'!L18,"No input") -> No input
E150: 0 | F150: 0 | S150: Boiler | W150: =IF(SourceType="Boiler",'Boiler Calc'!M7,"Not Applicable") -> Not Applicable
E151: 0 | F151: 0 | S151: Crematory | W151: =IF(SourceType = "Crematory",'Crematory Calc'!M7,"Not Applicable") -> Not Applicable
E152: 0 | F152: 0 | I152: =IF(AND(E159<0.000001,F159<0.000001),"No Cancer Burden, MICR<1.0E-6") -> No Cancer Burden, MICR<1.0E-6 | S152: Diesel ICE | W152: =IF(SourceType = "Diesel ICE",'Diesel Engine Calc'!M7,"Not Applicable") -> Not Applicable
E153: 0 | F153: 0 | I153: 5b. Cancer Burden Calculation? | M153: =IF(OR(E159>=1*10^-6,F159>=1*10^-6),"YES","NO") -> NO | S153: Gas Station | W153: Not Applicable
E154: 0 | F154: 0 | S154: Diesel Pressure Washer | W154: =IF(SourceType = "Pressure Washer",'Diesel Engine Calc'!M7, "Not Applicable") -> Not Applicable
E155: 0 | F155: 0 | I155: X/Q for one-in-a-million (µg/m³)/(tons/yr): | M155: =IF($M$153="YES",IF($E$159>=F159,$M$19/$E$159/1000000,$M$20/$F$159/1000000),0) -> 0 | S155: Lean Burn ICE | W155: =IF(SourceType = "Lean Burn ICE",'Engine Calc'!M7, "Not Applicable") -> Not Applicable
E156: 0 | F156: 0 | I156: New Distance where MICR70 is below 1 million (m) | M156: =IF($M$153="NO","",IF($W$146>0,$W$146,"")) ->  | S156: Rich Burn ICE | W156: =IF(SourceType = "Rich Burn ICE",'Engine Calc'!M7, "Not Applicable") -> Not Applicable
C157: =IF(SourceType="Spray Booth","Total MICR from Coating",C70) ->  | E157: =IF(SourceType="Spray Booth",SUM(E123:E135,$G70*$H110*$M$18*$M$24*$H70*10^-6*$O70)) -> FALSE | F157: =IF(SourceType = "Spray Booth",SUM(F123:F135),$G70*$H110*$M$19*$N$24*$N$25*$I70*10^-6*$O70) -> 0 | I157: Zone Impact Area (km²): | M157: =PI()*($M$156/1000)^2 -> 0 | S157: Spray Booth | W157: =IF(SourceType = "Spray Booth",'Spray Booth Calc'!M7,"Not Applicable") -> Not Applicable
C158: =IF(SourceType="Spray Booth","Total MICR from Combustion",C71) ->  | E158: =IF(SourceType = "Spray Booth",SUM(E136:E146),$G71*$H111*$M$18*$M$24*$H71*10^-6*$O71) -> 0 | F158: =IF(SourceType="Spray Booth",SUM(F136:F146),$G71*$H111*$M$19*$N$24*$N$25*$I71*10^-6*$O71) -> 0 | I158: Impact Population (of 7000 person/km²): | M158: =$M$157*7000 -> 0 | S158: Other | W158: =IF(AND(SourceType="Other",PointVolumeSource="P"),'PSE Calc'!M7,IF(AND(SourceType="Other",PointVolumeSource="V"),'VSE Calc'!M7,"No input")) -> 0
C159: Total | E159: =IF(SourceType="Spray Booth",SUM(E157:E158),SUM($E$123:$E$158)) -> 8.77085539e-11 | F159: =IF(SourceType="Spray Booth",SUM(F157:F158),SUM($E$123:$E$158)) -> 8.77085539e-11 | I159: Cancer Burden: | M159: =$M$158*MAX($E$159:$F$159) -> 0 | P159: =N159*M158 -> 0
E160: =IF(E159=0,"Use AERMOD model",IF(Emissions!TBact="yes",IF(E159<=0.00001,"PASS","FAIL"),IF(E159<=0.000001,"PASS","FAIL"))) -> PASS | F160: =IF(F159=0,"Use AERMOD model",IF(Emissions!TBact="yes",IF(F159<=0.00001,"PASS","FAIL"),IF(F159<=0.000001,"PASS","FAIL"))) -> PASS | M160: =IF(M159=0,"",IF(M159<=0.5,"PASS","FAIL")) -> 
C161: 6. Hazard Index | K161: A/N: | L161: =$D$8 -> 622795 (96, 97) | M161: Application deemed complete date: | Q161: =$N$8 -> 2020-07-14
C162: HIA = [Q(lb/hr) * (X/Q)max * MWAF ]/ Acute REL
C163: HIC = [Q(ton/yr) * (X/Q) * MP * MWAF] / Chronic REL
C164: HIC 8-hr= [Q(ton/yr) * (X/Q) * WAF * MWAF] / 8-hr Chronic REL
C165: Target Organs | F165: Acute | G165: Chronic | H165: 8-hr Chronic | I165: Acute Pass/Fail | J165: Chronic Pass/Fail | K165: Chronic 8-hr Pass/Fail
C166: Alimentary system (liver) - AL | F166: =MAX(E$223,E$265) -> 0 | G166: =MAX(E$308,E$352) -> 0 | H166: =IF(AND(HoursPerDay>=8,DaysPerWeek>=5),MAX(E$395,E$438),"N/A") -> 0 | I166: =IF(OR(F166<=1,F166=""),"Pass","Fail") -> Pass | J166: =IF(OR(G166<=1,G166=""),"Pass","Fail") -> Pass | K166: =IF(OR(H166<=1,H166=""),"Pass","Fail") -> Pass
C167: Bones and teeth - BN | G167: =MAX(F$308,F$352) -> 0 | H167: =IF(AND(HoursPerDay>=8,DaysPerWeek>=5),MAX(F$395,F$438),"N/A") -> 0 | I167: =IF(OR(F167<=1,F167=""),"Pass","Fail") -> Pass | J167: Pass | K167: Pass
C168: Cardiovascular system - CV | F168: =MAX(F$223,F$265) -> 0 | G168: =MAX(G$308,G$352) -> 0 | H168: =IF(AND(HoursPerDay>=8,DaysPerWeek>=5),MAX(G$395,G$438),"N/A") -> 0 | I168: Pass | J168: Pass | K168: Pass
C169: Developmental - DEV | F169: =MAX(G$223,G$265) -> 0 | G169: =MAX(H$308,H$352) -> 3.23686272e-06 | H169: =IF(AND(HoursPerDay>=8,DaysPerWeek>=5),MAX(H$395,H$438),"N/A") -> 0 | I169: Pass | J169: Pass | K169: Pass
C170: Endocrine system - END | G170: =MAX(I$308,I$352) -> 0 | H170: =IF(AND(HoursPerDay>=8,DaysPerWeek>=5),MAX(I$395,I$438),"N/A") -> 0 | I170: Pass | J170: Pass | K170: Pass
C171: Eye | F171: =MAX(H$223,H$265) -> 0 | G171: =MAX(J$308,J$352) -> 0 | H171: =IF(AND(HoursPerDay>=8,DaysPerWeek>=5),MAX(J$395,J$438),"N/A") -> 0 | I171: Pass | J171: Pass | K171: Pass
C172: Hematopoietic system - HEM | F172: =MAX(I$223,I$265) -> 0 | G172: =MAX(K$308,K$352) -> 0 | H172: =IF(AND(HoursPerDay>=8,DaysPerWeek>=5),MAX(K$395,K$438),"N/A") -> 0 | I172: Pass | J172: Pass | K172: Pass
C173: Immune system - IMM | F173: =MAX(J$223,J$265) -> 0 | G173: =MAX(L$308,L$352) -> 0 | H173: =IF(AND(HoursPerDay>=8,DaysPerWeek>=5),MAX(L$395,L$438),"N/A") -> 0 | I173: Pass | J173: Pass | K173: Pass
C174: Kidney - KID | G174: =MAX(M$308,M$352) -> 0 | H174: =IF(AND(HoursPerDay>=8,DaysPerWeek>=5),MAX(M$395,M$438),"N/A") -> 0 | I174: Pass | J174: Pass | K174: Pass
C175: Nervous system - NS | F175: =MAX(K$223,K$265) -> 0 | G175: =MAX(N$308,N$352) -> 1.257256e-08 | H175: =IF(AND(HoursPerDay>=8,DaysPerWeek>=5),MAX(N$395,N$438),"N/A") -> 0 | I175: Pass | J175: Pass | K175: Pass
C176: Reproductive system - REP | F176: =MAX(L$223,L$265) -> 0 | G176: =MAX(O$308,O$352) -> 3.23686272e-06 | H176: =IF(AND(HoursPerDay>=8,DaysPerWeek>=5),MAX(O$395,O$438),"N/A") -> 0 | I176: Pass | J176: Pass | K176: Pass
C177: Respiratory system - RES | F177: =MAX(M$223,M$265) -> 0 | G177: =MAX(P$308,P$352) -> 0 | H177: =IF(AND(HoursPerDay>=8,DaysPerWeek>=5),MAX(P$395,P$438),"N/A") -> 0 | I177: Pass | J177: Pass | K177: Pass
C178: Skin | F178: =MAX(N$223,N$265) -> 0 | G178: =MAX(Q$308,Q$352) -> 0 | H178: =IF(AND(HoursPerDay>=8,DaysPerWeek>=5),MAX(Q$395,Q$438),"N/A") -> 0 | I178: Pass | J178: Pass | K178: Pass
K182: A/N: | L182: =$D$8 -> 622795 (96, 97) | M182: Application deemed complete date: | Q182: =$N$8 -> 2020-07-14
C183: 6a. Hazard Index Acute - Resident
C184: HIA = [Q(lb/hr) * (X/Q)max resident * MWAF] / Acute REL
H185: HIA - Residential | U185: Lookup table 11.2- Acute Target Organ Toxicity
C186: Compound | E186: AL | F186: CV | G186: DEV | H186: EYE | I186: HEM | J186: IMM | K186: NS | L186: REP | M186: RESP | N186: SKIN | U186: AL | V186: CV | W186: DEV | X186: EYE | Y186: HEM | Z186: IMM | AA186: NS | AB186: REP | AC186: RESP | AD186: SKIN
C187: =C36 -> Vinyl Chloride (Chloroethylene) | E187: =IF(ISERR(U187),"", IF($N36=0,"",IF($T187="","",IF(OR(U187<>"x",U187=""),"",($F76*$E$24*$O36)/$N36)))) ->  | H187: 0 | K187: =IF(ISERR(AA187),"", IF($N36=0,"",IF($T187="","",IF(OR(AA187<>"x",AA187=""),"",($F76*$E$24*$O36)/$N36)))) -> 0 | M187: 0 | T187: =IF($B36="","",$B36) -> V4 | U187: =IFERROR(IF($T187="","",VLOOKUP($T187,TOAcute_data,4,FALSE)),"") -> 0 | V187: =IFERROR(IF($T187="","",VLOOKUP($T187,TOAcute_data,5,FALSE)),"") -> 0 | W187: =IFERROR(IF($T187="","",VLOOKUP($T187,TOAcute_data,6,FALSE)),"") -> 0 | X187: =IFERROR(IF($T187="","",VLOOKUP($T187,TOAcute_data,7,FALSE)),"") -> X | Y187: =IFERROR(IF($T187="","",VLOOKUP($T187,TOAcute_data,8,FALSE)),"") -> 0 | Z187: =IFERROR(IF($T187="","",VLOOKUP($T187,TOAcute_data,9,FALSE)),"") -> 0 | AA187: =IFERROR(IF($T187="","",VLOOKUP($T187,TOAcute_data,10,FALSE)),"") -> X | AB187: =IFERROR(IF($T187="","",VLOOKUP($T187,TOAcute_data,11,FALSE)),"") -> 0 | AC187: =IFERROR(IF($T187="","",VLOOKUP($T187,TOAcute_data,12,FALSE)),"") -> X | AD187: =IFERROR(IF($T187="","",VLOOKUP($T187,TOAcute_data,13,FALSE)),"") -> 0
C188: Styrene | G188: 0 | H188: 0 | L188: 0 | M188: 0 | T188: S6 | U188: 0 | V188: 0 | W188: X | X188: X | Y188: 0 | Z188: 0 | AA188: 0 | AB188: X | AC188: X | AD188: 0
C189: 1,3-Butadiene | G189: 0 | L189: 0 | T189: B12 | U189: 0 | V189: 0 | W189: X | X189: 0 | Y189: 0 | Z189: 0 | AA189: 0 | AB189: X | AC189: 0 | AD189: 0
E203: =IF(ISERR(U203),"", IF($N52=0,"",IF($T203="","",IF(OR(U203<>"x",U203=""),"",($F92*$E$24*$O52)/$N52)))) -> 
E219: =IF(ISERR(U219),"", IF($N68=0,"",IF($T219="","",IF(OR(U219<>"x",U219=""),"",($F108*$E$24*$O68)/$N68)))) -> 
C222: =C71 -> 
C223: Total | E223: =SUM(E187:E222) -> 0 | F223: =SUM(F187:F222) -> 0 | G223: 0 | H223: 0 | I223: 0 | J223: 0 | K223: 0 | L223: 0 | M223: 0 | N223: 0
C225: 6a. Hazard Index Acute - Worker | K225: A/N: | L225: =$D$8 -> 622795 (96, 97) | M225: Application deemed complete date: | Q225: =$N$8 -> 2020-07-14
C226: HIA = [Q(lb/hr) * (X/Q)max Worker * MWAF] / Acute REL
H227: HIA - Commercial | U227: Lookup table 11.2- Acute Target Organ Toxicity (Same as table above)
C228: Compound | E228: AL | F228: CV | G228: DEV | H228: EYE | I228: HEM | J228: IMM | K228: NS | L228: REP | M228: RESP | N228: SKIN | U228: AL | V228: CV | W228: DEV | X228: EYE | Y228: HEM | Z228: IMM | AA228: NS | AB228: REP | AC228: RESP | AD228: SKIN
C229: =C36 -> Vinyl Chloride (Chloroethylene) | E229: =IF(ISERR(U229),"",IF($N36=0,"",IF($T229="","",IF(OR(U229<>"x",U229=""),"",($F76*$E$26 *$O36)/$N36)))) ->  | F229: =IF(ISERR(V229),"",IF($N36=0,"",IF($T229="","",IF(OR(V229<>"x",V229=""),"",($F76*$E$26 *$O36)/$N36)))) ->  | G229: =IF(ISERR(W229),"",IF($N36=0,"",IF($T229="","",IF(OR(W229<>"x",W229=""),"",($F76*$E$26 *$O36)/$N36)))) ->  | H229: =IF(ISERR(X229),"",IF($N36=0,"",IF($T229="","",IF(OR(X229<>"x",X229=""),"",($F76*$E$26 *$O36)/$N36)))) -> 0 | I229: =IF(ISERR(Y229),"",IF($N36=0,"",IF($T229="","",IF(OR(Y229<>"x",Y229=""),"",($F76*$E$26 *$O36)/$N36)))) ->  | J229: =IF(ISERR(Z229),"",IF($N36=0,"",IF($T229="","",IF(OR(Z229<>"x",Z229=""),"",($F76*$E$26 *$O36)/$N36)))) ->  | K229: =IF(ISERR(AA229),"",IF($N36=0,"",IF($T229="","",IF(OR(AA229<>"x",AA229=""),"",($F76*$E$26 *$O36)/$N36)))) -> 0 | L229: =IF(ISERR(AB229),"",IF($N36=0,"",IF($T229="","",IF(OR(AB229<>"x",AB229=""),"",($F76*$E$26 *$O36)/$N36)))) ->  | M229: =IF(ISERR(AC229),"",IF($N36=0,"",IF($T229="","",IF(OR(AC229<>"x",AC229=""),"",($F76*$E$26 *$O36)/$N36)))) -> 0 | N229: =IF(ISERR(AD229),"",IF($N36=0,"",IF($T229="","",IF(OR(AD229<>"x",AD229=""),"",($F76*$E$26 *$O36)/$N36)))) ->  | T229: =T187 -> V4 | U229: =U187 -> 0 | V229: =V187 -> 0 | W229: 0 | X229: X | Y229: 0 | Z229: 0 | AA229: X | AB229: 0 | AC229: X | AD229: 0
C230: Styrene | G230: 0 | H230: 0 | L230: 0 | M230: 0 | T230: =T188 -> S6 | U230: 0 | V230: 0 | W230: X | X230: X | Y230: 0 | Z230: 0 | AA230: 0 | AB230: X | AC230: X | AD230: 0
C231: 1,3-Butadiene | G231: 0 | L231: 0 | T231: B12 | U231: 0 | V231: 0 | W231: X | X231: 0 | Y231: 0 | Z231: 0 | AA231: 0 | AB231: X | AC231: 0 | AD231: 0
T246: =T204 -> 
T262: =T220 -> 
C265: Total | E265: =SUM(E229:E264) -> 0 | F265: =SUM(F229:F264) -> 0 | G265: 0 | H265: 0 | I265: 0 | J265: 0 | K265: 0 | L265: 0 | M265: 0 | N265: 0
K267: A/N: | L267: =$D$8 -> 622795 (96, 97) | M267: Application deemed complete date: | Q267: =$N$8 -> 2020-07-14
C268: 6b. Hazard Index Chronic - Resident
C269: HIC = [Q(ton/yr) * (X/Q) Resident * MP Chronic Resident * MWAF] / Chronic REL
I270: HIC - Residential | U270: Look up table 11.1 - Chronic Target Organ
C271: Compound | E271: AL | F271: BN | G271: CV | H271: DEV | I271: END | J271: EYE | K271: HEM | L271: IMM | M271: KID | N271: NS | O271: REP | P271: RESP | Q271: SKIN | U271: AL | V271: BN | W271: CV | X271: DEV | Y271: END | Z271: EYE | AA271: HEM | AB271: IMM | AC271: KID | AD271: NS | AE271: REP | AF271: RESP | AG271: SKIN
C272: =C36 -> Vinyl Chloride (Chloroethylene) | E272: =IF(ISERR(U272),"",IF($L36=0,"",IF($T272="","",IF(OR(U272<>"x",U272=""),"",($H76*$D$24*$J36*$O36)/$L36)))) ->  | T272: =IF($B36="","",$B36) -> V4 | U272: =IFERROR(IF($T272="","",VLOOKUP($T272,TOChronic_data,4,FALSE)),"") ->  | V272: =IFERROR(IF($T272="","",VLOOKUP($T272,TOChronic_data,5,FALSE)),"") ->  | W272: =IFERROR(IF($T272="","",VLOOKUP($T272,TOChronic_data,6,FALSE)),"") ->  | X272: =IFERROR(IF($T272="","",VLOOKUP($T272,TOChronic_data,7,FALSE)),"") ->  | Y272: =IFERROR(IF($T272="","",VLOOKUP($T272,TOChronic_data,8,FALSE)),"") ->  | Z272: =IFERROR(IF($T272="","",VLOOKUP($T272,TOChronic_data,9,FALSE)),"") ->  | AA272: =IFERROR(IF($T272="","",VLOOKUP($T272,TOChronic_data,10,FALSE)),"") ->  | AB272: =IFERROR(IF($T272="","",VLOOKUP($T272,TOChronic_data,11,FALSE)),"") ->  | AC272: =IFERROR(IF($T272="","",VLOOKUP($T272,TOChronic_data,12,FALSE)),"") ->  | AD272: =IFERROR(IF($T272="","",VLOOKUP($T272,TOChronic_data,13,FALSE)),"") ->  | AE272: =IFERROR(IF($T272="","",VLOOKUP($T272,TOChronic_data,14,FALSE)),"") ->  | AF272: =IFERROR(IF($T272="","",VLOOKUP($T272,TOChronic_data,15,FALSE)),"") ->  | AG272: =IFERROR(IF($T272="","",VLOOKUP($T272,TOChronic_data,16,FALSE)),"") -> 
C273: Styrene | N273: 2.56256e-09 | T273: S6 | U273: 0 | V273: 0 | W273: 0 | X273: 0 | Y273: 0 | Z273: 0 | AA273: 0 | AB273: 0 | AC273: 0 | AD273: X | AE273: 0 | AF273: 0 | AG273: 0
C274: 1,3-Butadiene | H274: 6.5974272e-07 | O274: 6.5974272e-07 | T274: B12 | U274: 0 | V274: 0 | W274: 0 | X274: X | Y274: 0 | Z274: 0 | AA274: 0 | AB274: 0 | AC274: 0 | AD274: 0 | AE274: X | AF274: 0 | AG274: 0
E288: =IF(ISERR(U288),"",IF($L52=0,"",IF($T288="","",IF(OR(U288<>"x",U288=""),"",($H92*$D$24*$J52*$O52)/$L52)))) -> 
E304: =IF(ISERR(U304),"",IF($L68=0,"",IF($T304="","",IF(OR(U304<>"x",U304=""),"",($H108*$D$24*$J68*$O68)/$L68)))) -> 
C308: Total | E308: =SUM(E272:E307) -> 0 | F308: =SUM(F272:F307) -> 0 | G308: 0 | H308: 6.5974272e-07 | I308: 0 | J308: 0 | K308: 0 | L308: 0 | M308: 0 | N308: 2.56256e-09 | O308: 6.5974272e-07 | P308: 0 | Q308: 0
U309: =IF($T309="","",VLOOKUP($T309,table10A,MATCH(E$271,head10A,0),FALSE)) ->  | V309: =IF($T309="","",VLOOKUP($T309,table10A,MATCH(F$271,head10A,0),FALSE)) ->  | W309: =IF($T309="","",VLOOKUP($T309,table10A,MATCH(G$271,head10A,0),FALSE)) ->  | X309: =IF($T309="","",VLOOKUP($T309,table10A,MATCH(H$271,head10A,0),FALSE)) ->  | Y309: =IF($T309="","",VLOOKUP($T309,table10A,MATCH(I$271,head10A,0),FALSE)) ->  | Z309: =IF($T309="","",VLOOKUP($T309,table10A,MATCH(J$271,head10A,0),FALSE)) ->  | AA309: =IF($T309="","",VLOOKUP($T309,table10A,MATCH(K$271,head10A,0),FALSE)) ->  | AB309: =IF($T309="","",VLOOKUP($T309,table10A,MATCH(L$271,head10A,0),FALSE)) ->  | AC309: =IF($T309="","",VLOOKUP($T309,table10A,MATCH(M$271,head10A,0),FALSE)) ->  | AD309: =IF($T309="","",VLOOKUP($T309,table10A,MATCH(R$271,head10A,0),FALSE)) -> 
K311: A/N: | L311: =$D$8 -> 622795 (96, 97) | M311: Application deemed complete date: | Q311: =$N$8 -> 2020-07-14
C312: 6b. Hazard Index Chronic - Worker
... 33 more rows

Sheet Boiler Calc (hidden)
B1: Look up for Boiler's X/Q
F3: Interpolation for X/Q from Nearest Distances | L3: Interpolation New Distance for Cancer Burden Calculation
B4: Station | C4: =Emissions!$E$22 -> Van Nuys Airport | F4: MMBTU | G4: =BoilerRating -> 500 | I4: Row: | J4: =S4 -> 7 | Q4: MMBTU | R4: ROW | S4: =MIN(S5:S12) -> 7
B5: Operation Hours (hr/day) | C5: =HoursPerDay -> 24 | G5: Residential | J5: Industrial | M5: X/Q for one-in-a-million | P5: (0,5) | Q5: 5 | R5: 1 | S5: =IF($G$4<=Q5,R5,"No") -> No
B6: X/Q (residential) | C6: =$G$8 -> 0.04 | F6: near | G6: actual | H6: far | I6: near | J6: actual | K6: far | L6: near | M6: actual | N6: far | P6: (5,10] | Q6: 10 | R6: 2 | S6: No
B7: X/Q (industrial) | C7: =$J$8 -> 0.0335 | E7: Distance (m) | F7: =IF(G7<25,25,HLOOKUP(G7,table2_b,1,TRUE)) -> 100 | G7: =Emissions!E20 -> 157 | H7: =IF(G7<25,25,IF(G7>=1000,1000,IF(G7=HLOOKUP(G7,table2_b,1,TRUE),G7,INDEX(table2_b,1,MATCH(G7,C16:J16,1)+1)))) -> 200 | I7: =IF(J7<25,25,HLOOKUP(J7,table2_b,1,TRUE)) -> 200 | J7: =Emissions!E21 -> 265 | K7: =IF(J7<25,25,IF(J7>=1000,1000,IF(J7=HLOOKUP(J7,table2_b,1,TRUE),J7,INDEX(table2_b,1,MATCH(J7,C16:J16,1)+1)))) -> 300 | L7: =IF(HoursPerDay<=12,VLOOKUP($J$4,$A$17:$S$23,17,FALSE),VLOOKUP($J$4,$A$28:$S$34,17,FALSE)) -> 1000 | M7: =IF(L7="","",IF(N7=L7,L7,L7-(L8-M8)/(L8-N8)*(L7-N7))) -> 1000 | N7: =IF(HoursPerDay<=12,VLOOKUP($J$4,$A$17:$S$23,19,FALSE),VLOOKUP($J$4,$A$28:$S$34,19,FALSE)) -> 1000 | P7: (10,20] | Q7: 20 | R7: 3 | S7: No
B8: X/Q max acute (residential) | C8: =G9 -> 2.7324 | E8: X/Q | F8: =IF(C5<=12,HLOOKUP(F7,table2_b,$J$4+1,TRUE),HLOOKUP(F7,table3_b,$J$4+1,TRUE)) -> 0.04 | G8: =IF(F8=H8,F8,F8-(((G7-F7)/(H7-F7))*(F8-H8))) -> 0.04 | H8: =IF(C5<=12,HLOOKUP(H7,table2_b,$J$4+1,TRUE),HLOOKUP(H7,table3_b,$J$4+1,TRUE)) -> 0.04 | I8: =IF(C5<=12,HLOOKUP(I7,table2_b,$J$4+1,TRUE),HLOOKUP(I7,table3_b,$J$4+1,TRUE)) -> 0.04 | J8: =IF(I8=K8,I8,I8-(((J7-I7)/(K7-I7))*(I8-K8))) -> 0.0335 | K8: =IF(C5<=12,HLOOKUP(K7,table2_b,$J$4+1,TRUE),HLOOKUP(K7,table3_b,$J$4+1,TRUE)) -> 0.03 | L8: =IF(HoursPerDay<=12,VLOOKUP($J$4,$A$17:$S$23,16,FALSE),VLOOKUP($J$4,$A$28:$S$34,16,FALSE)) -> 0.01 | M8: ='Tier 2 Report'!N152 -> 0 | N8: =IF(HoursPerDay<=12,VLOOKUP($J$4,$A$17:$S$23,18,FALSE),VLOOKUP($J$4,$A$28:$S$34,18,FALSE)) -> 0 | P8: (20,30] | Q8: 30 | R8: 4 | S8: No
B9: X/Q max acute (industrial) | C9: =J9 -> 2.0565 | E9: X/Q max Acute | F9: =HLOOKUP(F7,table6_b,$J$4+1,TRUE) -> 3.12 | G9: =IF(F9=H9,F9,F9-(((G7-F7)/(H7-F7))*(F9-H9))) -> 2.7324 | H9: =HLOOKUP(H7,table6_b,$J$4+1,TRUE) -> 2.44 | I9: =HLOOKUP(I7,table6_b,$J$4+1,TRUE) -> 2.44 | J9: =IF(I9=K9,I9,I9-(((J7-I7)/(K7-I7))*(I9-K9))) -> 2.0565 | K9: =HLOOKUP(K7,table6_b,$J$4+1,TRUE) -> 1.85 | P9: (30,50] | Q9: 50 | R9: 5 | S9: No
P10: (50,150] | Q10: 150 | R10: 6 | S10: No
P11: (150,200] | Q11: 200 | R11: 7 | S11: No
P12: >200 | Q12: 9999 | R12: 7 | S12: 7
B14: =MID(TableIndex!I5,1,8) & " - Point Source, operating 12 hrs/day or less (µg/m³)/(tons/yr)" -> Table 8A - Point Source, operating 12 hrs/day or less (µg/m³)/(tons/yr)
B15: Rating (MMBTU/hr) | E15: Downwind Distance (meters)
A16: Row | C16: 25 | D16: 50 | E16: 75 | F16: 100 | G16: 200 | H16: 300 | I16: 500 | J16: 1000 | P16: Nearest X/Q - high | Q16: nearest dist - low | R16: Nearest X/Q- low | S16: nearest dist - high | U16: Column | V16: Dist
A17: 1 | B17: 2 < Rating ≤ 5 | C17: =VLOOKUP($C$4,BoilerLessThan12,2,FALSE) -> 14.28 | D17: =VLOOKUP($C$4,BoilerLessThan12,3,FALSE) -> 4.29 | E17: =VLOOKUP($C$4,BoilerLessThan12,4,FALSE) -> 2.66 | F17: =VLOOKUP($C$4,BoilerLessThan12,5,FALSE) -> 1.71 | G17: =VLOOKUP($C$4,BoilerLessThan12,6,FALSE) -> 0.43 | H17: =VLOOKUP($C$4,BoilerLessThan12,7,FALSE) -> 0.17 | I17: =VLOOKUP($C$4,BoilerLessThan12,8,FALSE) -> 0.06 | J17: =VLOOKUP($C$4,BoilerLessThan12,9,FALSE) -> 0.01 | P17: =IF(AND(MAX(C17:J17),MAX(C16:J16)),INDEX($C17:$J17,1,MATCH($M$8,$C17:$J17,-1))) -> 0.01 | Q17: =VLOOKUP(MATCH(P17,$C17:$J17,0),$U$17:$V$24,2,FALSE) -> 1000 | R17: =INDEX($C17:$K17,1,1+MATCH($M$8,$C17:$J17,-1)) -> 0 | S17: =IF(R17=0,Q17,VLOOKUP(MATCH(R17,$C17:$J17,0),$U$17:$V$24,2,FALSE)) -> 1000 | U17: 1 | V17: 25
A18: 2 | B18: 5 < Rating ≤ 10 | C18: =VLOOKUP($C$4,BoilerLessThan12,11,FALSE) -> 9.66 | D18: =VLOOKUP($C$4,BoilerLessThan12,12,FALSE) -> 3.08 | E18: =VLOOKUP($C$4,BoilerLessThan12,13,FALSE) -> 2.04 | F18: =VLOOKUP($C$4,BoilerLessThan12,14,FALSE) -> 1.42 | G18: =VLOOKUP($C$4,BoilerLessThan12,15,FALSE) -> 0.39 | H18: =VLOOKUP($C$4,BoilerLessThan12,16,FALSE) -> 0.16 | I18: =VLOOKUP($C$4,BoilerLessThan12,17,FALSE) -> 0.06 | J18: =VLOOKUP($C$4,BoilerLessThan12,18,FALSE) -> 0.01 | P18: =INDEX($C18:$J18,1,MATCH($M$8,$C18:$J18,-1)) -> 0.01 | Q18: =VLOOKUP(MATCH(P18,$C18:$J18,0),$U$17:$V$24,2,FALSE) -> 1000 | R18: =INDEX($C18:$K18,1,1+MATCH($M$8,$C18:$J18,-1)) -> 0 | S18: =IF(R18=0,Q18,VLOOKUP(MATCH(R18,$C18:$K18,0),$U$17:$V$24,2,FALSE)) -> 1000 | U18: 2 | V18: 50
A19: 3 | B19: 10 < Rating ≤ 20 | C19: =VLOOKUP($C$4,BoilerLessThan12,20,FALSE) -> 7.43 | D19: =VLOOKUP($C$4,BoilerLessThan12,21,FALSE) -> 2.47 | E19: =VLOOKUP($C$4,BoilerLessThan12,22,FALSE) -> 1.66 | F19: =VLOOKUP($C$4,BoilerLessThan12,23,FALSE) -> 1.18 | G19: =VLOOKUP($C$4,BoilerLessThan12,24,FALSE) -> 0.36 | H19: =VLOOKUP($C$4,BoilerLessThan12,25,FALSE) -> 0.15 | I19: =VLOOKUP($C$4,BoilerLessThan12,26,FALSE) -> 0.06 | J19: =VLOOKUP($C$4,BoilerLessThan12,27,FALSE) -> 0.01 | P19: =INDEX($C19:$J19,1,MATCH($M$8,$C19:$J19,-1)) -> 0.01 | Q19: =VLOOKUP(MATCH(P19,$C19:$J19,0),$U$17:$V$24,2,FALSE) -> 1000 | R19: =INDEX($C19:$K19,1,1+MATCH($M$8,$C19:$K19,-1)) -> 0 | S19: =IF(R19=0,Q19,VLOOKUP(MATCH(R19,$C19:$J19,0),$U$17:$V$24,2,FALSE)) -> 1000 | U19: 3 | V19: 75
A20: 4 | B20: 20 < Rating ≤ 30 | C20: =VLOOKUP($C$4,BoilerLessThan12,29,FALSE) -> 4.27 | D20: =VLOOKUP($C$4,BoilerLessThan12,30,FALSE) -> 1.55 | E20: =VLOOKUP($C$4,BoilerLessThan12,31,FALSE) -> 1.16 | F20: =VLOOKUP($C$4,BoilerLessThan12,32,FALSE) -> 0.86 | G20: =VLOOKUP($C$4,BoilerLessThan12,33,FALSE) -> 0.31 | H20: =VLOOKUP($C$4,BoilerLessThan12,34,FALSE) -> 0.14 | I20: =VLOOKUP($C$4,BoilerLessThan12,35,FALSE) -> 0.05 | J20: =VLOOKUP($C$4,BoilerLessThan12,36,FALSE) -> 0.01 | P20: =INDEX($C20:$J20,1,MATCH($M$8,$C20:$J20,-1)) -> 0.01 | Q20: =VLOOKUP(MATCH(P20,$C20:$J20,0),$U$17:$V$24,2,FALSE) -> 1000 | R20: =INDEX($C20:$K20,1,1+MATCH($M$8,$C20:$K20,-1)) -> 0 | S20: =IF(R20=0,Q20,VLOOKUP(MATCH(R20,$C20:$J20,0),$U$17:$V$24,2,FALSE)) -> 1000 | U20: 4 | V20: 100
A21: 5 | B21: 30 < Rating ≤ 50 | C21: =VLOOKUP($C$4,BoilerLessThan12,38,FALSE) -> 3.09 | D21: =VLOOKUP($C$4,BoilerLessThan12,39,FALSE) -> 1.15 | E21: =VLOOKUP($C$4,BoilerLessThan12,40,FALSE) -> 0.89 | F21: =VLOOKUP($C$4,BoilerLessThan12,41,FALSE) -> 0.69 | G21: =VLOOKUP($C$4,BoilerLessThan12,42,FALSE) -> 0.27 | H21: =VLOOKUP($C$4,BoilerLessThan12,43,FALSE) -> 0.13 | I21: =VLOOKUP($C$4,BoilerLessThan12,44,FALSE) -> 0.05 | J21: =VLOOKUP($C$4,BoilerLessThan12,45,FALSE) -> 0.01 | P21: =INDEX($C21:$J21,1,MATCH($M$8,$C21:$J21,-1)) -> 0.01 | Q21: =VLOOKUP(MATCH(P21,$C21:$J21,0),$U$17:$V$24,2,FALSE) -> 1000 | R21: =INDEX($C21:$K21,1,1+MATCH($M$8,$C21:$K21,-1)) -> 0 | S21: =IF(R21=0,Q21,VLOOKUP(MATCH(R21,$C21:$J21,0),$U$17:$V$24,2,FALSE)) -> 1000 | U21: 5 | V21: 200
A22: 6 | B22: 50 < Rating ≤ 150 | C22: =VLOOKUP($C$4,BoilerLessThan12,47,FALSE) -> 0.03 | D22: =VLOOKUP($C$4,BoilerLessThan12,48,FALSE) -> 0.08 | E22: =VLOOKUP($C$4,BoilerLessThan12,49,FALSE) -> 0.13 | F22: =VLOOKUP($C$4,BoilerLessThan12,50,FALSE) -> 0.16 | G22: =VLOOKUP($C$4,BoilerLessThan12,51,FALSE) -> 0.16 | H22: =VLOOKUP($C$4,BoilerLessThan12,52,FALSE) -> 0.1 | I22: =VLOOKUP($C$4,BoilerLessThan12,53,FALSE) -> 0.05 | J22: =VLOOKUP($C$4,BoilerLessThan12,54,FALSE) -> 0.01 | P22: =INDEX($F22:$J22,1,MATCH($M$8,$F22:$J22,-1)) -> 0.01 | Q22: =VLOOKUP(MATCH(P22,$F22:$J22,0)+3,$U$17:$V$24,2,FALSE) -> 1000 | R22: =INDEX($F22:$K22,1,1+MATCH($M$8,$F22:$K22,-1)) -> 0 | S22: =IF(R22=0,Q22,VLOOKUP(MATCH(R22,$F22:$J22,0)+3,$U$17:$V$24,2,FALSE)) -> 1000 | U22: 6 | V22: 300
A23: 7 | B23: 150 < Rating ≤ 200 | C23: =VLOOKUP($C$4,BoilerLessThan12,56,FALSE) -> 0.01 | D23: =VLOOKUP($C$4,BoilerLessThan12,57,FALSE) -> 0.04 | E23: =VLOOKUP($C$4,BoilerLessThan12,58,FALSE) -> 0.07 | F23: =VLOOKUP($C$4,BoilerLessThan12,59,FALSE) -> 0.08 | G23: =VLOOKUP($C$4,BoilerLessThan12,60,FALSE) -> 0.1 | H23: =VLOOKUP($C$4,BoilerLessThan12,61,FALSE) -> 0.08 | I23: =VLOOKUP($C$4,BoilerLessThan12,62,FALSE) -> 0.04 | J23: =VLOOKUP($C$4,BoilerLessThan12,63,FALSE) -> 0.01 | P23: =INDEX($F23:$J23,1,MATCH($M$8,$F23:$J23,-1)) -> 0.01 | Q23: =VLOOKUP(MATCH(P23,$F23:$J23,0)+3,$U$17:$V$24,2,FALSE) -> 1000 | R23: =INDEX($F23:$K23,1,1+MATCH($M$8,$F23:$K23,-1)) -> 0 | S23: =IF(R23=0,Q23,VLOOKUP(MATCH(R23,$F23:$J23,0)+3,$U$17:$V$24,2,FALSE)) -> 1000 | U23: 7 | V23: 500
U24: 8 | V24: 1000
B25: =MID(TableIndex!I5,1,7)&RIGHT(TableIndex!I5,1) & " - Point Source, operating more than 12 hrs/day (µg/m³)/(tons/yr)" -> Table 8B - Point Source, operating more than 12 hrs/day (µg/m³)/(tons/yr)
B26: Rating (MMBTU/hr) | C26: Downwind Distance (meters)
A27: Row | C27: 25 | D27: 50 | E27: 75 | F27: 100 | G27: 200 | H27: 300 | I27: 500 | J27: 1000 | P27: Nearest X/Q - high | Q27: nearest dist - low | R27: Nearest X/Q- low | S27: nearest dist - high
A28: 1 | B28: 2 < Rating ≤ 5 | C28: =VLOOKUP($C$4,BoilerMoreThan12,2,FALSE) -> 9.82 | D28: =VLOOKUP($C$4,BoilerMoreThan12,3,FALSE) -> 2.82 | E28: =VLOOKUP($C$4,BoilerMoreThan12,4,FALSE) -> 1.84 | F28: =VLOOKUP($C$4,BoilerMoreThan12,5,FALSE) -> 1.32 | G28: =VLOOKUP($C$4,BoilerMoreThan12,6,FALSE) -> 0.52 | H28: =VLOOKUP($C$4,BoilerMoreThan12,7,FALSE) -> 0.28 | I28: =VLOOKUP($C$4,BoilerMoreThan12,8,FALSE) -> 0.14 | J28: =VLOOKUP($C$4,BoilerMoreThan12,9,FALSE) -> 0.06 | P28: =INDEX($C28:$J28,1,MATCH($M$8,$C28:$J28,-1)) -> 0.06 | Q28: =VLOOKUP(MATCH(P28,$C28:$J28,0),$U$17:$V$24,2,FALSE) -> 1000 | R28: =INDEX($C28:$K28,1,1+MATCH($M$8,$C28:$K28,-1)) -> 0 | S28: =IF(R28=0,Q28,VLOOKUP(MATCH(R28,$C28:$J28,0),$U$17:$V$24,2,FALSE)) -> 1000
A29: 2 | B29: 5 < Rating ≤ 10 | C29: =VLOOKUP($C$4,BoilerMoreThan12,11,FALSE) -> 6.11 | D29: =VLOOKUP($C$4,BoilerMoreThan12,12,FALSE) -> 1.78 | E29: =VLOOKUP($C$4,BoilerMoreThan12,13,FALSE) -> 1.13 | F29: =VLOOKUP($C$4,BoilerMoreThan12,14,FALSE) -> 0.83 | G29: =VLOOKUP($C$4,BoilerMoreThan12,15,FALSE) -> 0.28 | H29: =VLOOKUP($C$4,BoilerMoreThan12,16,FALSE) -> 0.15 | I29: =VLOOKUP($C$4,BoilerMoreThan12,17,FALSE) -> 0.09 | J29: =VLOOKUP($C$4,BoilerMoreThan12,18,FALSE) -> 0.05 | P29: =INDEX($C29:$J29,1,MATCH($M$8,$C29:$J29,-1)) -> 0.05 | Q29: =VLOOKUP(MATCH(P29,$C29:$J29,0),$U$17:$V$24,2,FALSE) -> 1000 | R29: =INDEX($C29:$K29,1,1+MATCH($M$8,$C29:$K29,-1)) -> 0 | S29: =IF(R29=0,Q29,VLOOKUP(MATCH(R29,$C29:$J29,0),$U$17:$V$24,2,FALSE)) -> 1000
A30: 3 | B30: 10 < Rating ≤ 20 | C30: =VLOOKUP($C$4,BoilerMoreThan12,20,FALSE) -> 4.45 | D30: =VLOOKUP($C$4,BoilerMoreThan12,21,FALSE) -> 1.34 | E30: =VLOOKUP($C$4,BoilerMoreThan12,22,FALSE) -> 0.85 | F30: =VLOOKUP($C$4,BoilerMoreThan12,23,FALSE) -> 0.61 | G30: =VLOOKUP($C$4,BoilerMoreThan12,24,FALSE) -> 0.21 | H30: =VLOOKUP($C$4,BoilerMoreThan12,25,FALSE) -> 0.1 | I30: =VLOOKUP($C$4,BoilerMoreThan12,26,FALSE) -> 0.06 | J30: =VLOOKUP($C$4,BoilerMoreThan12,27,FALSE) -> 0.04 | P30: =INDEX($C30:$J30,1,MATCH($M$8,$C30:$J30,-1)) -> 0.04 | Q30: =VLOOKUP(MATCH(P30,$C30:$J30,0),$U$17:$V$24,2,FALSE) -> 1000 | R30: =INDEX($C30:$K30,1,1+MATCH($M$8,$C30:$K30,-1)) -> 0 | S30: =IF(R30=0,Q30,VLOOKUP(MATCH(R30,$C30:$J30,0),$U$17:$V$24,2,FALSE)) -> 1000
A31: 4 | B31: 20 < Rating ≤ 30 | C31: =VLOOKUP($C$4,BoilerMoreThan12,29,FALSE) -> 2.36 | D31: =VLOOKUP($C$4,BoilerMoreThan12,30,FALSE) -> 0.79 | E31: =VLOOKUP($C$4,BoilerMoreThan12,31,FALSE) -> 0.55 | F31: =VLOOKUP($C$4,BoilerMoreThan12,32,FALSE) -> 0.4 | G31: =VLOOKUP($C$4,BoilerMoreThan12,33,FALSE) -> 0.15 | H31: =VLOOKUP($C$4,BoilerMoreThan12,34,FALSE) -> 0.07 | I31: =VLOOKUP($C$4,BoilerMoreThan12,35,FALSE) -> 0.04 | J31: =VLOOKUP($C$4,BoilerMoreThan12,36,FALSE) -> 0.03 | P31: =INDEX($C31:$J31,1,MATCH($M$8,$C31:$J31,-1)) -> 0.03 | Q31: =VLOOKUP(MATCH(P31,$C31:$J31,0),$U$17:$V$24,2,FALSE) -> 1000 | R31: =INDEX($C31:$K31,1,1+MATCH($M$8,$C31:$K31,-1)) -> 0 | S31: =IF(R31=0,Q31,VLOOKUP(MATCH(R31,$C31:$J31,0),$U$17:$V$24,2,FALSE)) -> 1000
A32: 5 | B32: 30 < Rating ≤ 50 | C32: =VLOOKUP($C$4,BoilerMoreThan12,38,FALSE) -> 1.6 | D32: =VLOOKUP($C$4,BoilerMoreThan12,39,FALSE) -> 0.55 | E32: =VLOOKUP($C$4,BoilerMoreThan12,40,FALSE) -> 0.41 | F32: =VLOOKUP($C$4,BoilerMoreThan12,41,FALSE) -> 0.31 | G32: =VLOOKUP($C$4,BoilerMoreThan12,42,FALSE) -> 0.12 | H32: =VLOOKUP($C$4,BoilerMoreThan12,43,FALSE) -> 0.06 | I32: =VLOOKUP($C$4,BoilerMoreThan12,44,FALSE) -> 0.03 | J32: =VLOOKUP($C$4,BoilerMoreThan12,45,FALSE) -> 0.02 | P32: =INDEX($C32:$J32,1,MATCH($M$8,$C32:$J32,-1)) -> 0.02 | Q32: =VLOOKUP(MATCH(P32,$C32:$J32,0),$U$17:$V$24,2,FALSE) -> 1000 | R32: =INDEX($C32:$K32,1,1+MATCH($M$8,$C32:$K32,-1)) -> 0 | S32: =IF(R32=0,Q32,VLOOKUP(MATCH(R32,$C32:$J32,0),$U$17:$V$24,2,FALSE)) -> 1000
A33: 6 | B33: 50 < Rating ≤ 150 | C33: =VLOOKUP($C$4,BoilerMoreThan12,47,FALSE) -> 0.01 | D33: =VLOOKUP($C$4,BoilerMoreThan12,48,FALSE) -> 0.04 | E33: =VLOOKUP($C$4,BoilerMoreThan12,49,FALSE) -> 0.06 | F33: =VLOOKUP($C$4,BoilerMoreThan12,50,FALSE) -> 0.07 | G33: =VLOOKUP($C$4,BoilerMoreThan12,51,FALSE) -> 0.06 | H33: =VLOOKUP($C$4,BoilerMoreThan12,52,FALSE) -> 0.04 | I33: =VLOOKUP($C$4,BoilerMoreThan12,53,FALSE) -> 0.02 | J33: =VLOOKUP($C$4,BoilerMoreThan12,54,FALSE) -> 0.01 | P33: =INDEX($F33:$J33,1,MATCH($M$8,$F33:$J33,-1)) -> 0.01 | Q33: =VLOOKUP(MATCH(P33,$F33:$J33,0)+3,$U$17:$V$24,2,FALSE) -> 1000 | R33: =INDEX($F33:$K33,1,1+MATCH($M$8,$F33:$K33,-1)) -> 0 | S33: =IF(R33=0,Q33,VLOOKUP(MATCH(R33,$F33:$J33,0),$U$17:$V$24,2,FALSE)) -> 1000 | T33: =MATCH(MAX(C33:J33),C33:J33,0) -> 4
A34: 7 | B34: 150 < Rating ≤ 200 | C34: =VLOOKUP($C$4,BoilerMoreThan12,56,FALSE) -> 0.01 | D34: =VLOOKUP($C$4,BoilerMoreThan12,57,FALSE) -> 0.02 | E34: =VLOOKUP($C$4,BoilerMoreThan12,58,FALSE) -> 0.03 | F34: =VLOOKUP($C$4,BoilerMoreThan12,59,FALSE) -> 0.04 | G34: =VLOOKUP($C$4,BoilerMoreThan12,60,FALSE) -> 0.04 | H34: =VLOOKUP($C$4,BoilerMoreThan12,61,FALSE) -> 0.03 | I34: =VLOOKUP($C$4,BoilerMoreThan12,62,FALSE) -> 0.02 | J34: =VLOOKUP($C$4,BoilerMoreThan12,63,FALSE) -> 0.01 | P34: =INDEX($F34:$J34,1,MATCH($M$8,$F34:$J34,-1)) -> 0.01 | Q34: =VLOOKUP(MATCH(P34,$F34:$J34,0)+3,$U$17:$V$24,2,FALSE) -> 1000 | R34: =INDEX($F34:$K34,1,1+MATCH($M$8,$F34:$K34,-1)) -> 0 | S34: =IF(R34=0,Q34,VLOOKUP(MATCH(R34,$F34:$J34,0),$U$17:$V$24,2,FALSE)) -> 1000 | T34: =MATCH(MAX(C34:J34),C34:J34,0) -> 4
B38: Table 8.8 Dispersion Factors (X/Q) for Acute Hazard Index
B39: All Operating Conditions X/Q Values [(µg/m³)/(lbs/hr)]
B40: Rating (MMBTU/hr) | C40: Downwind Distance (meters)
A41: Row | C41: 25 | D41: 50 | E41: 75 | F41: 100 | G41: 200 | H41: 300 | I41: 500 | J41: 1000
A42: 1 | B42: 2 < Rating ≤ 5 | C42: 246.77 | D42: 77.1 | E42: 64.07 | F42: 55.15 | G42: 24.9 | H42: 11.86 | I42: 6.16 | J42: 2.89
A43: 2 | B43: 5 < Rating ≤ 10 | C43: 176.34 | D43: 52.72 | E43: 41.1 | F43: 35.06 | G43: 15.72 | H43: 6.62 | I43: 3.69 | J43: 2.43
A44: 3 | B44: 10 < Rating ≤ 20 | C44: 146.2 | D44: 45.42 | E44: 34.41 | F44: 28.2 | G44: 12.56 | H44: 5.8 | I44: 3.1 | J44: 1.91
A45: 4 | B45: 20 < Rating ≤ 30 | C45: 100.89 | D45: 31.91 | E45: 25.44 | F45: 20.43 | G45: 9.54 | H45: 4.48 | I45: 2.52 | J45: 1.25
A46: 5 | B46: 30 < Rating ≤ 50 | C46: 83.84 | D46: 27.57 | E46: 21.8 | F46: 17.4 | G46: 7.8 | H46: 3.93 | I46: 2.21 | J46: 1.1
A47: 6 | B47: 50 < Rating ≤ 150 | C47: 7.32 | D47: 3.85 | E47: 4.74 | F47: 4.48 | G47: 3.3 | H47: 2.5 | I47: 1.62 | J47: 0.82
A48: 7 | B48: 150 < Rating ≤ 200 | C48: 3.82 | D48: 2.5 | E48: 2.65 | F48: 3.12 | G48: 2.44 | H48: 1.85 | I48: 1.21 | J48: 0.61

Sheet Boiler data (hidden)
A1: Table 8 A - Dispersion Factor (X/Q) for Natural Gas Boiler Operating 12 Hours per Day or Less
A2: Units are in (ug/m3)/(tons/yr) | B2: Size = 2 to 5 MMBTU | K2: Size > 5 to 10 MMBTU | T2: Size > 10 to 20 MMBTU | AC2: Size > 20 to 30 MMBTU | AL2: Size > 30 to 50 MMBTU | AU2: Size > 50 to 150 MMBTU | BD2: Size > 150 to 200 MMBTU
B3: Downwind Distance (meters) | K3: Downwind Distance (meters) | T3: Downwind Distance (meters) | AC3: Downwind Distance (meters) | AL3: Downwind Distance (meters) | AU3: Downwind Distance (meters) | BD3: Downwind Distance (meters)
A4: Location | B4: 25 | C4: 50 | D4: 75 | E4: 100 | F4: 200 | G4: 300 | H4: 500 | I4: 1000 | K4: 25 | L4: 50 | M4: 75 | N4: 100 | O4: 200 | P4: 300 | Q4: 500 | R4: 1000 | T4: 25 | U4: 50 | V4: 75 | W4: 100 | X4: 200 | Y4: 300 | Z4: 500 | AA4: 1000 | AC4: 25 | AD4: 50 | AE4: 75 | AF4: 100 | AG4: 200 | AH4: 300 | AI4: 500 | AJ4: 1000 | AL4: 25 | AM4: 50 | AN4: 75 | AO4: 100 | AP4: 200 | AQ4: 300 | AR4: 500 | AS4: 1000 | AU4: 25 | AV4: 50 | AW4: 75 | AX4: 100 | AY4: 200 | AZ4: 300 | BA4: 500 | BB4: 1000 | BD4: 25 | BE4: 50 | BF4: 75 | BG4: 100 | BH4: 200 | BI4: 300 | BJ4: 500 | BK4: 1000
A5: Azusa | B5: 13.41 | C5: 4.34 | D5: 2.61 | E5: 1.59 | F5: 0.35 | G5: 0.13 | H5: 0.04 | I5: 0.01 | K5: 6.63 | L5: 2.71 | M5: 1.8 | N5: 1.22 | O5: 0.31 | P5: 0.12 | Q5: 0.04 | R5: 0.01 | T5: 3.82 | U5: 1.78 | V5: 1.26 | W5: 0.89 | X5: 0.27 | Y5: 0.11 | Z5: 0.04 | AA5: 0.01 | AC5: 1.18 | AD5: 0.71 | AE5: 0.62 | AF5: 0.49 | AG5: 0.2 | AH5: 0.1 | AI5: 0.04 | AJ5: 0.01 | AL5: 0.42 | AM5: 0.37 | AN5: 0.38 | AO5: 0.34 | AP5: 0.16 | AQ5: 0.09 | AR5: 0.04 | AS5: 0.01 | AU5: 0.06 | AV5: 0.15 | AW5: 0.19 | AX5: 0.2 | AY5: 0.13 | AZ5: 0.08 | BA5: 0.04 | BB5: 0.01 | BD5: 0.03 | BE5: 0.07 | BF5: 0.1 | BG5: 0.11 | BH5: 0.09 | BI5: 0.06 | BJ5: 0.03 | BK5: 0.01 | BL5: =MATCH(MAX(BD5:BK5),BD5:BK5,0) -> 4
A6: Banning | B6: 14.59 | C6: 4.49 | D6: 2.94 | E6: 1.95 | F6: 0.53 | G6: 0.21 | H6: 0.07 | I6: 0.02 | K6: 11.09 | L6: 3.56 | M6: 2.41 | N6: 1.71 | O6: 0.49 | P6: 0.2 | Q6: 0.07 | R6: 0.02 | T6: 8.79 | U6: 2.98 | V6: 2.05 | W6: 1.47 | X6: 0.46 | Y6: 0.19 | Z6: 0.07 | AA6: 0.02 | AC6: 4.92 | AD6: 1.8 | AE6: 1.43 | AF6: 1.08 | AG6: 0.39 | AH6: 0.17 | AI6: 0.07 | AJ6: 0.02 | AL6: 3.63 | AM6: 1.28 | AN6: 1.08 | AO6: 0.86 | AP6: 0.34 | AQ6: 0.16 | AR6: 0.06 | AS6: 0.02 | AU6: 0 | AV6: 0.02 | AW6: 0.09 | AX6: 0.17 | AY6: 0.2 | AZ6: 0.13 | BA6: 0.06 | BB6: 0.02 | BD6: 0 | BE6: 0.01 | BF6: 0.03 | BG6: 0.07 | BH6: 0.12 | BI6: 0.09 | BJ6: 0.05 | BK6: 0.01 | BL6: =MATCH(MAX(BD6:BK6),BD6:BK6,0) -> 5
A7: Central L.A. | B7: 14.45 | C7: 3.98 | D7: 2.34 | E7: 1.42 | F7: 0.33 | G7: 0.13 | H7: 0.04 | I7: 0.01 | K7: 8.73 | L7: 2.76 | M7: 1.76 | N7: 1.16 | O7: 0.3 | P7: 0.12 | Q7: 0.04 | R7: 0.01 | T7: 6.08 | U7: 2.11 | V7: 1.42 | W7: 0.96 | X7: 0.27 | Y7: 0.11 | Z7: 0.04 | AA7: 0.01 | AC7: 2.76 | AD7: 1.15 | AE7: 0.9 | AF7: 0.66 | AG7: 0.22 | AH7: 0.1 | AI7: 0.04 | AJ7: 0.01 | AL7: 1.41 | AM7: 0.67 | AN7: 0.59 | AO7: 0.47 | AP7: 0.19 | AQ7: 0.09 | AR7: 0.04 | AS7: 0.01 | AU7: 0.04 | AV7: 0.13 | AW7: 0.18 | AX7: 0.21 | AY7: 0.14 | AZ7: 0.08 | BA7: 0.03 | BB7: 0.01 | BD7: 0.02 | BE7: 0.06 | BF7: 0.09 | BG7: 0.1 | BH7: 0.09 | BI7: 0.06 | BJ7: 0.03 | BK7: 0.01 | BL7: 4
A8: Lake Elsinore | B8: 8.92 | C8: 3.16 | D8: 1.95 | E8: 1.21 | F8: 0.28 | G8: 0.11 | H8: 0.04 | I8: 0.01 | K8: 4.37 | L8: 1.79 | M8: 1.25 | N8: 0.88 | O8: 0.24 | P8: 0.1 | Q8: 0.04 | R8: 0.01 | T8: 2.77 | U8: 1.2 | V8: 0.89 | W8: 0.65 | X8: 0.21 | Y8: 0.09 | Z8: 0.03 | AA8: 0.01 | AC8: 1.33 | AD8: 0.68 | AE8: 0.57 | AF8: 0.44 | AG8: 0.17 | AH8: 0.08 | AI8: 0.03 | AJ8: 0.01 | AL8: 0.63 | AM8: 0.39 | AN8: 0.36 | AO8: 0.31 | AP8: 0.14 | AQ8: 0.07 | AR8: 0.03 | AS8: 0.01 | AU8: 0.08 | AV8: 0.14 | AW8: 0.16 | AX8: 0.16 | AY8: 0.1 | AZ8: 0.06 | BA8: 0.03 | BB8: 0.01 | BD8: 0.04 | BE8: 0.07 | BF8: 0.08 | BG8: 0.09 | BH8: 0.07 | BI8: 0.05 | BJ8: 0.02 | BK8: 0.01 | BL8: 4
A9: Fontana | B9: 16.21 | C9: 4.77 | D9: 2.95 | E9: 1.85 | F9: 0.44 | G9: 0.17 | H9: 0.06 | I9: 0.01 | K9: 9.95 | L9: 3.25 | M9: 2.17 | N9: 1.5 | O9: 0.39 | P9: 0.16 | Q9: 0.06 | R9: 0.01 | T9: 7 | U9: 2.4 | V9: 1.67 | W9: 1.18 | X9: 0.36 | Y9: 0.15 | Z9: 0.06 | AA9: 0.01 | AC9: 3.46 | AD9: 1.34 | AE9: 1.07 | AF9: 0.81 | AG9: 0.29 | AH9: 0.14 | AI9: 0.05 | AJ9: 0.01 | AL9: 2.04 | AM9: 0.83 | AN9: 0.73 | AO9: 0.59 | AP9: 0.25 | AQ9: 0.12 | AR9: 0.05 | AS9: 0.01 | AU9: 0.03 | AV9: 0.09 | AW9: 0.16 | AX9: 0.2 | AY9: 0.17 | AZ9: 0.1 | BA9: 0.05 | BB9: 0.01 | BD9: 0.01 | BE9: 0.04 | BF9: 0.07 | BG9: 0.1 | BH9: 0.11 | BI9: 0.08 | BJ9: 0.04 | BK9: 0.01 | BL9: 5
A10: Mission Viejo | B10: 10.73 | C10: 3.54 | D10: 2.17 | E10: 1.33 | F10: 0.3 | G10: 0.12 | H10: 0.04 | I10: 0.01 | K10: 5.65 | L10: 2.19 | M10: 1.48 | N10: 1.01 | O10: 0.26 | P10: 0.11 | Q10: 0.04 | R10: 0.01 | T10: 3.41 | U10: 1.44 | V10: 1.05 | W10: 0.75 | X10: 0.23 | Y10: 0.1 | Z10: 0.04 | AA10: 0.01 | AC10: 1.41 | AD10: 0.72 | AE10: 0.62 | AF10: 0.49 | AG10: 0.19 | AH10: 0.09 | AI10: 0.03 | AJ10: 0.01 | AL10: 0.59 | AM10: 0.38 | AN10: 0.38 | AO10: 0.33 | AP10: 0.15 | AQ10: 0.08 | AR10: 0.03 | AS10: 0.01 | AU10: 0.03 | AV10: 0.1 | AW10: 0.15 | AX10: 0.17 | AY10: 0.12 | AZ10: 0.07 | BA10: 0.03 | BB10: 0.01 | BD10: 0.01 | BE10: 0.05 | BF10: 0.07 | BG10: 0.09 | BH10: 0.08 | BI10: 0.05 | BJ10: 0.03 | BK10: 0.01 | BL10: 4
A11: Perris | B11: 9.87 | C11: 3.21 | D11: 2.04 | E11: 1.33 | F11: 0.35 | G11: 0.14 | H11: 0.05 | I11: 0.01 | K11: 6.64 | L11: 2.24 | M11: 1.52 | N11: 1.07 | O11: 0.31 | P11: 0.13 | Q11: 0.05 | R11: 0.01 | T11: 5.1 | U11: 1.76 | V11: 1.22 | W11: 0.88 | X11: 0.28 | Y11: 0.12 | Z11: 0.05 | AA11: 0.01 | AC11: 2.98 | AD11: 1.13 | AE11: 0.86 | AF11: 0.65 | AG11: 0.24 | AH11: 0.11 | AI11: 0.04 | AJ11: 0.01 | AL11: 2.11 | AM11: 0.82 | AN11: 0.65 | AO11: 0.51 | AP11: 0.2 | AQ11: 0.1 | AR11: 0.04 | AS11: 0.01 | AU11: 0.08 | AV11: 0.11 | AW11: 0.14 | AX11: 0.16 | AY11: 0.13 | AZ11: 0.08 | BA11: 0.04 | BB11: 0.01 | BD11: 0.03 | BE11: 0.05 | BF11: 0.07 | BG11: 0.08 | BH11: 0.08 | BI11: 0.06 | BJ11: 0.03 | BK11: 0.01 | BL11: 4
A12: Pico Rivera | B12: 15.62 | C12: 4.36 | D12: 2.61 | E12: 1.63 | F12: 0.38 | G12: 0.15 | H12: 0.05 | I12: 0.01 | K12: 9.95 | L12: 3.09 | M12: 1.97 | N12: 1.33 | O12: 0.34 | P12: 0.14 | Q12: 0.05 | R12: 0.01 | T12: 7.07 | U12: 2.33 | V12: 1.54 | W12: 1.06 | X12: 0.31 | Y12: 0.13 | Z12: 0.05 | AA12: 0.01 | AC12: 3.76 | AD12: 1.38 | AE12: 1.04 | AF12: 0.76 | AG12: 0.26 | AH12: 0.12 | AI12: 0.05 | AJ12: 0.01 | AL12: 2.33 | AM12: 0.91 | AN12: 0.74 | AO12: 0.57 | AP12: 0.22 | AQ12: 0.11 | AR12: 0.04 | AS12: 0.01 | AU12: 0.03 | AV12: 0.11 | AW12: 0.17 | AX12: 0.21 | AY12: 0.15 | AZ12: 0.09 | BA12: 0.04 | BB12: 0.01 | BD12: 0.01 | BE12: 0.05 | BF12: 0.09 | BG12: 0.11 | BH12: 0.1 | BI12: 0.07 | BJ12: 0.03 | BK12: 0.01 | BL12: 4
A13: Redlands | B13: 11.97 | C13: 4.38 | D13: 2.65 | E13: 1.61 | F13: 0.35 | G13: 0.14 | H13: 0.05 | I13: 0.01 | K13: 5.59 | L13: 2.64 | M13: 1.79 | N13: 1.22 | O13: 0.31 | P13: 0.12 | Q13: 0.05 | R13: 0.01 | T13: 3.1 | U13: 1.68 | V13: 1.22 | W13: 0.87 | X13: 0.27 | Y13: 0.12 | Z13: 0.04 | AA13: 0.01 | AC13: 0.84 | AD13: 0.6 | AE13: 0.57 | AF13: 0.47 | AG13: 0.2 | AH13: 0.1 | AI13: 0.04 | AJ13: 0.01 | AL13: 0.37 | AM13: 0.35 | AN13: 0.38 | AO13: 0.34 | AP13: 0.17 | AQ13: 0.09 | AR13: 0.04 | AS13: 0.01 | AU13: 0.07 | AV13: 0.14 | AW13: 0.19 | AX13: 0.2 | AY13: 0.14 | AZ13: 0.08 | BA13: 0.04 | BB13: 0.01 | BD13: 0.03 | BE13: 0.06 | BF13: 0.09 | BG13: 0.11 | BH13: 0.09 | BI13: 0.06 | BJ13: 0.03 | BK13: 0.01 | BL13: 4
A14: Upland | B14: 17.23 | C14: 5.03 | D14: 3.13 | E14: 1.97 | F14: 0.46 | G14: 0.18 | H14: 0.06 | I14: 0.02 | K14: 10.02 | L14: 3.39 | M14: 2.29 | N14: 1.58 | O14: 0.41 | P14: 0.17 | Q14: 0.06 | R14: 0.02 | T14: 6.63 | U14: 2.45 | V14: 1.73 | W14: 1.23 | X14: 0.37 | Y14: 0.16 | Z14: 0.06 | AA14: 0.02 | AC14: 2.67 | AD14: 1.16 | AE14: 0.98 | AF14: 0.76 | AG14: 0.29 | AH14: 0.14 | AI14: 0.05 | AJ14: 0.01 | AL14: 1.18 | AM14: 0.6 | AN14: 0.6 | AO14: 0.52 | AP14: 0.24 | AQ14: 0.13 | AR14: 0.05 | AS14: 0.01 | AU14: 0.03 | AV14: 0.1 | AW14: 0.18 | AX14: 0.23 | AY14: 0.18 | AZ14: 0.11 | BA14: 0.05 | BB14: 0.01 | BD14: 0.01 | BE14: 0.04 | BF14: 0.08 | BG14: 0.11 | BH14: 0.12 | BI14: 0.08 | BJ14: 0.04 | BK14: 0.01 | BL14: 5
A15: Burbank Airport | B15: 17.17 | C15: 4.93 | D15: 3.08 | E15: 1.99 | F15: 0.49 | G15: 0.2 | H15: 0.07 | I15: 0.02 | K15: 11.8 | L15: 3.6 | M15: 2.38 | N15: 1.66 | O15: 0.44 | P15: 0.19 | Q15: 0.07 | R15: 0.02 | T15: 9.04 | U15: 2.88 | V15: 1.95 | W15: 1.38 | X15: 0.41 | Y15: 0.18 | Z15: 0.07 | AA15: 0.02 | AC15: 4.1 | AD15: 1.54 | AE15: 1.22 | AF15: 0.93 | AG15: 0.34 | AH15: 0.16 | AI15: 0.06 | AJ15: 0.02 | AL15: 2.39 | AM15: 0.95 | AN15: 0.82 | AO15: 0.68 | AP15: 0.29 | AQ15: 0.15 | AR15: 0.06 | AS15: 0.02 | AU15: 0.03 | AV15: 0.09 | AW15: 0.14 | AX15: 0.19 | AY15: 0.19 | AZ15: 0.12 | BA15: 0.06 | BB15: 0.02 | BD15: 0.01 | BE15: 0.04 | BF15: 0.07 | BG15: 0.09 | BH15: 0.12 | BI15: 0.09 | BJ15: 0.05 | BK15: 0.01 | BL15: 5
A16: Chino Airport. | B16: 12.11 | C16: 4.25 | D16: 2.82 | E16: 1.88 | F16: 0.51 | G16: 0.21 | H16: 0.07 | I16: 0.02 | K16: 8.74 | L16: 3.04 | M16: 2.13 | N16: 1.54 | O16: 0.46 | P16: 0.2 | Q16: 0.07 | R16: 0.02 | T16: 6.97 | U16: 2.43 | V16: 1.73 | W16: 1.28 | X16: 0.43 | Y16: 0.18 | Z16: 0.07 | AA16: 0.02 | AC16: 4 | AD16: 1.5 | AE16: 1.18 | AF16: 0.92 | AG16: 0.36 | AH16: 0.17 | AI16: 0.06 | AJ16: 0.02 | AL16: 3.16 | AM16: 1.19 | AN16: 0.95 | AO16: 0.76 | AP16: 0.31 | AQ16: 0.15 | AR16: 0.06 | AS16: 0.02 | AU16: 0.02 | AV16: 0.06 | AW16: 0.1 | AX16: 0.15 | AY16: 0.18 | AZ16: 0.12 | BA16: 0.05 | BB16: 0.02 | BD16: 0.01 | BE16: 0.03 | BF16: 0.05 | BG16: 0.07 | BH16: 0.1 | BI16: 0.08 | BJ16: 0.04 | BK16: 0.01 | BL16: 5
A17: USC/Downtown L.A. | B17: 12.73 | C17: 4.74 | D17: 2.99 | E17: 1.87 | F17: 0.42 | G17: 0.16 | H17: 0.05 | I17: 0.01 | K17: 5.69 | L17: 2.76 | M17: 1.95 | N17: 1.38 | O17: 0.36 | P17: 0.14 | Q17: 0.05 | R17: 0.01 | T17: 3.17 | U17: 1.8 | V17: 1.35 | W17: 0.99 | X17: 0.32 | Y17: 0.13 | Z17: 0.05 | AA17: 0.01 | AC17: 0.37 | AD17: 0.47 | AE17: 0.5 | AF17: 0.44 | AG17: 0.21 | AH17: 0.12 | AI17: 0.05 | AJ17: 0.01 | AL17: 0.21 | AM17: 0.3 | AN17: 0.35 | AO17: 0.33 | AP17: 0.18 | AQ17: 0.1 | AR17: 0.04 | AS17: 0.01 | AU17: 0.05 | AV17: 0.14 | AW17: 0.19 | AX17: 0.2 | AY17: 0.15 | AZ17: 0.09 | BA17: 0.04 | BB17: 0.01 | BD17: 0.02 | BE17: 0.07 | BF17: 0.1 | BG17: 0.11 | BH17: 0.1 | BI17: 0.07 | BJ17: 0.03 | BK17: 0.01 | BL17: 4
A18: Fullerton Airport | B18: 17.05 | C18: 4.69 | D18: 2.89 | E18: 1.84 | F18: 0.44 | G18: 0.17 | H18: 0.06 | I18: 0.01 | K18: 11.06 | L18: 3.32 | M18: 2.19 | N18: 1.51 | O18: 0.4 | P18: 0.16 | Q18: 0.06 | R18: 0.01 | T18: 8.32 | U18: 2.61 | V18: 1.77 | W18: 1.25 | X18: 0.37 | Y18: 0.15 | Z18: 0.06 | AA18: 0.01 | AC18: 4.63 | AD18: 1.63 | AE18: 1.24 | AF18: 0.91 | AG18: 0.31 | AH18: 0.14 | AI18: 0.05 | AJ18: 0.01 | AL18: 2.96 | AM18: 1.12 | AN18: 0.91 | AO18: 0.7 | AP18: 0.27 | AQ18: 0.13 | AR18: 0.05 | AS18: 0.01 | AU18: 0.03 | AV18: 0.1 | AW18: 0.17 | AX18: 0.21 | AY18: 0.17 | AZ18: 0.1 | BA18: 0.05 | BB18: 0.01 | BD18: 0.01 | BE18: 0.05 | BF18: 0.08 | BG18: 0.11 | BH18: 0.11 | BI18: 0.08 | BJ18: 0.04 | BK18: 0.01 | BL18: 4
A19: Hawthorne Airport | B19: 18.93 | C19: 5.45 | D19: 3.5 | E19: 2.29 | F19: 0.59 | G19: 0.23 | H19: 0.08 | I19: 0.02 | K19: 13.92 | L19: 4.2 | M19: 2.83 | N19: 1.98 | O19: 0.55 | P19: 0.22 | Q19: 0.08 | R19: 0.02 | T19: 10.84 | U19: 3.49 | V19: 2.4 | W19: 1.71 | X19: 0.52 | Y19: 0.21 | Z19: 0.08 | AA19: 0.02 | AC19: 6.03 | AD19: 2.16 | AE19: 1.7 | AF19: 1.27 | AG19: 0.44 | AH19: 0.19 | AI19: 0.07 | AJ19: 0.02 | AL19: 4.44 | AM19: 1.6 | AN19: 1.33 | AO19: 1.03 | AP19: 0.39 | AQ19: 0.18 | AR19: 0.07 | AS19: 0.02 | AU19: 0.02 | AV19: 0.08 | AW19: 0.17 | AX19: 0.25 | AY19: 0.24 | AZ19: 0.15 | BA19: 0.06 | BB19: 0.02 | BD19: 0.01 | BE19: 0.04 | BF19: 0.07 | BG19: 0.11 | BH19: 0.16 | BI19: 0.11 | BJ19: 0.06 | BK19: 0.02 | BL19: 5
A20: Los Angeles Int'l Airport | B20: 20.56 | C20: 6.23 | D20: 4.23 | E20: 2.91 | F20: 0.83 | G20: 0.33 | H20: 0.11 | I20: 0.03 | K20: 15.95 | L20: 5.01 | M20: 3.5 | N20: 2.55 | O20: 0.78 | P20: 0.32 | Q20: 0.11 | R20: 0.03 | T20: 12.76 | U20: 4.24 | V20: 2.99 | W20: 2.21 | X20: 0.73 | Y20: 0.3 | Z20: 0.11 | AA20: 0.03 | AC20: 6.98 | AD20: 2.65 | AE20: 2.11 | AF20: 1.62 | AG20: 0.62 | AH20: 0.27 | AI20: 0.1 | AJ20: 0.03 | AL20: 5.13 | AM20: 1.98 | AN20: 1.65 | AO20: 1.32 | AP20: 0.53 | AQ20: 0.25 | AR20: 0.1 | AS20: 0.03 | AU20: 0.01 | AV20: 0.04 | AW20: 0.12 | AX20: 0.21 | AY20: 0.28 | AZ20: 0.19 | BA20: 0.09 | BB20: 0.03 | BD20: 0 | BE20: 0.02 | BF20: 0.05 | BG20: 0.09 | BH20: 0.17 | BI20: 0.14 | BJ20: 0.07 | BK20: 0.02 | BL20: 5
A21: Long Beach Airport | B21: 14.51 | C21: 4.3 | D21: 2.77 | E21: 1.82 | F21: 0.46 | G21: 0.19 | H21: 0.06 | I21: 0.02 | K21: 10.07 | L21: 3.17 | M21: 2.14 | N21: 1.52 | O21: 0.42 | P21: 0.17 | Q21: 0.06 | R21: 0.02 | T21: 7.66 | U21: 2.55 | V21: 1.75 | W21: 1.26 | X21: 0.38 | Y21: 0.16 | Z21: 0.06 | AA21: 0.01 | AC21: 3.5 | AD21: 1.34 | AE21: 1.06 | AF21: 0.82 | AG21: 0.31 | AH21: 0.15 | AI21: 0.06 | AJ21: 0.01 | AL21: 2.1 | AM21: 0.84 | AN21: 0.71 | AO21: 0.58 | AP21: 0.26 | AQ21: 0.13 | AR21: 0.05 | AS21: 0.01 | AU21: 0.02 | AV21: 0.07 | AW21: 0.13 | AX21: 0.17 | AY21: 0.17 | AZ21: 0.11 | BA21: 0.05 | BB21: 0.01 | BD21: 0.01 | BE21: 0.04 | BF21: 0.06 | BG21: 0.09 | BH21: 0.11 | BI21: 0.08 | BJ21: 0.04 | BK21: 0.01 | BL21: 5
A22: Ontario Airport | B22: 17.36 | C22: 5.34 | D22: 3.52 | E22: 2.34 | F22: 0.62 | G22: 0.25 | H22: 0.09 | I22: 0.02 | K22: 11.97 | L22: 3.85 | M22: 2.68 | N22: 1.94 | O22: 0.57 | P22: 0.24 | Q22: 0.08 | R22: 0.02 | T22: 9.15 | U22: 3.07 | V22: 2.17 | W22: 1.6 | X22: 0.52 | Y22: 0.22 | Z22: 0.08 | AA22: 0.02 | AC22: 4.88 | AD22: 1.8 | AE22: 1.43 | AF22: 1.11 | AG22: 0.44 | AH22: 0.2 | AI22: 0.08 | AJ22: 0.02 | AL22: 3.5 | AM22: 1.3 | AN22: 1.08 | AO22: 0.87 | AP22: 0.37 | AQ22: 0.18 | AR22: 0.07 | AS22: 0.02 | AU22: 0.01 | AV22: 0.06 | AW22: 0.11 | AX22: 0.17 | AY22: 0.21 | AZ22: 0.14 | BA22: 0.07 | BB22: 0.02 | BD22: 0.01 | BE22: 0.03 | BF22: 0.05 | BG22: 0.08 | BH22: 0.13 | BI22: 0.1 | BJ22: 0.05 | BK22: 0.02 | BL22: 5
A23: Palm Springs Airport | B23: 10.92 | C23: 3.45 | D23: 2.24 | E23: 1.44 | F23: 0.35 | G23: 0.14 | H23: 0.05 | I23: 0.01 | K23: 6.59 | L23: 2.26 | M23: 1.6 | N23: 1.14 | O23: 0.32 | P23: 0.13 | Q23: 0.05 | R23: 0.01 | T23: 4.62 | U23: 1.69 | V23: 1.23 | W23: 0.91 | X23: 0.29 | Y23: 0.12 | Z23: 0.04 | AA23: 0.01 | AC23: 2.28 | AD23: 0.85 | AE23: 0.7 | AF23: 0.56 | AG23: 0.23 | AH23: 0.11 | AI23: 0.04 | AJ23: 0.01 | AL23: 1.84 | AM23: 0.69 | AN23: 0.54 | AO23: 0.43 | AP23: 0.19 | AQ23: 0.1 | AR23: 0.04 | AS23: 0.01 | AU23: 0.02 | AV23: 0.06 | AW23: 0.11 | AX23: 0.14 | AY23: 0.13 | AZ23: 0.08 | BA23: 0.04 | BB23: 0.01 | BD23: 0.01 | BE23: 0.03 | BF23: 0.05 | BG23: 0.07 | BH23: 0.08 | BI23: 0.06 | BJ23: 0.03 | BK23: 0.01 | BL23: 5
A24: Riverside Airport | B24: 14 | C24: 5.12 | D24: 3.37 | E24: 2.2 | F24: 0.55 | G24: 0.22 | H24: 0.08 | I24: 0.02 | K24: 8.19 | L24: 3.3 | M24: 2.38 | N24: 1.72 | O24: 0.49 | P24: 0.2 | Q24: 0.07 | R24: 0.02 | T24: 5.61 | U24: 2.42 | V24: 1.8 | W24: 1.35 | X24: 0.44 | Y24: 0.19 | Z24: 0.07 | AA24: 0.02 | AC24: 1.85 | AD24: 1.02 | AE24: 0.97 | AF24: 0.81 | AG24: 0.35 | AH24: 0.17 | AI24: 0.07 | AJ24: 0.02 | AL24: 1.01 | AM24: 0.61 | AN24: 0.65 | AO24: 0.59 | AP24: 0.29 | AQ24: 0.15 | AR24: 0.06 | AS24: 0.02 | AU24: 0.02 | AV24: 0.07 | AW24: 0.14 | AX24: 0.19 | AY24: 0.19 | AZ24: 0.13 | BA24: 0.06 | BB24: 0.02 | BD24: 0.01 | BE24: 0.03 | BF24: 0.06 | BG24: 0.09 | BH24: 0.12 | BI24: 0.09 | BJ24: 0.05 | BK24: 0.01 | BL24: 5
A25: Santa Monica Airport | B25: 25.29 | C25: 6.32 | D25: 3.98 | E25: 2.61 | F25: 0.68 | G25: 0.27 | H25: 0.09 | I25: 0.02 | K25: 18.6 | L25: 4.9 | M25: 3.22 | N25: 2.25 | O25: 0.63 | P25: 0.25 | Q25: 0.09 | R25: 0.02 | T25: 14.8 | U25: 4.12 | V25: 2.74 | W25: 1.94 | X25: 0.59 | Y25: 0.24 | Z25: 0.09 | AA25: 0.02 | AC25: 9.06 | AD25: 2.85 | AE25: 2.08 | AF25: 1.5 | AG25: 0.51 | AH25: 0.22 | AI25: 0.08 | AJ25: 0.02 | AL25: 6.54 | AM25: 2.14 | AN25: 1.64 | AO25: 1.23 | AP25: 0.44 | AQ25: 0.2 | AR25: 0.08 | AS25: 0.02 | AU25: 0.01 | AV25: 0.08 | AW25: 0.18 | AX25: 0.26 | AY25: 0.25 | AZ25: 0.16 | BA25: 0.07 | BB25: 0.02 | BD25: 0 | BE25: 0.03 | BF25: 0.08 | BG25: 0.12 | BH25: 0.16 | BI25: 0.12 | BJ25: 0.06 | BK25: 0.02 | BL25: 5
A26: John Wayne Int'l Airport | B26: 19.61 | C26: 5.61 | D26: 3.5 | E26: 2.31 | F26: 0.6 | G26: 0.25 | H26: 0.08 | I26: 0.02 | K26: 14.46 | L26: 4.32 | M26: 2.8 | N26: 1.97 | O26: 0.55 | P26: 0.23 | Q26: 0.08 | R26: 0.02 | T26: 11.57 | U26: 3.61 | V26: 2.37 | W26: 1.68 | X26: 0.52 | Y26: 0.22 | Z26: 0.08 | AA26: 0.02 | AC26: 7.18 | AD26: 2.47 | AE26: 1.77 | AF26: 1.29 | AG26: 0.44 | AH26: 0.2 | AI26: 0.07 | AJ26: 0.02 | AL26: 5.49 | AM26: 1.92 | AN26: 1.43 | AO26: 1.07 | AP26: 0.39 | AQ26: 0.18 | AR26: 0.07 | AS26: 0.02 | AU26: 0.02 | AV26: 0.07 | AW26: 0.14 | AX26: 0.2 | AY26: 0.22 | AZ26: 0.14 | BA26: 0.06 | BB26: 0.02 | BD26: 0.01 | BE26: 0.03 | BF26: 0.06 | BG26: 0.1 | BH26: 0.13 | BI26: 0.1 | BJ26: 0.05 | BK26: 0.02 | BL26: 5
A27: Desert Hot Springs Airport | B27: 14.28 | C27: 4.35 | D27: 2.86 | E27: 1.93 | F27: 0.52 | G27: 0.21 | H27: 0.07 | I27: 0.02 | K27: 9.87 | L27: 3.13 | M27: 2.18 | N27: 1.59 | O27: 0.47 | P27: 0.19 | Q27: 0.07 | R27: 0.02 | T27: 7.55 | U27: 2.5 | V27: 1.75 | W27: 1.31 | X27: 0.43 | Y27: 0.18 | Z27: 0.07 | AA27: 0.02 | AC27: 4.27 | AD27: 1.54 | AE27: 1.18 | AF27: 0.91 | AG27: 0.36 | AH27: 0.16 | AI27: 0.06 | AJ27: 0.02 | AL27: 2.88 | AM27: 1.06 | AN27: 0.85 | AO27: 0.69 | AP27: 0.29 | AQ27: 0.14 | AR27: 0.06 | AS27: 0.02 | AU27: 0.01 | AV27: 0.05 | AW27: 0.09 | AX27: 0.14 | AY27: 0.16 | AZ27: 0.11 | BA27: 0.05 | BB27: 0.01 | BD27: 0 | BE27: 0.02 | BF27: 0.04 | BG27: 0.06 | BH27: 0.1 | BI27: 0.08 | BJ27: 0.04 | BK27: 0.01 | BL27: 5
A28: Van Nuys Airport | B28: 14.28 | C28: 4.29 | D28: 2.66 | E28: 1.71 | F28: 0.43 | G28: 0.17 | H28: 0.06 | I28: 0.01 | K28: 9.66 | L28: 3.08 | M28: 2.04 | N28: 1.42 | O28: 0.39 | P28: 0.16 | Q28: 0.06 | R28: 0.01 | T28: 7.43 | U28: 2.47 | V28: 1.66 | W28: 1.18 | X28: 0.36 | Y28: 0.15 | Z28: 0.06 | AA28: 0.01 | AC28: 4.27 | AD28: 1.55 | AE28: 1.16 | AF28: 0.86 | AG28: 0.31 | AH28: 0.14 | AI28: 0.05 | AJ28: 0.01 | AL28: 3.09 | AM28: 1.15 | AN28: 0.89 | AO28: 0.69 | AP28: 0.27 | AQ28: 0.13 | AR28: 0.05 | AS28: 0.01 | AU28: 0.03 | AV28: 0.08 | AW28: 0.13 | AX28: 0.16 | AY28: 0.16 | AZ28: 0.1 | BA28: 0.05 | BB28: 0.01 | BD28: 0.01 | BE28: 0.04 | BF28: 0.07 | BG28: 0.08 | BH28: 0.1 | BI28: 0.08 | BJ28: 0.04 | BK28: 0.01 | BL28: 5
A33: Table 8 B - Dispersion Factor (X/Q) for Natural Gas Boiler Operating More than 12 Hours per Day
A34: Units are in (ug/m3)/(tons/yr) | B34: Size 2 to 5 MMBTU | K34: Size > 5 to 10 MMBTU | T34: Size > 10 to 20 MMBTU | AC34: Size > 20 to 30 MMBTU | AL34: Size > 30 to 50 MMBTU | AU34: Size > 50 to 150 MMBTU | BD34: Size > 150 to 200 MMBTU
B35: Downwind Distance (meters) | K35: Downwind Distance (meters) | T35: Downwind Distance (meters) | AC35: Downwind Distance (meters) | AL35: Downwind Distance (meters) | AU35: Downwind Distance (meters) | BD35: Downwind Distance (meters)
A36: Location | B36: 25 | C36: 50 | D36: 75 | E36: 100 | F36: 200 | G36: 300 | H36: 500 | I36: 1000 | K36: 25 | L36: 50 | M36: 75 | N36: 100 | O36: 200 | P36: 300 | Q36: 500 | R36: 1000 | T36: 25 | U36: 50 | V36: 75 | W36: 100 | X36: 200 | Y36: 300 | Z36: 500 | AA36: 1000 | AC36: 25 | AD36: 50 | AE36: 75 | AF36: 100 | AG36: 200 | AH36: 300 | AI36: 500 | AJ36: 1000 | AL36: 25 | AM36: 50 | AN36: 75 | AO36: 100 | AP36: 200 | AQ36: 300 | AR36: 500 | AS36: 1000 | AU36: 25 | AV36: 50 | AW36: 75 | AX36: 100 | AY36: 200 | AZ36: 300 | BA36: 500 | BB36: 1000 | BD36: 25 | BE36: 50 | BF36: 75 | BG36: 100 | BH36: 200 | BI36: 300 | BJ36: 500 | BK36: 1000
A37: Azusa | B37: 8.83 | C37: 2.51 | D37: 1.76 | E37: 1.31 | F37: 0.59 | G37: 0.3 | H37: 0.14 | I37: 0.05 | K37: 4.1 | L37: 1.35 | M37: 0.93 | N37: 0.69 | O37: 0.27 | P37: 0.17 | Q37: 0.1 | R37: 0.05 | T37: 2.3 | U37: 0.87 | V37: 0.62 | W37: 0.46 | X37: 0.18 | Y37: 0.1 | Z37: 0.07 | AA37: 0.04 | AC37: 0.98 | AD37: 0.33 | AE37: 0.27 | AF37: 0.22 | AG37: 0.1 | AH37: 0.06 | AI37: 0.04 | AJ37: 0.03 | AL37: 0.48 | AM37: 0.19 | AN37: 0.16 | AO37: 0.14 | AP37: 0.08 | AQ37: 0.05 | AR37: 0.03 | AS37: 0.02 | AU37: 0.03 | AV37: 0.07 | AW37: 0.08 | AX37: 0.08 | AY37: 0.06 | AZ37: 0.04 | BA37: 0.02 | BB37: 0.01 | BD37: 0.01 | BE37: 0.03 | BF37: 0.04 | BG37: 0.04 | BH37: 0.04 | BI37: 0.03 | BJ37: 0.01 | BK37: 0.01
A38: Banning | B38: 16.96 | C38: 5.08 | D38: 3.61 | E38: 2.73 | F38: 1.12 | G38: 0.58 | H38: 0.28 | I38: 0.1 | K38: 11.83 | L38: 3.44 | M38: 2.29 | N38: 1.77 | O38: 0.75 | P38: 0.4 | Q38: 0.22 | R38: 0.1 | T38: 9.06 | U38: 2.68 | V38: 1.74 | W38: 1.27 | X38: 0.57 | Y38: 0.31 | Z38: 0.18 | AA38: 0.09 | AC38: 4.34 | AD38: 1.39 | AE38: 1 | AF38: 0.74 | AG38: 0.34 | AH38: 0.2 | AI38: 0.12 | AJ38: 0.07 | AL38: 2.98 | AM38: 0.92 | AN38: 0.69 | AO38: 0.53 | AP38: 0.23 | AQ38: 0.14 | AR38: 0.09 | AS38: 0.06 | AU38: 0 | AV38: 0.01 | AW38: 0.04 | AX38: 0.08 | AY38: 0.1 | AZ38: 0.07 | BA38: 0.05 | BB38: 0.03 | BD38: 0 | BE38: 0.01 | BF38: 0.02 | BG38: 0.03 | BH38: 0.06 | BI38: 0.04 | BJ38: 0.03 | BK38: 0.02
A39: Central L.A. | B39: 8.08 | C39: 2.11 | D39: 1.47 | E39: 1.1 | F39: 0.51 | G39: 0.26 | H39: 0.12 | I39: 0.04 | K39: 4.54 | L39: 1.3 | M39: 0.88 | N39: 0.64 | O39: 0.24 | P39: 0.15 | Q39: 0.09 | R39: 0.04 | T39: 3.07 | U39: 0.97 | V39: 0.67 | W39: 0.48 | X39: 0.18 | Y39: 0.1 | Z39: 0.07 | AA39: 0.04 | AC39: 1.22 | AD39: 0.49 | AE39: 0.39 | AF39: 0.29 | AG39: 0.12 | AH39: 0.06 | AI39: 0.04 | AJ39: 0.03 | AL39: 0.59 | AM39: 0.27 | AN39: 0.24 | AO39: 0.2 | AP39: 0.09 | AQ39: 0.05 | AR39: 0.03 | AS39: 0.02 | AU39: 0.02 | AV39: 0.05 | AW39: 0.07 | AX39: 0.08 | AY39: 0.06 | AZ39: 0.04 | BA39: 0.02 | BB39: 0.01 | BD39: 0.01 | BE39: 0.03 | BF39: 0.03 | BG39: 0.04 | BH39: 0.04 | BI39: 0.03 | BJ39: 0.01 | BK39: 0.01
A40: Lake Elsinore | B40: 5.04 | C40: 1.63 | D40: 1.08 | E40: 0.76 | F40: 0.43 | G40: 0.27 | H40: 0.15 | I40: 0.06 | K40: 2.52 | L40: 0.89 | M40: 0.62 | N40: 0.45 | O40: 0.16 | P40: 0.11 | Q40: 0.09 | R40: 0.05 | T40: 1.58 | U40: 0.59 | V40: 0.43 | W40: 0.32 | X40: 0.12 | Y40: 0.06 | Z40: 0.06 | AA40: 0.04 | AC40: 0.71 | AD40: 0.32 | AE40: 0.26 | AF40: 0.2 | AG40: 0.08 | AH40: 0.04 | AI40: 0.03 | AJ40: 0.03 | AL40: 0.31 | AM40: 0.17 | AN40: 0.15 | AO40: 0.13 | AP40: 0.06 | AQ40: 0.04 | AR40: 0.02 | AS40: 0.02 | AU40: 0.04 | AV40: 0.06 | AW40: 0.07 | AX40: 0.06 | AY40: 0.04 | AZ40: 0.03 | BA40: 0.02 | BB40: 0.01 | BD40: 0.02 | BE40: 0.03 | BF40: 0.03 | BG40: 0.03 | BH40: 0.03 | BI40: 0.02 | BJ40: 0.01 | BK40: 0.01
A41: Fontana | B41: 12.49 | C41: 3.43 | D41: 2.36 | E41: 1.73 | F41: 0.73 | G41: 0.39 | H41: 0.19 | I41: 0.07 | K41: 7.25 | L41: 2.04 | M41: 1.35 | N41: 1.01 | O41: 0.39 | P41: 0.22 | Q41: 0.14 | R41: 0.06 | T41: 4.93 | U41: 1.44 | V41: 0.96 | W41: 0.7 | X41: 0.27 | Y41: 0.15 | Z41: 0.1 | AA41: 0.05 | AC41: 2.38 | AD41: 0.78 | AE41: 0.59 | AF41: 0.44 | AG41: 0.18 | AH41: 0.1 | AI41: 0.06 | AJ41: 0.04 | AL41: 1.38 | AM41: 0.48 | AN41: 0.39 | AO41: 0.31 | AP41: 0.13 | AQ41: 0.07 | AR41: 0.04 | AS41: 0.03 | AU41: 0.02 | AV41: 0.04 | AW41: 0.07 | AX41: 0.08 | AY41: 0.07 | AZ41: 0.05 | BA41: 0.03 | BB41: 0.02 | BD41: 0.01 | BE41: 0.02 | BF41: 0.03 | BG41: 0.04 | BH41: 0.05 | BI41: 0.03 | BJ41: 0.02 | BK41: 0.01
A42: Mission Viejo | B42: 5.91 | C42: 1.79 | D42: 1.18 | E42: 0.82 | F42: 0.4 | G42: 0.25 | H42: 0.13 | I42: 0.05 | K42: 2.77 | L42: 0.98 | M42: 0.66 | N42: 0.47 | O42: 0.16 | P42: 0.11 | Q42: 0.08 | R42: 0.04 | T42: 1.59 | U42: 0.62 | V42: 0.45 | W42: 0.32 | X42: 0.11 | Y42: 0.06 | Z42: 0.05 | AA42: 0.03 | AC42: 0.58 | AD42: 0.29 | AE42: 0.25 | AF42: 0.2 | AG42: 0.08 | AH42: 0.04 | AI42: 0.03 | AJ42: 0.02 | AL42: 0.24 | AM42: 0.15 | AN42: 0.15 | AO42: 0.13 | AP42: 0.06 | AQ42: 0.04 | AR42: 0.02 | AS42: 0.01 | AU42: 0.02 | AV42: 0.04 | AW42: 0.06 | AX42: 0.07 | AY42: 0.05 | AZ42: 0.03 | BA42: 0.01 | BB42: 0.01 | BD42: 0.01 | BE42: 0.02 | BF42: 0.03 | BG42: 0.03 | BH42: 0.03 | BI42: 0.02 | BJ42: 0.01 | BK42: 0
A43: Perris | B43: 7.68 | C43: 2.3 | D43: 1.57 | E43: 1.16 | F43: 0.55 | G43: 0.32 | H43: 0.17 | I43: 0.06 | K43: 4.69 | L43: 1.42 | M43: 0.94 | N43: 0.7 | O43: 0.27 | P43: 0.16 | Q43: 0.11 | R43: 0.05 | T43: 3.41 | U43: 1.07 | V43: 0.71 | W43: 0.52 | X43: 0.2 | Y43: 0.11 | Z43: 0.08 | AA43: 0.04 | AC43: 1.87 | AD43: 0.65 | AE43: 0.47 | AF43: 0.35 | AG43: 0.14 | AH43: 0.07 | AI43: 0.04 | AJ43: 0.03 | AL43: 1.26 | AM43: 0.45 | AN43: 0.34 | AO43: 0.26 | AP43: 0.11 | AQ43: 0.06 | AR43: 0.03 | AS43: 0.02 | AU43: 0.04 | AV43: 0.05 | AW43: 0.06 | AX43: 0.06 | AY43: 0.06 | AZ43: 0.04 | BA43: 0.02 | BB43: 0.01 | BD43: 0.02 | BE43: 0.02 | BF43: 0.03 | BG43: 0.03 | BH43: 0.03 | BI43: 0.03 | BJ43: 0.02 | BK43: 0.01
A44: Pico Rivera | B44: 11.03 | C44: 2.88 | D44: 1.89 | E44: 1.36 | F44: 0.56 | G44: 0.3 | H44: 0.14 | I44: 0.05 | K44: 6.4 | L44: 1.73 | M44: 1.09 | N44: 0.79 | O44: 0.29 | P44: 0.17 | Q44: 0.1 | R44: 0.05 | T44: 4.31 | U44: 1.24 | V44: 0.79 | W44: 0.56 | X44: 0.21 | Y44: 0.11 | Z44: 0.08 | AA44: 0.04 | AC44: 2.15 | AD44: 0.7 | AE44: 0.51 | AF44: 0.37 | AG44: 0.13 | AH44: 0.07 | AI44: 0.04 | AJ44: 0.03 | AL44: 1.21 | AM44: 0.43 | AN44: 0.34 | AO44: 0.26 | AP44: 0.1 | AQ44: 0.05 | AR44: 0.03 | AS44: 0.02 | AU44: 0.02 | AV44: 0.05 | AW44: 0.07 | AX44: 0.08 | AY44: 0.06 | AZ44: 0.04 | BA44: 0.02 | BB44: 0.01 | BD44: 0.01 | BE44: 0.02 | BF44: 0.04 | BG44: 0.04 | BH44: 0.04 | BI44: 0.03 | BJ44: 0.01 | BK44: 0.01
A45: Redlands | B45: 6.69 | C45: 2.31 | D45: 1.6 | E45: 1.17 | F45: 0.56 | G45: 0.34 | H45: 0.2 | I45: 0.08 | K45: 3 | L45: 1.25 | M45: 0.86 | N45: 0.64 | O45: 0.24 | P45: 0.15 | Q45: 0.14 | R45: 0.08 | T45: 1.68 | U45: 0.79 | V45: 0.58 | W45: 0.43 | X45: 0.16 | Y45: 0.1 | Z45: 0.09 | AA45: 0.07 | AC45: 0.4 | AD45: 0.27 | AE45: 0.25 | AF45: 0.21 | AG45: 0.1 | AH45: 0.06 | AI45: 0.04 | AJ45: 0.05 | AL45: 0.17 | AM45: 0.15 | AN45: 0.16 | AO45: 0.14 | AP45: 0.08 | AQ45: 0.05 | AR45: 0.03 | AS45: 0.03 | AU45: 0.04 | AV45: 0.06 | AW45: 0.08 | AX45: 0.08 | AY45: 0.06 | AZ45: 0.04 | BA45: 0.02 | BB45: 0.02 | BD45: 0.02 | BE45: 0.03 | BF45: 0.04 | BG45: 0.04 | BH45: 0.04 | BI45: 0.03 | BJ45: 0.02 | BK45: 0.01
A46: Upland | B46: 11.18 | C46: 3.05 | D46: 2.13 | E46: 1.56 | F46: 0.69 | G46: 0.36 | H46: 0.19 | I46: 0.08 | K46: 6.2 | L46: 1.81 | M46: 1.24 | N46: 0.93 | O46: 0.35 | P46: 0.21 | Q46: 0.13 | R46: 0.07 | T46: 4.03 | U46: 1.27 | V46: 0.88 | W46: 0.65 | X46: 0.25 | Y46: 0.14 | Z46: 0.09 | AA46: 0.06 | AC46: 1.57 | AD46: 0.59 | AE46: 0.48 | AF46: 0.37 | AG46: 0.16 | AH46: 0.09 | AI46: 0.06 | AJ46: 0.04 | AL46: 0.69 | AM46: 0.3 | AN46: 0.28 | AO46: 0.24 | AP46: 0.12 | AQ46: 0.07 | AR46: 0.04 | AS46: 0.03 | AU46: 0.02 | AV46: 0.05 | AW46: 0.07 | AX46: 0.09 | AY46: 0.08 | AZ46: 0.05 | BA46: 0.03 | BB46: 0.02 | BD46: 0.01 | BE46: 0.02 | BF46: 0.03 | BG46: 0.04 | BH46: 0.05 | BI46: 0.04 | BJ46: 0.02 | BK46: 0.01
A47: Burbank Airport | B47: 11.76 | C47: 3.25 | D47: 2.13 | E47: 1.49 | F47: 0.53 | G47: 0.28 | H47: 0.14 | I47: 0.05 | K47: 7.55 | L47: 2.12 | M47: 1.36 | N47: 0.99 | O47: 0.32 | P47: 0.17 | Q47: 0.1 | R47: 0.04 | T47: 5.51 | U47: 1.61 | V47: 1.04 | W47: 0.74 | X47: 0.25 | Y47: 0.12 | Z47: 0.08 | AA47: 0.04 | AC47: 2.37 | AD47: 0.79 | AE47: 0.59 | AF47: 0.44 | AG47: 0.17 | AH47: 0.09 | AI47: 0.05 | AJ47: 0.03 | AL47: 1.41 | AM47: 0.48 | AN47: 0.38 | AO47: 0.31 | AP47: 0.13 | AQ47: 0.07 | AR47: 0.04 | AS47: 0.02 | AU47: 0.01 | AV47: 0.04 | AW47: 0.06 | AX47: 0.08 | AY47: 0.08 | AZ47: 0.05 | BA47: 0.03 | BB47: 0.01 | BD47: 0.01 | BE47: 0.02 | BF47: 0.03 | BG47: 0.04 | BH47: 0.05 | BI47: 0.04 | BJ47: 0.02 | BK47: 0.01
A48: Chino Airport. | B48: 10.26 | C48: 3.21 | D48: 2.24 | E48: 1.65 | F48: 0.67 | G48: 0.36 | H48: 0.18 | I48: 0.07 | K48: 7.07 | L48: 2.16 | M48: 1.47 | N48: 1.11 | O48: 0.42 | P48: 0.22 | Q48: 0.13 | R48: 0.06 | T48: 5.49 | U48: 1.72 | V48: 1.16 | W48: 0.86 | X48: 0.33 | Y48: 0.16 | Z48: 0.1 | AA48: 0.05 | AC48: 3.01 | AD48: 1.03 | AE48: 0.76 | AF48: 0.57 | AG48: 0.23 | AH48: 0.12 | AI48: 0.06 | AJ48: 0.04 | AL48: 2.3 | AM48: 0.8 | AN48: 0.6 | AO48: 0.46 | AP48: 0.19 | AQ48: 0.1 | AR48: 0.05 | AS48: 0.03 | AU48: 0.01 | AV48: 0.03 | AW48: 0.04 | AX48: 0.06 | AY48: 0.08 | AZ48: 0.06 | BA48: 0.03 | BB48: 0.02 | BD48: 0 | BE48: 0.01 | BF48: 0.02 | BG48: 0.03 | BH48: 0.04 | BI48: 0.04 | BJ48: 0.02 | BK48: 0.01
A49: USC/Downtown L.A. | B49: 7.72 | C49: 2.59 | D49: 1.89 | E49: 1.44 | F49: 0.68 | G49: 0.37 | H49: 0.18 | I49: 0.07 | K49: 3.04 | L49: 1.27 | M49: 0.92 | N49: 0.7 | O49: 0.28 | P49: 0.18 | Q49: 0.13 | R49: 0.06 | T49: 1.59 | U49: 0.79 | V49: 0.6 | W49: 0.46 | X49: 0.18 | Y49: 0.11 | Z49: 0.09 | AA49: 0.05 | AC49: 0.19 | AD49: 0.19 | AE49: 0.21 | AF49: 0.19 | AG49: 0.1 | AH49: 0.06 | AI49: 0.05 | AJ49: 0.04 | AL49: 0.13 | AM49: 0.12 | AN49: 0.14 | AO49: 0.14 | AP49: 0.08 | AQ49: 0.05 | AR49: 0.03 | AS49: 0.02 | AU49: 0.02 | AV49: 0.06 | AW49: 0.08 | AX49: 0.08 | AY49: 0.06 | AZ49: 0.04 | BA49: 0.02 | BB49: 0.01 | BD49: 0.01 | BE49: 0.03 | BF49: 0.04 | BG49: 0.05 | BH49: 0.04 | BI49: 0.03 | BJ49: 0.02 | BK49: 0.01
A50: Fullerton Airport | B50: 9.37 | C50: 2.49 | D50: 1.63 | E50: 1.13 | F50: 0.46 | G50: 0.25 | H50: 0.13 | I50: 0.05 | K50: 5.55 | L50: 1.56 | M50: 1.01 | N50: 0.73 | O50: 0.24 | P50: 0.14 | Q50: 0.08 | R50: 0.04 | T50: 3.98 | U50: 1.18 | V50: 0.78 | W50: 0.55 | X50: 0.18 | Y50: 0.09 | Z50: 0.06 | AA50: 0.03 | AC50: 2.04 | AD50: 0.7 | AE50: 0.52 | AF50: 0.38 | AG50: 0.14 | AH50: 0.06 | AI50: 0.04 | AJ50: 0.02 | AL50: 1.24 | AM50: 0.46 | AN50: 0.37 | AO50: 0.29 | AP50: 0.11 | AQ50: 0.05 | AR50: 0.03 | AS50: 0.02 | AU50: 0.01 | AV50: 0.05 | AW50: 0.07 | AX50: 0.08 | AY50: 0.07 | AZ50: 0.04 | BA50: 0.02 | BB50: 0.01 | BD50: 0.01 | BE50: 0.02 | BF50: 0.03 | BG50: 0.04 | BH50: 0.04 | BI50: 0.03 | BJ50: 0.02 | BK50: 0.01
A51: Hawthorne Airport | B51: 12.48 | C51: 3.47 | D51: 2.37 | E51: 1.7 | F51: 0.67 | G51: 0.35 | H51: 0.17 | I51: 0.06 | K51: 8.37 | L51: 2.34 | M51: 1.54 | N51: 1.14 | O51: 0.41 | P51: 0.22 | Q51: 0.12 | R51: 0.05 | T51: 6.28 | U51: 1.84 | V51: 1.23 | W51: 0.88 | X51: 0.32 | Y51: 0.16 | Z51: 0.1 | AA51: 0.04 | AC51: 3.25 | AD51: 1.05 | AE51: 0.8 | AF51: 0.59 | AG51: 0.23 | AH51: 0.12 | AI51: 0.06 | AJ51: 0.03 | AL51: 2.25 | AM51: 0.75 | AN51: 0.6 | AO51: 0.47 | AP51: 0.19 | AQ51: 0.1 | AR51: 0.05 | AS51: 0.03 | AU51: 0.01 | AV51: 0.04 | AW51: 0.07 | AX51: 0.1 | AY51: 0.1 | AZ51: 0.07 | BA51: 0.04 | BB51: 0.02 | BD51: 0 | BE51: 0.02 | BF51: 0.03 | BG51: 0.04 | BH51: 0.06 | BI51: 0.05 | BJ51: 0.03 | BK51: 0.01
A52: Los Angeles Int'l Airport | B52: 14.98 | C52: 4.44 | D52: 3.15 | E52: 2.33 | F52: 0.89 | G52: 0.44 | H52: 0.21 | I52: 0.08 | K52: 10.74 | L52: 3.18 | M52: 2.18 | N52: 1.66 | O52: 0.62 | P52: 0.3 | Q52: 0.16 | R52: 0.07 | T52: 8.3 | U52: 2.56 | V52: 1.74 | W52: 1.28 | X52: 0.5 | Y52: 0.23 | Z52: 0.13 | AA52: 0.06 | AC52: 4.18 | AD52: 1.45 | AE52: 1.1 | AF52: 0.83 | AG52: 0.34 | AH52: 0.17 | AI52: 0.09 | AJ52: 0.05 | AL52: 2.9 | AM52: 1.05 | AN52: 0.82 | AO52: 0.65 | AP52: 0.27 | AQ52: 0.14 | AR52: 0.07 | AS52: 0.04 | AU52: 0 | AV52: 0.02 | AW52: 0.05 | AX52: 0.09 | AY52: 0.12 | AZ52: 0.09 | BA52: 0.05 | BB52: 0.02 | BD52: 0 | BE52: 0.01 | BF52: 0.02 | BG52: 0.04 | BH52: 0.07 | BI52: 0.06 | BJ52: 0.03 | BK52: 0.01
A53: Long Beach Airport | B53: 10.44 | C53: 3.03 | D53: 2.15 | E53: 1.64 | F53: 0.72 | G53: 0.38 | H53: 0.2 | I53: 0.08 | K53: 6.51 | L53: 1.85 | M53: 1.22 | N53: 0.95 | O53: 0.38 | P53: 0.2 | Q53: 0.13 | R53: 0.07 | T53: 4.82 | U53: 1.39 | V53: 0.9 | W53: 0.66 | X53: 0.27 | Y53: 0.13 | Z53: 0.09 | AA53: 0.06 | AC53: 2.61 | AD53: 0.8 | AE53: 0.55 | AF53: 0.4 | AG53: 0.16 | AH53: 0.08 | AI53: 0.05 | AJ53: 0.04 | AL53: 1.81 | AM53: 0.57 | AN53: 0.4 | AO53: 0.3 | AP53: 0.11 | AQ53: 0.06 | AR53: 0.03 | AS53: 0.03 | AU53: 0.01 | AV53: 0.03 | AW53: 0.05 | AX53: 0.07 | AY53: 0.06 | AZ53: 0.04 | BA53: 0.02 | BB53: 0.01 | BD53: 0 | BE53: 0.02 | BF53: 0.03 | BG53: 0.03 | BH53: 0.04 | BI53: 0.03 | BJ53: 0.02 | BK53: 0.01
A54: Ontario Airport | B54: 15.84 | C54: 4.69 | D54: 3.31 | E54: 2.46 | F54: 0.96 | G54: 0.49 | H54: 0.24 | I54: 0.09 | K54: 10.65 | L54: 3.1 | M54: 2.1 | N54: 1.61 | O54: 0.62 | P54: 0.31 | Q54: 0.18 | R54: 0.08 | T54: 8.01 | U54: 2.39 | V54: 1.6 | W54: 1.18 | X54: 0.47 | Y54: 0.23 | Z54: 0.13 | AA54: 0.07 | AC54: 4.06 | AD54: 1.33 | AE54: 0.97 | AF54: 0.72 | AG54: 0.3 | AH54: 0.15 | AI54: 0.09 | AJ54: 0.05 | AL54: 2.81 | AM54: 0.94 | AN54: 0.7 | AO54: 0.54 | AP54: 0.22 | AQ54: 0.11 | AR54: 0.06 | AS54: 0.04 | AU54: 0.01 | AV54: 0.03 | AW54: 0.05 | AX54: 0.07 | AY54: 0.09 | AZ54: 0.07 | BA54: 0.04 | BB54: 0.02 | BD54: 0 | BE54: 0.01 | BF54: 0.02 | BG54: 0.03 | BH54: 0.05 | BI54: 0.04 | BJ54: 0.03 | BK54: 0.01
A55: Palm Springs Airport | B55: 12.74 | C55: 3.89 | D55: 2.68 | E55: 1.99 | F55: 0.79 | G55: 0.41 | H55: 0.21 | I55: 0.08 | K55: 8.99 | L55: 2.67 | M55: 1.76 | N55: 1.34 | O55: 0.52 | P55: 0.27 | Q55: 0.15 | R55: 0.07 | T55: 7.1 | U55: 2.14 | V55: 1.38 | W55: 1.01 | X55: 0.4 | Y55: 0.2 | Z55: 0.12 | AA55: 0.06 | AC55: 4.28 | AD55: 1.36 | AE55: 0.92 | AF55: 0.67 | AG55: 0.27 | AH55: 0.14 | AI55: 0.08 | AJ55: 0.05 | AL55: 3.2 | AM55: 1.04 | AN55: 0.72 | AO55: 0.53 | AP55: 0.21 | AQ55: 0.11 | AR55: 0.06 | AS55: 0.04 | AU55: 0.01 | AV55: 0.03 | AW55: 0.04 | AX55: 0.06 | AY55: 0.08 | AZ55: 0.06 | BA55: 0.04 | BB55: 0.02 | BD55: 0 | BE55: 0.01 | BF55: 0.02 | BG55: 0.03 | BH55: 0.04 | BI55: 0.04 | BJ55: 0.03 | BK55: 0.01
A56: Riverside Airport | B56: 9.57 | C56: 3.37 | D56: 2.49 | E56: 1.91 | F56: 0.85 | G56: 0.45 | H56: 0.22 | I56: 0.09 | K56: 5.2 | L56: 1.92 | M56: 1.37 | N56: 1.06 | O56: 0.44 | P56: 0.25 | Q56: 0.16 | R56: 0.07 | T56: 3.47 | U56: 1.37 | V56: 0.99 | W56: 0.75 | X56: 0.31 | Y56: 0.17 | Z56: 0.12 | AA56: 0.06 | AC56: 1.07 | AD56: 0.54 | AE56: 0.49 | AF56: 0.4 | AG56: 0.19 | AH56: 0.11 | AI56: 0.07 | AJ56: 0.05 | AL56: 0.61 | AM56: 0.32 | AN56: 0.32 | AO56: 0.29 | AP56: 0.15 | AQ56: 0.08 | AR56: 0.05 | AS56: 0.03 | AU56: 0.01 | AV56: 0.03 | AW56: 0.06 | AX56: 0.08 | AY56: 0.09 | AZ56: 0.06 | BA56: 0.03 | BB56: 0.02 | BD56: 0 | BE56: 0.02 | BF56: 0.03 | BG56: 0.04 | BH56: 0.05 | BI56: 0.04 | BJ56: 0.02 | BK56: 0.01
A57: Santa Monica Airport | B57: 14.81 | C57: 3.77 | D57: 2.52 | E57: 1.81 | F57: 0.69 | G57: 0.34 | H57: 0.16 | I57: 0.06 | K57: 9.81 | L57: 2.53 | M57: 1.65 | N57: 1.21 | O57: 0.42 | P57: 0.21 | Q57: 0.11 | R57: 0.05 | T57: 7.41 | U57: 2.01 | V57: 1.31 | W57: 0.94 | X57: 0.33 | Y57: 0.15 | Z57: 0.09 | AA57: 0.04 | AC57: 4.21 | AD57: 1.28 | AE57: 0.92 | AF57: 0.67 | AG57: 0.24 | AH57: 0.11 | AI57: 0.06 | AJ57: 0.03 | AL57: 2.88 | AM57: 0.92 | AN57: 0.7 | AO57: 0.52 | AP57: 0.19 | AQ57: 0.09 | AR57: 0.04 | AS57: 0.02 | AU57: 0.01 | AV57: 0.03 | AW57: 0.07 | AX57: 0.1 | AY57: 0.1 | AZ57: 0.07 | BA57: 0.03 | BB57: 0.01 | BD57: 0 | BE57: 0.02 | BF57: 0.03 | BG57: 0.05 | BH57: 0.06 | BI57: 0.05 | BJ57: 0.03 | BK57: 0.01
A58: John Wayne Int'l Airport | B58: 14.14 | C58: 3.99 | D58: 2.61 | E58: 1.87 | F58: 0.69 | G58: 0.36 | H58: 0.18 | I58: 0.07 | K58: 9.34 | L58: 2.65 | M58: 1.67 | N58: 1.23 | O58: 0.42 | P58: 0.21 | Q58: 0.12 | R58: 0.06 | T58: 7.05 | U58: 2.07 | V58: 1.29 | W58: 0.92 | X58: 0.32 | Y58: 0.15 | Z58: 0.09 | AA58: 0.05 | AC58: 3.98 | AD58: 1.28 | AE58: 0.87 | AF58: 0.63 | AG58: 0.22 | AH58: 0.1 | AI58: 0.05 | AJ58: 0.03 | AL58: 2.82 | AM58: 0.94 | AN58: 0.67 | AO58: 0.49 | AP58: 0.18 | AQ58: 0.08 | AR58: 0.04 | AS58: 0.02 | AU58: 0.01 | AV58: 0.03 | AW58: 0.06 | AX58: 0.08 | AY58: 0.09 | AZ58: 0.06 | BA58: 0.03 | BB58: 0.01 | BD58: 0 | BE58: 0.02 | BF58: 0.03 | BG58: 0.04 | BH58: 0.05 | BI58: 0.04 | BJ58: 0.02 | BK58: 0.01
A59: Desert Hot Springs Airport | B59: 13.7 | C59: 4.14 | D59: 2.89 | E59: 2.15 | F59: 0.88 | G59: 0.49 | H59: 0.25 | I59: 0.1 | K59: 8.68 | L59: 2.65 | M59: 1.75 | N59: 1.34 | O59: 0.53 | P59: 0.29 | Q59: 0.18 | R59: 0.08 | T59: 6.41 | U59: 2.04 | V59: 1.33 | W59: 0.97 | X59: 0.39 | Y59: 0.2 | Z59: 0.14 | AA59: 0.07 | AC59: 3.54 | AD59: 1.23 | AE59: 0.85 | AF59: 0.62 | AG59: 0.25 | AH59: 0.13 | AI59: 0.08 | AJ59: 0.05 | AL59: 2.66 | AM59: 0.95 | AN59: 0.66 | AO59: 0.48 | AP59: 0.19 | AQ59: 0.1 | AR59: 0.06 | AS59: 0.04 | AU59: 0 | AV59: 0.02 | AW59: 0.04 | AX59: 0.05 | AY59: 0.06 | AZ59: 0.05 | BA59: 0.04 | BB59: 0.02 | BD59: 0 | BE59: 0.01 | BF59: 0.02 | BG59: 0.03 | BH59: 0.04 | BI59: 0.03 | BJ59: 0.02 | BK59: 0.01
A60: Van Nuys Airport | B60: 9.82 | C60: 2.82 | D60: 1.84 | E60: 1.32 | F60: 0.52 | G60: 0.28 | H60: 0.14 | I60: 0.06 | K60: 6.11 | L60: 1.78 | M60: 1.13 | N60: 0.83 | O60: 0.28 | P60: 0.15 | Q60: 0.09 | R60: 0.05 | T60: 4.45 | U60: 1.34 | V60: 0.85 | W60: 0.61 | X60: 0.21 | Y60: 0.1 | Z60: 0.06 | AA60: 0.04 | AC60: 2.36 | AD60: 0.79 | AE60: 0.55 | AF60: 0.4 | AG60: 0.15 | AH60: 0.07 | AI60: 0.04 | AJ60: 0.03 | AL60: 1.6 | AM60: 0.55 | AN60: 0.41 | AO60: 0.31 | AP60: 0.12 | AQ60: 0.06 | AR60: 0.03 | AS60: 0.02 | AU60: 0.01 | AV60: 0.04 | AW60: 0.06 | AX60: 0.07 | AY60: 0.06 | AZ60: 0.04 | BA60: 0.02 | BB60: 0.01 | BD60: 0.01 | BE60: 0.02 | BF60: 0.03 | BG60: 0.04 | BH60: 0.04 | BI60: 0.03 | BJ60: 0.02 | BK60: 0.01

Sheet Boiler
C2: NATURAL GAS BOILER DATA | H2: ="A/N "&Emissions!$E$7&", "&Emissions!$E$8 -> A/N 622795 (96, 97), Spear's Manufacturing Co.
C3: =Intro!A39 & " - " &Intro!A38 -> (Procedure Version 8.1 & Package N, September 1, 2017 ) - Risk Tool V1.105
C5: Max burner rating | E5: 500 | F5: MMBtu/hr
C6: Equipment w/ SNCR, SCR, or OTHER | E6: OTHER
C7: Fuel HHV | E7: 1050 | F7: btu/ft³
C8: Fuel rate | E8: =(E5*1000000)/E7 -> 476190.4762 | F8: ft³/hr
C9: MMCF fuel rate | E9: =E8/1000000 -> 0.4761904762 | F9: mmcf/hr
K11: Compound * | L11: CAS # | M11: Boiler Rating *
C12: Compound * | E12: EF (*) (lbs/mmcf) | F12: R1 (Uncontrolled) (lbs/hr) | G12: R2 (Controlled) (lbs/hr) | H12: Toxic NSR Entry (E-06 lbs/hr) | M12: <10 mmbtu/hr | N12: 10-100 mmbtu/hr | O12: >100 mmbtu/hr
H13: R1 (Uncontrolled) | I13: R2 (Controlled) | M13: EF(lbs/mmcf) | N13: EF(lbs/mmcf) | O13: EF(lbs/mmcf)
A14: A1 | C14: =VLOOKUP(A14,TAClist,2,FALSE) -> Acetaldehyde | E14: =IF(BoilerRating<10,M14, IF(AND(BoilerRating>=10, BoilerRating<=100 ),N14, O14)) -> 0.0009 | F14: =E14*$E$9 -> 0.0004285714286 | G14: =F14*(1-CombControlEfficiency) -> 0.0004285714286 | H14: =F14*1000000 -> 428.5714286 | I14: =G14*1000000 -> 428.5714286 | K14: Acetaldehyde | L14: 75-07-0 | M14: 0.0043 | N14: 0.0031 | O14: 0.0009
A15: A3 | C15: =VLOOKUP(A15,TAClist,2,FALSE) -> Acrolein | E15: 0.0008 | F15: =E15*$E$9 -> 0.000380952381 | G15: 0.000380952381 | H15: =F15*1000000 -> 380.952381 | I15: 380.952381 | K15: Acrolein | L15: 107-02-8 | M15: 0.0027 | N15: 0.0027 | O15: 0.0008
A16: A9 | C16: Ammonia | E16: 3.2 | F16: 1.523809524 | G16: 1.523809524 | H16: 1523809.524 | I16: 1523809.524 | K16: Ammonia | L16: 7664-41-7 | M16: =VLOOKUP($E$6,$K$27:$L$30,2,FALSE) -> 3.2 | N16: =VLOOKUP($E$6,$K$27:$L$30,2,FALSE) -> 3.2 | O16: =VLOOKUP($E$6,$K$27:$L$30,2,FALSE) -> 3.2
A17: B1 | C17: Benzene | E17: 0.0017 | F17: 0.0008095238095 | G17: 0.0008095238095 | H17: 809.5238095 | I17: 809.5238095 | K17: Benzene (including from gasoline) | L17: 71-43-2 | M17: 0.008 | N17: 0.0058 | O17: 0.0017
A18: E3 | C18: Ethyl Benzene | E18: 0.002 | F18: 0.0009523809524 | G18: 0.0009523809524 | H18: 952.3809524 | I18: 952.3809524 | K18: Ethyl benzene | L18: 100-41-4 | M18: 0.0095 | N18: 0.0069 | O18: 0.002
A19: F2 | C19: Formaldehyde | E19: 0.0036 | F19: 0.001714285714 | G19: 0.001714285714 | H19: 1714.285714 | I19: 1714.285714 | K19: Formaldehyde | L19: 50-00-0 | M19: 0.017 | N19: 0.0123 | O19: 0.0036
A20: H6 | C20: n-Hexane | E20: 0.0013 | F20: 0.000619047619 | G20: 0.000619047619 | H20: 619.047619 | I20: 619.047619 | K20: Hexane (n-) | L20: 110-54-3 | M20: 0.0063 | N20: 0.0046 | O20: 0.0013
A21: P41 | C21: Polycyclic Aromatic Hydrocarbon (PAH) | E21: 0.0001 | F21: 4.761904762e-05 | G21: 4.761904762e-05 | H21: 47.61904762 | I21: 47.61904762 | K21: Polycyclic Aromatic Hydrocarbons (PAHs) | L21: 1151 | M21: 0.0001 | N21: 0.0001 | O21: 0.0001
A22: P62 | C22: Naphthalene | E22: 0.0003 | F22: 0.0001428571429 | G22: 0.0001428571429 | H22: 142.8571429 | I22: 142.8571429 | K22: Napthalene | L22: 91-20-3 | M22: 0.0003 | N22: 0.0003 | O22: 0.0003
A23: T3 | C23: Toluene | E23: 0.0078 | F23: 0.003714285714 | G23: 0.003714285714 | H23: 3714.285714 | I23: 3714.285714 | K23: Toluene (methyl benzene) | L23: 108-88-3 | M23: 0.0366 | N23: 0.0265 | O23: 0.0078
A24: X1 | C24: Xylenes (Mixed Isomers) | E24: 0.0058 | F24: 0.002761904762 | G24: 0.002761904762 | H24: 2761.904762 | I24: 2761.904762 | K24: Xylenes (isomers and mixtures) | L24: 1330-20-7 | M24: 0.0272 | N24: 0.0197 | O24: 0.0058
C25: * Data from AB2588 Reporting Procedure - Dec 2014 | K25: * Data from AB2588 Reporting Procedure - Dec 2014
K27: CONTROL | L27: Ammonia EF (lb/mmcf)
K28: SNCR | L28: 18
K29: SCR | L29: 9.1
K30: OTHER | L30: 3.2
K31: Note: Select "OTHER" when there is no control or when the control type is not SNCR or SCR

Sheet Crematory
C2: CREMATORY INPUT DATA | H2: ='Tier 1 Report'!C8 -> A/N 622795 (96, 97), Spear's Manufacturing Co.
C3: =Intro!A39 & " - " &Intro!A38 -> (Procedure Version 8.1 & Package N, September 1, 2017 ) - Risk Tool V1.105
C6: Crematory Type (Human or Animal) | E6: Human Cremation
C7: Maximum Burn Rate | E7: 150 | G7: lbs/hr | L7: Crematory Emissions Factors (USEPA Final 1999 Non Point HAP Source Estimates, August 26, 2003)
C8: Combustion Control Efficiency | E8: =CombControlEfficiency -> 0
B11: Code | C11: Compound | E11: EF (lbs/ton) | F11: R1 (Uncontrolled) (lbs/hr) | G11: R2 (Controlled) (lbs/hr) | H11: NSR Data Entry (E-06 lbs/hr) | N11: Human Cremation | O11: Animal Cremation
H12: R1 (Uncontrolled) | I12: R2 (Controlled) | L12: Compound | M12: CAS # | N12: EF(lbs/ton) | O12: EF(lbs/ton)
B13: A11 | C13: =VLOOKUP(B13,TAClist,2,FALSE) -> Arsenic and Compounds (Inorganic) | E13: =IF(E$6="Human Cremation",N13,O13) -> 0.0004 | F13: =E13*$E$7/2000 -> 3e-05 | G13: =F13*(1-CombControlEfficiency) -> 3e-05 | H13: =F13*1000000 -> 30 | I13: 30 | L13: Arsenic and arsenic compounds (inorganic) | M13: 7440-38-2 | N13: 0.0004 | O13: 0.0004
B14: B8 | C14: Beryllium and Compounds | E14: =IF(E$6="Human Cremation",N14,O14) -> 1.84e-05 | F14: =E14*$E$7/2000 -> 1.38e-06 | G14: 1.38e-06 | H14: 1.38 | I14: 1.38 | L14: Beryllium and beryllium compounds | M14: 7440-41-7 | N14: 1.84e-05 | O14: 1.84e-05
B15: C1 | C15: Cadmium and Compounds | E15: 0.00146 | F15: 0.0001095 | G15: 0.0001095 | H15: 109.5 | I15: 109.5 | L15: Cadmium and cadmium compounds | M15: 7440-43-9 | N15: 0.00146 | O15: 0.00146
B16: C16 | C16: Chromium 6+ | E16: 0.000191 | F16: 1.4325e-05 | G16: 1.4325e-05 | H16: 14.325 | I16: 14.325 | L16: Chromium, hexavalent* | M16: 18540-29-9 | N16: =0.000191 -> 0.000191 | O16: =0.000191 -> 0.000191
B17: P30 | C17: Polychlorinated Dibenzofurans (PCDF) | E17: 1.43e-07 | F17: 1.0725e-08 | G17: 1.0725e-08 | H17: 0.010725 | I17: 0.010725 | L17: Polychlorinated Dibenzofurans (PCDF) (as 2,3,7,8-Eqiv) and total | M17: 1080 | N17: 1.43e-07 | O17: 1.43e-07
B18: P23 | C18: 2,3,7,8-Tetrachlorodibenzo-p-Dioxin | E18: 7.74e-08 | F18: 5.805e-09 | G18: 5.805e-09 | H18: 0.005805 | I18: 0.005805 | L18: Polychlorinated Dibenzo-p-Dioxins (PCDD) (as 2,3,7,8-Eqiv) and total | M18: 1086 | N18: 7.74e-08 | O18: 7.74e-08
B19: F2 | C19: Formaldehyde | E19: 2.89e-09 | F19: 2.1675e-10 | G19: 2.1675e-10 | H19: 0.00021675 | I19: 0.00021675 | L19: Formaldehyde | M19: 50-00-0 | N19: 2.89e-09 | O19: 2.89e-09
B20: H9 | C20: Hydrochloric Acid (Hydrogen Chloride) | E20: 1.97 | F20: 0.14775 | G20: 0.14775 | H20: 147750 | I20: 147750 | L20: Hydrogen chloride (hydrochloric acid) | M20: 7647-01-0 | N20: 1.97 | O20: 1.97
B21: L1 | C21: Lead and Compounds (Inorganic) | E21: 0.00939 | F21: 0.00070425 | G21: 0.00070425 | H21: 704.25 | I21: 704.25 | L21: Lead and compounds (inorganic, including elemental lead) | M21: 7439-92-1 | N21: 0.00939 | O21: 0.00939
B22: N12 | C22: Nickel and Compounds | E22: 0.000509 | F22: 3.8175e-05 | G22: 3.8175e-05 | H22: 38.175 | I22: 38.175 | L22: Nickel & compounds (except nickel oxide): | M22: 7440-02-0 | N22: 0.000509 | O22: 0.000509
B23: M3 | C23: Mercury and Compounds (Inorganic) | E23: 0.00532 | F23: 0.000399 | G23: 0.000399 | H23: 399 | I23: 399 | L23: Mercury and mercury compounds (inorganic) | M23: 7439-97-6 | N23: 0.00532 | O23: 0
B24: P41 | C24: Polycyclic Aromatic Hydrocarbon (PAH) | E24: 0.000963 | F24: 7.2225e-05 | G24: 7.2225e-05 | H24: 72.225 | I24: 72.225 | L24: Polycyclic Aromatic Hydrocarbons (PAHs) | M24: 1151 | N24: 0.000963 | O24: 0.000963
L26: * Emission factor from EPA is for Total Chrome. Hex. Chrome emission factor is from San Diego APCD

Sheet Crematory Calc (hidden)
B1: Look up for Crematory X/Q Data
B3: Station | C3: =Emissions!$E$22 -> Van Nuys Airport | F3: Interpolation for X/Q from Nearest Distances | L3: Interpolation New Distance for Cancer Burden Calculation
B4: Operating Hours (hrs/day) | C4: =HoursPerDay -> 24 | H4: Area: | I4: =BuildingArea -> 5000 | J4: row: | K4: =T4-1 -> 1 | R4: Building Area [ft2] | S4: Lookup Row | T4: =MIN(T5:T8) -> 2
B5: X/Q (residential) | C5: =$G$8 -> 0.4235 | G5: Residential | J5: Industrial | L5: X/Q for one-in-a-million | Q5: <5000 | R5: 5000 | S5: 1 | T5: =IF(BuildingArea<R5,S5,"No") -> No
B6: X/Q (industrial) | C6: =$J$8 -> 0.1585 | F6: near | G6: actual | H6: far | I6: near | J6: actual | K6: far | L6: near | M6: actual | N6: far | Q6: ≥ 5,000 to 10,000 | R6: 10000 | S6: 2 | T6: =IF(BuildingArea>=R5,IF(BuildingArea<R6,S6,"No")) -> 2
B7: X/Q max acute (residential) | C7: =G9 -> 24.6089 | E7: Distance (m) | F7: =IF(G7<25,25,HLOOKUP(G7,table4_c,1,TRUE)) -> 100 | G7: =Emissions!E20 -> 157 | H7: =IF(G7<25,25,IF(G7>=1000,1000,IF(G7=HLOOKUP(G7,table4_c,1,TRUE),G7,INDEX(table4_c,1,MATCH(G7,C15:J15,1))))) -> 200 | I7: =IF(J7<25,25,HLOOKUP(J7,table4_c,1,TRUE)) -> 200 | J7: =Emissions!E21 -> 265 | K7: =IF(J7<25,25,IF(J7>=1000,1000,IF(J7=HLOOKUP(J7,table4_c,1,TRUE),J7,INDEX(table4_c,1,MATCH(J7,D15:K15,1)+1)))) -> 300 | L7: =IF(HoursPerDay<=12,VLOOKUP($K$4,$A$16:$S$18,17,FALSE),VLOOKUP($K$4,$A$23:$S$25,17,FALSE)) -> 1000 | M7: =IF(L7="","",IF(N7=L7,N7,L7-(L8-M8)/(L8-N8)*(L7-N7))) -> 1000 | N7: =IF(HoursPerDay<=12,VLOOKUP($K$4,$A$16:$S$18,19,FALSE),VLOOKUP($K$4,$A$23:$S$25,19,FALSE)) -> 1000 | Q7: > 10,000 to 15,000 | R7: 15000 | S7: 3 | T7: =IF(BuildingArea>=R6,IF(BuildingArea<R7,S7,"No")) -> FALSE
B8: X/Q max acute (industrial) | C8: =J9 -> 10.1685 | E8: X/Q | F8: =IF(C4<=12,HLOOKUP(F7,table4_c,$K$4+1,TRUE),HLOOKUP(F7,table5_c,$K$4+1,TRUE)) -> 0.68 | G8: =IF(F8=H8,F8,F8-(((G7-F7)/(H7-F7))*(F8-H8))) -> 0.4235 | H8: =IF(C4<=12,HLOOKUP(H7,table4_c,$K$4+1,TRUE),HLOOKUP(H7,table5_c,$K$4+1,TRUE)) -> 0.23 | I8: =IF(C4<=12,HLOOKUP(I7,table4_c,$K$4+1,TRUE),HLOOKUP(I7,table5_c,$K$4+1,TRUE)) -> 0.23 | J8: =IF(I8=K8,I8,I8-(((J7-I7)/(K7-I7))*(I8-K8))) -> 0.1585 | K8: =IF(C4<=12,HLOOKUP(K7,table4_c,$K$4+1,TRUE),HLOOKUP(K7,table5_c,$K$4+1,TRUE)) -> 0.12 | L8: =IF(HoursPerDay<=12,VLOOKUP($K$4,$A$16:$S$18,16,FALSE),VLOOKUP($K$4,$A$23:$S$25,16,FALSE)) -> 0.04 | M8: ='Tier 2 Report'!N152 -> 0 | N8: =IF(HoursPerDay<=12,VLOOKUP($K$4,$A$16:$S$18,18,FALSE),VLOOKUP($K$4,$A$23:$S$25,18,FALSE)) -> 0 | Q8: > 15,000 | S8: 4 | T8: =IF(BuildingArea>R7,S8,"No") -> No
E9: X/Q Max | F9: =HLOOKUP(F7,table6_c,$K$4+1,TRUE) -> 37.28 | G9: =IF(F9=H9,F9,F9-(((G7-F7)/(H7-F7))*(F9-H9))) -> 24.6089 | H9: =HLOOKUP(H7,table6_c,$K$4+1,TRUE) -> 15.05 | I9: =HLOOKUP(I7,table6_c,$K$4+1,TRUE) -> 15.05 | J9: =IF(I9=K9,I9,I9-(((J7-I7)/(K7-I7))*(I9-K9))) -> 10.1685 | K9: =HLOOKUP(K7,table6_c,$K$4+1,TRUE) -> 7.54
B13: Table 11A Crematory operating 12 hrs/day or less (µg/m³)/(tons/yr)
B14: Source Dimensions | D14: Downwind Distance (meters)
A15: Row | B15: Area (ft2) | C15: Height (ft) | D15: 25 | E15: 50 | F15: 75 | G15: 100 | H15: 200 | I15: 300 | J15: 500 | K15: 1000 | P15: Nearest X/Q - high | Q15: nearest dist - low | R15: Nearest X/Q- low | S15: nearest dist - high | U15: Column | V15: Dist
A16: 1 | B16: ≥ 5,000 to 10,000 | C16: Any | D16: =VLOOKUP($C$3,CrematoryLessThan12,2,FALSE) -> 11.52 | E16: =VLOOKUP($C$3,CrematoryLessThan12,3,FALSE) -> 3.27 | F16: =VLOOKUP($C$3,CrematoryLessThan12,4,FALSE) -> 2.03 | G16: =VLOOKUP($C$3,CrematoryLessThan12,5,FALSE) -> 1.37 | H16: =VLOOKUP($C$3,CrematoryLessThan12,6,FALSE) -> 0.39 | I16: =VLOOKUP($C$3,CrematoryLessThan12,7,FALSE) -> 0.16 | J16: =VLOOKUP($C$3,CrematoryLessThan12,8,FALSE) -> 0.06 | K16: =VLOOKUP($C$3,CrematoryLessThan12,9,FALSE) -> 0.01 | P16: =INDEX($D16:$L16,1,MATCH($M$8,$D16:$K16,-1)) -> 0.01 | Q16: =VLOOKUP(MATCH(P16,$D16:$K16,0),$U$16:$V$23,2,FALSE) -> 1000 | R16: =INDEX($D16:$L16,1,1+MATCH($M$8,$D16:$L16,-1)) -> 0 | S16: =IF(R16=0,Q16,VLOOKUP(MATCH(R16,$D16:$K16,0),$U$17:$V$24,2,FALSE)) -> 1000 | U16: 1 | V16: 25
A17: 2 | B17: > 10,000 to 15,000 | C17: Any | D17: =VLOOKUP($C$3,CrematoryLessThan12,11,FALSE) -> 12.48 | E17: =VLOOKUP($C$3,CrematoryLessThan12,12,FALSE) -> 3.59 | F17: =VLOOKUP($C$3,CrematoryLessThan12,13,FALSE) -> 2.2 | G17: =VLOOKUP($C$3,CrematoryLessThan12,14,FALSE) -> 1.48 | H17: =VLOOKUP($C$3,CrematoryLessThan12,15,FALSE) -> 0.41 | I17: =VLOOKUP($C$3,CrematoryLessThan12,16,FALSE) -> 0.16 | J17: =VLOOKUP($C$3,CrematoryLessThan12,17,FALSE) -> 0.06 | K17: =VLOOKUP($C$3,CrematoryLessThan12,18,FALSE) -> 0.01 | P17: =INDEX($D17:$K17,1,MATCH($M$8,$D17:$K17,-1)) -> 0.01 | Q17: =VLOOKUP(MATCH(P17,$D17:$K17,0),$U$16:$V$23,2,FALSE) -> 1000 | R17: =INDEX($D17:$L17,1,1+MATCH($M$8,$D17:$L17,-1)) -> 0 | S17: =IF(R17=0,Q17,VLOOKUP(MATCH(R17,$D17:$K17,0),$U$17:$V$24,2,FALSE)) -> 1000 | U17: 2 | V17: 50
A18: 3 | B18: > 15,000 | C18: Any | D18: =VLOOKUP($C$3,CrematoryLessThan12,20,FALSE) -> 12.72 | E18: =VLOOKUP($C$3,CrematoryLessThan12,21,FALSE) -> 3.75 | F18: =VLOOKUP($C$3,CrematoryLessThan12,22,FALSE) -> 2.27 | G18: =VLOOKUP($C$3,CrematoryLessThan12,23,FALSE) -> 1.52 | H18: =VLOOKUP($C$3,CrematoryLessThan12,24,FALSE) -> 0.41 | I18: =VLOOKUP($C$3,CrematoryLessThan12,25,FALSE) -> 0.16 | J18: =VLOOKUP($C$3,CrematoryLessThan12,26,FALSE) -> 0.06 | K18: =VLOOKUP($C$3,CrematoryLessThan12,27,FALSE) -> 0.01 | P18: =INDEX($D18:$K18,1,MATCH($M$8,$D18:$K18,-1)) -> 0.01 | Q18: =VLOOKUP(MATCH(P18,$D18:$K18,0),$U$16:$V$23,2,FALSE) -> 1000 | R18: =INDEX($D18:$L18,1,1+MATCH($M$8,$D18:$L18,-1)) -> 0 | S18: =IF(R18=0,Q18,VLOOKUP(MATCH(R18,$D18:$K18,0),$U$17:$V$24,2,FALSE)) -> 1000 | U18: 3 | V18: 75
U19: 4 | V19: 100
B20: Table 11B Crematory operating more than 12 hrs/day (µg/m³)/(tons/yr) | U20: 5 | V20: 200
B21: Source Dimensions | F21: Downwind Distance (meters) | U21: 6 | V21: 300
A22: Row | B22: Area (ft2) | C22: Height (ft) | D22: 25 | E22: 50 | F22: 75 | G22: 100 | H22: 200 | I22: 300 | J22: 500 | K22: 1000 | P22: Nearest X/Q - high | Q22: nearest dist - low | R22: Nearest X/Q- low | S22: nearest dist - high | U22: 7 | V22: 500
A23: 1 | B23: ≥ 5,000 to 10,000 | C23: Any | D23: =VLOOKUP($C$3,CrematoryMoreThan12,2,FALSE) -> 6.12 | E23: =VLOOKUP($C$3,CrematoryMoreThan12,3,FALSE) -> 1.65 | F23: =VLOOKUP($C$3,CrematoryMoreThan12,4,FALSE) -> 0.99 | G23: =VLOOKUP($C$3,CrematoryMoreThan12,5,FALSE) -> 0.68 | H23: =VLOOKUP($C$3,CrematoryMoreThan12,6,FALSE) -> 0.23 | I23: =VLOOKUP($C$3,CrematoryMoreThan12,7,FALSE) -> 0.12 | J23: =VLOOKUP($C$3,CrematoryMoreThan12,8,FALSE) -> 0.07 | K23: =VLOOKUP($C$3,CrematoryMoreThan12,9,FALSE) -> 0.04 | P23: =INDEX($D23:$K23,1,MATCH($M$8,$D23:$K23,-1)) -> 0.04 | Q23: =VLOOKUP(MATCH(P23,$D23:$K23,0),$U$16:$V$23,2,FALSE) -> 1000 | R23: =INDEX($D23:$L23,1,1+MATCH($M$8,$D23:$L23,-1)) -> 0 | S23: =IF(R23=0,Q23,VLOOKUP(MATCH(R23,$D23:$K23,0),$U$17:$V$24,2,FALSE)) -> 1000 | U23: 8 | V23: 1000
A24: 2 | B24: > 10,000 to 15,000 | C24: Any | D24: =VLOOKUP($C$3,CrematoryMoreThan12,11,FALSE) -> 7.57 | E24: =VLOOKUP($C$3,CrematoryMoreThan12,12,FALSE) -> 2.18 | F24: =VLOOKUP($C$3,CrematoryMoreThan12,13,FALSE) -> 1.27 | G24: =VLOOKUP($C$3,CrematoryMoreThan12,14,FALSE) -> 0.85 | H24: =VLOOKUP($C$3,CrematoryMoreThan12,15,FALSE) -> 0.28 | I24: =VLOOKUP($C$3,CrematoryMoreThan12,16,FALSE) -> 0.12 | J24: =VLOOKUP($C$3,CrematoryMoreThan12,17,FALSE) -> 0.07 | K24: =VLOOKUP($C$3,CrematoryMoreThan12,18,FALSE) -> 0.04 | P24: =INDEX($D24:$K24,1,MATCH($M$8,$D24:$K24,-1)) -> 0.04 | Q24: =VLOOKUP(MATCH(P24,$D24:$K24,0),$U$16:$V$23,2,FALSE) -> 1000 | R24: =INDEX($D24:$L24,1,1+MATCH($M$8,$D24:$L24,-1)) -> 0 | S24: =IF(R24=0,Q24,VLOOKUP(MATCH(R24,$D24:$K24,0),$U$17:$V$24,2,FALSE)) -> 1000
A25: 3 | B25: > 15,000 | C25: Any | D25: =VLOOKUP($C$3,CrematoryMoreThan12,20,FALSE) -> 8.48 | E25: =VLOOKUP($C$3,CrematoryMoreThan12,21,FALSE) -> 2.54 | F25: =VLOOKUP($C$3,CrematoryMoreThan12,22,FALSE) -> 1.47 | G25: =VLOOKUP($C$3,CrematoryMoreThan12,23,FALSE) -> 0.97 | H25: =VLOOKUP($C$3,CrematoryMoreThan12,24,FALSE) -> 0.3 | I25: =VLOOKUP($C$3,CrematoryMoreThan12,25,FALSE) -> 0.13 | J25: =VLOOKUP($C$3,CrematoryMoreThan12,26,FALSE) -> 0.07 | K25: =VLOOKUP($C$3,CrematoryMoreThan12,27,FALSE) -> 0.04 | P25: =INDEX($D25:$K25,1,MATCH($M$8,$D25:$K25,-1)) -> 0.04 | Q25: =VLOOKUP(MATCH(P25,$D25:$K25,0),$U$16:$V$23,2,FALSE) -> 1000 | R25: =INDEX($D25:$L25,1,1+MATCH($M$8,$D25:$L25,-1)) -> 0 | S25: =IF(R25=0,Q25,VLOOKUP(MATCH(R25,$D25:$K25,0),$U$17:$V$24,2,FALSE)) -> 1000
B27: Table 11.4 Dispersion Factors (X/Q) for Acute Hazard Index
B28: All Operating Conditions X/Q Values [(µg/m³)/(lbs/hr)]
B29: Source Dimensions | F29: Downwind Distance (meters)
A30: Row | B30: Area (ft2) | C30: Height (ft) | D30: 25 | E30: 50 | F30: 75 | G30: 100 | H30: 200 | I30: 300 | J30: 500 | K30: 1000
A31: 1 | B31: ≥ 5,000 to 10,000 | C31: Any | D31: 265 | E31: 72.63 | F31: 48.55 | G31: 37.28 | H31: 15.05 | I31: 7.54 | J31: 3.64 | K31: 1.88
A32: 2 | B32: > 10,000 to 15,000 | C32: Any | D32: 258.1 | E32: 69.72 | F32: 47.65 | G32: 36.2 | H32: 15.12 | I32: 7.57 | J32: 3.64 | K32: 1.88
A33: 3 | B33: > 15,000 | C33: Any | D33: 230.5 | E33: 71.3 | F33: 49.3 | G33: 37.13 | H33: 14.98 | I33: 7.49 | J33: 3.64 | K33: 1.88
B34: *Note: Facilities with building dimensions outside the ranges here must perform Tier 3 or 4 dispersion modeling

Sheet Crematory data (hidden)
A1: Table 11A Dispersion Factors (X/Q) for Crematory Operating 12 Hours per Day or Less
A2: Units are in (ug/m3)/(tons/yr) | B2: Building Area ≥ 5,000 to ≤ 10,000 ft2 | K2: Building Area > 10,000 to ≤ 15,000 ft2 | T2: Building Area > 15,000 ft2
B3: Downwind Distance (meters) | K3: Downwind Distance (meters) | T3: Downwind Distance (meters)
A4: Location | B4: 25 | C4: 50 | D4: 75 | E4: 100 | F4: 200 | G4: 300 | H4: 500 | I4: 1000 | K4: 25 | L4: 50 | M4: 75 | N4: 100 | O4: 200 | P4: 300 | Q4: 500 | R4: 1000 | T4: 25 | U4: 50 | V4: 75 | W4: 100 | X4: 200 | Y4: 300 | Z4: 500 | AA4: 1000
A5: Azusa | B5: 5.19 | C5: 2.52 | D5: 1.65 | E5: 1.11 | F5: 0.28 | G5: 0.11 | H5: 0.04 | I5: 0.01 | K5: 7.34 | L5: 2.79 | M5: 1.81 | N5: 1.21 | O5: 0.31 | P5: 0.11 | Q5: 0.04 | R5: 0.01 | T5: 8.67 | U5: 3 | V5: 1.9 | W5: 1.27 | X5: 0.31 | Y5: 0.12 | Z5: 0.04 | AA5: 0.01
A6: Banning | B6: 16.83 | C6: 4.62 | D6: 2.67 | E6: 1.75 | F6: 0.48 | G6: 0.19 | H6: 0.07 | I6: 0.02 | K6: 19.94 | L6: 4.86 | M6: 2.82 | N6: 1.84 | O6: 0.51 | P6: 0.2 | Q6: 0.07 | R6: 0.02 | T6: 19.23 | U6: 4.94 | V6: 2.87 | W6: 1.88 | X6: 0.52 | Y6: 0.2 | Z6: 0.07 | AA6: 0.02
A7: Central L.A. | B7: 8 | C7: 2.76 | D7: 1.7 | E7: 1.1 | F7: 0.28 | G7: 0.11 | H7: 0.04 | I7: 0.01 | K7: 10.43 | L7: 3.01 | M7: 1.86 | N7: 1.2 | O7: 0.3 | P7: 0.11 | Q7: 0.04 | R7: 0.01 | T7: 11.56 | U7: 3.23 | V7: 1.96 | W7: 1.27 | X7: 0.31 | Y7: 0.11 | Z7: 0.04 | AA7: 0.01
A8: Lake Elsinore | B8: 3.29 | C8: 1.56 | D8: 1.09 | E8: 0.77 | F8: 0.22 | G8: 0.09 | H8: 0.03 | I8: 0.01 | K8: 4.53 | L8: 1.73 | M8: 1.18 | N8: 0.82 | O8: 0.23 | P8: 0.09 | Q8: 0.03 | R8: 0.01 | T8: 5.14 | U8: 1.82 | V8: 1.22 | W8: 0.84 | X8: 0.23 | Y8: 0.09 | Z8: 0.03 | AA8: 0.01
A9: Fontana | B9: 10.51 | C9: 3.28 | D9: 2.09 | E9: 1.4 | F9: 0.38 | G9: 0.15 | H9: 0.06 | I9: 0.01 | K9: 12.5 | L9: 3.61 | M9: 2.26 | N9: 1.51 | O9: 0.4 | P9: 0.16 | Q9: 0.06 | R9: 0.01 | T9: 13.06 | U9: 3.8 | V9: 2.34 | W9: 1.56 | X9: 0.41 | Y9: 0.16 | Z9: 0.06 | AA9: 0.01
A10: Mission Viejo | B10: 4.09 | C10: 2.01 | D10: 1.35 | E10: 0.91 | F10: 0.24 | G10: 0.1 | H10: 0.04 | I10: 0.01 | K10: 6.07 | L10: 2.22 | M10: 1.48 | N10: 0.99 | O10: 0.25 | P10: 0.1 | Q10: 0.04 | R10: 0.01 | T10: 7.37 | U10: 2.36 | V10: 1.54 | W10: 1.03 | X10: 0.26 | Y10: 0.1 | Z10: 0.04 | AA10: 0.01
A11: Perris | B11: 7.5 | C11: 2.28 | D11: 1.47 | E11: 1.02 | F11: 0.3 | G11: 0.12 | H11: 0.05 | I11: 0.01 | K11: 8.3 | L11: 2.5 | M11: 1.58 | N11: 1.08 | O11: 0.31 | P11: 0.13 | Q11: 0.05 | R11: 0.01 | T11: 8.53 | U11: 2.58 | V11: 1.62 | W11: 1.11 | X11: 0.32 | Y11: 0.13 | Z11: 0.05 | AA11: 0.01
A12: Pico Rivera | B12: 9.36 | C12: 3.09 | D12: 1.93 | E12: 1.28 | F12: 0.33 | G12: 0.13 | H12: 0.05 | I12: 0.01 | K12: 11.92 | L12: 3.44 | M12: 2.11 | N12: 1.39 | O12: 0.35 | P12: 0.13 | Q12: 0.05 | R12: 0.01 | T12: 12.97 | U12: 3.63 | V12: 2.2 | W12: 1.44 | X12: 0.36 | Y12: 0.14 | Z12: 0.05 | AA12: 0.01
A13: Redlands | B13: 4.85 | C13: 2.51 | D13: 1.65 | E13: 1.1 | F13: 0.28 | G13: 0.12 | H13: 0.04 | I13: 0.01 | K13: 7.22 | L13: 2.74 | M13: 1.8 | N13: 1.21 | O13: 0.31 | P13: 0.12 | Q13: 0.04 | R13: 0.01 | T13: 8.51 | U13: 2.95 | V13: 1.88 | W13: 1.26 | X13: 0.32 | Y13: 0.12 | Z13: 0.04 | AA13: 0.01
A14: Upland | B14: 9.11 | C14: 3.33 | D14: 2.17 | E14: 1.47 | F14: 0.39 | G14: 0.16 | H14: 0.06 | I14: 0.02 | K14: 12.04 | L14: 3.67 | M14: 2.36 | N14: 1.6 | O14: 0.42 | P14: 0.16 | Q14: 0.06 | R14: 0.02 | T14: 13.29 | U14: 3.96 | V14: 2.47 | W14: 1.66 | X14: 0.43 | Y14: 0.16 | Z14: 0.06 | AA14: 0.02
A15: Burbank Airport | B15: 11.72 | C15: 3.97 | D15: 2.44 | E15: 1.65 | F15: 0.45 | G15: 0.19 | H15: 0.07 | I15: 0.02 | K15: 16.96 | L15: 4.32 | M15: 2.64 | N15: 1.77 | O15: 0.49 | P15: 0.19 | Q15: 0.07 | R15: 0.02 | T15: 17.29 | U15: 4.64 | V15: 2.74 | W15: 1.84 | X15: 0.5 | Y15: 0.19 | Z15: 0.07 | AA15: 0.02
A16: Chino Airport. | B16: 13.44 | C16: 3.8 | D16: 2.31 | E16: 1.56 | F16: 0.45 | G16: 0.19 | H16: 0.07 | I16: 0.02 | K16: 14.75 | L16: 4.04 | M16: 2.44 | N16: 1.63 | O16: 0.47 | P16: 0.19 | Q16: 0.07 | R16: 0.02 | T16: 14.78 | U16: 4.19 | V16: 2.51 | W16: 1.68 | X16: 0.48 | Y16: 0.19 | Z16: 0.07 | AA16: 0.02
A17: USC/Downtown L.A. | B17: 4.2 | C17: 2.5 | D17: 1.74 | E17: 1.23 | F17: 0.33 | G17: 0.13 | H17: 0.05 | I17: 0.01 | K17: 7.22 | L17: 2.82 | M17: 1.93 | N17: 1.35 | O17: 0.37 | P17: 0.14 | Q17: 0.05 | R17: 0.01 | T17: 8.71 | U17: 3.13 | V17: 2.06 | W17: 1.43 | X17: 0.38 | Y17: 0.14 | Z17: 0.05 | AA17: 0.01
A18: Fullerton Airport | B18: 10.9 | C18: 3.23 | D18: 2.1 | E18: 1.44 | F18: 0.41 | G18: 0.16 | H18: 0.06 | I18: 0.02 | K18: 12.79 | L18: 3.64 | M18: 2.31 | N18: 1.57 | O18: 0.43 | P18: 0.16 | Q18: 0.06 | R18: 0.02 | T18: 13.56 | U18: 3.85 | V18: 2.41 | W18: 1.63 | X18: 0.44 | Y18: 0.17 | Z18: 0.06 | AA18: 0.02
A19: Hawthorne Airport | B19: 20.21 | C19: 5.26 | D19: 3.11 | E19: 2.05 | F19: 0.54 | G19: 0.21 | H19: 0.08 | I19: 0.02 | K19: 22.42 | L19: 5.47 | M19: 3.26 | N19: 2.15 | O19: 0.58 | P19: 0.22 | Q19: 0.08 | R19: 0.02 | T19: 21.59 | U19: 5.56 | V19: 3.31 | W19: 2.19 | X19: 0.59 | Y19: 0.22 | Z19: 0.08 | AA19: 0.02
A20: Los Angeles Int'l Airport | B20: 23.17 | C20: 6.76 | D20: 4.09 | E20: 2.76 | F20: 0.78 | G20: 0.31 | H20: 0.11 | I20: 0.03 | K20: 26.64 | L20: 6.87 | M20: 4.16 | N20: 2.82 | O20: 0.82 | P20: 0.32 | Q20: 0.11 | R20: 0.03 | T20: 24.86 | U20: 6.91 | V20: 4.18 | W20: 2.84 | X20: 0.83 | Y20: 0.32 | Z20: 0.11 | AA20: 0.03
A21: Long Beach Airport | B21: 10.44 | C21: 3.26 | D21: 2.09 | E21: 1.46 | F21: 0.42 | G21: 0.17 | H21: 0.06 | I21: 0.02 | K21: 13.42 | L21: 3.59 | M21: 2.24 | N21: 1.55 | O21: 0.45 | P21: 0.18 | Q21: 0.06 | R21: 0.02 | T21: 13.82 | U21: 3.82 | V21: 2.34 | W21: 1.6 | X21: 0.46 | Y21: 0.18 | Z21: 0.06 | AA21: 0.02
A22: Ontario Airport | B22: 16.09 | C22: 4.48 | D22: 2.79 | E22: 1.9 | F22: 0.55 | G22: 0.23 | H22: 0.08 | I22: 0.02 | K22: 17.19 | L22: 4.83 | M22: 2.96 | N22: 2.01 | O22: 0.58 | P22: 0.23 | Q22: 0.08 | R22: 0.02 | T22: 17.3 | U22: 5.06 | V22: 3.05 | W22: 2.07 | X22: 0.59 | Y22: 0.23 | Z22: 0.08 | AA22: 0.02
A23: Palm Springs Airport | B23: 6.54 | C23: 2.21 | D23: 1.48 | E23: 1.03 | F23: 0.3 | G23: 0.12 | H23: 0.04 | I23: 0.01 | K23: 8.14 | L23: 2.49 | M23: 1.62 | N23: 1.12 | O23: 0.32 | P23: 0.13 | Q23: 0.04 | R23: 0.01 | T23: 9.02 | U23: 2.7 | V23: 1.71 | W23: 1.17 | X23: 0.32 | Y23: 0.13 | Z23: 0.04 | AA23: 0.01
A24: Riverside Airport | B24: 9.82 | C24: 3.77 | D24: 2.42 | E24: 1.67 | F24: 0.46 | G24: 0.19 | H24: 0.07 | I24: 0.02 | K24: 14.72 | L24: 4.09 | M24: 2.6 | N24: 1.79 | O24: 0.51 | P24: 0.2 | Q24: 0.07 | R24: 0.02 | T24: 15.2 | U24: 4.34 | V24: 2.72 | W24: 1.86 | X24: 0.52 | Y24: 0.2 | Z24: 0.07 | AA24: 0.02
A25: Santa Monica Airport | B25: 21.67 | C25: 5.38 | D25: 3.3 | E25: 2.24 | F25: 0.63 | G25: 0.25 | H25: 0.09 | I25: 0.02 | K25: 22.24 | L25: 5.82 | M25: 3.53 | N25: 2.37 | O25: 0.66 | P25: 0.25 | Q25: 0.09 | R25: 0.02 | T25: 21.6 | U25: 5.95 | V25: 3.6 | W25: 2.42 | X25: 0.66 | Y25: 0.25 | Z25: 0.09 | AA25: 0.02
A26: John Wayne Int'l Airport | B26: 19.13 | C26: 4.92 | D26: 2.94 | E26: 1.99 | F26: 0.57 | G26: 0.23 | H26: 0.08 | I26: 0.02 | K26: 19.67 | L26: 5.33 | M26: 3.16 | N26: 2.1 | O26: 0.59 | P26: 0.24 | Q26: 0.08 | R26: 0.02 | T26: 19.38 | U26: 5.47 | V26: 3.24 | W26: 2.16 | X26: 0.6 | Y26: 0.24 | Z26: 0.08 | AA26: 0.02
A27: Desert Hot Springs Airport | B27: 10.73 | C27: 3.11 | D27: 2.05 | E27: 1.48 | F27: 0.46 | G27: 0.19 | H27: 0.07 | I27: 0.02 | K27: 11.49 | L27: 3.51 | M27: 2.24 | N27: 1.58 | O27: 0.48 | P27: 0.19 | Q27: 0.07 | R27: 0.02 | T27: 11.69 | U27: 3.66 | V27: 2.32 | W27: 1.62 | X27: 0.48 | Y27: 0.19 | Z27: 0.07 | AA27: 0.02
A28: Van Nuys Airport | B28: 11.52 | C28: 3.27 | D28: 2.03 | E28: 1.37 | F28: 0.39 | G28: 0.16 | H28: 0.06 | I28: 0.01 | K28: 12.48 | L28: 3.59 | M28: 2.2 | N28: 1.48 | O28: 0.41 | P28: 0.16 | Q28: 0.06 | R28: 0.01 | T28: 12.72 | U28: 3.75 | V28: 2.27 | W28: 1.52 | X28: 0.41 | Y28: 0.16 | Z28: 0.06 | AA28: 0.01
A31: Table 11B Dispersion Factors (X/Q) for Crematory Operating More than 12 Hours per Day
A32: Units are in (ug/m3)/(tons/yr) | B32: Building Area ≥ 5,000 to 10,000 ft2 | K32: Building Area > 10,000 to 15,000 ft2 | T32: Building Area > 15,000 ft2
B33: Downwind Distance (meters) | K33: Downwind Distance (meters) | T33: Downwind Distance (meters)
A34: Location | B34: 25 | C34: 50 | D34: 75 | E34: 100 | F34: 200 | G34: 300 | H34: 500 | I34: 1000 | K34: 25 | L34: 50 | M34: 75 | N34: 100 | O34: 200 | P34: 300 | Q34: 500 | R34: 1000 | T34: 25 | U34: 50 | V34: 75 | W34: 100 | X34: 200 | Y34: 300 | Z34: 500 | AA34: 1000
A35: Azusa | B35: 2.76 | C35: 1.15 | D35: 0.78 | E35: 0.56 | F35: 0.21 | G35: 0.11 | H35: 0.08 | I35: 0.04 | K35: 4.45 | L35: 1.46 | M35: 0.95 | N35: 0.67 | O35: 0.24 | P35: 0.12 | Q35: 0.08 | R35: 0.04 | T35: 5.71 | U35: 1.78 | V35: 1.11 | W35: 0.77 | X35: 0.26 | Y35: 0.12 | Z35: 0.08 | AA35: 0.04
A36: Banning | B36: 14.53 | C36: 4.27 | D36: 2.4 | E36: 1.63 | F36: 0.68 | G36: 0.37 | H36: 0.21 | I36: 0.09 | K36: 20.31 | L36: 5.25 | M36: 2.99 | N36: 1.99 | O36: 0.77 | P36: 0.39 | Q36: 0.21 | R36: 0.09 | T36: 20.89 | U36: 5.96 | V36: 3.43 | W36: 2.28 | X36: 0.82 | Y36: 0.4 | Z36: 0.21 | AA36: 0.09
A37: Central L.A. | B37: 3.89 | C37: 1.25 | D37: 0.81 | E37: 0.56 | F37: 0.2 | G37: 0.11 | H37: 0.07 | I37: 0.04 | K37: 5.6 | L37: 1.49 | M37: 0.94 | N37: 0.65 | O37: 0.22 | P37: 0.11 | Q37: 0.07 | R37: 0.04 | T37: 6.81 | U37: 1.79 | V37: 1.08 | W37: 0.74 | X37: 0.25 | Y37: 0.12 | Z37: 0.07 | AA37: 0.04
A38: Lake Elsinore | B38: 1.74 | C38: 0.71 | D38: 0.5 | E38: 0.36 | F38: 0.13 | G38: 0.07 | H38: 0.06 | I38: 0.04 | K38: 2.6 | L38: 0.9 | M38: 0.59 | N38: 0.42 | O38: 0.14 | P38: 0.07 | Q38: 0.06 | R38: 0.04 | T38: 3.08 | U38: 1.02 | V38: 0.66 | W38: 0.46 | X38: 0.15 | Y38: 0.07 | Z38: 0.06 | AA38: 0.04
A39: Fontana | B39: 6.91 | C39: 1.89 | D39: 1.18 | E39: 0.82 | F39: 0.31 | G39: 0.17 | H39: 0.11 | I39: 0.05 | K39: 8.86 | L39: 2.48 | M39: 1.49 | N39: 1.02 | O39: 0.36 | P39: 0.18 | Q39: 0.11 | R39: 0.05 | T39: 9.69 | U39: 2.91 | V39: 1.72 | W39: 1.17 | X39: 0.39 | Y39: 0.18 | Z39: 0.11 | AA39: 0.05
A40: Mission Viejo | B40: 1.75 | C40: 0.82 | D40: 0.56 | E40: 0.39 | F40: 0.12 | G40: 0.07 | H40: 0.06 | I40: 0.03 | K40: 2.88 | L40: 0.99 | M40: 0.65 | N40: 0.44 | O40: 0.14 | P40: 0.07 | Q40: 0.06 | R40: 0.03 | T40: 3.7 | U40: 1.14 | V40: 0.72 | W40: 0.49 | X40: 0.15 | Y40: 0.07 | Z40: 0.06 | AA40: 0.03
A41: Perris | B41: 4.61 | C41: 1.28 | D41: 0.81 | E41: 0.57 | F41: 0.22 | G41: 0.12 | H41: 0.08 | I41: 0.04 | K41: 5.5 | L41: 1.63 | M41: 0.99 | N41: 0.69 | O41: 0.25 | P41: 0.12 | Q41: 0.08 | R41: 0.04 | T41: 5.91 | U41: 1.84 | V41: 1.11 | W41: 0.77 | X41: 0.26 | Y41: 0.13 | Z41: 0.08 | AA41: 0.04
A42: Pico Rivera | B42: 5.02 | C42: 1.47 | D42: 0.91 | E42: 0.63 | F42: 0.23 | G42: 0.13 | H42: 0.08 | I42: 0.04 | K42: 7.17 | L42: 1.96 | M42: 1.16 | N42: 0.78 | O42: 0.27 | P42: 0.13 | Q42: 0.08 | R42: 0.04 | T42: 8.48 | U42: 2.34 | V42: 1.37 | W42: 0.9 | X42: 0.29 | Y42: 0.13 | Z42: 0.08 | AA42: 0.04
A43: Redlands | B43: 2.48 | C43: 1.15 | D43: 0.76 | E43: 0.53 | F43: 0.19 | G43: 0.11 | H43: 0.09 | I43: 0.07 | K43: 4.32 | L43: 1.39 | M43: 0.9 | N43: 0.62 | O43: 0.22 | P43: 0.11 | Q43: 0.09 | R43: 0.07 | T43: 5.36 | U43: 1.68 | V43: 1.03 | W43: 0.71 | X43: 0.24 | Y43: 0.12 | Z43: 0.09 | AA43: 0.07
A44: Upland | B44: 5.32 | C44: 1.67 | D44: 1.09 | E44: 0.77 | F44: 0.29 | G44: 0.15 | H44: 0.1 | I44: 0.06 | K44: 7.5 | L44: 2.12 | M44: 1.32 | N44: 0.92 | O44: 0.33 | P44: 0.16 | Q44: 0.1 | R44: 0.06 | T44: 8.65 | U44: 2.53 | V44: 1.53 | W44: 1.05 | X44: 0.36 | Y44: 0.17 | Z44: 0.1 | AA44: 0.06
A45: Burbank Airport | B45: 6.81 | C45: 2.04 | D45: 1.24 | E45: 0.85 | F45: 0.29 | G45: 0.15 | H45: 0.09 | I45: 0.04 | K45: 10.27 | L45: 2.55 | M45: 1.5 | N45: 1.01 | O45: 0.34 | P45: 0.16 | Q45: 0.09 | R45: 0.04 | T45: 11.28 | U45: 3.02 | V45: 1.72 | W45: 1.16 | X45: 0.37 | Y45: 0.16 | Z45: 0.09 | AA45: 0.04
A46: Chino Airport. | B46: 9.83 | C46: 2.66 | D46: 1.59 | E46: 1.08 | F46: 0.38 | G46: 0.19 | H46: 0.11 | I46: 0.05 | K46: 11.48 | L46: 3.09 | M46: 1.83 | N46: 1.25 | O46: 0.43 | P46: 0.2 | Q46: 0.11 | R46: 0.05 | T46: 12.16 | U46: 3.5 | V46: 2.03 | W46: 1.37 | X46: 0.45 | Y46: 0.21 | Z46: 0.11 | AA46: 0.05
A47: USC/Downtown L.A. | B47: 2.01 | C47: 1.09 | D47: 0.78 | E47: 0.58 | F47: 0.22 | G47: 0.12 | H47: 0.09 | I47: 0.05 | K47: 4.25 | L47: 1.41 | M47: 0.96 | N47: 0.69 | O47: 0.27 | P47: 0.13 | Q47: 0.09 | R47: 0.05 | T47: 5.75 | U47: 1.82 | V47: 1.16 | W47: 0.83 | X47: 0.3 | Y47: 0.14 | Z47: 0.09 | AA47: 0.05
A48: Fullerton Airport | B48: 4.83 | C48: 1.38 | D48: 0.89 | E48: 0.62 | F48: 0.21 | G48: 0.11 | H48: 0.07 | I48: 0.03 | K48: 6.3 | L48: 1.74 | M48: 1.08 | N48: 0.74 | O48: 0.24 | P48: 0.11 | Q48: 0.07 | R48: 0.03 | T48: 7.29 | U48: 2.04 | V48: 1.22 | W48: 0.82 | X48: 0.26 | Y48: 0.12 | Z48: 0.07 | AA48: 0.03
A49: Hawthorne Airport | B49: 10.64 | C49: 2.73 | D49: 1.59 | E49: 1.06 | F49: 0.36 | G49: 0.19 | H49: 0.1 | I49: 0.05 | K49: 13.24 | L49: 3.27 | M49: 1.88 | N49: 1.23 | O49: 0.41 | P49: 0.2 | Q49: 0.1 | R49: 0.05 | T49: 13.78 | U49: 3.7 | V49: 2.11 | W49: 1.38 | X49: 0.44 | Y49: 0.2 | Z49: 0.1 | AA49: 0.05
A50: Los Angeles Int'l Airport | B50: 13.91 | C50: 4.09 | D50: 2.44 | E50: 1.67 | F50: 0.57 | G50: 0.27 | H50: 0.15 | I50: 0.06 | K50: 17.19 | L50: 4.62 | M50: 2.77 | N50: 1.89 | O50: 0.64 | P50: 0.29 | Q50: 0.15 | R50: 0.06 | T50: 16.98 | U50: 5.02 | V50: 3.02 | W50: 2.07 | X50: 0.68 | Y50: 0.3 | Z50: 0.15 | AA50: 0.06
A51: Long Beach Airport | B51: 7.01 | C51: 1.84 | D51: 1.11 | E51: 0.78 | F51: 0.32 | G51: 0.17 | H51: 0.11 | I51: 0.06 | K51: 8.19 | L51: 2.51 | M51: 1.51 | N51: 1.04 | O51: 0.39 | P51: 0.18 | Q51: 0.11 | R51: 0.06 | T51: 8.89 | U51: 2.91 | V51: 1.76 | W51: 1.22 | X51: 0.43 | Y51: 0.18 | Z51: 0.11 | AA51: 0.06
A52: Ontario Airport | B52: 12.91 | C52: 3.47 | D52: 2.09 | E52: 1.44 | F52: 0.54 | G52: 0.27 | H52: 0.16 | I52: 0.07 | K52: 14.46 | L52: 4.24 | M52: 2.56 | N52: 1.77 | O52: 0.63 | P52: 0.29 | Q52: 0.16 | R52: 0.07 | T52: 15.11 | U52: 4.78 | V52: 2.9 | W52: 2 | X52: 0.68 | Y52: 0.3 | Z52: 0.16 | AA52: 0.07
A53: Palm Springs Airport | B53: 10.81 | C53: 2.92 | D53: 1.76 | E53: 1.22 | F53: 0.47 | G53: 0.24 | H53: 0.14 | I53: 0.06 | K53: 11.68 | L53: 3.62 | M53: 2.18 | N53: 1.5 | O53: 0.54 | P53: 0.25 | Q53: 0.14 | R53: 0.06 | T53: 11.9 | U53: 3.94 | V53: 2.41 | W53: 1.66 | X53: 0.58 | Y53: 0.26 | Z53: 0.14 | AA53: 0.06
A54: Riverside Airport | B54: 6.02 | C54: 2.22 | D54: 1.39 | E54: 0.98 | F54: 0.36 | G54: 0.19 | H54: 0.13 | I54: 0.07 | K54: 10.24 | L54: 2.72 | M54: 1.68 | N54: 1.17 | O54: 0.44 | P54: 0.22 | Q54: 0.13 | R54: 0.07 | T54: 11.24 | U54: 3.23 | V54: 1.96 | W54: 1.36 | X54: 0.49 | Y54: 0.23 | Z54: 0.13 | AA54: 0.07
A55: Santa Monica Airport | B55: 10.09 | C55: 2.49 | D55: 1.52 | E55: 1.06 | F55: 0.36 | G55: 0.17 | H55: 0.09 | I55: 0.04 | K55: 11.4 | L55: 3.09 | M55: 1.85 | N55: 1.26 | O55: 0.41 | P55: 0.18 | Q55: 0.09 | R55: 0.04 | T55: 11.83 | U55: 3.45 | V55: 2.06 | W55: 1.4 | X55: 0.44 | Y55: 0.18 | Z55: 0.09 | AA55: 0.04
A56: John Wayne Int'l Airport | B56: 10.31 | C56: 2.61 | D56: 1.53 | E56: 1.04 | F56: 0.37 | G56: 0.18 | H56: 0.11 | I56: 0.05 | K56: 12.04 | L56: 3.38 | M56: 1.95 | N56: 1.3 | O56: 0.43 | P56: 0.19 | Q56: 0.11 | R56: 0.05 | T56: 12.91 | U56: 3.84 | V56: 2.23 | W56: 1.48 | X56: 0.47 | Y56: 0.2 | Z56: 0.11 | AA56: 0.05
A57: Desert Hot Springs Airport | B57: 9.94 | C57: 2.8 | D57: 1.73 | E57: 1.21 | F57: 0.49 | G57: 0.26 | H57: 0.16 | I57: 0.08 | K57: 11.48 | L57: 3.51 | M57: 2.14 | N57: 1.49 | O57: 0.56 | P57: 0.27 | Q57: 0.16 | R57: 0.08 | T57: 12.46 | U57: 3.98 | V57: 2.43 | W57: 1.69 | X57: 0.61 | Y57: 0.28 | Z57: 0.16 | AA57: 0.08
A58: Van Nuys Airport | B58: 6.12 | C58: 1.65 | D58: 0.99 | E58: 0.68 | F58: 0.23 | G58: 0.12 | H58: 0.07 | I58: 0.04 | K58: 7.57 | L58: 2.18 | M58: 1.27 | N58: 0.85 | O58: 0.28 | P58: 0.12 | Q58: 0.07 | R58: 0.04 | T58: 8.48 | U58: 2.54 | V58: 1.47 | W58: 0.97 | X58: 0.3 | Y58: 0.13 | Z58: 0.07 | AA58: 0.04

Sheet Spray Booth Data (hidden)
A1: Table 13.1 -13.2 Dispersion Factors (X/Q) for Spray Booth Equipment Operating 12 Hours per Day or Less
A2: Units are in (ug/m3)/(tons/yr) | B2: Stack Height ≥ 16 ft to <24 ft* | K2: Stack Height ≥ 24 ft to <50 ft*
B3: Downwind Distance (meters) | K3: Downwind Distance (meters)
A4: Location | B4: 25 | C4: 50 | D4: 75 | E4: 100 | F4: 200 | G4: 300 | H4: 500 | I4: 1000 | K4: 25 | L4: 50 | M4: 75 | N4: 100 | O4: 200 | P4: 300 | Q4: 500 | R4: 1000
A5: Azusa | B5: 21.48 | C5: 5.77 | D5: 2.98 | E5: 1.78 | F5: 0.34 | G5: 0.13 | H5: 0.05 | I5: 0.01 | K5: 15.68 | L5: 7.28 | M5: 3.08 | N5: 1.96 | O5: 0.49 | P5: 0.18 | Q5: 0.05 | R5: 0.01
A6: Banning | B6: 25.33 | C6: 6.05 | D6: 3.59 | E6: 2.31 | F6: 0.54 | G6: 0.22 | H6: 0.08 | I6: 0.02 | K6: 16.43 | L6: 5.62 | M6: 3.26 | N6: 2.2 | O6: 0.65 | P6: 0.27 | Q6: 0.08 | R6: 0.02
A7: Central L.A. | B7: 23.19 | C7: 7.14 | D7: 2.95 | E7: 1.74 | F7: 0.33 | G7: 0.13 | H7: 0.05 | I7: 0.01 | K7: 14.1 | L7: 8.6 | M7: 2.75 | N7: 1.77 | O7: 0.45 | P7: 0.17 | Q7: 0.05 | R7: 0.01
A8: Lake Elsinore | B8: 11.82 | C8: 5.62 | D8: 2.23 | E8: 1.34 | F8: 0.28 | G8: 0.11 | H8: 0.04 | I8: 0.01 | K8: 10.37 | L8: 8.12 | M8: 2.31 | N8: 1.46 | O8: 0.37 | P8: 0.14 | Q8: 0.04 | R8: 0.01
A9: Fontana | B9: 23.99 | C9: 6.78 | D9: 3.45 | E9: 2.13 | F9: 0.44 | G9: 0.18 | H9: 0.06 | I9: 0.01 | K9: 16.71 | L9: 9.18 | M9: 3.27 | N9: 2.14 | O9: 0.57 | P9: 0.22 | Q9: 0.06 | R9: 0.01
A10: Mission Viejo | B10: 14.46 | C10: 7.58 | D10: 2.5 | E10: 1.5 | F10: 0.29 | G10: 0.12 | H10: 0.04 | I10: 0.01 | K10: 11.34 | L10: 8.63 | M10: 2.35 | N10: 1.53 | O10: 0.38 | P10: 0.14 | Q10: 0.04 | R10: 0.01
A11: Perris | B11: 10.89 | C11: 6.11 | D11: 2.36 | E11: 1.48 | F11: 0.35 | G11: 0.15 | H11: 0.05 | I11: 0.01 | K11: 8.52 | L11: 6.81 | M11: 2.18 | N11: 1.44 | O11: 0.41 | P11: 0.17 | Q11: 0.05 | R11: 0.01
A12: Pico Rivera | B12: 16.68 | C12: 9.3 | D12: 3.07 | E12: 1.84 | F12: 0.38 | G12: 0.15 | H12: 0.05 | I12: 0.01 | K12: 12.3 | L12: 10.41 | M12: 2.83 | N12: 1.81 | O12: 0.48 | P12: 0.18 | Q12: 0.05 | R12: 0.01
A13: Redlands | B13: 20.78 | C13: 5.75 | D13: 3 | E13: 1.81 | F13: 0.35 | G13: 0.14 | H13: 0.05 | I13: 0.01 | K13: 16.48 | L13: 6.82 | M13: 3.18 | N13: 2.02 | O13: 0.5 | P13: 0.18 | Q13: 0.05 | R13: 0.01
A14: Upland | B14: 27.3 | C14: 7.04 | D14: 3.69 | E14: 2.27 | F14: 0.46 | G14: 0.18 | H14: 0.07 | I14: 0.02 | K14: 17.77 | L14: 8.64 | M14: 3.53 | N14: 2.31 | O14: 0.62 | P14: 0.23 | Q14: 0.07 | R14: 0.02
A15: Burbank Airport | B15: 14.62 | C15: 8.84 | D15: 3.44 | E15: 2.14 | F15: 0.49 | G15: 0.21 | H15: 0.07 | I15: 0.02 | K15: 11.88 | L15: 10.42 | M15: 3.12 | N15: 2.04 | O15: 0.56 | P15: 0.23 | Q15: 0.07 | R15: 0.02
A16: Chino Airport. | B16: 22.53 | C16: 5.96 | D16: 3.49 | E16: 2.25 | F16: 0.54 | G16: 0.22 | H16: 0.07 | I16: 0.02 | K16: 15.61 | L16: 5.77 | M16: 3.15 | N16: 2.13 | O16: 0.63 | P16: 0.26 | Q16: 0.08 | R16: 0.02
A17: USC/Downtown L.A. | B17: 23.02 | C17: 6.43 | D17: 3.51 | E17: 2.15 | F17: 0.42 | G17: 0.16 | H17: 0.06 | I17: 0.01 | K17: 16.41 | L17: 7.29 | M17: 3.44 | N17: 2.23 | O17: 0.57 | P17: 0.21 | Q17: 0.06 | R17: 0.01
A18: Fullerton Airport | B18: 15.58 | C18: 9.45 | D18: 3.26 | E18: 2.02 | F18: 0.44 | G18: 0.18 | H18: 0.07 | I18: 0.02 | K18: 12.13 | L18: 11.23 | M18: 3.02 | N18: 2 | O18: 0.56 | P18: 0.22 | Q18: 0.07 | R18: 0.02
A19: Hawthorne Airport | B19: 32.27 | C19: 7.25 | D19: 4.22 | E19: 2.68 | F19: 0.59 | G19: 0.23 | H19: 0.08 | I19: 0.02 | K19: 20.76 | L19: 6.85 | M19: 3.96 | N19: 2.65 | O19: 0.78 | P19: 0.31 | Q19: 0.09 | R19: 0.02
A20: Los Angeles Int'l Airport | B20: 34.88 | C20: 8.37 | D20: 5.14 | E20: 3.37 | F20: 0.83 | G20: 0.34 | H20: 0.12 | I20: 0.03 | K20: 22.81 | L20: 7.3 | M20: 4.64 | N20: 3.22 | O20: 1.03 | P20: 0.43 | Q20: 0.12 | R20: 0.03
A21: Long Beach Airport | B21: 11.54 | C21: 7.02 | D21: 2.98 | E21: 1.9 | F21: 0.47 | G21: 0.2 | H21: 0.07 | I21: 0.02 | K21: 9.19 | L21: 8.4 | M21: 2.67 | N21: 1.79 | O21: 0.52 | P21: 0.21 | Q21: 0.07 | R21: 0.02
A22: Ontario Airport | B22: 27.28 | C22: 7.64 | D22: 4.24 | E22: 2.72 | F22: 0.65 | G22: 0.26 | H22: 0.09 | I22: 0.02 | K22: 18.51 | L22: 8.46 | M22: 3.8 | N22: 2.57 | O22: 0.76 | P22: 0.31 | Q22: 0.09 | R22: 0.02
A23: Palm Springs Airport | B23: 17.43 | C23: 4.66 | D23: 2.62 | E23: 1.65 | F23: 0.36 | G23: 0.14 | H23: 0.05 | I23: 0.01 | K23: 12.03 | L23: 5.4 | M23: 2.39 | N23: 1.59 | O23: 0.44 | P23: 0.17 | Q23: 0.05 | R23: 0.01
A24: Riverside Airport | B24: 25.4 | C24: 6.5 | D24: 3.94 | E24: 2.51 | F24: 0.56 | G24: 0.22 | H24: 0.08 | I24: 0.02 | K24: 18.01 | L24: 6.03 | M24: 3.73 | N24: 2.5 | O24: 0.7 | P24: 0.28 | Q24: 0.08 | R24: 0.02
A25: Santa Monica Airport | B25: 28.07 | C25: 8.7 | D25: 4.48 | E25: 2.84 | F25: 0.66 | G25: 0.27 | H25: 0.1 | I25: 0.02 | K25: 18.31 | L25: 14.28 | M25: 4.13 | N25: 2.79 | O25: 0.84 | P25: 0.33 | Q25: 0.1 | R25: 0.02
A26: John Wayne Int'l Airport | B26: 22.94 | C26: 8.73 | D26: 4.07 | E26: 2.59 | F26: 0.63 | G26: 0.26 | H26: 0.09 | I26: 0.02 | K26: 15.86 | L26: 12.66 | M26: 3.68 | N26: 2.46 | O26: 0.73 | P26: 0.3 | Q26: 0.09 | R26: 0.02
A27: Desert Hot Springs Airport | B27: 14.92 | C27: 6.24 | D27: 3.14 | E27: 2.04 | F27: 0.52 | G27: 0.22 | H27: 0.08 | I27: 0.02 | K27: 10.55 | L27: 9.4 | M27: 2.82 | N27: 1.94 | O27: 0.6 | P27: 0.25 | Q27: 0.08 | R27: 0.02
A28: Van Nuys Airport | B28: 14.36 | C28: 7.45 | D28: 2.98 | E28: 1.87 | F28: 0.43 | G28: 0.18 | H28: 0.06 | I28: 0.01 | K28: 10.89 | L28: 9.71 | M28: 2.72 | N28: 1.8 | O28: 0.51 | P28: 0.2 | Q28: 0.06 | R28: 0.01
A29: *Note: Facilities with stack heights of less than 16 feet or more than 50 feet must perform Tier 3 or Tier 4 dispersion modeling

Sheet LeanBurnICE
C2: LEAN BURN ENGINE DATA | D2: =Intro!A39 & " - " &Intro!A38 -> (Procedure Version 8.1 & Package N, September 1, 2017 ) - Risk Tool V1.105 | I2: ='Tier 1 Report'!C8 -> A/N 622795 (96, 97), Spear's Manufacturing Co.
C4: Engine Horse Power | D4: 51 | E4: bhp
C5: Equipment with SNCR, SCR, or OTHER | D5: OTHER
C6: Engine efficiency (37% default) | D6: 0.37
C7: Fuel rate for nat gas (actual if available) | D7: 0
C8: HHV-Natural gas | D8: 1050 | E8: btu/ft³
C9: Conversion factor to btu/hr | D9: 2544.5 | E9: btu/hr
C10: =IF(D7=0,"Fuel rate nat gas (default)","Fuel rate nat gas (actual)") -> Fuel rate nat gas (default) | D10: =IF(D7=0,(D4*D9/D8)/D6,D7) -> 334.027027 | E10: ft³/hr
C12: Pollutant | D12: Control Efficiency
C13: PAHs | D13: 0.977
C14: VOCs | D14: 0.977
B16: Code | C16: Compound | D16: EF (lbs/mmbtu) | E16: EF (lbs/mmcf) | F16: R1 (Uncontrolled) (lbs/hr) | G16: R2 (Controlled) (lbs/hr) | H16: NSR Data Entry (E-06 lbs/hr) | N16: Lean Burn | P16: Rich Burn
H17: R1 (Uncontrolled) | I17: R2 (Controlled) | K17: CODE | L17: CAS # | M17: COMPOUND | N17: EF 2-STROKE (lbs/mmcf) | O17: EF 4-STROKE (lbs/mmcf) | P17: EF 4-STROKE RICHBURN (lbs/mmcf)
A18: 1 | B18: B1 | C18: =VLOOKUP(B18,TAClist,2,FALSE) -> Benzene | D18: =E18/$D$8 -> 0.0004276190476 | E18: =VLOOKUP(B18,$K$18:$P$44,5,FALSE) -> 0.449 | F18: =E18*$D$10/1000000 -> 0.0001499781351 | G18: =F18*(1-$D$14) -> 3.449497108e-06 | H18: =F18*1000000 -> 149.9781351 | I18: =G18*1000000 -> 3.449497108 | K18: B1 | L18: 71-43-2 | M18: Benzene | N18: 1.98 | O18: 0.449 | P18: 1.61
A19: 2 | B19: B12 | C19: =VLOOKUP(B19,TAClist,2,FALSE) -> 1,3-Butadiene | D19: 0.000259047619 | E19: =VLOOKUP(B19,$K$18:$P$44,5,FALSE) -> 0.272 | F19: =E19*$D$10/1000000 -> 9.085535135e-05 | G19: =F19*(1-$D$14) -> 2.089673081e-06 | H19: =F19*1000000 -> 90.85535135 | I19: 2.089673081 | K19: B12 | L19: 106-99-0 | M19: 1,3-Butadiene | N19: 0.836 | O19: 0.272 | P19: 0.676
A20: 3 | B20: C5 | C20: Carbon Tetrachloride (Tetrachloromethane) | D20: 3.561904762e-05 | E20: 0.0374 | F20: =E20*$D$10/1000000 -> 1.249261081e-05 | G20: 2.873300486e-07 | H20: 12.49261081 | I20: 0.2873300486 | K20: C5 | L20: 56-23-5 | M20: Carbon Tetrachloride (Tetrachloromethane) | N20: 0.0619 | O20: 0.0374 | P20: 0.0181
A21: 4 | B21: E5 | C21: Ethylene Dibromide (1,2-Dibromoethane) | D21: 4.304761905e-05 | E21: 0.0452 | F21: 1.509802162e-05 | G21: 3.472544973e-07 | H21: 15.09802162 | I21: 0.3472544973 | K21: E5 | L21: 106-93-4 | M21: Ethylene Dibromide (1,2-Dibromoethane) | N21: 0.0749 | O21: 0.0452 | P21: 0.0217
A22: 5 | B22: E6 | C22: Ethylene Dichloride (1,2-Dichloroethane) | D22: 2.295238095e-05 | E22: 0.0241 | F22: 8.050051351e-06 | G22: 1.851511811e-07 | H22: 8.050051351 | I22: 0.1851511811 | K22: E6 | L22: 107-06-2 | M22: Ethylene Dichloride (1,2-Dichloroethane) | N22: 0.043 | O22: 0.0241 | P22: 0.0115
A23: 6 | B23: F2 | C23: Formaldehyde | D23: 0.05133333333 | E23: 53.9 | F23: 0.01800405676 | G23: 0.0004140933054 | H23: 18004.05676 | I23: 414.0933054 | K23: F2 | L23: 50-00-0 | M23: Formaldehyde | N23: 56.3 | O23: 53.9 | P23: 20.9
A24: 7 | B24: M13 | C24: Methylene Chloride (Dichloromethane) | D24: 1.942857143e-05 | E24: 0.0204 | F24: 6.814151351e-06 | G24: 1.567254811e-07 | H24: 6.814151351 | I24: 0.1567254811 | K24: M13 | L24: 75-09-2 | M24: Methylene Chloride (Dichloromethane) | N24: 0.15 | O24: 0.0204 | P24: 0.042
A25: 8 | B25: P42 | C25: Benz(a)Anthracene | D25: 0 | E25: 0 | F25: 0 | G25: 0 | H25: 0 | I25: 0 | K25: P42 | L25: 56-55-3 | M25: Benz(a)Anthracene | N25: 0.000343 | O25: 0 | P25: 0
A26: 9 | B26: P43 | C26: Benzo(a)Pyrene | D26: 0 | E26: 0 | F26: 0 | G26: 0 | H26: 0 | I26: 0 | K26: P43 | L26: 50-32-8 | M26: Benzo(a)Pyrene | N26: 5.79e-06 | O26: 0 | P26: 0
A27: 10 | B27: P44 | C27: Benzo(b)Fluoranthene | D27: 1.60952381e-07 | E27: 0.000169 | F27: 5.645056757e-08 | G27: 1.298363054e-09 | H27: 0.05645056757 | I27: 0.001298363054 | K27: P44 | L27: 205-99-2 | M27: Benzo(b)Fluoranthene | N27: 8.68e-06 | O27: 0.000169 | P27: 0
A28: 11 | B28: P46 | C28: Benzo(k)Fluoranthene | D28: 0 | E28: 0 | F28: 0 | G28: 0 | H28: 0 | I28: 0 | K28: P46 | L28: 207-08-9 | M28: Benzo(k)Fluoranthene | N28: 5.79e-06 | O28: 0 | P28: 0
A29: 12 | B29: P47 | C29: Chrysene | D29: 6.733333333e-07 | E29: 0.000707 | F29: 2.361571081e-07 | G29: 5.431613486e-09 | H29: 0.2361571081 | I29: 0.005431613486 | K29: P47 | L29: 218-01-9 | M29: Chrysene | N29: 0.000685 | O29: 0.000707 | P29: 0
A30: 13 | B30: P59 | C30: Indeno(1,2,3-c,d)Pyrene | D30: 0 | E30: 0 | F30: 0 | G30: 0 | H30: 0 | I30: 0 | K30: P59 | L30: 193-39-5 | M30: Indeno(1,2,3-c,d)Pyrene | N30: 1.01e-05 | O30: 0 | P30: 0
A31: 14 | B31: P62 | C31: Naphthalene | D31: 7.228571429e-05 | E31: 0.0759 | F31: 2.535265135e-05 | G31: 5.831109811e-07 | H31: 25.35265135 | I31: 0.5831109811 | K31: P62 | L31: 91-20-3 | M31: Naphthalene | N31: 0.09823 | O31: 0.0759 | P31: 0.099
A32: 15 | B32: V4 | C32: Vinyl Chloride (Chloroethylene) | D32: 1.447619048e-05 | E32: 0.0152 | F32: 5.077210811e-06 | G32: 1.167758486e-07 | H32: 5.077210811 | I32: 0.1167758486 | K32: V4 | L32: 75-01-4 | M32: Vinyl Chloride (Chloroethylene) | N32: 0.0252 | O32: 0.0152 | P32: 0.00732
A33: 16 | B33: T1 | C33: 1,1,2,2-Tetrachloroethane | D33: 3.885714286e-05 | E33: 0.0408 | F33: 1.36283027e-05 | G33: 3.134509622e-07 | H33: 13.6283027 | I33: 0.3134509622 | K33: T1 | L33: 79-34-5 | M33: 1,1,2,2-Tetrachloroethane | N33: 0.0676 | O33: 0.0408 | P33: 0.0258
A34: 17 | B34: T7 | C34: 1,1,2-Trichloroethane (Vinyl Trichloride) | D34: 3.085714286e-05 | E34: 0.0324 | F34: 1.082247568e-05 | G34: 2.489169405e-07 | H34: 10.82247568 | I34: 0.2489169405 | K34: T7 | L34: 79-00-5 | M34: 1,1,2-Trichloroethane (Vinyl Trichloride) | N34: 0.0538 | O34: 0.0324 | P34: 0.0156
A35: 18 | B35: A1 | C35: Acetaldehyde | D35: 0.008123809524 | E35: 8.53 | F35: 0.002849250541 | G35: 6.553276243e-05 | H35: 2849.250541 | I35: 65.53276243 | K35: A1 | L35: 75-07-0 | M35: Acetaldehyde | N35: 7.92 | O35: 8.53 | P35: 2.85
A36: 19 | B36: A3 | C36: Acrolein | D36: 0.00499047619 | E36: 5.24 | F36: 0.001750301622 | G36: 4.02569373e-05 | H36: 1750.301622 | I36: 40.2569373 | K36: A3 | L36: 107-02-8 | M36: Acrolein | N36: 7.94 | O36: 5.24 | P36: 2.68
A37: 20 | B37: A9 | C37: Ammonia | D37: 0.003047619048 | E37: 3.2 | F37: 0.001068886486 | G37: 2.458438919e-05 | H37: 1068.886486 | I37: 24.58438919 | K37: A9 | L37: 7664-41-7 | M37: Ammonia | N37: =VLOOKUP($D$5,$K$48:$L$50,2,FALSE) -> 3.2 | O37: =VLOOKUP($D$5,$K$48:$L$50,2,FALSE) -> 3.2 | P37: =VLOOKUP($D$5,$K$48:$L$50,2,FALSE) -> 3.2
A38: 21 | B38: C11 | C38: Chloroform | D38: 2.771428571e-05 | E38: 0.0291 | F38: 9.720186486e-06 | G38: 2.235642892e-07 | H38: 9.720186486 | I38: 0.2235642892 | K38: C11 | L38: 67-66-3 | M38: Chloroform | N38: 0.048 | O38: 0.0291 | P38: 0.014
A39: 22 | B39: E3 | C39: Ethyl Benzene | D39: 3.857142857e-05 | E39: 0.0405 | F39: 1.352809459e-05 | G39: 3.111461757e-07 | H39: 13.52809459 | I39: 0.3111461757 | K39: E3 | L39: 100-41-4 | M39: Ethyl Benzene | N39: 0.11 | O39: 0.0405 | P39: 0.0253
A40: 23 | B40: H6 | C40: n-Hexane | D40: 0.001076190476 | E40: 1.13 | F40: 0.0003774505405 | G40: =F40*(1-$D$14) -> 8.681362432e-06 | H40: =G40*1000000 -> 8.681362432 | I40: 8681362.432 | K40: H6 | L40: 110-54-3 | M40: n-Hexane | N40: 0.454 | O40: 1.13 | P40: 0
A41: 24 | B41: M5 | C41: Methanol | D41: 0.002428571429 | E41: 2.55 | F41: 0.0008517689189 | G41: 1.959068514e-05 | H41: 19.59068514 | I41: 19590685.14 | K41: M5 | L41: 67-56-1 | M41: Methanol | N41: 2.53 | O41: 2.55 | P41: 3.12
A42: 25 | B42: S6 | C42: Styrene | D42: 2.295238095e-05 | E42: 0.0241 | F42: 8.050051351e-06 | G42: 1.851511811e-07 | H42: 0.1851511811 | I42: 185151.1811 | K42: S6 | L42: 100-42-5 | M42: Styrene | N42: 0.0559 | O42: 0.0241 | P42: 0.0121
A43: 26 | B43: T3 | C43: Toluene | D43: 0.0003961904762 | E43: 0.416 | F43: 0.0001389552432 | G43: 3.195970595e-06 | H43: 3.195970595 | I43: 3195970.595 | K43: T3 | L43: 108-88-3 | M43: Toluene | N43: 0.982 | O43: 0.416 | P43: 0.569
A44: 27 | B44: X1 | C44: Xylenes (Mixed Isomers) | D44: 0.000179047619 | E44: 0.188 | F44: 6.279708108e-05 | G44: 1.444332865e-06 | H44: 1.444332865 | I44: 1444332.865 | K44: X1 | L44: 1330-20-7 | M44: Xylenes (Mixed Isomers) | N44: 0.273 | O44: 0.188 | P44: 0.199
H45: 0 | I45: 0 | K45: * Data from AB2588 Reporting Procedure - Dec 2014
H46: 0 | I46: 0
H47: 0 | I47: 0 | K47: Control | L47: Ammonia EF (lb/mmcf)
H48: 0 | I48: 0 | K48: SNCR | L48: 18
H49: 0 | I49: 0 | K49: SCR | L49: 9.1
K50: OTHER | L50: 3.2
K51: * Select "OTHER" when there is no control or when the control type is not SNCR or SCR

Sheet RichBurnICE
C2: RICH BURN ENGINE DATA | D2: =Intro!A39 & " - " &Intro!A38 -> (Procedure Version 8.1 & Package N, September 1, 2017 ) - Risk Tool V1.105 | I2: ='Tier 1 Report'!C8 -> A/N 622795 (96, 97), Spear's Manufacturing Co.
C4: Engine Horse Power | D4: 51 | E4: bhp
C5: Equipment with SNCR, SCR, or OTHER | D5: SNCR
C6: Engine efficiency (33% default) | D6: 0.33
C7: Fuel rate nat gas (actual if available) | D7: 100
C8: HHV-Natural gas | D8: 1050 | E8: btu/ft³
C9: Conversion factor to btu/hr | D9: 2542.47 | E9: btu/hr-hp
C10: =IF(D7=0,"Fuel rate nat gas (default)","Fuel rate nat gas (actual)") -> Fuel rate nat gas (actual) | D10: =IF(D7=0,(D4*D9/D8)/D6,D7) -> 100 | E10: ft³/hr
C12: Pollutant | D12: Control Efficiency
C13: PAHs | D13: 0.977
C14: VOCs | D14: 0.977
B17: Code | C17: Compound | D17: EF (lb/mmbtu) | E17: EF (lb/mmcf) | F17: R1 (Uncontrolled) (lbs/hr) | G17: R2 (Controlled) (lbs/hr) | H17: Toxic NSR Entry (E-06 lbs/hr) | N17: Lean Burn | P17: Rich Burn
H18: R1 (Uncontrolled) | I18: R2 (Controlled) | K18: CODE | L18: CAS # | M18: COMPOUND | N18: EF 2-STROKE (lbs/mmcf) | O18: EF 4-STROKE (lbs/mmcf) | P18: EF 4-STROKE RICHBURN (lbs/mmcf)
A19: 1 | B19: B1 | C19: =VLOOKUP(B19,TAClist,2,FALSE) -> Benzene | D19: =E19/$D$8 -> 0.001533333333 | E19: =VLOOKUP(B19,$K$19:$P$45,6,FALSE) -> 1.61 | F19: =E19*$D$10/1000000 -> 0.000161 | G19: =F19*(1-$D$14) -> 3.703e-06 | H19: =F19*1000000 -> 161 | I19: =G19*1000000 -> 3.703 | K19: B1 | L19: 71-43-2 | M19: Benzene | N19: 1.98 | O19: 0.449 | P19: 1.61
A20: 2 | B20: B12 | C20: 1,3-Butadiene | D20: 0.0006438095238 | E20: =VLOOKUP(B20,$K$19:$P$45,6,FALSE) -> 0.676 | F20: =E20*$D$10/1000000 -> 6.76e-05 | G20: =F20*(1-$D$14) -> 1.5548e-06 | H20: =F20*1000000 -> 67.6 | I20: =G20*1000000 -> 1.5548 | K20: B12 | L20: 106-99-0 | M20: 1,3-Butadiene | N20: 0.836 | O20: 0.272 | P20: 0.676
A21: 3 | B21: C5 | C21: Carbon Tetrachloride (Tetrachloromethane) | D21: 1.723809524e-05 | E21: 0.0181 | F21: 1.81e-06 | G21: 4.163e-08 | H21: 1.81 | I21: 0.04163 | K21: C5 | L21: 56-23-5 | M21: Carbon Tetrachloride (Tetrachloromethane) | N21: 0.0619 | O21: 0.0374 | P21: 0.0181
A22: 4 | B22: E5 | C22: Ethylene Dibromide (1,2-Dibromoethane) | D22: 2.066666667e-05 | E22: 0.0217 | F22: 2.17e-06 | G22: 4.991e-08 | H22: 2.17 | I22: 0.04991 | K22: E5 | L22: 106-93-4 | M22: Ethylene Dibromide (1,2-Dibromoethane) | N22: 0.0749 | O22: 0.0452 | P22: 0.0217
A23: 5 | B23: E6 | C23: Ethylene Dichloride (1,2-Dichloroethane) | D23: 1.095238095e-05 | E23: 0.0115 | F23: 1.15e-06 | G23: 2.645e-08 | H23: 1.15 | I23: 0.02645 | K23: E6 | L23: 107-06-2 | M23: Ethylene Dichloride (1,2-Dichloroethane) | N23: 0.043 | O23: 0.0241 | P23: 0.0115
A24: 6 | B24: F2 | C24: Formaldehyde | D24: 0.0199047619 | E24: 20.9 | F24: 0.00209 | G24: 4.807e-05 | H24: 2090 | I24: 48.07 | K24: F2 | L24: 50-00-0 | M24: Formaldehyde | N24: 56.3 | O24: 53.9 | P24: 20.9
A25: 7 | B25: M13 | C25: Methylene Chloride (Dichloromethane) | D25: 4e-05 | E25: 0.042 | F25: 4.2e-06 | G25: 9.66e-08 | H25: 4.2 | I25: 0.0966 | K25: M13 | L25: 75-09-2 | M25: Methylene Chloride (Dichloromethane) | N25: 0.15 | O25: 0.0204 | P25: 0.042
A26: 8 | B26: P42 | C26: Benz(a)Anthracene | D26: 0 | E26: 0 | F26: 0 | G26: 0 | H26: 0 | I26: 0 | K26: P42 | L26: 56-55-3 | M26: Benz(a)Anthracene | N26: 0.000343 | O26: 0 | P26: 0
A27: 9 | B27: P43 | C27: Benzo(a)Pyrene | D27: 0 | E27: 0 | F27: 0 | G27: 0 | H27: 0 | I27: 0 | K27: P43 | L27: 50-32-8 | M27: Benzo(a)Pyrene | N27: 5.79e-06 | O27: 0 | P27: 0
A28: 10 | B28: P44 | C28: Benzo(b)Fluoranthene | D28: 0 | E28: 0 | F28: 0 | G28: 0 | H28: 0 | I28: 0 | K28: P44 | L28: 205-99-2 | M28: Benzo(b)Fluoranthene | N28: 8.68e-06 | O28: 0.000169 | P28: 0
A29: 11 | B29: P46 | C29: Benzo(k)Fluoranthene | D29: 0 | E29: 0 | F29: 0 | G29: 0 | H29: 0 | I29: 0 | K29: P46 | L29: 207-08-9 | M29: Benzo(k)Fluoranthene | N29: 5.79e-06 | O29: 0 | P29: 0
A30: 12 | B30: P47 | C30: Chrysene | D30: 0 | E30: 0 | F30: 0 | G30: 0 | H30: 0 | I30: 0 | K30: P47 | L30: 218-01-9 | M30: Chrysene | N30: 0.000685 | O30: 0.000707 | P30: 0
A31: 13 | B31: P59 | C31: Indeno(1,2,3-c,d)Pyrene | D31: 0 | E31: 0 | F31: 0 | G31: 0 | H31: 0 | I31: 0 | K31: P59 | L31: 193-39-5 | M31: Indeno(1,2,3-c,d)Pyrene | N31: 1.01e-05 | O31: 0 | P31: 0
A32: 14 | B32: P62 | C32: Naphthalene | D32: 9.428571429e-05 | E32: 0.099 | F32: 9.9e-06 | G32: 2.277e-07 | H32: 9.9 | I32: 0.2277 | K32: P62 | L32: 91-20-3 | M32: Naphthalene | N32: 0.09823 | O32: 0.0759 | P32: 0.099
A33: 15 | B33: V4 | C33: Vinyl Chloride (Chloroethylene) | D33: 6.971428571e-06 | E33: 0.00732 | F33: 7.32e-07 | G33: 1.6836e-08 | H33: 0.732 | I33: 0.016836 | K33: V4 | L33: 75-01-4 | M33: Vinyl Chloride (Chloroethylene) | N33: 0.0252 | O33: 0.0152 | P33: 0.00732
A34: 16 | B34: T1 | C34: 1,1,2,2-Tetrachloroethane | D34: 2.457142857e-05 | E34: 0.0258 | F34: 2.58e-06 | G34: 5.934e-08 | H34: 2.58 | I34: 0.05934 | K34: T1 | L34: 79-34-5 | M34: 1,1,2,2-Tetrachloroethane | N34: 0.0676 | O34: 0.0408 | P34: 0.0258
A35: 17 | B35: T7 | C35: 1,1,2-Trichloroethane (Vinyl Trichloride) | D35: 1.485714286e-05 | E35: 0.0156 | F35: 1.56e-06 | G35: 3.588e-08 | H35: 1.56 | I35: 0.03588 | K35: T7 | L35: 79-00-5 | M35: 1,1,2-Trichloroethane (Vinyl Trichloride) | N35: 0.0538 | O35: 0.0324 | P35: 0.0156
A36: 18 | B36: A1 | C36: Acetaldehyde | D36: 0.002714285714 | E36: 2.85 | F36: 0.000285 | G36: 6.555e-06 | H36: 285 | I36: 6.555 | K36: A1 | L36: 75-07-0 | M36: Acetaldehyde | N36: 7.92 | O36: 8.53 | P36: 2.85
A37: 19 | B37: A3 | C37: Acrolein | D37: 0.002552380952 | E37: 2.68 | F37: 0.000268 | G37: 6.164e-06 | H37: 268 | I37: 6.164 | K37: A3 | L37: 107-02-8 | M37: Acrolein | N37: 7.94 | O37: 5.24 | P37: 2.68
A38: 20 | B38: A9 | C38: Ammonia | D38: 0.01714285714 | E38: 18 | F38: 0.0018 | G38: =F38*(1-$D$14) -> 4.14e-05 | H38: 1800 | I38: 41.4 | K38: A9 | L38: 7664-41-7 | M38: Ammonia | N38: =VLOOKUP($D$5,$K$49:$L$51,2,FALSE) -> 18 | O38: =VLOOKUP($D$5,$K$49:$L$51,2,FALSE) -> 18 | P38: =VLOOKUP($D$5,$K$49:$L$51,2,FALSE) -> 18
A39: 21 | B39: C11 | C39: Chloroform | D39: 1.333333333e-05 | E39: 0.014 | F39: 1.4e-06 | G39: 3.22e-08 | H39: 1.4 | I39: 0.0322 | K39: C11 | L39: 67-66-3 | M39: Chloroform | N39: 0.048 | O39: 0.0291 | P39: 0.014
A40: 22 | B40: E3 | C40: Ethyl Benzene | D40: 2.40952381e-05 | E40: 0.0253 | F40: 2.53e-06 | G40: 5.819e-08 | H40: 2.53 | I40: 0.05819 | K40: E3 | L40: 100-41-4 | M40: Ethyl Benzene | N40: 0.11 | O40: 0.0405 | P40: 0.0253
A41: 23 | B41: H6 | C41: n-Hexane | D41: 0 | E41: 0 | F41: 0 | G41: 0 | H41: 0 | I41: 0 | K41: H6 | L41: 110-54-3 | M41: n-Hexane | N41: 0.454 | O41: 1.13 | P41: 0
A42: 24 | B42: M5 | C42: Methanol | D42: 0.002971428571 | E42: 3.12 | F42: 0.000312 | G42: 7.176e-06 | H42: 312 | I42: 7.176 | K42: M5 | L42: 67-56-1 | M42: Methanol | N42: 2.53 | O42: 2.55 | P42: 3.12
A43: 25 | B43: S6 | C43: Styrene | D43: 1.152380952e-05 | E43: 0.0121 | F43: 1.21e-06 | G43: 2.783e-08 | H43: 1.21 | I43: 0.02783 | K43: S6 | L43: 100-42-5 | M43: Styrene | N43: 0.0559 | O43: 0.0241 | P43: 0.0121
A44: 26 | B44: T3 | C44: Toluene | D44: 0.0005419047619 | E44: 0.569 | F44: 5.69e-05 | G44: 1.3087e-06 | H44: 56.9 | I44: 1.3087 | K44: T3 | L44: 108-88-3 | M44: Toluene | N44: 0.982 | O44: 0.416 | P44: 0.569
A45: 27 | B45: X1 | C45: Xylenes (Mixed Isomers) | D45: 0.0001895238095 | E45: 0.199 | F45: 1.99e-05 | G45: 4.577e-07 | H45: 19.9 | I45: 0.4577 | K45: X1 | L45: 1330-20-7 | M45: Xylenes (Mixed Isomers) | N45: 0.273 | O45: 0.188 | P45: 0.199
H46: =F46*1000000 -> 0 | I46: 0 | K46: From AB2588 Reporting Procedure - Dec 2014
H47: 0 | I47: 0
H48: 0 | I48: 0 | K48: Control | L48: Ammonia EF (lb/mmcf)
H49: 0 | I49: 0 | K49: SNCR | L49: 18
H50: 0 | I50: 0 | K50: SCR | L50: 9.1
H51: 0 | I51: 0 | K51: OTHER | L51: 3.2
K52: * Select "OTHER" when there is no control or when the control type is not SNCR or SCR

Sheet Engine Calc (hidden)
B1: Look up for Natural Gas Engine's X/Q
F3: Interpolation for X/Q from Nearest Distances | L3: Interpolation New Distance for Cancer Burden Calculation
B4: Operating Hours (hrs/day) | C4: =HoursPerDay -> 24 | F4: BHP | G4: =IF(SourceType="Lean Burn ICE",LeanBurnICEPower,IF(SourceType="Rich Burn ICE",RichBurnICEPower)) -> FALSE | I4: row: | J4: =S4 -> 0 | Q4: BHP | R4: Lookup Row | S4: =MIN(S5:S10) -> 0
B5: Station | C5: =Emissions!$E$22 -> Van Nuys Airport | G5: Residential | J5: Industrial | M5: X/Q for one-in-a-million | P5: Rating < 50 | Q5: 50 | R5: 1 | S5: =IF($G$4<Q5,"No","No") -> No
B6: X/Q (residential) | C6: =$G$8 ->  | F6: near | G6: actual | H6: far | I6: near | J6: actual | K6: far | L6: near | M6: actual | N6: far | P6: 50 < Rating ≤ 75 | Q6: 75 | R6: 2 | S6: =IF($G$4>=$Q$5,IF($G$4<=Q6,R6,"No"),"No") -> No
B7: X/Q (industrial) | C7: =$J$8 ->  | E7: Distance (m) | F7: =IF(G7<25,25,HLOOKUP(G7,EngineCalcLessThan12,1,TRUE)) -> 100 | G7: =Emissions!E20 -> 157 | H7: =IF(G7<25,25,IF(G7>=1000,1000,IF(G7=HLOOKUP(G7,EngineCalcLessThan12,1,TRUE),G7,INDEX(EngineCalcLessThan12,1,MATCH(G7,C14:J14,1)+1)))) -> 200 | I7: =IF(J7<25,25,HLOOKUP(J7,EngineCalcLessThan12,1,TRUE)) -> 200 | J7: =Emissions!E21 -> 265 | K7: =IF(J7<25,25,IF(J7>=1000,1000,IF(J7=HLOOKUP(J7,EngineCalcLessThan12,1,TRUE),J7,INDEX(EngineCalcLessThan12,1,MATCH(J7,C14:J14,1)+1)))) -> 300 | L7: =IF(HoursPerDay<=12,VLOOKUP($J$4,$A$15:$S$19,17,FALSE),VLOOKUP($J$4,$A$25:$S$29,17,FALSE)) ->  | M7: =IF(L7="","",IF(N7=L7,"no data",L7-(L8-M8)/(L8-N8)*(L7-N7))) ->  | N7: =IF(HoursPerDay<=12,VLOOKUP($J$4,$A$15:$S$19,19,FALSE),VLOOKUP($J$4,$A$25:$S$29,19,FALSE)) ->  | P7: 75 < Rating ≤ 150 | Q7: 150 | R7: 3 | S7: =IF($G$4>$Q$6,IF($G$4<=Q7,R7,"No"),"No") -> No
B8: X/Q max acute (residential) | C8: =G9 ->  | E8: X/Q | F8: =IF(C4<=12,HLOOKUP(F7,EngineCalcLessThan12,$J$4,TRUE),HLOOKUP(F7,table3_e,$J$4,TRUE)) ->  | G8: =IF(F8=H8,F8,F8-(((G7-F7)/(H7-F7))*(F8-H8))) ->  | H8: =IF(C4<=12,HLOOKUP(H7,EngineCalcLessThan12,$J$4,TRUE),HLOOKUP(H7,table3_e,$J$4,TRUE)) ->  | I8: =IF(C4<=12,HLOOKUP(I7,EngineCalcLessThan12,$J$4,TRUE),HLOOKUP(I7,table3_e,$J$4,TRUE)) ->  | J8: =IF(I8=K8,I8,I8-(((J7-I7)/(K7-I7))*(I8-K8))) ->  | K8: =IF(C4<=12,HLOOKUP(K7,EngineCalcLessThan12,$J$4,TRUE),HLOOKUP(K7,table3_e,$J$4,TRUE)) ->  | L8: =IF(HoursPerDay<=12,VLOOKUP($J$4,$A$15:$S$19,16,FALSE),VLOOKUP($J$4,$A$25:$S$29,16,FALSE)) ->  | M8: ='Tier 2 Report'!N152 -> 0 | N8: =IF(HoursPerDay<=12,VLOOKUP($J$4,$A$15:$S$19,18,FALSE),VLOOKUP($J$4,$A$25:$S$29,18,FALSE)) ->  | P8: 150 < Rating ≤ 250 | Q8: 250 | R8: 4 | S8: =IF($G$4>$Q$7,IF($G$4<=Q8,R8,"No"),"No") -> No
B9: X/Q max acute (industrial) | C9: =J9 ->  | E9: X/Q Max Acute | F9: =HLOOKUP(F7,EngineCalcAcute,$J$4,TRUE) ->  | G9: =IF(F9=H9,F9,F9-(((G7-F7)/(H7-F7))*(F9-H9))) ->  | H9: =HLOOKUP(H7,EngineCalcAcute,$J$4,TRUE) ->  | I9: =HLOOKUP(I7,EngineCalcAcute,$J$4,TRUE) ->  | J9: =IF(I9=K9,I9,I9-(((J7-I7)/(K7-I7))*(I9-K9))) ->  | K9: =HLOOKUP(K7,EngineCalcAcute,$J$4,TRUE) ->  | P9: 250 < Rating ≤ 1000 | Q9: 1000 | R9: 5 | S9: =IF($G$4>$Q$8,IF($G$4<=Q9,R9,"No"),"No") -> No
P10: Rating > 1000 | Q10: 99999 | R10: 6 | S10: =IF($G$4>$Q$9,IF($G$4<=Q10,R10,"No"),"No") -> No
B12: Table 9A - Point Source, operating 12 hrs/day or less (µg/m³)/(tons/yr)
B13: Rating (BHP) | C13: Downwind Distance (meters)
A14: Row | C14: 25 | D14: 50 | E14: 75 | F14: 100 | G14: 200 | H14: 300 | I14: 500 | J14: 1000 | P14: Nearest X/Q - high | Q14: nearest dist - low | R14: Nearest X/Q- low | S14: nearest dist - high | U14: Column | V14: Dist
A15: 2 | B15: 50 < Rating ≤ 75 | C15: =VLOOKUP($C$5,EngineLessThan12_lu,2,FALSE) -> 31.64 | D15: =VLOOKUP($C$5,EngineLessThan12_lu,3,FALSE) -> 7.53 | E15: =VLOOKUP($C$5,EngineLessThan12_lu,4,FALSE) -> 4 | F15: =VLOOKUP($C$5,EngineLessThan12_lu,5,FALSE) -> 2.35 | G15: =VLOOKUP($C$5,EngineLessThan12_lu,6,FALSE) -> 0.51 | H15: =VLOOKUP($C$5,EngineLessThan12_lu,7,FALSE) -> 0.19 | I15: =VLOOKUP($C$5,EngineLessThan12_lu,8,FALSE) -> 0.06 | J15: =VLOOKUP($C$5,EngineLessThan12_lu,9,FALSE) -> 0.01 | P15: =INDEX($C15:$J15,1,MATCH($M$8,$C15:$J15,-1)) -> 0.01 | Q15: =VLOOKUP(MATCH(P15,$C15:$J15,0),$U$15:$V$22,2,FALSE) -> 1000 | R15: =IF($M$8>C15,C15,INDEX($C15:$K15,1,1+MATCH($M$8,$C15:$K15,-1))) -> 0 | S15: =IF(R15=0,Q15,VLOOKUP(MATCH(R15,$C15:$J15,0),$U$15:$V$22,2,FALSE)) -> 1000 | U15: 1 | V15: 25
A16: 3 | B16: 75 < Rating ≤ 150 | C16: =VLOOKUP($C$5,EngineLessThan12_lu,11,FALSE) -> 22.59 | D16: =VLOOKUP($C$5,EngineLessThan12_lu,12,FALSE) -> 5.99 | E16: =VLOOKUP($C$5,EngineLessThan12_lu,13,FALSE) -> 3.46 | F16: =VLOOKUP($C$5,EngineLessThan12_lu,14,FALSE) -> 2.13 | G16: =VLOOKUP($C$5,EngineLessThan12_lu,15,FALSE) -> 0.49 | H16: =VLOOKUP($C$5,EngineLessThan12_lu,16,FALSE) -> 0.18 | I16: =VLOOKUP($C$5,EngineLessThan12_lu,17,FALSE) -> 0.06 | J16: =VLOOKUP($C$5,EngineLessThan12_lu,18,FALSE) -> 0.01 | P16: =INDEX($C16:$J16,1,MATCH($M$8,$C16:$J16,-1)) -> 0.01 | Q16: =VLOOKUP(MATCH(P16,$C16:$J16,0),$U$15:$V$22,2,FALSE) -> 1000 | R16: =IF($M$8>C16,C16,INDEX($C16:$K16,1,1+MATCH($M$8,$C16:$K16,-1))) -> 0 | S16: =IF(R16=0,Q16,VLOOKUP(MATCH(R16,$C16:$J16,0),$U$15:$V$22,2,FALSE)) -> 1000 | U16: 2 | V16: 50
A17: 4 | B17: 150 < Rating ≤ 250 | C17: =VLOOKUP($C$5,EngineLessThan12_lu,20,FALSE) -> 7.43 | D17: =VLOOKUP($C$5,EngineLessThan12_lu,21,FALSE) -> 2.47 | E17: =VLOOKUP($C$5,EngineLessThan12_lu,22,FALSE) -> 1.66 | F17: =VLOOKUP($C$5,EngineLessThan12_lu,23,FALSE) -> 1.18 | G17: =VLOOKUP($C$5,EngineLessThan12_lu,24,FALSE) -> 0.36 | H17: =VLOOKUP($C$5,EngineLessThan12_lu,25,FALSE) -> 0.15 | I17: =VLOOKUP($C$5,EngineLessThan12_lu,26,FALSE) -> 0.06 | J17: =VLOOKUP($C$5,EngineLessThan12_lu,27,FALSE) -> 0.01 | P17: =INDEX($C17:$J17,1,MATCH($M$8,$C17:$J17,-1)) -> 0.01 | Q17: =VLOOKUP(MATCH(P17,$C17:$J17,0),$U$15:$V$22,2,FALSE) -> 1000 | R17: =IF($M$8>C17,C17,INDEX($C17:$K17,1,1+MATCH($M$8,$C17:$K17,-1))) -> 0 | S17: =IF(R17=0,Q17,VLOOKUP(MATCH(R17,$C17:$J17,0),$U$15:$V$22,2,FALSE)) -> 1000 | U17: 3 | V17: 75
A18: 5 | B18: 250 < Rating ≤ 1000 | C18: =VLOOKUP($C$5,EngineLessThan12_lu,29,FALSE) -> 8.52 | D18: =VLOOKUP($C$5,EngineLessThan12_lu,30,FALSE) -> 2.69 | E18: =VLOOKUP($C$5,EngineLessThan12_lu,31,FALSE) -> 1.74 | F18: =VLOOKUP($C$5,EngineLessThan12_lu,32,FALSE) -> 1.19 | G18: =VLOOKUP($C$5,EngineLessThan12_lu,33,FALSE) -> 0.37 | H18: =VLOOKUP($C$5,EngineLessThan12_lu,34,FALSE) -> 0.15 | I18: =VLOOKUP($C$5,EngineLessThan12_lu,35,FALSE) -> 0.06 | J18: =VLOOKUP($C$5,EngineLessThan12_lu,36,FALSE) -> 0.01 | P18: =INDEX($C18:$J18,1,MATCH($M$8,$C18:$J18,-1)) -> 0.01 | Q18: =VLOOKUP(MATCH(P18,$C18:$J18,0),$U$15:$V$22,2,FALSE) -> 1000 | R18: =IF($M$8>C18,C18,INDEX($C18:$K18,1,1+MATCH($M$8,$C18:$K18,-1))) -> 0 | S18: =IF(R18=0,Q18,VLOOKUP(MATCH(R18,$C18:$J18,0),$U$15:$V$22,2,FALSE)) -> 1000 | U18: 4 | V18: 100
A19: 6 | B19: Rating > 1000 | C19: =VLOOKUP($C$5,EngineLessThan12_lu,38,FALSE) -> 2.12 | D19: =VLOOKUP($C$5,EngineLessThan12_lu,39,FALSE) -> 0.78 | E19: =VLOOKUP($C$5,EngineLessThan12_lu,40,FALSE) -> 0.61 | F19: =VLOOKUP($C$5,EngineLessThan12_lu,41,FALSE) -> 0.49 | G19: =VLOOKUP($C$5,EngineLessThan12_lu,42,FALSE) -> 0.2 | H19: =VLOOKUP($C$5,EngineLessThan12_lu,43,FALSE) -> 0.11 | I19: =VLOOKUP($C$5,EngineLessThan12_lu,44,FALSE) -> 0.04 | J19: =VLOOKUP($C$5,EngineLessThan12_lu,45,FALSE) -> 0.01 | P19: =INDEX($C19:$J19,1,MATCH($M$8,$C19:$J19,-1)) -> 0.01 | Q19: =VLOOKUP(MATCH(P19,$C19:$J19,0),$U$15:$V$22,2,FALSE) -> 1000 | R19: =IF($M$8>C19,C19,INDEX($C19:$K19,1,1+MATCH($M$8,$C19:$K19,-1))) -> 0 | S19: =IF(R19=0,Q19,VLOOKUP(MATCH(R19,$C19:$J19,0),$U$15:$V$22,2,FALSE)) -> 1000 | U19: 5 | V19: 200
U20: 6 | V20: 300
U21: 7 | V21: 500
B22: Table 9B - Point Source, operating more than 12 hrs/day (µg/m³)/(tons/yr) | U22: 8 | V22: 1000
B23: Rating (BHP) | C23: Downwind Distance (meters)
A24: Row | C24: 25 | D24: 50 | E24: 75 | F24: 100 | G24: 200 | H24: 300 | I24: 500 | J24: 1000 | P24: Nearest X/Q - high | Q24: nearest dist - low | R24: Nearest X/Q- low | S24: nearest dist - high
A25: 2 | B25: 50 < Rating ≤ 75 | C25: =VLOOKUP($C$5,EngineMoreThan12_lu,2,FALSE) -> 21.17 | D25: =VLOOKUP($C$5,EngineMoreThan12_lu,3,FALSE) -> 6.18 | E25: =VLOOKUP($C$5,EngineMoreThan12_lu,4,FALSE) -> 4.01 | F25: =VLOOKUP($C$5,EngineMoreThan12_lu,5,FALSE) -> 2.88 | G25: =VLOOKUP($C$5,EngineMoreThan12_lu,6,FALSE) -> 1.03 | H25: =VLOOKUP($C$5,EngineMoreThan12_lu,7,FALSE) -> 0.45 | I25: =VLOOKUP($C$5,EngineMoreThan12_lu,8,FALSE) -> 0.18 | J25: =VLOOKUP($C$5,EngineMoreThan12_lu,9,FALSE) -> 0.06 | P25: =INDEX($C25:$J25,1,MATCH($M$8,$C25:$J25,-1)) -> 0.06 | Q25: =VLOOKUP(MATCH(P25,$C25:$J25,0),$U$15:$V$22,2,FALSE) -> 1000 | R25: =IF($M$8>C25,C25,INDEX($C25:$K25,1,1+MATCH($M$8,$C25:$K25,-1))) -> 0 | S25: =IF(R25=0, Q25,VLOOKUP(MATCH(R25,$C25:$J25,0),$U$15:$V$22,2,FALSE)) -> 1000
A26: 3 | B26: 75 < Rating ≤ 150 | C26: =VLOOKUP($C$5,EngineMoreThan12_lu,11,FALSE) -> 14.56 | D26: =VLOOKUP($C$5,EngineMoreThan12_lu,12,FALSE) -> 4.18 | E26: =VLOOKUP($C$5,EngineMoreThan12_lu,13,FALSE) -> 2.64 | F26: =VLOOKUP($C$5,EngineMoreThan12_lu,14,FALSE) -> 1.9 | G26: =VLOOKUP($C$5,EngineMoreThan12_lu,15,FALSE) -> 0.74 | H26: =VLOOKUP($C$5,EngineMoreThan12_lu,16,FALSE) -> 0.36 | I26: =VLOOKUP($C$5,EngineMoreThan12_lu,17,FALSE) -> 0.16 | J26: =VLOOKUP($C$5,EngineMoreThan12_lu,18,FALSE) -> 0.06 | P26: =INDEX($C26:$J26,1,MATCH($M$8,$C26:$J26,-1)) -> 0.06 | Q26: =VLOOKUP(MATCH(P26,$C26:$J26,0),$U$15:$V$22,2,FALSE) -> 1000 | R26: =IF($M$8>C26,C26,INDEX($C26:$K26,1,1+MATCH($M$8,$C26:$K26,-1))) -> 0 | S26: =IF(R26=0, Q26,VLOOKUP(MATCH(R26,$C26:$J26,0),$U$15:$V$22,2,FALSE)) -> 1000
A27: 4 | B27: 150 < Rating ≤ 250 | C27: =VLOOKUP($C$5,EngineMoreThan12_lu,20,FALSE) -> 8.45 | D27: =VLOOKUP($C$5,EngineMoreThan12_lu,21,FALSE) -> 2.45 | E27: =VLOOKUP($C$5,EngineMoreThan12_lu,22,FALSE) -> 1.43 | F27: =VLOOKUP($C$5,EngineMoreThan12_lu,23,FALSE) -> 1.03 | G27: =VLOOKUP($C$5,EngineMoreThan12_lu,24,FALSE) -> 0.36 | H27: =VLOOKUP($C$5,EngineMoreThan12_lu,25,FALSE) -> 0.19 | I27: =VLOOKUP($C$5,EngineMoreThan12_lu,26,FALSE) -> 0.1 | J27: =VLOOKUP($C$5,EngineMoreThan12_lu,27,FALSE) -> 0.05 | P27: =INDEX($C27:$J27,1,MATCH($M$8,$C27:$J27,-1)) -> 0.05 | Q27: =VLOOKUP(MATCH(P27,$C27:$J27,0),$U$15:$V$22,2,FALSE) -> 1000 | R27: =IF($M$8>C27,C27,INDEX($C27:$K27,1,1+MATCH($M$8,$C27:$K27,-1))) -> 0 | S27: =IF(R27=0, Q27,VLOOKUP(MATCH(R27,$C27:$J27,0),$U$15:$V$22,2,FALSE)) -> 1000
A28: 5 | B28: 250 < Rating ≤ 1000 | C28: =VLOOKUP($C$5,EngineMoreThan12_lu,29,FALSE) -> 4.92 | D28: =VLOOKUP($C$5,EngineMoreThan12_lu,30,FALSE) -> 1.48 | E28: =VLOOKUP($C$5,EngineMoreThan12_lu,31,FALSE) -> 0.9 | F28: =VLOOKUP($C$5,EngineMoreThan12_lu,32,FALSE) -> 0.61 | G28: =VLOOKUP($C$5,EngineMoreThan12_lu,33,FALSE) -> 0.21 | H28: =VLOOKUP($C$5,EngineMoreThan12_lu,34,FALSE) -> 0.09 | I28: =VLOOKUP($C$5,EngineMoreThan12_lu,35,FALSE) -> 0.05 | J28: =VLOOKUP($C$5,EngineMoreThan12_lu,36,FALSE) -> 0.03 | P28: =INDEX($C28:$J28,1,MATCH($M$8,$C28:$J28,-1)) -> 0.03 | Q28: =VLOOKUP(MATCH(P28,$C28:$J28,0),$U$15:$V$22,2,FALSE) -> 1000 | R28: =IF($M$8>C28,C28,INDEX($C28:$K28,1,1+MATCH($M$8,$C28:$K28,-1))) -> 0 | S28: =IF(R28=0, Q28,VLOOKUP(MATCH(R28,$C28:$J28,0),$U$15:$V$22,2,FALSE)) -> 1000
A29: 6 | B29: Rating > 1000 | C29: =VLOOKUP($C$5,EngineMoreThan12_lu,38,FALSE) -> 1.04 | D29: =VLOOKUP($C$5,EngineMoreThan12_lu,39,FALSE) -> 0.37 | E29: =VLOOKUP($C$5,EngineMoreThan12_lu,40,FALSE) -> 0.27 | F29: =VLOOKUP($C$5,EngineMoreThan12_lu,41,FALSE) -> 0.21 | G29: =VLOOKUP($C$5,EngineMoreThan12_lu,42,FALSE) -> 0.09 | H29: =VLOOKUP($C$5,EngineMoreThan12_lu,43,FALSE) -> 0.05 | I29: =VLOOKUP($C$5,EngineMoreThan12_lu,44,FALSE) -> 0.02 | J29: =VLOOKUP($C$5,EngineMoreThan12_lu,45,FALSE) -> 0.01 | P29: =INDEX($C29:$J29,1,MATCH($M$8,$C29:$J29,-1)) -> 0.01 | Q29: =VLOOKUP(MATCH(P29,$C29:$J29,0),$U$15:$V$22,2,FALSE) -> 1000 | R29: =IF($M$8>C29,C29,INDEX($C29:$K29,1,1+MATCH($M$8,$C29:$K29,-1))) -> 0 | S29: =IF(R29=0, Q29,VLOOKUP(MATCH(R29,$C29:$J29,0),$U$15:$V$22,2,FALSE)) -> 1000
B32: Table 9.6 - Dispersion Factors (X/Q) for Acute Hazard Index
B33: All Operating Conditions X/Q Values [(µg/m³)/(lbs/hr)]
B34: Rating (BHP) | C34: Downwind Distance (meters)
A35: Row | C35: 25 | D35: 50 | E35: 75 | F35: 100 | G35: 200 | H35: 300 | I35: 500 | J35: 1000
A36: 2 | B36: 50 < Rating ≤ 75 | C36: 528.24 | D36: 175.46 | E36: 128.59 | F36: 103.13 | G36: 46.87 | H36: 19.01 | I36: 6.77 | J36: 2.67
A37: 3 | B37: 75 < Rating ≤ 150 | C37: 382.75 | D37: 120.44 | E37: 89.95 | F37: 71.22 | G37: 31.74 | H37: 14.51 | I37: 6.34 | J37: 2.88
A38: 4 | B38: 150 < Rating ≤ 250 | C38: 270.73 | D38: 79.19 | E38: 56.02 | F38: 44.86 | G38: 19.28 | H38: 9.68 | I38: 4.54 | J38: 2.31
A39: 5 | B39: 250 < Rating ≤ 1000 | C39: 191.9 | D39: 55.66 | E39: 39.93 | F39: 30.37 | G39: 12.85 | H39: 6.98 | I39: 3.48 | J39: 1.58
A40: 6 | B40: Rating > 1000 | C40: 79.34 | D40: 26.34 | E40: 19.69 | F40: 15.17 | G40: 5.88 | H40: 3.76 | I40: 2.09 | J40: 0.95

Sheet Engine data (hidden)
A1: Table 9A - Dispersion Factors (X/Q) for Natural Gas ICE Operating 12 Hours per Day or Less
A2: Units are in (ug/m3)/(tons/yr) | B2: Size > 50 to 75 BHP | K2: Size > 75 to 150 BHP | T2: Size > 150 to 250 BHP | AC2: Size > 250 to 1,000 BHP | AL2: Size > 1,000 BHP
B3: Downwind Distance (meters) | K3: Downwind Distance (meters) | T3: Downwind Distance (meters) | AC3: Downwind Distance (meters) | AL3: Downwind Distance (meters)
A4: Location | B4: 25 | C4: 50 | D4: 75 | E4: 100 | F4: 200 | G4: 300 | H4: 500 | I4: 1000 | K4: 25 | L4: 50 | M4: 75 | N4: 100 | O4: 200 | P4: 300 | Q4: 500 | R4: 1000 | T4: 25 | U4: 50 | V4: 75 | W4: 100 | X4: 200 | Y4: 300 | Z4: 500 | AA4: 1000 | AC4: 25 | AD4: 50 | AE4: 75 | AF4: 100 | AG4: 200 | AH4: 300 | AI4: 500 | AJ4: 1000 | AL4: 25 | AM4: 50 | AN4: 75 | AO4: 100 | AP4: 200 | AQ4: 300 | AR4: 500 | AS4: 1000
A5: Azusa | B5: 32.01 | C5: 7.57 | D5: 3.93 | E5: 2.24 | F5: 0.42 | G5: 0.14 | H5: 0.05 | I5: 0.01 | K5: 18.85 | L5: 5.64 | M5: 3.29 | N5: 1.98 | O5: 0.4 | P5: 0.14 | Q5: 0.05 | R5: 0.01 | T5: 8.43 | U5: 3.18 | V5: 2.05 | W5: 1.4 | X5: 0.34 | Y5: 0.12 | Z5: 0.04 | AA5: 0.01 | AC5: 3.68 | AD5: 1.73 | AE5: 1.25 | AF5: 0.87 | AG5: 0.26 | AH5: 0.11 | AI5: 0.04 | AJ5: 0.01 | AL5: 0.21 | AM5: 0.22 | AN5: 0.23 | AO5: 0.21 | AP5: 0.12 | AQ5: 0.07 | AR5: 0.03 | AS5: 0.01
A6: Banning | B6: 38.68 | C6: 8.93 | D6: 4.76 | E6: 2.83 | F6: 0.64 | G6: 0.24 | H6: 0.08 | I6: 0.02 | K6: 28.35 | L6: 7.32 | M6: 4.2 | N6: 2.6 | O6: 0.62 | P6: 0.23 | Q6: 0.08 | R6: 0.02 | T6: 19.24 | U6: 5.22 | V6: 3.13 | W6: 2.13 | X6: 0.56 | Y6: 0.21 | Z6: 0.07 | AA6: 0.02 | AC6: 11.81 | AD6: 3.53 | AE6: 2.28 | AF6: 1.55 | AG6: 0.49 | AH6: 0.19 | AI6: 0.07 | AJ6: 0.02 | AL6: 3.06 | AM6: 1.06 | AN6: 0.87 | AO6: 0.71 | AP6: 0.28 | AQ6: 0.14 | AR6: 0.06 | AS6: 0.02
A7: Central L.A. | B7: 32.26 | C7: 7.3 | D7: 3.64 | E7: 2.06 | F7: 0.41 | G7: 0.14 | H7: 0.05 | I7: 0.01 | K7: 21.69 | L7: 5.72 | M7: 3.17 | N7: 1.86 | O7: 0.39 | P7: 0.13 | Q7: 0.04 | R7: 0.01 | T7: 11.92 | U7: 3.71 | V7: 2.23 | W7: 1.45 | X7: 0.34 | Y7: 0.12 | Z7: 0.04 | AA7: 0.01 | AC7: 6.24 | AD7: 2.2 | AE7: 1.47 | AF7: 0.99 | AG7: 0.28 | AH7: 0.11 | AI7: 0.04 | AJ7: 0.01 | AL7: 0.64 | AM7: 0.34 | AN7: 0.33 | AO7: 0.28 | AP7: 0.13 | AQ7: 0.07 | AR7: 0.03 | AS7: 0.01
A8: Lake Elsinore | B8: 21.77 | C8: 5.76 | D8: 2.98 | E8: 1.69 | F8: 0.34 | G8: 0.12 | H8: 0.04 | I8: 0.01 | K8: 12.22 | L8: 3.98 | M8: 2.35 | N8: 1.42 | O8: 0.31 | P8: 0.11 | Q8: 0.04 | R8: 0.01 | T8: 5.37 | U8: 2.04 | V8: 1.35 | W8: 0.95 | X8: 0.25 | Y8: 0.1 | Z8: 0.04 | AA8: 0.01 | AC8: 2.65 | AD8: 1.11 | AE8: 0.82 | AF8: 0.59 | AG8: 0.2 | AH8: 0.09 | AI8: 0.03 | AJ8: 0.01 | AL8: 0.32 | AM8: 0.2 | AN8: 0.2 | AO8: 0.18 | AP8: 0.1 | AQ8: 0.06 | AR8: 0.03 | AS8: 0.01
A9: Fontana | B9: 37.79 | C9: 8.52 | D9: 4.46 | E9: 2.59 | F9: 0.53 | G9: 0.19 | H9: 0.06 | I9: 0.02 | K9: 24.88 | L9: 6.53 | M9: 3.8 | N9: 2.32 | O9: 0.5 | P9: 0.18 | Q9: 0.06 | R9: 0.02 | T9: 14.04 | U9: 4.11 | V9: 2.56 | W9: 1.76 | X9: 0.44 | Y9: 0.16 | Z9: 0.06 | AA9: 0.01 | AC9: 7.72 | AD9: 2.51 | AE9: 1.71 | AF9: 1.18 | AG9: 0.36 | AH9: 0.15 | AI9: 0.05 | AJ9: 0.01 | AL9: 1.29 | AM9: 0.52 | AN9: 0.47 | AO9: 0.4 | AP9: 0.19 | AQ9: 0.1 | AR9: 0.04 | AS9: 0.01
A10: Mission Viejo | B10: 24.52 | C10: 6.22 | D10: 3.24 | E10: 1.83 | F10: 0.35 | G10: 0.13 | H10: 0.04 | I10: 0.01 | K10: 15.29 | L10: 4.65 | M10: 2.71 | N10: 1.61 | O10: 0.33 | P10: 0.12 | Q10: 0.04 | R10: 0.01 | T10: 7.16 | U10: 2.65 | V10: 1.69 | W10: 1.13 | X10: 0.27 | Y10: 0.11 | Z10: 0.04 | AA10: 0.01 | AC10: 3.4 | AD10: 1.43 | AE10: 1.02 | AF10: 0.71 | AG10: 0.22 | AH10: 0.09 | AI10: 0.03 | AJ10: 0.01 | AL10: 0.24 | AM10: 0.2 | AN10: 0.21 | AO10: 0.19 | AP10: 0.11 | AQ10: 0.06 | AR10: 0.03 | AS10: 0.01
A11: Perris | B11: 22.74 | C11: 5.86 | D11: 3.14 | E11: 1.86 | F11: 0.41 | G11: 0.16 | H11: 0.05 | I11: 0.01 | K11: 15.28 | L11: 4.46 | M11: 2.63 | N11: 1.64 | O11: 0.39 | P11: 0.15 | Q11: 0.05 | R11: 0.01 | T11: 9.31 | U11: 2.9 | V11: 1.8 | W11: 1.25 | X11: 0.34 | Y11: 0.13 | Z11: 0.05 | AA11: 0.01 | AC11: 5.73 | AD11: 1.88 | AE11: 1.25 | AF11: 0.87 | AG11: 0.28 | AH11: 0.12 | AI11: 0.04 | AJ11: 0.01 | AL11: 1.4 | AM11: 0.54 | AN11: 0.43 | AO11: 0.35 | AP11: 0.15 | AQ11: 0.08 | AR11: 0.03 | AS11: 0.01
A12: Pico Rivera | B12: 34.27 | C12: 7.79 | D12: 3.97 | E12: 2.29 | F12: 0.45 | G12: 0.16 | H12: 0.05 | I12: 0.01 | K12: 23.33 | L12: 6.12 | M12: 3.43 | N12: 2.06 | O12: 0.43 | P12: 0.16 | Q12: 0.05 | R12: 0.01 | T12: 13.37 | U12: 4.02 | V12: 2.39 | W12: 1.59 | X12: 0.37 | Y12: 0.14 | Z12: 0.05 | AA12: 0.01 | AC12: 7.61 | AD12: 2.51 | AE12: 1.62 | AF12: 1.08 | AG12: 0.31 | AH12: 0.12 | AI12: 0.05 | AJ12: 0.01 | AL12: 1.34 | AM12: 0.54 | AN12: 0.47 | AO12: 0.39 | AP12: 0.16 | AQ12: 0.09 | AR12: 0.04 | AS12: 0.01
A13: Redlands | B13: 30.36 | C13: 7.78 | D13: 4.02 | E13: 2.26 | F13: 0.43 | G13: 0.15 | H13: 0.05 | I13: 0.01 | K13: 17.36 | L13: 5.69 | M13: 3.34 | N13: 2 | O13: 0.4 | P13: 0.14 | Q13: 0.05 | R13: 0.01 | T13: 7.44 | U13: 3.09 | V13: 2.02 | W13: 1.39 | X13: 0.34 | Y13: 0.13 | Z13: 0.05 | AA13: 0.01 | AC13: 3.13 | AD13: 1.64 | AE13: 1.21 | AF13: 0.86 | AG13: 0.27 | AH13: 0.11 | AI13: 0.04 | AJ13: 0.01 | AL13: 0.23 | AM13: 0.21 | AN13: 0.23 | AO13: 0.22 | AP13: 0.13 | AQ13: 0.07 | AR13: 0.03 | AS13: 0.01
A14: Upland | B14: 40.22 | C14: 9.05 | D14: 4.8 | E14: 2.8 | F14: 0.56 | G14: 0.2 | H14: 0.07 | I14: 0.02 | K14: 25.63 | L14: 6.85 | M14: 4.07 | N14: 2.5 | O14: 0.53 | P14: 0.19 | Q14: 0.06 | R14: 0.02 | T14: 13.49 | U14: 4.19 | V14: 2.7 | W14: 1.88 | X14: 0.46 | Y14: 0.17 | Z14: 0.06 | AA14: 0.02 | AC14: 6.86 | AD14: 2.49 | AE14: 1.77 | AF14: 1.23 | AG14: 0.38 | AH14: 0.15 | AI14: 0.06 | AJ14: 0.02 | AL14: 0.65 | AM14: 0.35 | AN14: 0.36 | AO14: 0.33 | AP14: 0.18 | AQ14: 0.1 | AR14: 0.04 | AS14: 0.01
A15: Burbank Airport | B15: 42.23 | C15: 9.05 | D15: 4.73 | E15: 2.78 | F15: 0.58 | G15: 0.22 | H15: 0.07 | I15: 0.02 | K15: 29.72 | L15: 7.24 | M15: 4.12 | N15: 2.53 | O15: 0.55 | P15: 0.21 | Q15: 0.07 | R15: 0.02 | T15: 18.6 | U15: 4.99 | V15: 2.97 | W15: 2.02 | X15: 0.49 | Y15: 0.2 | Z15: 0.07 | AA15: 0.02 | AC15: 11.19 | AD15: 3.29 | AE15: 2.11 | AF15: 1.43 | AG15: 0.42 | AH15: 0.17 | AI15: 0.07 | AJ15: 0.02 | AL15: 2.23 | AM15: 0.81 | AN15: 0.66 | AO15: 0.54 | AP15: 0.23 | AQ15: 0.12 | AR15: 0.05 | AS15: 0.02
A16: Chino Airport. | B16: 31.86 | C16: 8.21 | D16: 4.49 | E16: 2.68 | F16: 0.61 | G16: 0.23 | H16: 0.07 | I16: 0.02 | K16: 22.67 | L16: 6.48 | M16: 3.87 | N16: 2.42 | O16: 0.58 | P16: 0.22 | Q16: 0.07 | R16: 0.02 | T16: 14.96 | U16: 4.39 | V16: 2.72 | W16: 1.89 | X16: 0.52 | Y16: 0.2 | Z16: 0.07 | AA16: 0.02 | AC16: 9.49 | AD16: 2.94 | AE16: 1.94 | AF16: 1.35 | AG16: 0.44 | AH16: 0.18 | AI16: 0.07 | AJ16: 0.02 | AL16: 2.9 | AM16: 1.01 | AN16: 0.77 | AO16: 0.61 | AP16: 0.25 | AQ16: 0.13 | AR16: 0.05 | AS16: 0.01
A17: USC/Downtown L.A. | B17: 32.55 | C17: 8.5 | D17: 4.54 | E17: 2.63 | F17: 0.51 | G17: 0.18 | H17: 0.06 | I17: 0.01 | K17: 18.61 | L17: 6.14 | M17: 3.75 | N17: 2.3 | O17: 0.48 | P17: 0.17 | Q17: 0.06 | R17: 0.01 | T17: 7.49 | U17: 3.28 | V17: 2.25 | W17: 1.62 | X17: 0.41 | Y17: 0.15 | Z17: 0.05 | AA17: 0.01 | AC17: 3.16 | AD17: 1.75 | AE17: 1.35 | AF17: 0.98 | AG17: 0.32 | AH17: 0.13 | AI17: 0.05 | AJ17: 0.01 | AL17: 0.14 | AM17: 0.2 | AN17: 0.23 | AO17: 0.22 | AP17: 0.13 | AQ17: 0.08 | AR17: 0.04 | AS17: 0.01
A18: Fullerton Airport | B18: 36.73 | C18: 8.24 | D18: 4.38 | E18: 2.58 | F18: 0.54 | G18: 0.19 | H18: 0.06 | I18: 0.02 | K18: 25.25 | L18: 6.52 | M18: 3.79 | N18: 2.33 | O18: 0.51 | P18: 0.18 | Q18: 0.06 | R18: 0.02 | T18: 14.84 | U18: 4.33 | V18: 2.67 | W18: 1.82 | X18: 0.46 | Y18: 0.17 | Z18: 0.06 | AA18: 0.02 | AC18: 8.54 | AD18: 2.74 | AE18: 1.83 | AF18: 1.26 | AG18: 0.38 | AH18: 0.15 | AI18: 0.05 | AJ18: 0.01 | AL18: 1.44 | AM18: 0.59 | AN18: 0.52 | AO18: 0.44 | AP18: 0.19 | AQ18: 0.1 | AR18: 0.04 | AS18: 0.01
A19: Hawthorne Airport | B19: 48.48 | C19: 10.62 | D19: 5.69 | E19: 3.38 | F19: 0.74 | G19: 0.26 | H19: 0.09 | I19: 0.02 | K19: 35 | L19: 8.65 | M19: 5 | N19: 3.1 | O19: 0.71 | P19: 0.25 | Q19: 0.08 | R19: 0.02 | T19: 23.33 | U19: 6.09 | V19: 3.7 | W19: 2.52 | X19: 0.65 | Y19: 0.24 | Z19: 0.08 | AA19: 0.02 | AC19: 14.22 | AD19: 4.11 | AE19: 2.69 | AF19: 1.84 | AG19: 0.56 | AH19: 0.21 | AI19: 0.08 | AJ19: 0.02 | AL19: 3.55 | AM19: 1.25 | AN19: 1.04 | AO19: 0.84 | AP19: 0.33 | AQ19: 0.15 | AR19: 0.06 | AS19: 0.02
A20: Los Angeles Int'l Airport | B20: 54.5 | C20: 12.46 | D20: 7.05 | E20: 4.4 | F20: 1.06 | G20: 0.38 | H20: 0.12 | I20: 0.03 | K20: 40.38 | L20: 10.34 | M20: 6.22 | N20: 4.01 | O20: 1.01 | P20: 0.37 | Q20: 0.12 | R20: 0.03 | T20: 28.1 | U20: 7.53 | V20: 4.67 | W20: 3.26 | X20: 0.92 | Y20: 0.35 | Z20: 0.12 | AA20: 0.03 | AC20: 17.73 | AD20: 5.19 | AE20: 3.41 | AF20: 2.37 | AG20: 0.78 | AH20: 0.31 | AI20: 0.11 | AJ20: 0.03 | AL20: 4.72 | AM20: 1.66 | AN20: 1.33 | AO20: 1.08 | AP20: 0.44 | AQ20: 0.22 | AR20: 0.09 | AS20: 0.03
A21: Long Beach Airport | B21: 34.78 | C21: 7.8 | D21: 4.2 | E21: 2.53 | F21: 0.55 | G21: 0.21 | H21: 0.07 | I21: 0.02 | K21: 24.49 | L21: 6.18 | M21: 3.63 | N21: 2.28 | O21: 0.52 | P21: 0.2 | Q21: 0.07 | R21: 0.02 | T21: 15.05 | U21: 4.2 | V21: 2.58 | W21: 1.8 | X21: 0.46 | Y21: 0.18 | Z21: 0.07 | AA21: 0.02 | AC21: 8.99 | AD21: 2.78 | AE21: 1.83 | AF21: 1.26 | AG21: 0.39 | AH21: 0.16 | AI21: 0.06 | AJ21: 0.02 | AL21: 1.33 | AM21: 0.54 | AN21: 0.48 | AO21: 0.41 | AP21: 0.2 | AQ21: 0.11 | AR21: 0.05 | AS21: 0.01
A22: Ontario Airport | B22: 42.3 | C22: 9.97 | D22: 5.5 | E22: 3.33 | F22: 0.75 | G22: 0.28 | H22: 0.09 | I22: 0.02 | K22: 30.05 | L22: 7.88 | M22: 4.75 | N22: 3.01 | O22: 0.72 | P22: 0.27 | Q22: 0.09 | R22: 0.02 | T22: 18.98 | U22: 5.3 | V22: 3.33 | W22: 2.34 | X22: 0.64 | Y22: 0.25 | Z22: 0.09 | AA22: 0.02 | AC22: 11.52 | AD22: 3.49 | AE22: 2.33 | AF22: 1.63 | AG22: 0.54 | AH22: 0.22 | AI22: 0.08 | AJ22: 0.02 | AL22: 2.85 | AM22: 0.99 | AN22: 0.8 | AO22: 0.66 | AP22: 0.29 | AQ22: 0.15 | AR22: 0.06 | AS22: 0.02
A23: Palm Springs Airport | B23: 26.05 | C23: 6.19 | D23: 3.34 | E23: 1.97 | F23: 0.42 | G23: 0.15 | H23: 0.05 | I23: 0.01 | K23: 17.02 | L23: 4.67 | M23: 2.82 | N23: 1.76 | O23: 0.4 | P23: 0.15 | Q23: 0.05 | R23: 0.01 | T23: 9.13 | U23: 2.81 | V23: 1.85 | W23: 1.31 | X23: 0.35 | Y23: 0.13 | Z23: 0.05 | AA23: 0.01 | AC23: 4.96 | AD23: 1.69 | AE23: 1.22 | AF23: 0.88 | AG23: 0.29 | AH23: 0.12 | AI23: 0.04 | AJ23: 0.01 | AL23: 1.59 | AM23: 0.57 | AN23: 0.43 | AO23: 0.34 | AP23: 0.14 | AQ23: 0.08 | AR23: 0.03 | AS23: 0.01
A24: Riverside Airport | B24: 37.51 | C24: 9.69 | D24: 5.28 | E24: 3.13 | F24: 0.67 | G24: 0.24 | H24: 0.08 | I24: 0.02 | K24: 24.45 | L24: 7.35 | M24: 4.47 | N24: 2.8 | O24: 0.64 | P24: 0.23 | Q24: 0.08 | R24: 0.02 | T24: 13.23 | U24: 4.44 | V24: 2.91 | W24: 2.08 | X24: 0.56 | Y24: 0.21 | Z24: 0.08 | AA24: 0.02 | AC24: 6.99 | AD24: 2.67 | AE24: 1.92 | AF24: 1.38 | AG24: 0.46 | AH24: 0.19 | AI24: 0.07 | AJ24: 0.02 | AL24: 1.12 | AM24: 0.54 | AN24: 0.52 | AO24: 0.47 | AP24: 0.24 | AQ24: 0.13 | AR24: 0.06 | AS24: 0.02
A25: Santa Monica Airport | B25: 53.59 | C25: 11.42 | D25: 6.22 | E25: 3.77 | F25: 0.84 | G25: 0.3 | H25: 0.1 | I25: 0.02 | K25: 39.13 | L25: 9.3 | M25: 5.44 | N25: 3.42 | O25: 0.8 | P25: 0.29 | Q25: 0.1 | R25: 0.02 | T25: 25.8 | U25: 6.65 | V25: 4.04 | W25: 2.78 | X25: 0.73 | Y25: 0.27 | Z25: 0.09 | AA25: 0.02 | AC25: 16.42 | AD25: 4.59 | AE25: 2.96 | AF25: 2.02 | AG25: 0.62 | AH25: 0.24 | AI25: 0.09 | AJ25: 0.02 | AL25: 4.06 | AM25: 1.36 | AN25: 1.1 | AO25: 0.88 | AP25: 0.34 | AQ25: 0.16 | AR25: 0.07 | AS25: 0.02
A26: John Wayne Int'l Airport | B26: 42.99 | C26: 10.05 | D26: 5.34 | E26: 3.23 | F26: 0.71 | G26: 0.27 | H26: 0.09 | I26: 0.02 | K26: 31.67 | L26: 8.18 | M26: 4.68 | N26: 2.94 | O26: 0.68 | P26: 0.26 | Q26: 0.09 | R26: 0.02 | T26: 21.15 | U26: 5.89 | V26: 3.47 | W26: 2.38 | X26: 0.62 | Y26: 0.24 | Z26: 0.08 | AA26: 0.02 | AC26: 13.61 | AD26: 4.08 | AE26: 2.54 | AF26: 1.73 | AG26: 0.53 | AH26: 0.22 | AI26: 0.08 | AJ26: 0.02 | AL26: 3.95 | AM26: 1.36 | AN26: 1.01 | AO26: 0.79 | AP26: 0.3 | AQ26: 0.15 | AR26: 0.06 | AS26: 0.02
A27: Desert Hot Springs Airport | B27: 30.67 | C27: 7.76 | D27: 4.36 | E27: 2.71 | F27: 0.63 | G27: 0.24 | H27: 0.08 | I27: 0.02 | K27: 21.6 | L27: 6.03 | M27: 3.7 | N27: 2.4 | O27: 0.59 | P27: 0.23 | Q27: 0.08 | R27: 0.02 | T27: 7.55 | U27: 2.5 | V27: 1.75 | W27: 1.31 | X27: 0.43 | Y27: 0.18 | Z27: 0.07 | AA27: 0.02 | AC27: 8.16 | AD27: 2.61 | AE27: 1.77 | AF27: 1.26 | AG27: 0.43 | AH27: 0.18 | AI27: 0.07 | AJ27: 0.02 | AL27: 1.68 | AM27: 0.63 | AN27: 0.52 | AO27: 0.44 | AP27: 0.21 | AQ27: 0.11 | AR27: 0.05 | AS27: 0.01
A28: Van Nuys Airport | B28: 31.64 | C28: 7.53 | D28: 4 | E28: 2.35 | F28: 0.51 | G28: 0.19 | H28: 0.06 | I28: 0.01 | K28: 22.59 | L28: 5.99 | M28: 3.46 | N28: 2.13 | O28: 0.49 | P28: 0.18 | Q28: 0.06 | R28: 0.01 | T28: 7.43 | U28: 2.47 | V28: 1.66 | W28: 1.18 | X28: 0.36 | Y28: 0.15 | Z28: 0.06 | AA28: 0.01 | AC28: 8.52 | AD28: 2.69 | AE28: 1.74 | AF28: 1.19 | AG28: 0.37 | AH28: 0.15 | AI28: 0.06 | AJ28: 0.01 | AL28: 2.12 | AM28: 0.78 | AN28: 0.61 | AO28: 0.49 | AP28: 0.2 | AQ28: 0.11 | AR28: 0.04 | AS28: 0.01
A34: Table 9B - Dispersion Factors (X/Q) for Natural Gas ICE Operating More Than 12 Hours per Day
A35: Units are in (ug/m3)/(tons/yr) | B35: Size > 50 to 75 BHP | K35: Size > 75 to 150 BHP | T35: Size > 150 to 250 BHP | AC35: Size > 250 to 1,000 BHP | AL35: Size > 1,000 BHP
B36: Downwind Distance (meters) | K36: Downwind Distance (meters) | T36: Downwind Distance (meters) | AC36: Downwind Distance (meters) | AL36: Downwind Distance (meters)
A37: Location | B37: 25 | C37: 50 | D37: 75 | E37: 100 | F37: 200 | G37: 300 | H37: 500 | I37: 1000 | K37: 25 | L37: 50 | M37: 75 | N37: 100 | O37: 200 | P37: 300 | Q37: 500 | R37: 1000 | T37: 25 | U37: 50 | V37: 75 | W37: 100 | X37: 200 | Y37: 300 | Z37: 500 | AA37: 1000 | AC37: 25 | AD37: 50 | AE37: 75 | AF37: 100 | AG37: 200 | AH37: 300 | AI37: 500 | AJ37: 1000 | AL37: 25 | AM37: 50 | AN37: 75 | AO37: 100 | AP37: 200 | AQ37: 300 | AR37: 500 | AS37: 1000
A38: Azusa | B38: 22.16 | C38: 6.82 | D38: 4.89 | E38: 3.63 | F38: 1.2 | G38: 0.42 | H38: 0.14 | I38: 0.04 | K38: 12.22 | L38: 3.59 | M38: 2.54 | N38: 1.93 | O38: 0.78 | P38: 0.35 | Q38: 0.14 | R38: 0.05 | T38: 4.94 | U38: 1.62 | V38: 1.08 | W38: 0.82 | X38: 0.33 | Y38: 0.18 | Z38: 0.1 | AA38: 0.05 | AC38: 2.12 | AD38: 0.83 | AE38: 0.6 | AF38: 0.43 | AG38: 0.17 | AH38: 0.08 | AI38: 0.06 | AJ38: 0.03 | AL38: 0.23 | AM38: 0.1 | AN38: 0.09 | AO38: 0.09 | AP38: 0.05 | AQ38: 0.03 | AR38: 0.02 | AS38: 0.01
A39: Banning | B39: 43.66 | C39: 12.89 | D39: 8.19 | E39: 5.78 | F39: 1.99 | G39: 0.81 | H39: 0.31 | I39: 0.1 | K39: 30.57 | L39: 8.89 | M39: 5.8 | N39: 4.17 | O39: 1.61 | P39: 0.73 | Q39: 0.31 | R39: 0.11 | T39: 19.11 | U39: 5.27 | V39: 3.14 | W39: 2.34 | X39: 1 | Y39: 0.52 | Z39: 0.25 | AA39: 0.1 | AC39: 11.39 | AD39: 3.21 | AE39: 1.96 | AF39: 1.32 | AG39: 0.6 | AH39: 0.33 | AI39: 0.18 | AJ39: 0.08 | AL39: 2.49 | AM39: 0.75 | AN39: 0.55 | AO39: 0.42 | AP39: 0.17 | AQ39: 0.11 | AR39: 0.07 | AS39: 0.04
A40: Central L.A. | B40: 19.5 | C40: 6.05 | D40: 4.26 | E40: 3.23 | F40: 1.07 | G40: 0.37 | H40: 0.13 | I40: 0.04 | K40: 12.22 | L40: 3.33 | M40: 2.36 | N40: 1.79 | O40: 0.69 | P40: 0.29 | Q40: 0.11 | R40: 0.04 | T40: 6.17 | U40: 1.77 | V40: 1.13 | W40: 0.84 | X40: 0.32 | Y40: 0.16 | Z40: 0.09 | AA40: 0.04 | AC40: 3.12 | AD40: 1.01 | AE40: 0.71 | AF40: 0.49 | AG40: 0.18 | AH40: 0.08 | AI40: 0.05 | AJ40: 0.03 | AL40: 0.26 | AM40: 0.14 | AN40: 0.13 | AO40: 0.12 | AP40: 0.06 | AQ40: 0.03 | AR40: 0.02 | AS40: 0.01
A41: Lake Elsinore | B41: 12.04 | C41: 4.14 | D41: 3.2 | E41: 2.55 | F41: 1 | G41: 0.43 | H41: 0.17 | I41: 0.06 | K41: 6.74 | L41: 2.15 | M41: 1.4 | N41: 1 | O41: 0.53 | P41: 0.31 | Q41: 0.16 | R41: 0.06 | T41: 3.02 | U41: 1.04 | V41: 0.68 | W41: 0.5 | X41: 0.18 | Y41: 0.12 | Z41: 0.09 | AA41: 0.05 | AC41: 1.5 | AD41: 0.55 | AE41: 0.4 | AF41: 0.29 | AG41: 0.11 | AH41: 0.05 | AI41: 0.04 | AJ41: 0.03 | AL41: 0.15 | AM41: 0.09 | AN41: 0.08 | AO41: 0.07 | AP41: 0.04 | AQ41: 0.03 | AR41: 0.01 | AS41: 0.01
A42: Fontana | B42: 29.32 | C42: 8.35 | D42: 5.59 | E42: 4.07 | F42: 1.4 | G42: 0.56 | H42: 0.2 | I42: 0.07 | K42: 18.53 | L42: 5.1 | M42: 3.37 | N42: 2.46 | O42: 0.97 | P42: 0.45 | Q42: 0.2 | R42: 0.07 | T42: 9.83 | U42: 2.71 | V42: 1.67 | W42: 1.23 | X42: 0.47 | Y42: 0.25 | Z42: 0.14 | AA42: 0.06 | AC42: 5.32 | AD42: 1.55 | AE42: 1.01 | AF42: 0.69 | AG42: 0.27 | AH42: 0.14 | AI42: 0.08 | AJ42: 0.05 | AL42: 0.85 | AM42: 0.29 | AN42: 0.25 | AO42: 0.2 | AP42: 0.09 | AQ42: 0.05 | AR42: 0.03 | AS42: 0.02
A43: Mission Viejo | B43: 15.67 | C43: 4.8 | D43: 3.43 | E43: 2.58 | F43: 0.94 | G43: 0.39 | H43: 0.16 | I43: 0.05 | K43: 8.68 | L43: 2.56 | M43: 1.68 | N43: 1.22 | O43: 0.51 | P43: 0.28 | Q43: 0.14 | R43: 0.05 | T43: 3.53 | U43: 1.21 | V43: 0.76 | W43: 0.54 | X43: 0.17 | Y43: 0.11 | Z43: 0.08 | AA43: 0.04 | AC43: 1.58 | AD43: 0.62 | AE43: 0.43 | AF43: 0.3 | AG43: 0.1 | AH43: 0.05 | AI43: 0.04 | AJ43: 0.03 | AL43: 0.1 | AM43: 0.08 | AN43: 0.08 | AO43: 0.08 | AP43: 0.04 | AQ43: 0.03 | AR43: 0.01 | AS43: 0.01
A44: Perris | B44: 17.73 | C44: 5.68 | D44: 3.96 | E44: 2.98 | F44: 1.1 | G44: 0.49 | H44: 0.2 | I44: 0.07 | K44: 11.26 | L44: 3.42 | M44: 2.24 | N44: 1.64 | O44: 0.7 | P44: 0.36 | Q44: 0.17 | R44: 0.06 | T44: 6.37 | U44: 1.92 | V44: 1.17 | W44: 0.85 | X44: 0.32 | Y44: 0.18 | Z44: 0.11 | AA44: 0.05 | AC44: 3.77 | AD44: 1.17 | AE44: 0.74 | AF44: 0.51 | AG44: 0.19 | AH44: 0.1 | AI44: 0.06 | AJ44: 0.03 | AL44: 0.81 | AM44: 0.29 | AN44: 0.22 | AO44: 0.18 | AP44: 0.07 | AQ44: 0.04 | AR44: 0.02 | AS44: 0.01
A45: Pico Rivera | B45: 24.75 | C45: 7.29 | D45: 4.75 | E45: 3.36 | F45: 1.02 | G45: 0.39 | H45: 0.14 | I45: 0.04 | K45: 15.68 | L45: 4.33 | M45: 2.78 | N45: 2.01 | O45: 0.74 | P45: 0.34 | Q45: 0.15 | R45: 0.05 | T45: 8.17 | U45: 2.31 | V45: 1.35 | W45: 0.98 | X45: 0.35 | Y45: 0.19 | Z45: 0.11 | AA45: 0.04 | AC45: 4.45 | AD45: 1.33 | AE45: 0.82 | AF45: 0.56 | AG45: 0.2 | AH45: 0.1 | AI45: 0.06 | AJ45: 0.03 | AL45: 0.64 | AM45: 0.24 | AN45: 0.2 | AO45: 0.17 | AP45: 0.07 | AQ45: 0.04 | AR45: 0.02 | AS45: 0.01
A46: Redlands | B46: 18.17 | C46: 5.69 | D46: 4.08 | E46: 3.59 | F46: 1.65 | G46: 0.6 | H46: 0.19 | I46: 0.07 | K46: 9.95 | L46: 3.19 | M46: 2.18 | N46: 1.62 | O46: 0.71 | P46: 0.37 | Q46: 0.2 | R46: 0.08 | T46: 4.02 | U46: 1.49 | V46: 0.99 | W46: 0.74 | X46: 0.29 | Y46: 0.16 | Z46: 0.13 | AA46: 0.08 | AC46: 1.71 | AD46: 0.77 | AE46: 0.57 | AF46: 0.41 | AG46: 0.16 | AH46: 0.08 | AI46: 0.06 | AJ46: 0.05 | AL46: 0.11 | AM46: 0.09 | AN46: 0.1 | AO46: 0.09 | AP46: 0.06 | AQ46: 0.04 | AR46: 0.02 | AS46: 0.01
A47: Upland | B47: 26.65 | C47: 7.41 | D47: 5.23 | E47: 3.89 | F47: 1.34 | G47: 0.5 | H47: 0.18 | I47: 0.06 | K47: 16.4 | L47: 4.42 | M47: 3.01 | N47: 2.22 | O47: 0.92 | P47: 0.41 | Q47: 0.2 | R47: 0.08 | T47: 8.13 | U47: 2.3 | V47: 1.48 | W47: 1.12 | X47: 0.43 | Y47: 0.23 | Z47: 0.13 | AA47: 0.07 | AC47: 4.12 | AD47: 1.3 | AE47: 0.9 | AF47: 0.64 | AG47: 0.25 | AH47: 0.12 | AI47: 0.08 | AJ47: 0.05 | AL47: 0.38 | AM47: 0.17 | AN47: 0.17 | AO47: 0.15 | AP47: 0.08 | AQ47: 0.05 | AR47: 0.03 | AS47: 0.02
A48: Burbank Airport | B48: 28.06 | C48: 7.33 | D48: 4.55 | E48: 3.15 | F48: 0.98 | G48: 0.43 | H48: 0.17 | I48: 0.05 | K48: 19.32 | L48: 5.12 | M48: 3.18 | N48: 2.21 | O48: 0.75 | P48: 0.36 | Q48: 0.16 | R48: 0.05 | T48: 11.54 | U48: 3.09 | V48: 1.8 | W48: 1.29 | X48: 0.42 | Y48: 0.21 | Z48: 0.11 | AA48: 0.05 | AC48: 6.72 | AD48: 1.89 | AE48: 1.15 | AF48: 0.77 | AG48: 0.26 | AH48: 0.12 | AI48: 0.07 | AJ48: 0.03 | AL48: 1.12 | AM48: 0.39 | AN48: 0.3 | AO48: 0.24 | AP48: 0.1 | AQ48: 0.06 | AR48: 0.03 | AS48: 0.01
A49: Chino Airport. | B49: 26.01 | C49: 7.66 | D49: 4.94 | E49: 3.52 | F49: 1.29 | G49: 0.58 | H49: 0.23 | I49: 0.07 | K49: 18.12 | L49: 5.29 | M49: 3.43 | N49: 2.43 | O49: 0.96 | P49: 0.47 | Q49: 0.21 | R49: 0.07 | T49: 11.55 | U49: 3.27 | V49: 2.01 | W49: 1.47 | X49: 0.54 | Y49: 0.28 | Z49: 0.15 | AA49: 0.06 | AC49: 7.21 | AD49: 2.12 | AE49: 1.34 | AF49: 0.92 | AG49: 0.35 | AH49: 0.17 | AI49: 0.09 | AJ49: 0.04 | AL49: 2.04 | AM49: 0.68 | AN49: 0.48 | AO49: 0.36 | AP49: 0.14 | AQ49: 0.07 | AR49: 0.04 | AS49: 0.02
A50: USC/Downtown L.A. | B50: 22.13 | C50: 7.25 | D50: 5.46 | E50: 4.24 | F50: 1.49 | G50: 0.53 | H50: 0.17 | I50: 0.06 | K50: 11.71 | L50: 3.7 | M50: 2.77 | N50: 2.2 | O50: 0.98 | P50: 0.44 | Q50: 0.19 | R50: 0.07 | T50: 4.01 | U50: 1.54 | V50: 1.08 | W50: 0.86 | X50: 0.37 | Y50: 0.21 | Z50: 0.13 | AA50: 0.06 | AC50: 1.59 | AD50: 0.77 | AE50: 0.6 | AF50: 0.45 | AG50: 0.18 | AH50: 0.09 | AI50: 0.06 | AJ50: 0.04 | AL50: 0.08 | AM50: 0.09 | AN50: 0.09 | AO50: 0.09 | AP50: 0.06 | AQ50: 0.04 | AR50: 0.02 | AS50: 0.01
A51: Fullerton Airport | B51: 21.21 | C51: 5.92 | D51: 3.97 | E51: 2.78 | F51: 0.87 | G51: 0.37 | H51: 0.15 | I51: 0.05 | K51: 13.94 | L51: 3.75 | M51: 2.43 | N51: 1.71 | O51: 0.62 | P51: 0.3 | Q51: 0.13 | R51: 0.05 | T51: 7.48 | U51: 2.1 | V51: 1.27 | W51: 0.91 | X51: 0.3 | Y51: 0.15 | Z51: 0.09 | AA51: 0.04 | AC51: 4.11 | AD51: 1.25 | AE51: 0.81 | AF51: 0.55 | AG51: 0.18 | AH51: 0.08 | AI51: 0.05 | AJ51: 0.03 | AL51: 0.58 | AM51: 0.24 | AN51: 0.21 | AO51: 0.17 | AP51: 0.08 | AQ51: 0.04 | AR51: 0.02 | AS51: 0.01
A52: Hawthorne Airport | B52: 31.43 | C52: 8.47 | D52: 5.39 | E52: 3.76 | F52: 1.18 | G52: 0.48 | H52: 0.18 | I52: 0.06 | K52: 21.65 | L52: 5.72 | M52: 3.61 | N52: 2.53 | O52: 0.91 | P52: 0.41 | Q52: 0.17 | R52: 0.06 | T52: 13.15 | U52: 3.43 | V52: 2.05 | W52: 1.46 | X52: 0.53 | Y52: 0.26 | Z52: 0.13 | AA52: 0.05 | AC52: 7.75 | AD52: 2.16 | AE52: 1.36 | AF52: 0.92 | AG52: 0.34 | AH52: 0.16 | AI52: 0.09 | AJ52: 0.04 | AL52: 1.73 | AM52: 0.58 | AN52: 0.47 | AO52: 0.37 | AP52: 0.15 | AQ52: 0.08 | AR52: 0.04 | AS52: 0.02
A53: Los Angeles Int'l Airport | B53: 38.21 | C53: 10.48 | D53: 6.77 | E53: 4.74 | F53: 1.57 | G53: 0.66 | H53: 0.25 | I53: 0.08 | K53: 27.4 | L53: 7.64 | M53: 4.99 | N53: 3.54 | O53: 1.27 | P53: 0.57 | Q53: 0.24 | R53: 0.08 | T53: 17.84 | U53: 4.86 | V53: 3.01 | W53: 2.2 | X53: 0.81 | Y53: 0.39 | Z53: 0.18 | AA53: 0.07 | AC53: 10.99 | AD53: 3.14 | AE53: 2 | AF53: 1.37 | AG53: 0.52 | AH53: 0.25 | AI53: 0.12 | AJ53: 0.06 | AL53: 2.62 | AM53: 0.88 | AN53: 0.66 | AO53: 0.52 | AP53: 0.21 | AQ53: 0.11 | AR53: 0.05 | AS53: 0.02
A54: Long Beach Airport | B54: 23.38 | C54: 7.52 | D54: 5.2 | E54: 3.89 | F54: 1.46 | G54: 0.62 | H54: 0.23 | I54: 0.08 | K54: 16.09 | L54: 4.91 | M54: 3.36 | N54: 2.52 | O54: 1.06 | P54: 0.51 | Q54: 0.22 | R54: 0.08 | T54: 9.44 | U54: 2.75 | V54: 1.68 | W54: 1.27 | X54: 0.52 | Y54: 0.27 | Z54: 0.15 | AA54: 0.07 | AC54: 5.56 | AD54: 1.63 | AE54: 1 | AF54: 0.68 | AG54: 0.27 | AH54: 0.13 | AI54: 0.08 | AJ54: 0.05 | AL54: 1.25 | AM54: 0.39 | AN54: 0.27 | AO54: 0.2 | AP54: 0.08 | AQ54: 0.04 | AR54: 0.02 | AS54: 0.01
A55: Ontario Airport | B55: 37.07 | C55: 10.63 | D55: 6.93 | E55: 4.96 | F55: 1.75 | G55: 0.77 | H55: 0.3 | I55: 0.1 | K55: 26.1 | L55: 7.49 | M55: 5 | N55: 3.62 | O55: 1.37 | P55: 0.65 | Q55: 0.28 | R55: 0.1 | T55: 16.09 | U55: 4.49 | V55: 2.79 | W55: 2.08 | X55: 0.81 | Y55: 0.41 | Z55: 0.2 | AA55: 0.09 | AC55: 9.72 | AD55: 2.8 | AE55: 1.77 | AF55: 1.22 | AG55: 0.48 | AH55: 0.23 | AI55: 0.13 | AJ55: 0.06 | AL55: 2.21 | AM55: 0.71 | AN55: 0.51 | AO55: 0.39 | AP55: 0.16 | AQ55: 0.08 | AR55: 0.04 | AS55: 0.02
A56: Palm Springs Airport | B56: 27.17 | C56: 8.69 | D56: 5.66 | E56: 4.07 | F56: 1.42 | G56: 0.62 | H56: 0.24 | I56: 0.08 | K56: 19.94 | L56: 6.33 | M56: 4.17 | N56: 3.03 | O56: 1.14 | P56: 0.54 | Q56: 0.23 | R56: 0.08 | T56: 13.17 | U56: 4.05 | V56: 2.48 | W56: 1.83 | X56: 0.7 | Y56: 0.35 | Z56: 0.17 | AA56: 0.07 | AC56: 8.48 | AD56: 2.64 | AE56: 1.63 | AF56: 1.11 | AG56: 0.43 | AH56: 0.21 | AI56: 0.11 | AJ56: 0.06 | AL56: 2.48 | AM56: 0.83 | AN56: 0.56 | AO56: 0.41 | AP56: 0.15 | AQ56: 0.09 | AR56: 0.05 | AS56: 0.02
A57: Riverside Airport | B57: 26.33 | C57: 8.71 | D57: 6.06 | E57: 4.53 | F57: 1.68 | G57: 0.69 | H57: 0.26 | I57: 0.09 | K57: 16.52 | L57: 5.34 | M57: 3.72 | N57: 2.81 | O57: 1.19 | P57: 0.56 | Q57: 0.24 | R57: 0.09 | T57: 8.38 | U57: 2.75 | V57: 1.78 | W57: 1.36 | X57: 0.58 | Y57: 0.31 | Z57: 0.17 | AA57: 0.08 | AC57: 4.44 | AD57: 1.57 | AE57: 1.08 | AF57: 0.77 | AG57: 0.32 | AH57: 0.16 | AI57: 0.1 | AJ57: 0.06 | AL57: 0.69 | AM57: 0.3 | AN57: 0.27 | AO57: 0.24 | AP57: 0.12 | AQ57: 0.07 | AR57: 0.03 | AS57: 0.02
A58: Santa Monica Airport | B58: 31.42 | C58: 8.49 | D58: 5.53 | E58: 3.88 | F58: 1.23 | G58: 0.49 | H58: 0.18 | I58: 0.06 | K58: 21.93 | L58: 5.76 | M58: 3.72 | N58: 2.65 | O58: 0.94 | P58: 0.41 | Q58: 0.17 | R58: 0.06 | T58: 13.3 | U58: 3.51 | V58: 2.13 | W58: 1.54 | X58: 0.53 | Y58: 0.25 | Z58: 0.12 | AA58: 0.05 | AC58: 8.03 | AD58: 2.23 | AE58: 1.41 | AF58: 0.96 | AG58: 0.33 | AH58: 0.14 | AI58: 0.07 | AJ58: 0.04 | AL58: 1.73 | AM58: 0.56 | AN58: 0.45 | AO58: 0.36 | AP58: 0.14 | AQ58: 0.07 | AR58: 0.03 | AS58: 0.01
A59: John Wayne Int'l Airport | B59: 30.25 | C59: 8.7 | D59: 5.44 | E59: 3.86 | F59: 1.3 | G59: 0.56 | H59: 0.22 | I59: 0.07 | K59: 21.48 | L59: 6.12 | M59: 3.83 | N59: 2.72 | O59: 0.99 | P59: 0.47 | Q59: 0.2 | R59: 0.07 | T59: 13.17 | U59: 3.73 | V59: 2.15 | W59: 1.56 | X59: 0.53 | Y59: 0.26 | Z59: 0.14 | AA59: 0.06 | AC59: 8 | AD59: 2.35 | AE59: 1.4 | AF59: 0.94 | AG59: 0.32 | AH59: 0.14 | AI59: 0.08 | AJ59: 0.04 | AL59: 1.88 | AM59: 0.63 | AN59: 0.45 | AO59: 0.35 | AP59: 0.13 | AQ59: 0.07 | AR59: 0.03 | AS59: 0.01
A60: Desert Hot Springs Airport | B60: 29.98 | C60: 9.53 | D60: 6.26 | E60: 4.52 | F60: 1.67 | G60: 0.77 | H60: 0.31 | I60: 0.1 | K60: 21.32 | L60: 6.64 | M60: 4.46 | N60: 3.26 | O60: 1.3 | P60: 0.65 | Q60: 0.29 | R60: 0.1 | T60: 13.12 | U60: 4.02 | V60: 2.48 | W60: 1.84 | X60: 0.74 | Y60: 0.38 | Z60: 0.21 | AA60: 0.09 | AC60: 7.8 | AD60: 2.5 | AE60: 1.56 | AF60: 1.06 | AG60: 0.42 | AH60: 0.22 | AI60: 0.13 | AJ60: 0.07 | AL60: 2.12 | AM60: 0.76 | AN60: 0.51 | AO60: 0.37 | AP60: 0.13 | AQ60: 0.08 | AR60: 0.05 | AS60: 0.03
A61: Van Nuys Airport | B61: 21.17 | C61: 6.18 | D61: 4.01 | E61: 2.88 | F61: 1.03 | G61: 0.45 | H61: 0.18 | I61: 0.06 | K61: 14.56 | L61: 4.18 | M61: 2.64 | N61: 1.9 | O61: 0.74 | P61: 0.36 | Q61: 0.16 | R61: 0.06 | T61: 8.45 | U61: 2.45 | V61: 1.43 | W61: 1.03 | X61: 0.36 | Y61: 0.19 | Z61: 0.1 | AA61: 0.05 | AC61: 4.92 | AD61: 1.48 | AE61: 0.9 | AF61: 0.61 | AG61: 0.21 | AH61: 0.09 | AI61: 0.05 | AJ61: 0.03 | AL61: 1.04 | AM61: 0.37 | AN61: 0.27 | AO61: 0.21 | AP61: 0.09 | AQ61: 0.05 | AR61: 0.02 | AS61: 0.01

Sheet DieselICE
C2: DIESEL ENGINE DATA | G2: ='Tier 1 Report'!C8 -> A/N 622795 (96, 97), Spear's Manufacturing Co.
C3: =Intro!A39 & " - " &Intro!A38 -> (Procedure Version 8.1 & Package N, September 1, 2017 ) - Risk Tool V1.105
C6: Engine Horse Power | D6: 780 | E6: bhp
C7: Engine Year Built | D7: 2015
C8: Generator Engine ? | D8: NO
C9: Emission Factor from applicant or engine manufacturer's specification (*) | D9: 0 | E9: g/bhp-hr
C10: EPA's PM non-road exhaust emission standards (**) | D10: =I23 -> 0.03 | E10: g/bhp-hr | K10: PM Emission Factor Limits (g/(bhp*hr) based on ARB's Off-Road Compression-Ignition (Diesel) Engine Standards (last update Mar 2010)
I11: Row | J11: Rating (BHP) | K11: 1995 | L11: 1996 | M11: 1997 | N11: 1998 | O11: 1999 | P11: 2000 | Q11: 2001 | R11: 2002 | S11: 2003 | T11: 2004 | U11: 2005 | V11: 2006 | W11: 2007 | X11: 2008 | Y11: 2009 | Z11: 2010 | AA11: 2011 | AB11: 2012 | AC11: 2013 | AD11: 2014 | AE11: 2015
I12: 1 | J12: 50-75 | K12: 0 | L12: 0 | M12: 0 | N12: 0 | O12: 0 | P12: 0 | Q12: 0 | R12: 0 | S12: 0 | T12: 0.3 | U12: 0.3 | V12: 0.3 | W12: 0.3 | X12: 0.22 | Y12: 0.22 | Z12: 0.22 | AA12: 0.22 | AB12: 0.22 | AC12: 0.02 | AD12: 0.02 | AE12: 0.02
B13: Code | C13: Compound | D13: R1 (Uncontrolled) (lbs/hr) (***) | E13: Efficiency | F13: R2 (Controlled) (lbs/hr) | I13: 2 | J13: 75-100 | K13: 0 | L13: 0 | M13: 0 | N13: 0 | O13: 0 | P13: 0 | Q13: 0 | R13: 0 | S13: 0 | T13: 0.3 | U13: 0.3 | V13: 0.3 | W13: 0.3 | X13: 0.3 | Y13: 0.3 | Z13: 0.3 | AA13: 0.3 | AB13: 0.01 | AC13: 0.01 | AD13: 0.01 | AE13: 0.01
B14: P1 | C14: =VLOOKUP(B14,TAClist,2,FALSE) -> Particulate Emissions from Diesel-Fueled Engines | D14: =IF(D9<>0,$D$9*DieselICEPower/454,IF(ISTEXT(D10),"No look up value. Enter Emission Factor in cell D9",$D$10*DieselICEPower/454)) -> 0.05154185022 | E14: 0.1 | F14: =D14*(1-$E14) -> 0.0463876652 | I14: 3 | J14: 100-175 | K14: 0 | L14: 0 | M14: 0 | N14: 0 | O14: 0 | P14: 0 | Q14: 0 | R14: 0 | S14: 0.22 | T14: 0.22 | U14: 0.22 | V14: 0.22 | W14: 0.22 | X14: 0.22 | Y14: 0.22 | Z14: 0.22 | AA14: 0.22 | AB14: 0.01 | AC14: 0.01 | AD14: 0.01 | AE14: 0.01
I15: 4 | J15: 175-300 | K15: 0 | L15: 0.4 | M15: 0.4 | N15: 0.4 | O15: 0.4 | P15: 0.4 | Q15: 0.4 | R15: 0.4 | S15: 0.15 | T15: 0.15 | U15: 0.15 | V15: 0.15 | W15: 0.15 | X15: 0.15 | Y15: 0.15 | Z15: 0.15 | AA15: 0.015 | AB15: 0.015 | AC15: 0.015 | AD15: 0.01 | AE15: 0.01
C16: (*) From applicant or engine manufaturer's specifications. | I16: 5 | J16: 300-600 | K16: 0 | L16: 0.4 | M16: 0.4 | N16: 0.4 | O16: 0.4 | P16: 0.4 | Q16: 0.15 | R16: 0.15 | S16: 0.15 | T16: 0.15 | U16: 0.15 | V16: 0.15 | W16: 0.15 | X16: 0.15 | Y16: 0.15 | Z16: 0.15 | AA16: 0.015 | AB16: 0.015 | AC16: 0.015 | AD16: 0.01 | AE16: 0.01
I17: 6 | J17: 600-750 | K17: 0 | L17: 0.4 | M17: 0.4 | N17: 0.4 | O17: 0.4 | P17: 0.4 | Q17: 0.4 | R17: 0.15 | S17: 0.15 | T17: 0.15 | U17: 0.15 | V17: 0.15 | W17: 0.15 | X17: 0.15 | Y17: 0.15 | Z17: 0.15 | AA17: 0.015 | AB17: 0.015 | AC17: 0.015 | AD17: 0.01 | AE17: 0.01
I18: 7 | J18: > 750 | K18: 0 | L18: 0 | M18: 0 | N18: 0 | O18: 0 | P18: 0.4 | Q18: 0.4 | R18: 0.4 | S18: 0.4 | T18: 0.4 | U18: 0.4 | V18: 0.15 | W18: 0.15 | X18: 0.15 | Y18: 0.15 | Z18: 0.15 | AA18: 0.07 | AB18: 0.07 | AC18: 0.07 | AD18: 0.07 | AE18: 0.03
C19: (**) From EPA non-road engine exhaust emission standards for Diesel ICE based on engine HP, engine year built and engine type. (http://www.arb.ca.gov/msprog/offroad/offroad.htm & http://www.epa.gov/otaq/standards/nonroad/nonroadci.htm) | I19: 8 | J19: (750,1207] | K19: 0 | L19: 0 | M19: 0 | N19: 0 | O19: 0 | P19: 0.4 | Q19: 0.4 | R19: 0.4 | S19: 0.4 | T19: 0.4 | U19: 0.4 | V19: 0.15 | W19: 0.15 | X19: 0.15 | Y19: 0.15 | Z19: 0.15 | AA19: 0.07 | AB19: 0.07 | AC19: 0.07 | AD19: 0.07 | AE19: 0.02
I20: 9 | J20: > 1207 | K20: 0 | L20: 0 | M20: 0 | N20: 0 | O20: 0 | P20: 0.4 | Q20: 0.4 | R20: 0.4 | S20: 0.4 | T20: 0.4 | U20: 0.4 | V20: 0.15 | W20: 0.15 | X20: 0.15 | Y20: 0.15 | Z20: 0.15 | AA20: 0.07 | AB20: 0.07 | AC20: 0.07 | AD20: 0.07 | AE20: 0.02
Z21: http://www.arb.ca.gov/msprog/offroad/offroad.htm
C22: (***) Uncontrolled emission R1 is calculated as followed: R1 = Engine Power [BHP] x Emission Factor [g/BHP-hr] x 1 lb/454 g | I22: =IF(D6<75,1,IF(D6<100,2,IF(D6<175,3,IF(D6<300,4,IF(D6<600,5,IF(D6<750,6,IF(D8="YES",IF(D6<1207,8,9),7))))))) -> 7 | J22: Generator Engine Choice | K22: YES
I23: =VLOOKUP(I22,I11:AE20,MATCH(D7,K11:AE11)+2,0) -> 0.03 | K23: NO

Sheet Diesel Engine Calc (hidden)
B1: Look up for Diesel Engine's X/Q
F3: Interpolation for X/Q from Nearest Distances | L3: Interpolation New Distance for Cancer Burden Calculation
B4: Operating Hours (hrs/day) | C4: =HoursPerDay -> 24 | F4: BHP | G4: =DieselICEPower -> 780 | I4: row: | J4: =S4 -> 6 | Q4: BHP | R4: ROW | S4: =MIN(S5:S11) -> 6
B5: Station | C5: =Emissions!$E$22 -> Van Nuys Airport | G5: Residential | J5: Industrial | M5: X/Q for one-in-a-million | P5: <50 | Q5: 50 | R5: 1 | S5: =IF($G$4<Q5,Q5,"No") -> No
B6: X/Q (residential) | C6: =$G$8 -> 0.2103 | F6: near | G6: actual | H6: far | I6: near | J6: actual | K6: far | L6: near | M6: actual | N6: far | P6: 50 < Rating ≤ 175 | Q6: 175 | R6: 2 | S6: =IF($G$4<=Q6,R6,"No") -> No
B7: X/Q (industrial) | C7: =$J$8 -> 0.081 | E7: Distance (m) | F7: =IF(G7<25,25,HLOOKUP(G7,table2_de,1,TRUE)) -> 100 | G7: =Emissions!E20 -> 157 | H7: =IF(G7<25,25,IF(G7>=1000,1000,IF(G7=HLOOKUP(G7,table2_de,1,TRUE),G7,INDEX(table2_de,1,MATCH(G7,C14:J14,1)+1)))) -> 200 | I7: =IF(J7<25,25,HLOOKUP(J7,table2_de,1,TRUE)) -> 200 | J7: =Emissions!E21 -> 265 | K7: =IF(J7<25,25,IF(J7>=1000,1000,IF(J7=HLOOKUP(J7,table2_de,1,TRUE),J7,INDEX(table2_de,1,MATCH(J7,C14:J14,1)+1)))) -> 300 | L7: =IF(HoursPerDay<=12,VLOOKUP($J$4,$A$15:$S$19,17,FALSE),VLOOKUP($J$4,$A$25:$S$29,17,FALSE)) -> 1000 | M7: =IF(L7="","",IF(N7=L7,L7,L7-(L8-M8)/(L8-N8)*(L7-N7))) -> 1000 | N7: =IF(HoursPerDay<=12,VLOOKUP($J$4,$A$15:$S$19,19,FALSE),VLOOKUP($J$4,$A$25:$S$29,19,FALSE)) -> 1000 | P7: 175 < Rating ≤ 300 | Q7: 300 | R7: 3 | S7: No
B8: X/Q max acute (residential) | C8: =G9 -> 13.6356 | E8: X/Q | F8: =IF(C4<=12,HLOOKUP(F7,table2_de,$J$4,TRUE),HLOOKUP(F7,table3_de,$J$4,TRUE)) -> 0.33 | G8: =IF(F8=H8,F8,F8-(((G7-F7)/(H7-F7))*(F8-H8))) -> 0.2103 | H8: =IF(C4<=12,HLOOKUP(H7,table2_de,$J$4,TRUE),HLOOKUP(H7,table3_de,$J$4,TRUE)) -> 0.12 | I8: =IF(C4<=12,HLOOKUP(I7,table2_de,$J$4,TRUE),HLOOKUP(I7,table3_de,$J$4,TRUE)) -> 0.12 | J8: =IF(I8=K8,I8,I8-(((J7-I7)/(K7-I7))*(I8-K8))) -> 0.081 | K8: =IF(C4<=12,HLOOKUP(K7,table2_de,$J$4,TRUE),HLOOKUP(K7,table3_de,$J$4,TRUE)) -> 0.06 | L8: =IF(HoursPerDay<=12,VLOOKUP($J$4,$A$15:$S$19,16,FALSE),VLOOKUP($J$4,$A$25:$S$29,16,FALSE)) -> 0.01 | M8: ='Tier 2 Report'!N152 -> 0 | N8: =IF(HoursPerDay<=12,VLOOKUP($J$4,$A$15:$S$19,18,FALSE),VLOOKUP($J$4,$A$25:$S$29,18,FALSE)) -> 0.01 | P8: 300 < Rating ≤ 400 | Q8: 400 | R8: 4 | S8: No
B9: X/Q max acute (industrial) | C9: =J9 -> 4.502 | E9: X/Q Max Acute | F9: =HLOOKUP(F7,table6_de,$J$4,TRUE) -> 20.43 | G9: =IF(F9=H9,F9,F9-(((G8-F8)/(H8-F8))*(F9-H9))) -> 13.6356 | H9: =HLOOKUP(H7,table6_de,$J$4,TRUE) -> 8.51 | I9: =HLOOKUP(I7,EngineCalcAcute,$J$4,TRUE) -> 5.88 | J9: =IF(I9=K9,I9,I9-(((J8-I8)/(K8-I8))*(I9-K9))) -> 4.502 | K9: =HLOOKUP(K7,EngineCalcAcute,$J$4,TRUE) -> 3.76 | P9: 400 < Rating ≤ 600 | Q9: 600 | R9: 5 | S9: No
P10: 600 < Rating ≤ 1150 | Q10: 1150 | R10: 6 | S10: 6
P11: >1150 | Q11: 99999 | R11: 6 | S11: 6
B12: Table 10A Diesel Engine - Point Source, operating 12 hrs/day or less (µg/m³)/(tons/yr)
B13: Rating (BHP) | C13: Downwind Distance (meters)
A14: ROW | C14: 25 | D14: 50 | E14: 75 | F14: 100 | G14: 200 | H14: 300 | I14: 500 | J14: 1000 | P14: Nearest X/Q - high | Q14: nearest dist - low | R14: Nearest X/Q- low | S14: nearest dist - high | U14: Column | V14: Dist
A15: 2 | B15: 50 < Rating ≤ 175 | C15: =VLOOKUP($C$5,DieselEngineLessThan12,2,FALSE) -> 21.16 | D15: =VLOOKUP($C$5,DieselEngineLessThan12,3,FALSE) -> 6.06 | E15: =VLOOKUP($C$5,DieselEngineLessThan12,4,FALSE) -> 3.58 | F15: =VLOOKUP($C$5,DieselEngineLessThan12,5,FALSE) -> 2.23 | G15: =VLOOKUP($C$5,DieselEngineLessThan12,6,FALSE) -> 0.5 | H15: =VLOOKUP($C$5,DieselEngineLessThan12,7,FALSE) -> 0.19 | I15: =VLOOKUP($C$5,DieselEngineLessThan12,8,FALSE) -> 0.06 | J15: =VLOOKUP($C$5,DieselEngineLessThan12,9,FALSE) -> 0.01 | P15: =INDEX($C15:$J15,1,MATCH($M$8,$C15:$J15,-1)) -> 0.01 | Q15: =VLOOKUP(MATCH(P15,$C15:$J15,0),$U$15:$V$22,2,FALSE) -> 1000 | R15: =IF(ISERR(INDEX($C15:$J15,1,1+MATCH($M$8,$C15:$J15,-1))),P15,INDEX($C15:$J15,1,1+MATCH($M$8,$C15:$J15,-1))) -> 0.01 | S15: =VLOOKUP(MATCH(R15,$C15:$J15,0),$U$15:$V$22,2,FALSE) -> 1000 | U15: 1 | V15: 25
A16: 3 | B16: 175 < Rating ≤ 300 | C16: =VLOOKUP($C$5,DieselEngineLessThan12,11,FALSE) -> 17.49 | D16: =VLOOKUP($C$5,DieselEngineLessThan12,12,FALSE) -> 5.17 | E16: =VLOOKUP($C$5,DieselEngineLessThan12,13,FALSE) -> 3.16 | F16: =VLOOKUP($C$5,DieselEngineLessThan12,14,FALSE) -> 2.04 | G16: =VLOOKUP($C$5,DieselEngineLessThan12,15,FALSE) -> 0.48 | H16: =VLOOKUP($C$5,DieselEngineLessThan12,16,FALSE) -> 0.18 | I16: =VLOOKUP($C$5,DieselEngineLessThan12,17,FALSE) -> 0.06 | J16: =VLOOKUP($C$5,DieselEngineLessThan12,18,FALSE) -> 0.01 | P16: =INDEX($C16:$J16,1,MATCH($M$8,$C16:$J16,-1)) -> 0.01 | Q16: =VLOOKUP(MATCH(P16,$C16:$J16,0),$U$15:$V$22,2,FALSE) -> 1000 | R16: =IF(ISERR(INDEX($C16:$J16,1,1+MATCH($M$8,$C16:$J16,-1))),P16,INDEX($C16:$J16,1,1+MATCH($M$8,$C16:$J16,-1))) -> 0.01 | S16: =VLOOKUP(MATCH(R16,$C16:$J16,0),$U$15:$V$22,2,FALSE) -> 1000 | U16: 2 | V16: 50
A17: 4 | B17: 300 < Rating ≤ 400 | C17: =VLOOKUP($C$5,DieselEngineLessThan12,20,FALSE) -> 12.43 | D17: =VLOOKUP($C$5,DieselEngineLessThan12,21,FALSE) -> 3.98 | E17: =VLOOKUP($C$5,DieselEngineLessThan12,22,FALSE) -> 2.43 | F17: =VLOOKUP($C$5,DieselEngineLessThan12,23,FALSE) -> 1.68 | G17: =VLOOKUP($C$5,DieselEngineLessThan12,24,FALSE) -> 0.44 | H17: =VLOOKUP($C$5,DieselEngineLessThan12,25,FALSE) -> 0.17 | I17: =VLOOKUP($C$5,DieselEngineLessThan12,26,FALSE) -> 0.06 | J17: =VLOOKUP($C$5,DieselEngineLessThan12,27,FALSE) -> 0.01 | P17: =INDEX($C17:$J17,1,MATCH($M$8,$C17:$J17,-1)) -> 0.01 | Q17: =VLOOKUP(MATCH(P17,$C17:$J17,0),$U$15:$V$22,2,FALSE) -> 1000 | R17: =IF(ISERR(INDEX($C17:$J17,1,1+MATCH($M$8,$C17:$J17,-1))),P17,INDEX($C17:$J17,1,1+MATCH($M$8,$C17:$J17,-1))) -> 0.01 | S17: =VLOOKUP(MATCH(R17,$C17:$J17,0),$U$15:$V$22,2,FALSE) -> 1000 | U17: 3 | V17: 75
A18: 5 | B18: 400 < Rating ≤ 600 | C18: =VLOOKUP($C$5,DieselEngineLessThan12,29,FALSE) -> 9.46 | D18: =VLOOKUP($C$5,DieselEngineLessThan12,30,FALSE) -> 3.16 | E18: =VLOOKUP($C$5,DieselEngineLessThan12,31,FALSE) -> 2 | F18: =VLOOKUP($C$5,DieselEngineLessThan12,32,FALSE) -> 1.35 | G18: =VLOOKUP($C$5,DieselEngineLessThan12,33,FALSE) -> 0.4 | H18: =VLOOKUP($C$5,DieselEngineLessThan12,34,FALSE) -> 0.16 | I18: =VLOOKUP($C$5,DieselEngineLessThan12,35,FALSE) -> 0.06 | J18: =VLOOKUP($C$5,DieselEngineLessThan12,36,FALSE) -> 0.01 | P18: =INDEX($C18:$J18,1,MATCH($M$8,$C18:$J18,-1)) -> 0.01 | Q18: =VLOOKUP(MATCH(P18,$C18:$J18,0),$U$15:$V$22,2,FALSE) -> 1000 | R18: =IF(ISERR(INDEX($C18:$J18,1,1+MATCH($M$8,$C18:$J18,-1))),P18,INDEX($C18:$J18,1,1+MATCH($M$8,$C18:$J18,-1))) -> 0.01 | S18: =VLOOKUP(MATCH(R18,$C18:$J18,0),$U$15:$V$22,2,FALSE) -> 1000 | U18: 4 | V18: 100
A19: 6 | B19: 600 < Rating ≤ 1150 | C19: =VLOOKUP($C$5,DieselEngineLessThan12,38,FALSE) -> 3.67 | D19: =VLOOKUP($C$5,DieselEngineLessThan12,39,FALSE) -> 1.31 | E19: =VLOOKUP($C$5,DieselEngineLessThan12,40,FALSE) -> 0.95 | F19: =VLOOKUP($C$5,DieselEngineLessThan12,41,FALSE) -> 0.72 | G19: =VLOOKUP($C$5,DieselEngineLessThan12,42,FALSE) -> 0.26 | H19: =VLOOKUP($C$5,DieselEngineLessThan12,43,FALSE) -> 0.12 | I19: =VLOOKUP($C$5,DieselEngineLessThan12,44,FALSE) -> 0.05 | J19: =VLOOKUP($C$5,DieselEngineLessThan12,45,FALSE) -> 0.01 | P19: =INDEX($C19:$J19,1,MATCH($M$8,$C19:$J19,-1)) -> 0.01 | Q19: =VLOOKUP(MATCH(P19,$C19:$J19,0),$U$15:$V$22,2,FALSE) -> 1000 | R19: =IF(ISERR(INDEX($C19:$J19,1,1+MATCH($M$8,$C19:$J19,-1))),P19,INDEX($C19:$J19,1,1+MATCH($M$8,$C19:$J19,-1))) -> 0.01 | S19: =VLOOKUP(MATCH(R19,$C19:$J19,0),$U$15:$V$22,2,FALSE) -> 1000 | U19: 5 | V19: 200
U20: 6 | V20: 300
U21: 7 | V21: 500
B22: Table 10B Diesel Engine - Point Source, operating more than 12 hrs/day (µg/m³)/(tons/yr) | U22: 8 | V22: 1000
B23: Rating (BHP) | C23: Downwind Distance (meters)
A24: ROW | C24: 25 | D24: 50 | E24: 75 | F24: 100 | G24: 200 | H24: 300 | I24: 500 | J24: 1000 | P24: Nearest X/Q - high | Q24: nearest dist - low | R24: Nearest X/Q- low | S24: nearest dist - high
A25: 2 | B25: =B15 -> 50 < Rating ≤ 175 | C25: =VLOOKUP($C$5,DieselEngineMoreThan12,2,FALSE) -> 13.6 | D25: =VLOOKUP($C$5,DieselEngineMoreThan12,3,FALSE) -> 4.17 | E25: =VLOOKUP($C$5,DieselEngineMoreThan12,4,FALSE) -> 2.64 | F25: =VLOOKUP($C$5,DieselEngineMoreThan12,5,FALSE) -> 1.9 | G25: =VLOOKUP($C$5,DieselEngineMoreThan12,6,FALSE) -> 0.73 | H25: =VLOOKUP($C$5,DieselEngineMoreThan12,7,FALSE) -> 0.35 | I25: =VLOOKUP($C$5,DieselEngineMoreThan12,8,FALSE) -> 0.16 | J25: =VLOOKUP($C$5,DieselEngineMoreThan12,9,FALSE) -> 0.06 | P25: =INDEX($C25:$J25,1,MATCH($M$8,$C25:$J25,-1)) -> 0.06 | Q25: =VLOOKUP(MATCH(P25,$C25:$J25,0),$U$15:$V$22,2,FALSE) -> 1000 | R25: =IF(ISERR(INDEX($C25:$J25,1,1+MATCH($M$8,$C25:$J25,-1))),P25,INDEX($C25:$J25,1,1+MATCH($M$8,$C25:$J25,-1))) -> 0.06 | S25: =VLOOKUP(MATCH(R25,$C25:$J25,0),$U$15:$V$22,2,FALSE) -> 1000
A26: 3 | B26: =B16 -> 175 < Rating ≤ 300 | C26: =VLOOKUP($C$5,DieselEngineMoreThan12,11,FALSE) -> 10.94 | D26: =VLOOKUP($C$5,DieselEngineMoreThan12,12,FALSE) -> 3.32 | E26: =VLOOKUP($C$5,DieselEngineMoreThan12,13,FALSE) -> 2.06 | F26: =VLOOKUP($C$5,DieselEngineMoreThan12,14,FALSE) -> 1.47 | G26: =VLOOKUP($C$5,DieselEngineMoreThan12,15,FALSE) -> 0.55 | H26: =VLOOKUP($C$5,DieselEngineMoreThan12,16,FALSE) -> 0.28 | I26: =VLOOKUP($C$5,DieselEngineMoreThan12,17,FALSE) -> 0.13 | J26: =VLOOKUP($C$5,DieselEngineMoreThan12,18,FALSE) -> 0.05 | P26: =INDEX($C26:$J26,1,MATCH($M$8,$C26:$J26,-1)) -> 0.05 | Q26: =VLOOKUP(MATCH(P26,$C26:$J26,0),$U$15:$V$22,2,FALSE) -> 1000 | R26: =IF(ISERR(INDEX($C26:$J26,1,1+MATCH($M$8,$C26:$J26,-1))),P26,INDEX($C26:$J26,1,1+MATCH($M$8,$C26:$J26,-1))) -> 0.05 | S26: =VLOOKUP(MATCH(R26,$C26:$J26,0),$U$15:$V$22,2,FALSE) -> 1000
A27: 4 | B27: =B17 -> 300 < Rating ≤ 400 | C27: =VLOOKUP($C$5,DieselEngineMoreThan12,20,FALSE) -> 7.7 | D27: =VLOOKUP($C$5,DieselEngineMoreThan12,21,FALSE) -> 2.45 | E27: =VLOOKUP($C$5,DieselEngineMoreThan12,22,FALSE) -> 1.42 | F27: =VLOOKUP($C$5,DieselEngineMoreThan12,23,FALSE) -> 1.02 | G27: =VLOOKUP($C$5,DieselEngineMoreThan12,24,FALSE) -> 0.35 | H27: =VLOOKUP($C$5,DieselEngineMoreThan12,25,FALSE) -> 0.17 | I27: =VLOOKUP($C$5,DieselEngineMoreThan12,26,FALSE) -> 0.09 | J27: =VLOOKUP($C$5,DieselEngineMoreThan12,27,FALSE) -> 0.04 | P27: =INDEX($C27:$J27,1,MATCH($M$8,$C27:$J27,-1)) -> 0.04 | Q27: =VLOOKUP(MATCH(P27,$C27:$J27,0),$U$15:$V$22,2,FALSE) -> 1000 | R27: =IF(ISERR(INDEX($C27:$J27,1,1+MATCH($M$8,$C27:$J27,-1))),P27,INDEX($C27:$J27,1,1+MATCH($M$8,$C27:$J27,-1))) -> 0.04 | S27: =VLOOKUP(MATCH(R27,$C27:$J27,0),$U$15:$V$22,2,FALSE) -> 1000
A28: 5 | B28: =B18 -> 400 < Rating ≤ 600 | C28: =VLOOKUP($C$5,DieselEngineMoreThan12,29,FALSE) -> 5.68 | D28: =VLOOKUP($C$5,DieselEngineMoreThan12,30,FALSE) -> 1.85 | E28: =VLOOKUP($C$5,DieselEngineMoreThan12,31,FALSE) -> 1.1 | F28: =VLOOKUP($C$5,DieselEngineMoreThan12,32,FALSE) -> 0.74 | G28: =VLOOKUP($C$5,DieselEngineMoreThan12,33,FALSE) -> 0.25 | H28: =VLOOKUP($C$5,DieselEngineMoreThan12,34,FALSE) -> 0.11 | I28: =VLOOKUP($C$5,DieselEngineMoreThan12,35,FALSE) -> 0.06 | J28: =VLOOKUP($C$5,DieselEngineMoreThan12,36,FALSE) -> 0.03 | P28: =INDEX($C28:$J28,1,MATCH($M$8,$C28:$J28,-1)) -> 0.03 | Q28: =VLOOKUP(MATCH(P28,$C28:$J28,0),$U$15:$V$22,2,FALSE) -> 1000 | R28: =IF(ISERR(INDEX($C28:$J28,1,1+MATCH($M$8,$C28:$J28,-1))),P28,INDEX($C28:$J28,1,1+MATCH($M$8,$C28:$J28,-1))) -> 0.03 | S28: =VLOOKUP(MATCH(R28,$C28:$J28,0),$U$15:$V$22,2,FALSE) -> 1000
A29: 6 | B29: =B19 -> 600 < Rating ≤ 1150 | C29: =VLOOKUP($C$5,DieselEngineMoreThan12,38,FALSE) -> 1.87 | D29: =VLOOKUP($C$5,DieselEngineMoreThan12,39,FALSE) -> 0.65 | E29: =VLOOKUP($C$5,DieselEngineMoreThan12,40,FALSE) -> 0.45 | F29: =VLOOKUP($C$5,DieselEngineMoreThan12,41,FALSE) -> 0.33 | G29: =VLOOKUP($C$5,DieselEngineMoreThan12,42,FALSE) -> 0.12 | H29: =VLOOKUP($C$5,DieselEngineMoreThan12,43,FALSE) -> 0.06 | I29: =VLOOKUP($C$5,DieselEngineMoreThan12,44,FALSE) -> 0.03 | J29: =VLOOKUP($C$5,DieselEngineMoreThan12,45,FALSE) -> 0.01 | P29: =INDEX($C29:$J29,1,MATCH($M$8,$C29:$J29,-1)) -> 0.01 | Q29: =VLOOKUP(MATCH(P29,$C29:$J29,0),$U$15:$V$22,2,FALSE) -> 1000 | R29: =IF(ISERR(INDEX($C29:$J29,1,1+MATCH($M$8,$C29:$J29,-1))),P29,INDEX($C29:$J29,1,1+MATCH($M$8,$C29:$J29,-1))) -> 0.01 | S29: =VLOOKUP(MATCH(R29,$C29:$J29,0),$U$15:$V$22,2,FALSE) -> 1000
B32: Table 10.6 Dispersion Factors (X/Q) for Acute Hazard Index
B33: All Operating Conditions X/Q Values [(µg/m³)/(lbs/hr)]
B34: Rating (BHP) | C34: Downwind Distance (meters)
A35: Row | C35: 25 | D35: 50 | E35: 75 | F35: 100 | G35: 200 | H35: 300 | I35: 500 | J35: 1000
A36: 2 | B36: =B25 -> 50 < Rating ≤ 175 | C36: 361.32 | D36: 121.96 | E36: 90.85 | F36: 73.66 | G36: 33.2 | H36: 14.52 | I36: 6.12 | J36: 2.86
A37: 3 | B37: =B26 -> 175 < Rating ≤ 300 | C37: 309.73 | D37: 100.99 | E37: 73.33 | F37: 60.55 | G37: 25.94 | H37: 12.36 | I37: 5.45 | J37: 2.67
A38: 4 | B38: =B27 -> 300 < Rating ≤ 400 | C38: 238.41 | D38: 80.18 | E38: 54.79 | F38: 44.34 | G38: 19.52 | H38: 9.85 | I38: 4.54 | J38: 2.07
A39: 5 | B39: =B28 -> 400 < Rating ≤ 600 | C39: 198.38 | D39: 67.23 | E39: 46.82 | F39: 35.85 | G39: 15.74 | H39: 8.37 | I39: 3.94 | J39: 1.75
A40: 6 | B40: =B29 -> 600 < Rating ≤ 1150 | C40: 107.85 | D40: 35.73 | E40: 26.27 | F40: 20.43 | G40: 8.51 | H40: 5.36 | I40: 2.83 | J40: 1.25

Sheet DieselEngine data (hidden)
A1: Table 10A - Dispersion Factors (X/Q) for Diesel ICE Operating 12 Hours per Day or Less Carcinogenic, Chronic and Chronic 8-Hour
A2: ([ug/m3]/[ton/year]) | B2: Diesel ICE Rating 50 to 175 BHP | K2: Diesel ICE Rating >175 to 300 BHP | T2: Diesel ICE Rating >300 to 400 BHP | AC2: Diesel ICE Rating >400 to 600 BHP | AL2: Diesel ICE Rating >600 to 1,150 BHP
B3: Downwind Distance (meters) | K3: Downwind Distance (meters) | T3: Downwind Distance (meters) | AC3: Downwind Distance (meters) | AL3: Downwind Distance (meters)
A4: Location | B4: 25 | C4: 50 | D4: 75 | E4: 100 | F4: 200 | G4: 300 | H4: 500 | I4: 1000 | K4: 25 | L4: 50 | M4: 75 | N4: 100 | O4: 200 | P4: 300 | Q4: 500 | R4: 1000 | T4: 25 | U4: 50 | V4: 75 | W4: 100 | X4: 200 | Y4: 300 | Z4: 500 | AA4: 1000 | AC4: 25 | AD4: 50 | AE4: 75 | AF4: 100 | AG4: 200 | AH4: 300 | AI4: 500 | AJ4: 1000 | AL4: 25 | AM4: 50 | AN4: 75 | AO4: 100 | AP4: 200 | AQ4: 300 | AR4: 500 | AS4: 1000
A5: Azusa | B5: 16.41 | C5: 5.87 | D5: 3.57 | E5: 2.18 | F5: 0.43 | G5: 0.14 | H5: 0.05 | I5: 0.01 | K5: 12.51 | L5: 4.63 | M5: 2.99 | N5: 1.93 | O5: 0.4 | P5: 0.13 | Q5: 0.04 | R5: 0.01 | T5: 7.52 | U5: 3.35 | V5: 2.18 | W5: 1.51 | X5: 0.36 | Y5: 0.12 | Z5: 0.04 | AA5: 0.01 | AC5: 4.36 | AD5: 2.09 | AE5: 1.47 | AF5: 1.02 | AG5: 0.29 | AH5: 0.1 | AI5: 0.04 | AJ5: 0.01 | AL5: 0.69 | AM5: 0.41 | AN5: 0.37 | AO5: 0.31 | AP5: 0.15 | AQ5: 0.08 | AR5: 0.03 | AS5: 0.01
A6: Banning | B6: 27.27 | C6: 7.5 | D6: 4.43 | E6: 2.78 | F6: 0.65 | G6: 0.23 | H6: 0.08 | I6: 0.02 | K6: 23 | L6: 6.47 | M6: 3.95 | N6: 2.57 | O6: 0.63 | P6: 0.23 | Q6: 0.08 | R6: 0.02 | T6: 16.85 | U6: 5.16 | V6: 3.14 | W6: 2.18 | X6: 0.59 | Y6: 0.21 | Z6: 0.07 | AA6: 0.02 | AC6: 12.99 | AD6: 4.14 | AE6: 2.65 | AF6: 1.8 | AG6: 0.54 | AH6: 0.2 | AI6: 0.07 | AJ6: 0.02 | AL6: 5.23 | AM6: 1.79 | AN6: 1.34 | AO6: 1.03 | AP6: 0.37 | AQ6: 0.16 | AR6: 0.06 | AS6: 0.02
A7: Central L.A. | B7: 19.74 | C7: 6.52 | D7: 3.71 | E7: 2.2 | F7: 0.44 | G7: 0.13 | H7: 0.04 | I7: 0.01 | K7: 15.94 | L7: 5.56 | M7: 3.28 | N7: 2.01 | O7: 0.41 | P7: 0.13 | Q7: 0.04 | R7: 0.01 | T7: 10.49 | U7: 4.09 | V7: 2.47 | W7: 1.63 | X7: 0.37 | Y7: 0.11 | Z7: 0.04 | AA7: 0.01 | AC7: 7.39 | AD7: 3.07 | AE7: 1.98 | AF7: 1.3 | AG7: 0.33 | AH7: 0.1 | AI7: 0.03 | AJ7: 0.01 | AL7: 1.98 | AM7: 0.82 | AN7: 0.67 | AO7: 0.51 | AP7: 0.18 | AQ7: 0.08 | AR7: 0.03 | AS7: 0.01
A8: Lake Elsinore | B8: 11.19 | C8: 3.9 | D8: 2.38 | E8: 1.47 | F8: 0.32 | G8: 0.11 | H8: 0.04 | I8: 0.01 | K8: 8.16 | L8: 2.95 | M8: 1.95 | N8: 1.29 | O8: 0.3 | P8: 0.11 | Q8: 0.04 | R8: 0.01 | T8: 4.89 | U8: 1.93 | V8: 1.3 | W8: 0.93 | X8: 0.25 | Y8: 0.09 | Z8: 0.03 | AA8: 0.01 | AC8: 3.07 | AD8: 1.24 | AE8: 0.89 | AF8: 0.64 | AG8: 0.21 | AH8: 0.08 | AI8: 0.03 | AJ8: 0.01 | AL8: 0.77 | AM8: 0.39 | AN8: 0.33 | AO8: 0.28 | AP8: 0.12 | AQ8: 0.06 | AR8: 0.03 | AS8: 0.01
A9: Fontana | B9: 22.8 | C9: 6.68 | D9: 4.01 | E9: 2.48 | F9: 0.53 | G9: 0.18 | H9: 0.06 | I9: 0.02 | K9: 18.26 | L9: 5.49 | M9: 3.47 | N9: 2.25 | O9: 0.5 | P9: 0.18 | Q9: 0.06 | R9: 0.02 | T9: 12.44 | U9: 4.14 | V9: 2.61 | W9: 1.82 | X9: 0.45 | Y9: 0.16 | Z9: 0.06 | AA9: 0.01 | AC9: 8.67 | AD9: 2.99 | AE9: 1.99 | AF9: 1.37 | AG9: 0.4 | AH9: 0.15 | AI9: 0.05 | AJ9: 0.01 | AL9: 2.78 | AM9: 1.01 | AN9: 0.81 | AO9: 0.64 | AP9: 0.25 | AQ9: 0.11 | AR9: 0.05 | AS9: 0.01
A10: Mission Viejo | B10: 14.22 | C10: 4.76 | D10: 2.84 | E10: 1.7 | F10: 0.34 | G10: 0.12 | H10: 0.04 | I10: 0.01 | K10: 10.62 | L10: 3.78 | M10: 2.38 | N10: 1.52 | O10: 0.32 | P10: 0.11 | Q10: 0.04 | R10: 0.01 | T10: 6.75 | U10: 2.66 | V10: 1.69 | W10: 1.14 | X10: 0.27 | Y10: 0.1 | Z10: 0.04 | AA10: 0.01 | AC10: 4.07 | AD10: 1.69 | AE10: 1.15 | AF10: 0.78 | AG10: 0.22 | AH10: 0.09 | AI10: 0.03 | AJ10: 0.01 | AL10: 0.78 | AM10: 0.41 | AN10: 0.36 | AO10: 0.3 | AP10: 0.13 | AQ10: 0.07 | AR10: 0.03 | AS10: 0.01
A11: Perris | B11: 14.34 | C11: 4.49 | D11: 2.7 | E11: 1.71 | F11: 0.4 | G11: 0.15 | H11: 0.05 | I11: 0.01 | K11: 11.61 | L11: 3.7 | M11: 2.32 | N11: 1.53 | O11: 0.38 | P11: 0.14 | Q11: 0.05 | R11: 0.01 | T11: 8.37 | U11: 2.84 | V11: 1.77 | W11: 1.24 | X11: 0.34 | Y11: 0.13 | Z11: 0.05 | AA11: 0.01 | AC11: 6.25 | AD11: 2.19 | AE11: 1.42 | AF11: 0.98 | AG11: 0.3 | AH11: 0.12 | AI11: 0.04 | AJ11: 0.01 | AL11: 2.42 | AM11: 0.91 | AN11: 0.68 | AO11: 0.52 | AP11: 0.2 | AQ11: 0.09 | AR11: 0.04 | AS11: 0.01
A12: Pico Rivera | B12: 21.87 | C12: 6.65 | D12: 3.8 | E12: 2.3 | F12: 0.46 | G12: 0.15 | H12: 0.05 | I12: 0.01 | K12: 17.51 | L12: 5.55 | M12: 3.32 | N12: 2.09 | O12: 0.43 | P12: 0.15 | Q12: 0.05 | R12: 0.01 | T12: 12.37 | U12: 4.31 | V12: 2.56 | W12: 1.7 | X12: 0.38 | Y12: 0.13 | Z12: 0.05 | AA12: 0.01 | AC12: 8.67 | AD12: 3.16 | AE12: 1.97 | AF12: 1.29 | AG12: 0.33 | AH12: 0.12 | AI12: 0.04 | AJ12: 0.01 | AL12: 2.83 | AM12: 1.07 | AN12: 0.8 | AO12: 0.6 | AP12: 0.2 | AQ12: 0.09 | AR12: 0.04 | AS12: 0.01
A13: Redlands | B13: 14.93 | C13: 5.67 | D13: 3.48 | E13: 2.12 | F13: 0.42 | G13: 0.14 | H13: 0.05 | I13: 0.01 | K13: 11.11 | L13: 4.32 | M13: 2.82 | N13: 1.82 | O13: 0.38 | P13: 0.13 | Q13: 0.05 | R13: 0.01 | T13: 6.69 | U13: 3.14 | V13: 2.08 | W13: 1.46 | X13: 0.35 | Y13: 0.12 | Z13: 0.04 | AA13: 0.01 | AC13: 3.76 | AD13: 1.92 | AE13: 1.38 | AF13: 0.97 | AG13: 0.28 | AH13: 0.11 | AI13: 0.04 | AJ13: 0.01 | AL13: 0.65 | AM13: 0.4 | AN13: 0.38 | AO13: 0.32 | AP13: 0.15 | AQ13: 0.08 | AR13: 0.04 | AS13: 0.01
A14: Upland | B14: 23.12 | C14: 7.26 | D14: 4.47 | E14: 2.79 | F14: 0.58 | G14: 0.19 | H14: 0.06 | I14: 0.02 | K14: 18.11 | L14: 5.9 | M14: 3.83 | N14: 2.5 | O14: 0.55 | P14: 0.18 | Q14: 0.06 | R14: 0.02 | T14: 12.13 | U14: 4.46 | V14: 2.89 | W14: 2.03 | X14: 0.49 | Y14: 0.16 | Z14: 0.06 | AA14: 0.02 | AC14: 7.92 | AD14: 3.12 | AE14: 2.16 | AF14: 1.5 | AG14: 0.42 | AH14: 0.15 | AI14: 0.05 | AJ14: 0.01 | AL14: 1.95 | AM14: 0.81 | AN14: 0.7 | AO14: 0.57 | AP14: 0.23 | AQ14: 0.11 | AR14: 0.05 | AS14: 0.01
A15: Burbank Airport | B15: 28.28 | C15: 7.43 | D15: 4.32 | E15: 2.68 | F15: 0.57 | G15: 0.21 | H15: 0.07 | I15: 0.02 | K15: 23.52 | L15: 6.35 | M15: 3.82 | N15: 2.46 | O15: 0.55 | P15: 0.21 | Q15: 0.07 | R15: 0.02 | T15: 16.56 | U15: 4.93 | V15: 2.96 | W15: 2.03 | X15: 0.5 | Y15: 0.19 | Z15: 0.07 | AA15: 0.02 | AC15: 12.55 | AD15: 3.93 | AE15: 2.46 | AF15: 1.65 | AG15: 0.45 | AH15: 0.18 | AI15: 0.07 | AJ15: 0.02 | AL15: 4.61 | AM15: 1.56 | AN15: 1.13 | AO15: 0.86 | AP15: 0.3 | AQ15: 0.14 | AR15: 0.06 | AS15: 0.02
A16: Chino Airport. | B16: 21.41 | C16: 6.44 | D16: 3.95 | E16: 2.51 | F16: 0.6 | G16: 0.22 | H16: 0.07 | I16: 0.02 | K16: 18.16 | L16: 5.45 | M16: 3.45 | N16: 2.28 | O16: 0.58 | P16: 0.22 | Q16: 0.07 | R16: 0.02 | T16: 13.35 | U16: 4.24 | V16: 2.67 | W16: 1.89 | X16: 0.53 | Y16: 0.2 | Z16: 0.07 | AA16: 0.02 | AC16: 10.43 | AD16: 3.42 | AE16: 2.22 | AF16: 1.54 | AG16: 0.48 | AH16: 0.19 | AI16: 0.07 | AJ16: 0.02 | AL16: 4.53 | AM16: 1.57 | AN16: 1.12 | AO16: 0.86 | AP16: 0.32 | AQ16: 0.15 | AR16: 0.06 | AS16: 0.02
A17: USC/Downtown L.A. | B17: 16.25 | C17: 5.97 | D17: 3.83 | E17: 2.41 | F17: 0.51 | G17: 0.17 | H17: 0.06 | I17: 0.01 | K17: 11.38 | L17: 4.57 | M17: 3.15 | N17: 2.11 | O17: 0.48 | P17: 0.16 | Q17: 0.06 | R17: 0.01 | T17: 6.74 | U17: 3.14 | V17: 2.19 | W17: 1.61 | X17: 0.42 | Y17: 0.15 | Z17: 0.05 | AA17: 0.01 | AC17: 4.2 | AD17: 2.14 | AE17: 1.61 | AF17: 1.17 | AG17: 0.36 | AH17: 0.13 | AI17: 0.05 | AJ17: 0.01 | AL17: 0.41 | AM17: 0.35 | AN17: 0.34 | AO17: 0.3 | AP17: 0.16 | AQ17: 0.09 | AR17: 0.04 | AS17: 0.01
A18: Fullerton Airport | B18: 23.65 | C18: 6.75 | D18: 4.01 | E18: 2.5 | F18: 0.54 | G18: 0.19 | H18: 0.06 | I18: 0.02 | K18: 19.07 | L18: 5.69 | M18: 3.52 | N18: 2.28 | O18: 0.52 | P18: 0.18 | Q18: 0.06 | R18: 0.02 | T18: 13.26 | U18: 4.34 | V18: 2.69 | W18: 1.87 | X18: 0.47 | Y18: 0.17 | Z18: 0.06 | AA18: 0.02 | AC18: 9.66 | AD18: 3.35 | AE18: 2.19 | AF18: 1.49 | AG18: 0.42 | AH18: 0.15 | AI18: 0.05 | AJ18: 0.01 | AL18: 3.29 | AM18: 1.23 | AN18: 0.95 | AO18: 0.73 | AP18: 0.26 | AQ18: 0.12 | AR18: 0.05 | AS18: 0.01
A19: Hawthorne Airport | B19: 33.46 | C19: 8.98 | D19: 5.34 | E19: 3.36 | F19: 0.76 | G19: 0.26 | H19: 0.09 | I19: 0.02 | K19: 28.18 | L19: 7.72 | M19: 4.76 | N19: 3.1 | O19: 0.74 | P19: 0.25 | Q19: 0.08 | R19: 0.02 | T19: 20.29 | U19: 6.11 | V19: 3.78 | W19: 2.62 | X19: 0.68 | Y19: 0.24 | Z19: 0.08 | AA19: 0.02 | AC19: 15.71 | AD19: 4.94 | AE19: 3.21 | AF19: 2.19 | AG19: 0.63 | AH19: 0.22 | AI19: 0.08 | AJ19: 0.02 | AL19: 6.2 | AM19: 2.12 | AN19: 1.62 | AO19: 1.24 | AP19: 0.43 | AQ19: 0.18 | AR19: 0.07 | AS19: 0.02
A20: Los Angeles Int'l Airport | B20: 38.9 | C20: 10.54 | D20: 6.49 | E20: 4.23 | F20: 1.07 | G20: 0.38 | H20: 0.13 | I20: 0.03 | K20: 33.67 | L20: 9.18 | M20: 5.82 | N20: 3.91 | O20: 1.03 | P20: 0.37 | Q20: 0.12 | R20: 0.03 | T20: 24.46 | U20: 7.34 | V20: 4.61 | W20: 3.29 | X20: 0.95 | Y20: 0.35 | Z20: 0.12 | AA20: 0.03 | AC20: 19.21 | AD20: 6 | AE20: 3.91 | AF20: 2.73 | AG20: 0.88 | AH20: 0.33 | AI20: 0.11 | AJ20: 0.03 | AL20: 8.04 | AM20: 2.71 | AN20: 2.02 | AO20: 1.56 | AP20: 0.59 | AQ20: 0.26 | AR20: 0.1 | AS20: 0.03
A21: Long Beach Airport | B21: 23.01 | C21: 6.23 | D21: 3.74 | E21: 2.38 | F21: 0.54 | G21: 0.2 | H21: 0.07 | I21: 0.02 | K21: 18.95 | L21: 5.29 | M21: 3.29 | N21: 2.18 | O21: 0.51 | P21: 0.2 | Q21: 0.07 | R21: 0.02 | T21: 13.34 | U21: 4.09 | V21: 2.53 | W21: 1.79 | X21: 0.47 | Y21: 0.18 | Z21: 0.07 | AA21: 0.02 | AC21: 10.06 | AD21: 3.25 | AE21: 2.1 | AF21: 1.44 | AG21: 0.42 | AH21: 0.17 | AI21: 0.06 | AJ21: 0.02 | AL21: 3.35 | AM21: 1.23 | AN21: 0.93 | AO21: 0.72 | AP21: 0.27 | AQ21: 0.13 | AR21: 0.05 | AS21: 0.01
A22: Ontario Airport | B22: 28.22 | C22: 7.86 | D22: 4.87 | E22: 3.13 | F22: 0.74 | G22: 0.27 | H22: 0.09 | I22: 0.02 | K22: 23.49 | L22: 6.64 | M22: 4.25 | N22: 2.85 | O22: 0.71 | P22: 0.26 | Q22: 0.09 | R22: 0.02 | T22: 16.73 | U22: 5.14 | V22: 3.26 | W22: 2.33 | X22: 0.65 | Y22: 0.25 | Z22: 0.08 | AA22: 0.02 | AC22: 12.75 | AD22: 4.07 | AE22: 2.68 | AF22: 1.87 | AG22: 0.59 | AH22: 0.23 | AI22: 0.08 | AJ22: 0.02 | AL22: 4.86 | AM22: 1.66 | AN22: 1.24 | AO22: 0.97 | AP22: 0.38 | AQ22: 0.18 | AR22: 0.07 | AS22: 0.02
A23: Palm Springs Airport | B23: 15.4 | C23: 4.56 | D23: 2.86 | E23: 1.81 | F23: 0.41 | G23: 0.15 | H23: 0.05 | I23: 0.01 | K23: 12.03 | L23: 3.68 | M23: 2.43 | N23: 1.62 | O23: 0.39 | P23: 0.14 | Q23: 0.05 | R23: 0.01 | T23: 8.06 | U23: 2.69 | V23: 1.78 | W23: 1.29 | X23: 0.35 | Y23: 0.13 | Z23: 0.05 | AA23: 0.01 | AC23: 5.76 | AD23: 2 | AE23: 1.41 | AF23: 1 | AG23: 0.31 | AH23: 0.12 | AI23: 0.04 | AJ23: 0.01 | AL23: 2.35 | AM23: 0.86 | AN23: 0.61 | AO23: 0.46 | AP23: 0.19 | AQ23: 0.09 | AR23: 0.04 | AS23: 0.01
A24: Riverside Airport | B24: 22.29 | C24: 7.19 | D24: 4.55 | E24: 2.91 | F24: 0.67 | G24: 0.24 | H24: 0.08 | I24: 0.02 | K24: 17.33 | L24: 5.77 | M24: 3.86 | N24: 2.59 | O24: 0.63 | P24: 0.23 | Q24: 0.08 | R24: 0.02 | T24: 11.58 | U24: 4.27 | V24: 2.84 | W24: 2.08 | X24: 0.58 | Y24: 0.21 | Z24: 0.07 | AA24: 0.02 | AC24: 8.2 | AD24: 3.16 | AE24: 2.24 | AF24: 1.6 | AG24: 0.51 | AH24: 0.2 | AI24: 0.07 | AJ24: 0.02 | AL24: 2.38 | AM24: 1.02 | AN24: 0.87 | AO24: 0.73 | AP24: 0.31 | AQ24: 0.15 | AR24: 0.06 | AS24: 0.02
A25: Santa Monica Airport | B25: 36.88 | C25: 9.87 | D25: 5.9 | E25: 3.76 | F25: 0.87 | G25: 0.3 | H25: 0.1 | I25: 0.02 | K25: 31.15 | L25: 8.57 | M25: 5.28 | N25: 3.47 | O25: 0.83 | P25: 0.29 | Q25: 0.1 | R25: 0.02 | T25: 22.99 | U25: 6.88 | V25: 4.21 | W25: 2.93 | X25: 0.77 | Y25: 0.27 | Z25: 0.09 | AA25: 0.02 | AC25: 17.89 | AD25: 5.65 | AE25: 3.6 | AF25: 2.44 | AG25: 0.71 | AH25: 0.25 | AI25: 0.09 | AJ25: 0.02 | AL25: 7.32 | AM25: 2.43 | AN25: 1.79 | AO25: 1.35 | AP25: 0.46 | AQ25: 0.19 | AR25: 0.08 | AS25: 0.02
A26: John Wayne Int'l Airport | B26: 29.99 | C26: 8.37 | D26: 4.89 | E26: 3.1 | F26: 0.71 | G26: 0.26 | H26: 0.09 | I26: 0.02 | K26: 25.48 | L26: 7.3 | M26: 4.36 | N26: 2.87 | O26: 0.69 | P26: 0.25 | Q26: 0.08 | R26: 0.02 | T26: 18.86 | U26: 5.84 | V26: 3.47 | W26: 2.4 | X26: 0.63 | Y26: 0.24 | Z26: 0.08 | AA26: 0.02 | AC26: 14.84 | AD26: 4.78 | AE26: 2.94 | AF26: 1.99 | AG26: 0.58 | AH26: 0.22 | AI26: 0.08 | AJ26: 0.02 | AL26: 6.44 | AM26: 2.22 | AN26: 1.53 | AO26: 1.14 | AP26: 0.39 | AQ26: 0.18 | AR26: 0.07 | AS26: 0.02
A27: Desert Hot Springs Airport | B27: 20.15 | C27: 6.01 | D27: 3.77 | E27: 2.49 | F27: 0.61 | G27: 0.23 | H27: 0.08 | I27: 0.02 | K27: 16.64 | L27: 5.05 | M27: 3.29 | N27: 2.25 | O27: 0.59 | P27: 0.22 | Q27: 0.08 | R27: 0.02 | T27: 11.91 | U27: 3.89 | V27: 2.49 | W27: 1.83 | X27: 0.53 | Y27: 0.2 | Z27: 0.07 | AA27: 0.02 | AC27: 9.07 | AD27: 3.07 | AE27: 2.03 | AF27: 1.45 | AG27: 0.48 | AH27: 0.19 | AI27: 0.07 | AJ27: 0.02 | AL27: 3.17 | AM27: 1.17 | AN27: 0.88 | AO27: 0.7 | AP27: 0.29 | AQ27: 0.14 | AR27: 0.06 | AS27: 0.02
A28: Van Nuys Airport | B28: 21.16 | C28: 6.06 | D28: 3.58 | E28: 2.23 | F28: 0.5 | G28: 0.19 | H28: 0.06 | I28: 0.01 | K28: 17.49 | L28: 5.17 | M28: 3.16 | N28: 2.04 | O28: 0.48 | P28: 0.18 | Q28: 0.06 | R28: 0.01 | T28: 12.43 | U28: 3.98 | V28: 2.43 | W28: 1.68 | X28: 0.44 | Y28: 0.17 | Z28: 0.06 | AA28: 0.01 | AC28: 9.46 | AD28: 3.16 | AE28: 2 | AF28: 1.35 | AG28: 0.4 | AH28: 0.16 | AI28: 0.06 | AJ28: 0.01 | AL28: 3.67 | AM28: 1.31 | AN28: 0.95 | AO28: 0.72 | AP28: 0.26 | AQ28: 0.12 | AR28: 0.05 | AS28: 0.01
A34: Table 10 B - Dispersion Factors (X/Q) for Diesel ICE Operating More Than 12 Hours per Day
A35: ([ug/m3]/[ton/year]) | B35: Diesel ICE Rating 50 to 175 BHP | K35: Diesel ICE Rating >175 to 300 BHP | T35: Diesel ICE Rating >300 to 400 BHP | AC35: Diesel ICE Rating >400 to 600 BHP | AL35: Diesel ICE Rating >600 to 1,150 BHP
A36: Location | B36: Downwind Distance (meters) | K36: Downwind Distance (meters) | T36: Downwind Distance (meters) | AC36: Downwind Distance (meters) | AL36: Downwind Distance (meters)
B37: 25 | C37: 50 | D37: 75 | E37: 100 | F37: 200 | G37: 300 | H37: 500 | I37: 1000 | K37: 25 | L37: 50 | M37: 75 | N37: 100 | O37: 200 | P37: 300 | Q37: 500 | R37: 1000 | T37: 25 | U37: 50 | V37: 75 | W37: 100 | X37: 200 | Y37: 300 | Z37: 500 | AA37: 1000 | AC37: 25 | AD37: 50 | AE37: 75 | AF37: 100 | AG37: 200 | AH37: 300 | AI37: 500 | AJ37: 1000 | AL37: 25 | AM37: 50 | AN37: 75 | AO37: 100 | AP37: 200 | AQ37: 300 | AR37: 500 | AS37: 1000
A38: Azusa | B38: 10.78 | C38: 3.7 | D38: 2.65 | E38: 2.01 | F38: 0.81 | G38: 0.34 | H38: 0.14 | I38: 0.05 | K38: 7.87 | L38: 2.66 | M38: 1.9 | N38: 1.46 | O38: 0.61 | P38: 0.28 | Q38: 0.13 | R38: 0.05 | T38: 4.62 | U38: 1.77 | V38: 1.17 | W38: 0.89 | X38: 0.33 | Y38: 0.16 | Z38: 0.09 | AA38: 0.04 | AC38: 2.66 | AD38: 1.09 | AE38: 0.77 | AF38: 0.55 | AG38: 0.21 | AH38: 0.1 | AI38: 0.06 | AJ38: 0.04 | AL38: 0.55 | AM38: 0.21 | AN38: 0.16 | AO38: 0.14 | AP38: 0.07 | AQ38: 0.04 | AR38: 0.02 | AS38: 0.02
A39: Banning | B39: 28.59 | C39: 8.77 | D39: 5.82 | E39: 4.23 | F39: 1.65 | G39: 0.74 | H39: 0.3 | I39: 0.1 | K39: 23.57 | L39: 6.99 | M39: 4.55 | N39: 3.35 | O39: 1.37 | P39: 0.65 | Q39: 0.28 | R39: 0.1 | T39: 17.15 | U39: 5.26 | V39: 3.13 | W39: 2.31 | X39: 1.01 | Y39: 0.51 | Z39: 0.24 | AA39: 0.1 | AC39: 12.86 | AD39: 3.97 | AE39: 2.41 | AF39: 1.63 | AG39: 0.75 | AH39: 0.39 | AI39: 0.2 | AJ39: 0.08 | AL39: 4.8 | AM39: 1.47 | AN39: 0.98 | AO39: 0.72 | AP39: 0.31 | AQ39: 0.19 | AR39: 0.11 | AS39: 0.06
A40: Central L.A. | B40: 11.17 | C40: 3.68 | D40: 2.57 | E40: 1.9 | F40: 0.74 | G40: 0.29 | H40: 0.11 | I40: 0.04 | K40: 8.49 | L40: 2.81 | M40: 1.89 | N40: 1.37 | O40: 0.52 | P40: 0.23 | Q40: 0.1 | R40: 0.04 | T40: 5.53 | U40: 1.98 | V40: 1.27 | W40: 0.93 | X40: 0.31 | Y40: 0.14 | Z40: 0.07 | AA40: 0.04 | AC40: 3.83 | AD40: 1.47 | AE40: 0.99 | AF40: 0.68 | AG40: 0.23 | AH40: 0.09 | AI40: 0.05 | AJ40: 0.03 | AL40: 0.89 | AM40: 0.35 | AN40: 0.29 | AO40: 0.23 | AP40: 0.09 | AQ40: 0.04 | AR40: 0.02 | AS40: 0.02
A41: Lake Elsinore | B41: 6.18 | C41: 2.11 | D41: 1.39 | E41: 0.98 | F41: 0.49 | G41: 0.28 | H41: 0.15 | I41: 0.06 | K41: 4.59 | L41: 1.56 | M41: 1.06 | N41: 0.77 | O41: 0.33 | P41: 0.2 | Q41: 0.12 | R41: 0.05 | T41: 2.79 | U41: 1.02 | V41: 0.66 | W41: 0.5 | X41: 0.17 | Y41: 0.09 | Z41: 0.07 | AA41: 0.04 | AC41: 1.8 | AD41: 0.67 | AE41: 0.46 | AF41: 0.33 | AG41: 0.13 | AH41: 0.06 | AI41: 0.04 | AJ41: 0.03 | AL41: 0.39 | AM41: 0.18 | AN41: 0.15 | AO41: 0.12 | AP41: 0.06 | AQ41: 0.03 | AR41: 0.02 | AS41: 0.01
A42: Fontana | B42: 16.92 | C42: 5.16 | D42: 3.46 | E42: 2.53 | F42: 0.97 | G42: 0.44 | H42: 0.19 | I42: 0.07 | K42: 13.38 | L42: 3.98 | M42: 2.64 | N42: 1.95 | O42: 0.76 | P42: 0.36 | Q42: 0.17 | R42: 0.07 | T42: 8.94 | U42: 2.82 | V42: 1.72 | W42: 1.27 | X42: 0.47 | Y42: 0.23 | Z42: 0.12 | AA42: 0.06 | AC42: 6.19 | AD42: 2 | AE42: 1.28 | AF42: 0.88 | AG42: 0.34 | AH42: 0.16 | AI42: 0.09 | AJ42: 0.05 | AL42: 1.85 | AM42: 0.62 | AN42: 0.46 | AO42: 0.35 | AP42: 0.14 | AQ42: 0.08 | AR42: 0.04 | AS42: 0.03
A43: Mission Viejo | B43: 8.22 | C43: 2.6 | D43: 1.72 | E43: 1.22 | F43: 0.47 | G43: 0.25 | H43: 0.13 | I43: 0.05 | K43: 5.82 | L43: 1.9 | M43: 1.24 | N43: 0.87 | O43: 0.31 | P43: 0.18 | Q43: 0.1 | R43: 0.05 | T43: 3.38 | U43: 1.24 | V43: 0.77 | W43: 0.54 | X43: 0.16 | Y43: 0.09 | Z43: 0.07 | AA43: 0.04 | AC43: 1.98 | AD43: 0.77 | AE43: 0.51 | AF43: 0.35 | AG43: 0.12 | AH43: 0.05 | AI43: 0.04 | AJ43: 0.03 | AL43: 0.31 | AM43: 0.17 | AN43: 0.14 | AO43: 0.12 | AP43: 0.05 | AQ43: 0.03 | AR43: 0.02 | AS43: 0.01
A44: Perris | B44: 10.57 | C44: 3.45 | D44: 2.28 | E44: 1.66 | F44: 0.67 | G44: 0.34 | H44: 0.16 | I44: 0.06 | K44: 8.45 | L44: 2.7 | M44: 1.76 | N44: 1.29 | O44: 0.51 | P44: 0.26 | Q44: 0.14 | R44: 0.06 | T44: 5.82 | U44: 1.94 | V44: 1.17 | W44: 0.86 | X44: 0.31 | Y44: 0.16 | Z44: 0.09 | AA44: 0.05 | AC44: 4.28 | AD44: 1.46 | AE44: 0.91 | AF44: 0.62 | AG44: 0.23 | AH44: 0.11 | AI44: 0.06 | AJ44: 0.04 | AL44: 1.46 | AM44: 0.53 | AN44: 0.37 | AO44: 0.28 | AP44: 0.11 | AQ44: 0.05 | AR44: 0.03 | AS44: 0.02
A45: Pico Rivera | B45: 14.82 | C45: 4.63 | D45: 2.97 | E45: 2.13 | F45: 0.75 | G45: 0.33 | H45: 0.14 | I45: 0.05 | K45: 11.55 | L45: 3.56 | M45: 2.24 | N45: 1.63 | O45: 0.58 | P45: 0.27 | Q45: 0.13 | R45: 0.05 | T45: 7.74 | U45: 2.54 | V45: 1.45 | W45: 1.04 | X45: 0.35 | Y45: 0.17 | Z45: 0.09 | AA45: 0.04 | AC45: 5.33 | AD45: 1.81 | AE45: 1.09 | AF45: 0.73 | AG45: 0.26 | AH45: 0.11 | AI45: 0.06 | AJ45: 0.03 | AL45: 1.48 | AM45: 0.52 | AN45: 0.38 | AO45: 0.29 | AP45: 0.1 | AQ45: 0.05 | AR45: 0.03 | AS45: 0.02
A46: Redlands | B46: 8.62 | C46: 3.12 | D46: 2.19 | E46: 1.62 | F46: 0.69 | G46: 0.34 | H46: 0.19 | I46: 0.08 | K46: 6.23 | L46: 2.23 | M46: 1.57 | N46: 1.17 | O46: 0.48 | P46: 0.25 | Q46: 0.17 | R46: 0.09 | T46: 3.73 | U46: 1.54 | V46: 1.02 | W46: 0.77 | X46: 0.28 | Y46: 0.14 | Z46: 0.11 | AA46: 0.07 | AC46: 2.14 | AD46: 0.95 | AE46: 0.68 | AF46: 0.49 | AG46: 0.18 | AH46: 0.09 | AI46: 0.06 | AJ46: 0.05 | AL46: 0.35 | AM46: 0.19 | AN46: 0.18 | AO46: 0.15 | AP46: 0.07 | AQ46: 0.04 | AR46: 0.03 | AS46: 0.02
A47: Upland | B47: 14.72 | C47: 4.59 | D47: 3.18 | E47: 2.34 | F47: 0.94 | G47: 0.4 | H47: 0.19 | I47: 0.08 | K47: 11.26 | L47: 3.48 | M47: 2.39 | N47: 1.78 | O47: 0.69 | P47: 0.32 | Q47: 0.16 | R47: 0.08 | T47: 7.48 | U47: 2.5 | V47: 1.6 | W47: 1.21 | X47: 0.44 | Y47: 0.21 | Z47: 0.11 | AA47: 0.06 | AC47: 4.85 | AD47: 1.71 | AE47: 1.16 | AF47: 0.82 | AG47: 0.31 | AH47: 0.14 | AI47: 0.08 | AJ47: 0.05 | AL47: 1.14 | AM47: 0.42 | AN47: 0.35 | AO47: 0.29 | AP47: 0.12 | AQ47: 0.07 | AR47: 0.04 | AS47: 0.02
A48: Burbank Airport | B48: 18.29 | C48: 5.18 | D48: 3.26 | E48: 2.27 | F48: 0.75 | G48: 0.35 | H48: 0.15 | I48: 0.05 | K48: 14.9 | L48: 4.18 | M48: 2.59 | N48: 1.82 | O48: 0.59 | P48: 0.29 | Q48: 0.14 | R48: 0.05 | T48: 10.43 | U48: 3.11 | V48: 1.8 | W48: 1.28 | X48: 0.41 | Y48: 0.19 | Z48: 0.1 | AA48: 0.04 | AC48: 7.76 | AD48: 2.38 | AE48: 1.42 | AF48: 0.94 | AG48: 0.3 | AH48: 0.14 | AI48: 0.07 | AJ48: 0.04 | AL48: 2.48 | AM48: 0.81 | AN48: 0.56 | AO48: 0.42 | AP48: 0.15 | AQ48: 0.07 | AR48: 0.04 | AS48: 0.02
A49: Chino Airport. | B49: 17.11 | C49: 5.17 | D49: 3.4 | E49: 2.45 | F49: 0.95 | G49: 0.46 | H49: 0.2 | I49: 0.07 | K49: 14.28 | L49: 4.21 | M49: 2.74 | N49: 1.99 | O49: 0.75 | P49: 0.38 | Q49: 0.18 | R49: 0.07 | T49: 10.44 | U49: 3.24 | V49: 1.99 | W49: 1.45 | X49: 0.54 | Y49: 0.26 | Z49: 0.13 | AA49: 0.06 | AC49: 8.05 | AD49: 2.56 | AE49: 1.6 | AF49: 1.1 | AG49: 0.42 | AH49: 0.2 | AI49: 0.1 | AJ49: 0.05 | AL49: 3.3 | AM49: 1.1 | AN49: 0.74 | AO49: 0.54 | AP49: 0.21 | AQ49: 0.11 | AR49: 0.05 | AS49: 0.03
A50: USC/Downtown L.A. | B50: 10.15 | C50: 3.48 | D50: 2.64 | E50: 2.1 | F50: 0.94 | G50: 0.43 | H50: 0.18 | I50: 0.07 | K50: 6.56 | L50: 2.35 | M50: 1.75 | N50: 1.38 | O50: 0.63 | P50: 0.32 | Q50: 0.16 | R50: 0.07 | T50: 3.74 | U50: 1.52 | V50: 1.06 | W50: 0.84 | X50: 0.34 | Y50: 0.17 | Z50: 0.11 | AA50: 0.06 | AC50: 2.23 | AD50: 0.99 | AE50: 0.75 | AF50: 0.56 | AG50: 0.22 | AH50: 0.1 | AI50: 0.07 | AJ50: 0.05 | AL50: 0.19 | AM50: 0.15 | AN50: 0.14 | AO50: 0.13 | AP50: 0.07 | AQ50: 0.04 | AR50: 0.03 | AS50: 0.02
A51: Fullerton Airport | B51: 13.04 | C51: 3.81 | D51: 2.48 | E51: 1.73 | F51: 0.6 | G51: 0.28 | H51: 0.13 | I51: 0.04 | K51: 10.14 | L51: 2.97 | M51: 1.88 | N51: 1.32 | O51: 0.44 | P51: 0.22 | Q51: 0.11 | R51: 0.04 | T51: 6.77 | U51: 2.13 | V51: 1.28 | W51: 0.92 | X51: 0.29 | Y51: 0.13 | Z51: 0.08 | AA51: 0.03 | AC51: 4.77 | AD51: 1.58 | AE51: 1 | AF51: 0.68 | AG51: 0.22 | AH51: 0.09 | AI51: 0.05 | AJ51: 0.03 | AL51: 1.44 | AM51: 0.52 | AN51: 0.39 | AO51: 0.3 | AP51: 0.11 | AQ51: 0.05 | AR51: 0.02 | AS51: 0.01
A52: Hawthorne Airport | B52: 20.35 | C52: 5.76 | D52: 3.69 | E52: 2.59 | F52: 0.91 | G52: 0.4 | H52: 0.17 | I52: 0.06 | K52: 16.52 | L52: 4.62 | M52: 2.92 | N52: 2.06 | O52: 0.73 | P52: 0.34 | Q52: 0.15 | R52: 0.05 | T52: 11.71 | U52: 3.49 | V52: 2.09 | W52: 1.5 | X52: 0.53 | Y52: 0.25 | Z52: 0.12 | AA52: 0.05 | AC52: 8.83 | AD52: 2.7 | AE52: 1.68 | AF52: 1.14 | AG52: 0.41 | AH52: 0.19 | AI52: 0.09 | AJ52: 0.04 | AL52: 3.19 | AM52: 1.04 | AN52: 0.76 | AO52: 0.58 | AP52: 0.22 | AQ52: 0.11 | AR52: 0.05 | AS52: 0.02
A53: Los Angeles Int'l Airport | B53: 25.99 | C53: 7.58 | D53: 5.02 | E53: 3.59 | F53: 1.29 | G53: 0.57 | H53: 0.23 | I53: 0.08 | K53: 21.87 | L53: 6.23 | M53: 4.09 | N53: 2.95 | O53: 1.08 | P53: 0.5 | Q53: 0.21 | R53: 0.08 | T53: 15.8 | U53: 4.78 | V53: 2.95 | W53: 2.17 | X53: 0.81 | Y53: 0.37 | Z53: 0.17 | AA53: 0.07 | AC53: 12.21 | AD53: 3.77 | AE53: 2.38 | AF53: 1.64 | AG53: 0.63 | AH53: 0.29 | AI53: 0.14 | AJ53: 0.06 | AL53: 4.73 | AM53: 1.53 | AN53: 1.08 | AO53: 0.81 | AP53: 0.32 | AQ53: 0.16 | AR53: 0.08 | AS53: 0.04
A54: Long Beach Airport | B54: 15.02 | C54: 4.86 | D54: 3.34 | E54: 2.51 | F54: 1.06 | G54: 0.5 | H54: 0.22 | I54: 0.08 | K54: 12.12 | L54: 3.79 | M54: 2.52 | N54: 1.9 | O54: 0.79 | P54: 0.4 | Q54: 0.19 | R54: 0.08 | T54: 8.57 | U54: 2.74 | V54: 1.66 | W54: 1.24 | X54: 0.5 | Y54: 0.25 | Z54: 0.14 | AA54: 0.07 | AC54: 6.35 | AD54: 2.06 | AE54: 1.26 | AF54: 0.85 | AG54: 0.35 | AH54: 0.17 | AI54: 0.09 | AJ54: 0.05 | AL54: 2.2 | AM54: 0.73 | AN54: 0.48 | AO54: 0.34 | AP54: 0.13 | AQ54: 0.07 | AR54: 0.04 | AS54: 0.02
A55: Ontario Airport | B55: 24.4 | C55: 7.38 | D55: 4.99 | E55: 3.64 | F55: 1.38 | G55: 0.65 | H55: 0.28 | I55: 0.1 | K55: 20.11 | L55: 5.91 | M55: 3.95 | N55: 2.91 | O55: 1.12 | P55: 0.54 | Q55: 0.25 | R55: 0.09 | T55: 14.44 | U55: 4.45 | V55: 2.75 | W55: 2.05 | X55: 0.8 | Y55: 0.38 | Z55: 0.19 | AA55: 0.08 | AC55: 10.96 | AD55: 3.44 | AE55: 2.16 | AF55: 1.48 | AG55: 0.59 | AH55: 0.28 | AI55: 0.14 | AJ55: 0.07 | AL55: 3.93 | AM55: 1.28 | AN55: 0.87 | AO55: 0.64 | AP55: 0.25 | AQ55: 0.13 | AR55: 0.07 | AS55: 0.04
A56: Palm Springs Airport | B56: 18.97 | C56: 6.43 | D56: 4.27 | E56: 3.12 | F56: 1.17 | G56: 0.54 | H56: 0.23 | I56: 0.08 | K56: 16.08 | L56: 5.33 | M56: 3.47 | N56: 2.55 | O56: 0.96 | P56: 0.46 | Q56: 0.2 | R56: 0.08 | T56: 12.02 | U56: 4.12 | V56: 2.5 | W56: 1.84 | X56: 0.7 | Y56: 0.33 | Z56: 0.16 | AA56: 0.07 | AC56: 9.48 | AD56: 3.31 | AE56: 2.02 | AF56: 1.38 | AG56: 0.53 | AH56: 0.25 | AI56: 0.12 | AJ56: 0.06 | AL56: 3.97 | AM56: 1.4 | AN56: 0.91 | AO56: 0.64 | AP56: 0.24 | AQ56: 0.13 | AR56: 0.07 | AS56: 0.03
A57: Riverside Airport | B57: 15.05 | C57: 5.09 | D57: 3.6 | E57: 2.73 | F57: 1.17 | G57: 0.54 | H57: 0.24 | I57: 0.09 | K57: 11.37 | L57: 3.8 | M57: 2.64 | N57: 2.01 | O57: 0.87 | P57: 0.43 | Q57: 0.21 | R57: 0.08 | T57: 7.61 | U57: 2.7 | V57: 1.75 | W57: 1.34 | X57: 0.55 | Y57: 0.28 | Z57: 0.15 | AA57: 0.07 | AC57: 5.33 | AD57: 1.94 | AE57: 1.31 | AF57: 0.94 | AG57: 0.39 | AH57: 0.19 | AI57: 0.11 | AJ57: 0.06 | AL57: 1.53 | AM57: 0.6 | AN57: 0.48 | AO57: 0.39 | AP57: 0.17 | AQ57: 0.09 | AR57: 0.05 | AS57: 0.03
A58: Santa Monica Airport | B58: 20.51 | C58: 5.97 | D58: 3.88 | E58: 2.76 | F58: 0.95 | G58: 0.4 | H58: 0.16 | I58: 0.06 | K58: 16.74 | L58: 4.82 | M58: 3.09 | N58: 2.2 | O58: 0.75 | P58: 0.33 | Q58: 0.14 | R58: 0.05 | T58: 11.98 | U58: 3.65 | V58: 2.21 | W58: 1.6 | X58: 0.53 | Y58: 0.23 | Z58: 0.11 | AA58: 0.05 | AC58: 8.99 | AD58: 2.85 | AE58: 1.78 | AF58: 1.21 | AG58: 0.41 | AH58: 0.16 | AI58: 0.08 | AJ58: 0.04 | AL58: 3.26 | AM58: 1.07 | AN58: 0.77 | AO58: 0.58 | AP58: 0.21 | AQ58: 0.09 | AR58: 0.04 | AS58: 0.02
A59: John Wayne Int'l Airport | B59: 20.16 | C59: 6.16 | D59: 3.9 | E59: 2.78 | F59: 0.99 | G59: 0.46 | H59: 0.2 | I59: 0.07 | K59: 16.58 | L59: 4.99 | M59: 3.08 | N59: 2.21 | O59: 0.77 | P59: 0.37 | Q59: 0.17 | R59: 0.06 | T59: 11.96 | U59: 3.77 | V59: 2.16 | W59: 1.55 | X59: 0.52 | Y59: 0.24 | Z59: 0.12 | AA59: 0.05 | AC59: 9.06 | AD59: 2.93 | AE59: 1.72 | AF59: 1.14 | AG59: 0.39 | AH59: 0.17 | AI59: 0.09 | AJ59: 0.04 | AL59: 3.31 | AM59: 1.13 | AN59: 0.74 | AO59: 0.54 | AP59: 0.18 | AQ59: 0.09 | AR59: 0.04 | AS59: 0.02
A60: Desert Hot Springs Airport | B60: 20.21 | C60: 6.65 | D60: 4.5 | E60: 3.3 | F60: 1.31 | G60: 0.64 | H60: 0.28 | I60: 0.1 | K60: 16.66 | L60: 5.38 | M60: 3.56 | N60: 2.63 | O60: 1.05 | P60: 0.52 | Q60: 0.25 | R60: 0.1 | T60: 12 | U60: 4.06 | V60: 2.47 | W60: 1.82 | X60: 0.72 | Y60: 0.36 | Z60: 0.19 | AA60: 0.08 | AC60: 8.95 | AD60: 3.13 | AE60: 1.93 | AF60: 1.31 | AG60: 0.53 | AH60: 0.26 | AI60: 0.14 | AJ60: 0.07 | AL60: 3.36 | AM60: 1.26 | AN60: 0.82 | AO60: 0.58 | AP60: 0.23 | AQ60: 0.13 | AR60: 0.07 | AS60: 0.04
A61: Van Nuys Airport | B61: 13.6 | C61: 4.17 | D61: 2.64 | E61: 1.9 | F61: 0.73 | G61: 0.35 | H61: 0.16 | I61: 0.06 | K61: 10.94 | L61: 3.32 | M61: 2.06 | N61: 1.47 | O61: 0.55 | P61: 0.28 | Q61: 0.13 | R61: 0.05 | T61: 7.7 | U61: 2.45 | V61: 1.42 | W61: 1.02 | X61: 0.35 | Y61: 0.17 | Z61: 0.09 | AA61: 0.04 | AC61: 5.68 | AD61: 1.85 | AE61: 1.1 | AF61: 0.74 | AG61: 0.25 | AH61: 0.11 | AI61: 0.06 | AJ61: 0.03 | AL61: 1.87 | AM61: 0.65 | AN61: 0.45 | AO61: 0.33 | AP61: 0.12 | AQ61: 0.06 | AR61: 0.03 | AS61: 0.01
B66: Rating (BHP) | C66: 1995 | D66: 1996 | E66: 1997 | F66: 1998 | G66: 1999 | H66: 2000 | I66: 2001 | J66: 2002 | K66: 2003 | L66: 2004 | M66: 2005 | N66: 2006 | O66: 2007 | P66: 2008 | Q66: 2009 | R66: 2010 | S66: 2011 | T66: 2012 | U66: 2013 | V66: 2014 | W66: 2015
A67: PM | B67: 50-75 | C67: 0 | D67: 0 | E67: 0 | F67: 0 | G67: 0 | H67: 0 | I67: 0 | J67: 0 | K67: 0 | L67: 0.3 | M67: 0.3 | N67: 0.3 | O67: 0.3 | P67: 0.22 | Q67: 0.22 | R67: 0.22 | S67: 0.22 | T67: 0.22 | U67: 0.02 | V67: 0.02 | W67: 0.02
B68: 75-100 | C68: 0 | D68: 0 | E68: 0 | F68: 0 | G68: 0 | H68: 0 | I68: 0 | J68: 0 | K68: 0 | L68: 0.3 | M68: 0.3 | N68: 0.3 | O68: 0.3 | P68: 0.3 | Q68: 0.3 | R68: 0.3 | S68: 0.3 | T68: 0.01 | U68: 0.01 | V68: 0.01 | W68: 0.01
B69: 100-175 | C69: 0 | D69: 0 | E69: 0 | F69: 0 | G69: 0 | H69: 0 | I69: 0 | J69: 0 | K69: 0.22 | L69: 0.22 | M69: 0.22 | N69: 0.22 | O69: 0.22 | P69: 0.22 | Q69: 0.22 | R69: 0.22 | S69: 0.22 | T69: 0.01 | U69: 0.01 | V69: 0.01 | W69: 0.01
B70: 175-300 | C70: 0 | D70: 0.4 | E70: 0.4 | F70: 0.4 | G70: 0.4 | H70: 0.4 | I70: 0.4 | J70: 0.4 | K70: 0.15 | L70: 0.15 | M70: 0.15 | N70: 0.15 | O70: 0.15 | P70: 0.15 | Q70: 0.15 | R70: 0.15 | S70: 0.015 | T70: 0.015 | U70: 0.015 | V70: 0.01 | W70: 0.01
B71: 300-600 | C71: 0 | D71: 0.4 | E71: 0.4 | F71: 0.4 | G71: 0.4 | H71: 0.4 | I71: 0.15 | J71: 0.15 | K71: 0.15 | L71: 0.15 | M71: 0.15 | N71: 0.15 | O71: 0.15 | P71: 0.15 | Q71: 0.15 | R71: 0.15 | S71: 0.015 | T71: 0.015 | U71: 0.015 | V71: 0.01 | W71: 0.01
B72: 600-750 | C72: 0 | D72: 0.4 | E72: 0.4 | F72: 0.4 | G72: 0.4 | H72: 0.4 | I72: 0.4 | J72: 0.15 | K72: 0.15 | L72: 0.15 | M72: 0.15 | N72: 0.15 | O72: 0.15 | P72: 0.15 | Q72: 0.15 | R72: 0.15 | S72: 0.015 | T72: 0.015 | U72: 0.015 | V72: 0.01 | W72: 0.01
B73: 750- | C73: 0 | D73: 0 | E73: 0 | F73: 0 | G73: 0 | H73: 0.4 | I73: 0.4 | J73: 0.4 | K73: 0.4 | L73: 0.4 | M73: 0.4 | N73: 0.15 | O73: 0.15 | P73: 0.15 | Q73: 0.15 | R73: 0.15 | S73: 0.07 | T73: 0.07 | U73: 0.07 | V73: 0.07 | W73: 0.03
B74: 750-1207 | C74: 0 | D74: 0 | E74: 0 | F74: 0 | G74: 0 | H74: 0.4 | I74: 0.4 | J74: 0.4 | K74: 0.4 | L74: 0.4 | M74: 0.4 | N74: 0.15 | O74: 0.15 | P74: 0.15 | Q74: 0.15 | R74: 0.15 | S74: 0.07 | T74: 0.07 | U74: 0.07 | V74: 0.07 | W74: 0.02
B75: 1207- | C75: 0 | D75: 0 | E75: 0 | F75: 0 | G75: 0 | H75: 0.4 | I75: 0.4 | J75: 0.4 | K75: 0.4 | L75: 0.4 | M75: 0.4 | N75: 0.15 | O75: 0.15 | P75: 0.15 | Q75: 0.15 | R75: 0.15 | S75: 0.07 | T75: 0.07 | U75: 0.07 | V75: 0.07 | W75: 0.02

Sheet Gas Station
B1: GASOLINE DISPENSING SERVICE STATION | I1: AN:
B2: =Intro!A39 & " - " &Intro!A38 -> (Procedure Version 8.1 & Package N, September 1, 2017 ) - Risk Tool V1.105 | I2: Facility Name:
I3: Deem Complete Date:
B6: Storage Tank Type | C6: Aboveground | G6: MET Station | J6: Azusa
B7: Annual Throughput | D7: million gallons /year | G7: Distance to Resident | K7: meter
B8: T-BACT | C8: YES | G8: Distance to Commercial | K8: meter
B11: MICR Calculation: | C11: MICR = MICR per 1 Million gallons/yr x Annual Throughput (Million gallons/yr)
B12: HIA & HIC Calculation: | C12: Negligible compared to Cancer risk and is not calculated.
B14: MICR Result
D15: Resident | F15: Commercial | P15: Resident | R15: Commercial
C16: MICR | D16: =F23*C7 -> 0 | F16: =I23*C7 -> 0 | N16: Throughput cap for MICR = 10 (million gal/yr) | P16: =10/F23 -> 2.248706993 | R16: =10/I23 -> 27.2479564
C17: MICR ≤ 10 | D17: =IF(D16>10,"FAIL","PASS") -> PASS | F17: =IF(F16>10,"FAIL","PASS") -> PASS
B20: Interpolation for MICR from Nearest Distances | F20: Residential | I20: Commercial
E21: near | F21: actual | G21: far | H21: near | I21: actual | J21: far
C22: Distance (meter) | E22: =IF(ISNA(HLOOKUP(F22,'Gas Station Data'!$B$4:$I$28,1,TRUE)),MIN(J7:J8),HLOOKUP(F22,'Gas Station Data'!$B$4:$I$28,1,TRUE)) -> 0 | F22: =J7 -> 0 | G22: =IF(F22<25,25,IF(F22>=1000,1000,IF(F22=HLOOKUP(F22,'Gas Station Data'!$A$5:$R$28,1,TRUE),F22,INDEX(table2_de,1,MATCH(F22,'Gas Station Data'!$B$4:$I$4,1)+1)))) -> 25 | H22: =IF(ISNA(HLOOKUP(I22,'Gas Station Data'!$B$4:$I$28,1,TRUE)),MIN(J7:J8),HLOOKUP(I22,'Gas Station Data'!$B$4:$I$28,1,TRUE)) -> 0 | I22: =J8 -> 0 | J22: =IF(I22<25,25,IF(I22>=1000,1000,IF(I22=HLOOKUP(I22,'Gas Station Data'!$A$5:$R$28,1,TRUE),I22,INDEX(table2_de,1,MATCH(I22,'Gas Station Data'!$B$4:$I$4,1)+1)))) -> 25
C23: MICR (per 1 million gasoline gallon throughput per year) | E23: =IF(ISNA(HLOOKUP(E22,$D$27:$K$29,2,TRUE)),D28,HLOOKUP(E22,$D$27:$K$29,2,TRUE)) -> 4.447 | F23: =ROUND(IF(E23=G23,E23,E23-(((F22-E22)/(G22-E22))*(E23-G23))),4) -> 4.447 | G23: =HLOOKUP(G22,$D$27:$K$29,2,TRUE) -> 4.447 | H23: =IF(ISNA(HLOOKUP(H22,$D$27:$K$29,3,TRUE)),D29,HLOOKUP(H22,$D$27:$K$29,3,TRUE)) -> 0.367 | I23: =IF(H23=J23,H23,H23-(((I22-H22)/(J22-H22))*(H23-J23))) -> 0.367 | J23: =HLOOKUP(J22,$D$27:$K$29,3,TRUE) -> 0.367
B25: ="Look up from Table 12 - MICR for "&C6&" Storage Tank" -> Look up from Table 12 - MICR for Aboveground Storage Tank
D26: Downwind Distance (m)
B27: Station | C27: Receptor | D27: 25 | E27: 50 | F27: 75 | G27: 100 | H27: 200 | I27: 300 | J27: 500 | K27: 1000
B28: =J6 -> Azusa | C28: Resident | D28: =IF($C$6="Underground",VLOOKUP($J$6,'Gas Station Data'!$A$5:$R$28,2,FALSE),VLOOKUP($J$6,'Gas Station Data'!$A$5:$R$28,11,FALSE)) -> 4.447 | E28: =IF($C$6="Underground",VLOOKUP($J$6,'Gas Station Data'!$A$5:$R$28,3,FALSE),VLOOKUP($J$6,'Gas Station Data'!$A$5:$R$28,12,FALSE)) -> 1.603 | F28: =IF($C$6="Underground",VLOOKUP($J$6,'Gas Station Data'!$A$5:$R$28,4,FALSE),VLOOKUP($J$6,'Gas Station Data'!$A$5:$R$28,13,FALSE)) -> 0.827 | G28: =IF($C$6="Underground",VLOOKUP($J$6,'Gas Station Data'!$A$5:$R$28,5,FALSE),VLOOKUP($J$6,'Gas Station Data'!$A$5:$R$28,14,FALSE)) -> 0.496 | H28: =IF($C$6="Underground",VLOOKUP($J$6,'Gas Station Data'!$A$5:$R$28,6,FALSE),VLOOKUP($J$6,'Gas Station Data'!$A$5:$R$28,15,FALSE)) -> 0.114 | I28: =IF($C$6="Underground",VLOOKUP($J$6,'Gas Station Data'!$A$5:$R$28,7,FALSE),VLOOKUP($J$6,'Gas Station Data'!$A$5:$R$28,16,FALSE)) -> 0.05 | J28: =IF($C$6="Underground",VLOOKUP($J$6,'Gas Station Data'!$A$5:$R$28,8,FALSE),VLOOKUP($J$6,'Gas Station Data'!$A$5:$R$28,17,FALSE)) -> 0.02 | K28: =IF($C$6="Underground",VLOOKUP($J$6,'Gas Station Data'!$A$5:$R$28,9,FALSE),VLOOKUP($J$6,'Gas Station Data'!$A$5:$R$28,18,FALSE)) -> 0.006
C29: Commercial | D29: =IF($C$6="Underground",VLOOKUP($J$6,'Gas Station Data'!$A$36:$R$59,2,FALSE),VLOOKUP($J$6,'Gas Station Data'!$A$36:$R$59,11,FALSE)) -> 0.367 | E29: =IF($C$6="Underground",VLOOKUP($J$6,'Gas Station Data'!$A$36:$R$59,3,FALSE),VLOOKUP($J$6,'Gas Station Data'!$A$36:$R$59,12,FALSE)) -> 0.132 | F29: =IF($C$6="Underground",VLOOKUP($J$6,'Gas Station Data'!$A$36:$R$59,4,FALSE),VLOOKUP($J$6,'Gas Station Data'!$A$36:$R$59,13,FALSE)) -> 0.068 | G29: =IF($C$6="Underground",VLOOKUP($J$6,'Gas Station Data'!$A$36:$R$59,5,FALSE),VLOOKUP($J$6,'Gas Station Data'!$A$36:$R$59,14,FALSE)) -> 0.041 | H29: =IF($C$6="Underground",VLOOKUP($J$6,'Gas Station Data'!$A$36:$R$59,6,FALSE),VLOOKUP($J$6,'Gas Station Data'!$A$36:$R$59,15,FALSE)) -> 0.009 | I29: =IF($C$6="Underground",VLOOKUP($J$6,'Gas Station Data'!$A$36:$R$59,7,FALSE),VLOOKUP($J$6,'Gas Station Data'!$A$36:$R$59,16,FALSE)) -> 0.004 | J29: =IF($C$6="Underground",VLOOKUP($J$6,'Gas Station Data'!$A$36:$R$59,8,FALSE),VLOOKUP($J$6,'Gas Station Data'!$A$36:$R$59,17,FALSE)) -> 0.002 | K29: =IF($C$6="Underground",VLOOKUP($J$6,'Gas Station Data'!$A$36:$R$59,9,FALSE),VLOOKUP($J$6,'Gas Station Data'!$A$36:$R$59,18,FALSE)) -> 0.001

Sheet Gas Station Data (hidden)
A1: Table 12A Screening table MICR (per one million gallons of throughput) for Gasoline Underground & Aboveground Storage Tank - Residential
A2: MICR/1 milion gal throughput | B2: Underground | K2: Aboveground
B3: Downwind Distance (meters) | K3: Downwind Distance (meters)
A4: Location | B4: 25 | C4: 50 | D4: 75 | E4: 100 | F4: 200 | G4: 300 | H4: 500 | I4: 1000 | K4: 25 | L4: 50 | M4: 75 | N4: 100 | O4: 200 | P4: 300 | Q4: 500 | R4: 1000
A5: Azusa | B5: 2.884 | C5: 1.04 | D5: 0.55 | E5: 0.34 | F5: 0.093 | G5: 0.045 | H5: 0.018 | I5: 0.006 | K5: 4.447 | L5: 1.603 | M5: 0.827 | N5: 0.496 | O5: 0.114 | P5: 0.05 | Q5: 0.02 | R5: 0.006
A6: Banning | B6: 4.208 | C6: 1.703 | D6: 0.94 | E6: 0.603 | F6: 0.186 | G6: 0.093 | H6: 0.039 | I6: 0.013 | K6: 5.469 | L6: 2.176 | M6: 1.185 | N6: 0.748 | O6: 0.21 | P6: 0.101 | Q6: 0.042 | R6: 0.013
A7: Central L.A. | B7: 2.484 | C7: 0.876 | D7: 0.455 | E7: 0.287 | F7: 0.085 | G7: 0.041 | H7: 0.017 | I7: 0.005 | K7: 3.61 | L7: 1.258 | M7: 0.641 | N7: 0.392 | O7: 0.1 | P7: 0.046 | Q7: 0.019 | R7: 0.006
A8: Lake Elsinore | B8: 2.978 | C8: 1.075 | D8: 0.558 | E8: 0.347 | F8: 0.103 | G8: 0.051 | H8: 0.021 | I8: 0.007 | K8: 4.056 | L8: 1.458 | M8: 0.748 | N8: 0.452 | O8: 0.119 | P8: 0.057 | Q8: 0.024 | R8: 0.008
A9: Fontana | B9: 3.306 | C9: 1.254 | D9: 0.677 | E9: 0.423 | F9: 0.124 | G9: 0.06 | H9: 0.025 | I9: 0.007 | K9: 4.812 | L9: 1.787 | M9: 0.94 | N9: 0.569 | O9: 0.145 | P9: 0.067 | Q9: 0.027 | R9: 0.008
A10: Mission Viejo | B10: 2.721 | C10: 0.981 | D10: 0.515 | E10: 0.319 | F10: 0.094 | G10: 0.047 | H10: 0.018 | I10: 0.006 | K10: 3.6 | L10: 1.276 | M10: 0.65 | N10: 0.395 | O10: 0.108 | P10: 0.052 | Q10: 0.021 | R10: 0.007
A11: Perris | B11: 3.494 | C11: 1.31 | D11: 0.695 | E11: 0.436 | F11: 0.127 | G11: 0.063 | H11: 0.026 | I11: 0.008 | K11: 4.639 | L11: 1.733 | M11: 0.904 | N11: 0.558 | O11: 0.144 | P11: 0.069 | Q11: 0.029 | R11: 0.009
A12: Pico Rivera | B12: 2.629 | C12: 0.956 | D12: 0.509 | E12: 0.316 | F12: 0.091 | G12: 0.044 | H12: 0.018 | I12: 0.005 | K12: 3.72 | L12: 1.342 | M12: 0.699 | N12: 0.421 | O12: 0.106 | P12: 0.049 | Q12: 0.019 | R12: 0.006
A13: Redlands | B13: 3.562 | C13: 1.325 | D13: 0.691 | E13: 0.418 | F13: 0.113 | G13: 0.055 | H13: 0.024 | I13: 0.007 | K13: 5.809 | L13: 2.218 | M13: 1.154 | N13: 0.685 | O13: 0.132 | P13: 0.062 | Q13: 0.026 | R13: 0.008
A14: Upland | B14: 3.108 | C14: 1.133 | D14: 0.609 | E14: 0.384 | F14: 0.111 | G14: 0.054 | H14: 0.022 | I14: 0.007 | K14: 4.693 | L14: 1.677 | M14: 0.871 | N14: 0.532 | O14: 0.13 | P14: 0.06 | Q14: 0.025 | R14: 0.008
A15: Burbank Airport | B15: 3.097 | C15: 1.198 | D15: 0.655 | E15: 0.41 | F15: 0.125 | G15: 0.062 | H15: 0.026 | I15: 0.008 | K15: 3.94 | L15: 1.493 | M15: 0.808 | N15: 0.493 | O15: 0.139 | P15: 0.069 | Q15: 0.028 | R15: 0.008
A16: Chino Airport. | B16: 4.084 | C16: 1.609 | D16: 0.87 | E16: 0.549 | F16: 0.166 | G16: 0.082 | H16: 0.033 | I16: 0.01 | K16: 4.971 | L16: 1.95 | M16: 1.047 | N16: 0.658 | O16: 0.188 | P16: 0.091 | Q16: 0.037 | R16: 0.011
A17: USC/Downtown L.A. | B17: 3.382 | C17: 1.244 | D17: 0.656 | E17: 0.407 | F17: 0.11 | G17: 0.052 | H17: 0.021 | I17: 0.007 | K17: 5.393 | L17: 1.959 | M17: 1.002 | N17: 0.604 | O17: 0.133 | P17: 0.058 | Q17: 0.024 | R17: 0.007
A18: Fullerton Airport | B18: 2.726 | C18: 1.027 | D18: 0.553 | E18: 0.348 | F18: 0.104 | G18: 0.052 | H18: 0.021 | I18: 0.007 | K18: 3.614 | L18: 1.336 | M18: 0.699 | N18: 0.429 | O18: 0.118 | P18: 0.058 | Q18: 0.024 | R18: 0.007
A19: Hawthorne Airport | B19: 3.225 | C19: 1.197 | D19: 0.64 | E19: 0.405 | F19: 0.123 | G19: 0.061 | H19: 0.025 | I19: 0.007 | K19: 4.415 | L19: 1.593 | M19: 0.837 | N19: 0.511 | O19: 0.14 | P19: 0.067 | Q19: 0.027 | R19: 0.008
A20: Los Angeles Int'l Airport | B20: 4.456 | C20: 1.83 | D20: 1.01 | E20: 0.648 | F20: 0.204 | G20: 0.102 | H20: 0.044 | I20: 0.013 | K20: 5.624 | L20: 2.316 | M20: 1.257 | N20: 0.794 | O20: 0.227 | P20: 0.111 | Q20: 0.047 | R20: 0.015
A21: Long Beach Airport | B21: 3.417 | C21: 1.394 | D21: 0.764 | E21: 0.488 | F21: 0.151 | G21: 0.076 | H21: 0.033 | I21: 0.01 | K21: 4.45 | L21: 1.829 | M21: 0.993 | N21: 0.621 | O21: 0.172 | P21: 0.083 | Q21: 0.035 | R21: 0.011
A22: Ontario Airport | B22: 4.834 | C22: 2.006 | D22: 1.111 | E22: 0.71 | F22: 0.222 | G22: 0.112 | H22: 0.047 | I22: 0.015 | K22: 5.99 | L22: 2.494 | M22: 1.37 | N22: 0.862 | O22: 0.249 | P22: 0.121 | Q22: 0.051 | R22: 0.017
A23: Palm Springs Airport | B23: 3.363 | C23: 1.352 | D23: 0.736 | E23: 0.467 | F23: 0.144 | G23: 0.073 | H23: 0.031 | I23: 0.01 | K23: 4.148 | L23: 1.691 | M23: 0.915 | N23: 0.573 | O23: 0.163 | P23: 0.08 | Q23: 0.034 | R23: 0.01
A24: Riverside Airport | B24: 4.141 | C24: 1.678 | D24: 0.922 | E24: 0.588 | F24: 0.177 | G24: 0.088 | H24: 0.038 | I24: 0.013 | K24: 5.77 | L24: 2.318 | M24: 1.244 | N24: 0.776 | O24: 0.202 | P24: 0.096 | Q24: 0.041 | R24: 0.013
A25: Santa Monica Airport | B25: 3.444 | C25: 1.336 | D25: 0.731 | E25: 0.462 | F25: 0.139 | G25: 0.068 | H25: 0.028 | I25: 0.008 | K25: 4.771 | L25: 1.829 | M25: 0.977 | N25: 0.596 | O25: 0.159 | P25: 0.074 | Q25: 0.031 | R25: 0.009
A26: John Wayne Int'l Airport | B26: 4.041 | C26: 1.605 | D26: 0.87 | E26: 0.549 | F26: 0.164 | G26: 0.079 | H26: 0.032 | I26: 0.01 | K26: 5.072 | L26: 2.017 | M26: 1.085 | N26: 0.674 | O26: 0.186 | P26: 0.088 | Q26: 0.036 | R26: 0.01
A27: Desert Hot Springs Airport | B27: 3.82 | C27: 1.553 | D27: 0.848 | E27: 0.54 | F27: 0.163 | G27: 0.082 | H27: 0.035 | I27: 0.01 | K27: 4.681 | L27: 1.917 | M27: 1.04 | N27: 0.66 | O27: 0.183 | P27: 0.091 | Q27: 0.039 | R27: 0.012
A28: Van Nuys Airport | B28: 2.909 | C28: 1.132 | D28: 0.608 | E28: 0.378 | F28: 0.111 | G28: 0.055 | H28: 0.022 | I28: 0.007 | K28: 3.673 | L28: 1.428 | M28: 0.76 | N28: 0.467 | O28: 0.127 | P28: 0.06 | Q28: 0.025 | R28: 0.008
A32: Table 12B Screening table MICR (per one million gallons of throughput) for Gasoline Underground & Aboveground Storage Tank - Worker
A33: MICR/1 milion gal throughput | B33: Underground | K33: Aboveground
B34: Downwind Distance (meters) | K34: Downwind Distance (meters)
A35: Location | B35: 25 | C35: 50 | D35: 75 | E35: 100 | F35: 200 | G35: 300 | H35: 500 | I35: 1000 | K35: 25 | L35: 50 | M35: 75 | N35: 100 | O35: 200 | P35: 300 | Q35: 500 | R35: 1000
A36: Azusa | B36: 0.238 | C36: 0.086 | D36: 0.045 | E36: 0.028 | F36: 0.008 | G36: 0.004 | H36: 0.002 | I36: 0 | K36: 0.367 | L36: 0.132 | M36: 0.068 | N36: 0.041 | O36: 0.009 | P36: 0.004 | Q36: 0.002 | R36: 0.001
A37: Banning | B37: 0.347 | C37: 0.14 | D37: 0.078 | E37: 0.05 | F37: 0.015 | G37: 0.008 | H37: 0.003 | I37: 0.001 | K37: 0.451 | L37: 0.179 | M37: 0.098 | N37: 0.062 | O37: 0.017 | P37: 0.008 | Q37: 0.003 | R37: 0.001
A38: Central L.A. | B38: 0.205 | C38: 0.072 | D38: 0.038 | E38: 0.024 | F38: 0.007 | G38: 0.003 | H38: 0.001 | I38: 0 | K38: 0.298 | L38: 0.104 | M38: 0.053 | N38: 0.032 | O38: 0.008 | P38: 0.004 | Q38: 0.002 | R38: 0.001
A39: Lake Elsinore | B39: 0.246 | C39: 0.089 | D39: 0.046 | E39: 0.029 | F39: 0.009 | G39: 0.004 | H39: 0.002 | I39: 0.001 | K39: 0.334 | L39: 0.12 | M39: 0.062 | N39: 0.037 | O39: 0.01 | P39: 0.005 | Q39: 0.002 | R39: 0.001
A40: Fontana | B40: 0.273 | C40: 0.103 | D40: 0.056 | E40: 0.035 | F40: 0.01 | G40: 0.005 | H40: 0.002 | I40: 0.001 | K40: 0.397 | L40: 0.147 | M40: 0.077 | N40: 0.047 | O40: 0.012 | P40: 0.005 | Q40: 0.002 | R40: 0.001
A41: Mission Viejo | B41: 0.224 | C41: 0.081 | D41: 0.042 | E41: 0.026 | F41: 0.008 | G41: 0.004 | H41: 0.002 | I41: 0 | K41: 0.297 | L41: 0.105 | M41: 0.054 | N41: 0.033 | O41: 0.009 | P41: 0.004 | Q41: 0.002 | R41: 0.001
A42: Perris | B42: 0.288 | C42: 0.108 | D42: 0.057 | E42: 0.036 | F42: 0.01 | G42: 0.005 | H42: 0.002 | I42: 0.001 | K42: 0.383 | L42: 0.143 | M42: 0.075 | N42: 0.046 | O42: 0.012 | P42: 0.006 | Q42: 0.002 | R42: 0.001
A43: Pico Rivera | B43: 0.217 | C43: 0.079 | D43: 0.042 | E43: 0.026 | F43: 0.007 | G43: 0.004 | H43: 0.001 | I43: 0 | K43: 0.307 | L43: 0.111 | M43: 0.058 | N43: 0.035 | O43: 0.009 | P43: 0.004 | Q43: 0.002 | R43: 0.001
A44: Redlands | B44: 0.294 | C44: 0.109 | D44: 0.057 | E44: 0.034 | F44: 0.009 | G44: 0.005 | H44: 0.002 | I44: 0.001 | K44: 0.479 | L44: 0.183 | M44: 0.095 | N44: 0.056 | O44: 0.011 | P44: 0.005 | Q44: 0.002 | R44: 0.001
A45: Upland | B45: 0.256 | C45: 0.093 | D45: 0.05 | E45: 0.032 | F45: 0.009 | G45: 0.004 | H45: 0.002 | I45: 0.001 | K45: 0.387 | L45: 0.138 | M45: 0.072 | N45: 0.044 | O45: 0.011 | P45: 0.005 | Q45: 0.002 | R45: 0.001
A46: Burbank Airport | B46: 0.255 | C46: 0.099 | D46: 0.054 | E46: 0.034 | F46: 0.01 | G46: 0.005 | H46: 0.002 | I46: 0.001 | K46: 0.325 | L46: 0.123 | M46: 0.067 | N46: 0.041 | O46: 0.011 | P46: 0.006 | Q46: 0.002 | R46: 0.001
A47: Chino Airport. | B47: 0.337 | C47: 0.133 | D47: 0.072 | E47: 0.045 | F47: 0.014 | G47: 0.007 | H47: 0.003 | I47: 0.001 | K47: 0.41 | L47: 0.161 | M47: 0.086 | N47: 0.054 | O47: 0.016 | P47: 0.007 | Q47: 0.003 | R47: 0.001
A48: USC/Downtown L.A. | B48: 0.279 | C48: 0.103 | D48: 0.054 | E48: 0.034 | F48: 0.009 | G48: 0.004 | H48: 0.002 | I48: 0.001 | K48: 0.445 | L48: 0.162 | M48: 0.083 | N48: 0.05 | O48: 0.011 | P48: 0.005 | Q48: 0.002 | R48: 0.001
A49: Fullerton Airport | B49: 0.225 | C49: 0.085 | D49: 0.046 | E49: 0.029 | F49: 0.009 | G49: 0.004 | H49: 0.002 | I49: 0.001 | K49: 0.298 | L49: 0.11 | M49: 0.058 | N49: 0.035 | O49: 0.01 | P49: 0.005 | Q49: 0.002 | R49: 0.001
A50: Hawthorne Airport | B50: 0.266 | C50: 0.099 | D50: 0.053 | E50: 0.033 | F50: 0.01 | G50: 0.005 | H50: 0.002 | I50: 0.001 | K50: 0.364 | L50: 0.131 | M50: 0.069 | N50: 0.042 | O50: 0.012 | P50: 0.006 | Q50: 0.002 | R50: 0.001
A51: Los Angeles Int'l Airport | B51: 0.367 | C51: 0.151 | D51: 0.083 | E51: 0.053 | F51: 0.017 | G51: 0.008 | H51: 0.004 | I51: 0.001 | K51: 0.464 | L51: 0.191 | M51: 0.104 | N51: 0.066 | O51: 0.019 | P51: 0.009 | Q51: 0.004 | R51: 0.001
A52: Long Beach Airport | B52: 0.282 | C52: 0.115 | D52: 0.063 | E52: 0.04 | F52: 0.012 | G52: 0.006 | H52: 0.003 | I52: 0.001 | K52: 0.367 | L52: 0.151 | M52: 0.082 | N52: 0.051 | O52: 0.014 | P52: 0.007 | Q52: 0.003 | R52: 0.001
A53: Ontario Airport | B53: 0.399 | C53: 0.165 | D53: 0.092 | E53: 0.059 | F53: 0.018 | G53: 0.009 | H53: 0.004 | I53: 0.001 | K53: 0.494 | L53: 0.206 | M53: 0.113 | N53: 0.071 | O53: 0.021 | P53: 0.01 | Q53: 0.004 | R53: 0.001
A54: Palm Springs Airport | B54: 0.277 | C54: 0.111 | D54: 0.061 | E54: 0.038 | F54: 0.012 | G54: 0.006 | H54: 0.003 | I54: 0.001 | K54: 0.342 | L54: 0.139 | M54: 0.075 | N54: 0.047 | O54: 0.013 | P54: 0.007 | Q54: 0.003 | R54: 0.001
A55: Riverside Airport | B55: 0.341 | C55: 0.138 | D55: 0.076 | E55: 0.049 | F55: 0.015 | G55: 0.007 | H55: 0.003 | I55: 0.001 | K55: 0.476 | L55: 0.191 | M55: 0.103 | N55: 0.064 | O55: 0.017 | P55: 0.008 | Q55: 0.003 | R55: 0.001
A56: Santa Monica Airport | B56: 0.284 | C56: 0.11 | D56: 0.06 | E56: 0.038 | F56: 0.011 | G56: 0.006 | H56: 0.002 | I56: 0.001 | K56: 0.393 | L56: 0.151 | M56: 0.081 | N56: 0.049 | O56: 0.013 | P56: 0.006 | Q56: 0.003 | R56: 0.001
A57: John Wayne Int'l Airport | B57: 0.333 | C57: 0.132 | D57: 0.072 | E57: 0.045 | F57: 0.014 | G57: 0.007 | H57: 0.003 | I57: 0.001 | K57: 0.418 | L57: 0.166 | M57: 0.089 | N57: 0.056 | O57: 0.015 | P57: 0.007 | Q57: 0.003 | R57: 0.001
A58: Desert Hot Springs Airport | B58: 0.315 | C58: 0.128 | D58: 0.07 | E58: 0.045 | F58: 0.013 | G58: 0.007 | H58: 0.003 | I58: 0.001 | K58: 0.386 | L58: 0.158 | M58: 0.086 | N58: 0.054 | O58: 0.015 | P58: 0.007 | Q58: 0.003 | R58: 0.001
A59: Van Nuys Airport | B59: 0.24 | C59: 0.093 | D59: 0.05 | E59: 0.031 | F59: 0.009 | G59: 0.005 | H59: 0.002 | I59: 0.001 | K59: 0.303 | L59: 0.118 | M59: 0.063 | N59: 0.038 | O59: 0.01 | P59: 0.005 | Q59: 0.002 | R59: 0.001

Sheet Pressure Washer
C2: PRESSURE WASHER (DIESEL) DATA | H2: ='Tier 1 Report'!C8 -> A/N 622795 (96, 97), Spear's Manufacturing Co.
C3: =Intro!A39 & " - " &Intro!A38 -> (Procedure Version 8.1 & Package N, September 1, 2017 ) - Risk Tool V1.105
C6: Max burner rating | D6: 1 | E6: btu/hr
C7: Fuel HHV (Diesel) | D7: 137 | E7: btu/gal
C8: Fuel rate | D8: =D6/D7 -> 0.007299270073 | E8: gal/hr
C9: Efficiency | D9: =CombControlEfficiency -> 0 | E9: fraction range 0-1
C12: Compound | D12: Emission Rate (lbs/1000 gal) | E12: R1 (Uncontrolled) (lbs/hr) | F12: R2 (Controlled) (lbs/hr) | G12: Toxic NSR Entry (E-06 lbs/hr)
G13: R1 (Uncontrolled) | H13: R2 (Controlled) | L13: CAS#
B14: B1 | C14: =VLOOKUP(B14,TAClist,2,FALSE) -> Benzene | D14: 0.00285 | E14: =D14*$D$8/1000 -> 2.080291971e-08 | F14: =E14*(1-CombControlEfficiency) -> 2.080291971e-08 | G14: =E14*1000000 -> 0.02080291971 | H14: =F14*1000000 -> 0.02080291971 | L14: 71-43-2
B15: E3 | C15: Ethyl Benzene | D15: 0.00165 | E15: =D15*$D$8/1000 -> 1.204379562e-08 | F15: 1.204379562e-08 | G15: =E15*1000000 -> 0.01204379562 | H15: 0.01204379562 | L15: 100-41-4
B16: F2 | C16: Formaldehyde | D16: 1.75 | E16: 1.277372263e-05 | F16: 1.277372263e-05 | G16: 12.77372263 | H16: 12.77372263 | L16: 50-00-0
B17: H6 | C17: n-Hexane | D17: 0.00134 | E17: 9.781021898e-09 | F17: 9.781021898e-09 | G17: 0.009781021898 | H17: 0.009781021898 | L17: 110-54-3
B18: P62 | C18: Naphthalene | D18: 2.78 | E18: 2.02919708e-05 | F18: 2.02919708e-05 | G18: 20.2919708 | H18: 20.2919708 | L18: 91-20-3
B19: P41 | C19: Polycyclic Aromatic Hydrocarbon (PAH) | D19: 0.000995 | E19: 7.262773723e-09 | F19: 7.262773723e-09 | G19: 0.007262773723 | H19: 0.007262773723 | L19: 1151
B20: P69 | C20: Propylene (Propene) | D20: 0.0018 | E20: 1.313868613e-08 | F20: 1.313868613e-08 | G20: 0.01313868613 | H20: 0.01313868613 | L20: 115-07-1
B21: T3 | C21: Toluene | D21: 0.0017 | E21: 1.240875912e-08 | F21: 1.240875912e-08 | G21: 0.01240875912 | H21: 0.01240875912 | L21: 108-88-3
B22: X1 | C22: Xylenes (Mixed Isomers) | D22: 0.00165 | E22: 1.204379562e-08 | F22: 1.204379562e-08 | G22: 0.01204379562 | H22: 0.01204379562 | L22: 1330-20-7
C24: *ARB CATEF LIST

Sheet Spray Booth
D2: SPRAY BOOTH INPUT DATA & TOXIC EMISSION SUMMARY | J2: ='Tier 1 Report'!$C$8 -> A/N 622795 (96, 97), Spear's Manufacturing Co. | N2: Natural Gas Combustion Emissions for Spray Booth
D3: =Intro!A39 & " - " &Intro!A38 -> (Procedure Version 8.1 & Package N, September 1, 2017 ) - Risk Tool V1.105 | T3: ='Tier 1 Report'!$C$8 -> A/N 622795 (96, 97), Spear's Manufacturing Co.
O5: Maximum | P5: Normal
C6: Spray Booth Type | E6: Without Burner | N6: hr/dy | O6: 24 | P6: 8 | S6: Max Heat Input (MMBTU/hr) | T6: =I6 -> 0
N7: dy/wk | O7: 7 | P7: 5 | S7: Gross Heating Value (BTU/scf) | T7: 1050
N8: wk/yr | O8: 52 | P8: 52 | S8: Maximum Gas Usage (scf/dy) | T8: =O6*O9*T6*1000000/T7 -> 0
N9: load | O9: 1 | P9: 0.5 | S9: Average Gas Usage (scf/dy) | T9: =$T$6*$P$9*$P$6*1000000/$T$7 -> 0 | X9: dy/wk | Y9: 30-Day Avg.
D10: Code | E10: Compound | G10: =IF(SprayboothType ="With Burner","Emission Rate (lb/hr) & (lbs/mmcf)","Emission Rate (lbs/hr)") -> Emission Rate (lbs/hr) | H10: R1 (Uncontrolled) (lbs/hr) | I10: Control Factor (range 0-1) | J10: R2 (Controlled) (lbs/hr) | K10: Toxic NSR Entry (E-06 lbs/hr) | X10: 1 | Y10: =ROUND(X10*4.33,0) -> 4
